Workbook

Sheet Home
G1: THE SEGMENT TOOL | O1: Updated May 2016
G2: SEGMENTING LIFE EXPECTANCY GAPS BY CAUSE OF DEATH
B8: This tool has been developed by the Public Health England (PHE) Knowledge and Intelligence team and provides information on the drivers of the gap in life expectancy both between and within Local Authority areas. It is designed to assist Local Authorities in evidence based local service planning and commissioning by providing information on the diseases, and age groups, which are causing inequalities in life expectancy. The tool builds on the Health Inequalities Intervention tools published by the former London Health Observatory, providing data tables and charts showing the breakdown of the life expectancy gap in 2009-11 for two comparisons: 1. The gap between the Local Authority as a whole and England as a whole. This option is only available if the selected area has a lower life expectancy than England. 2. The gap between the most deprived quintile of the selected Local Authority and the least deprived quintile of the Local Authority. This option is available for all areas. Further information on how to use this tool and interpret the results is provided in a user guide which can be downloaded here: xxx Futher information on the data and methods used to produce the tool can be found in the technical document which can be downloaded here: xxx
C9: ** This tool uses macros - please ensure that you have enabled macros in your security settings before continuing ** This tool has been developed by Public Health England's (PHE) Epidemiology & Surveillance team and provides information on the causes of death that are driving inequalities in life expectancy at local area level. Targeting the causes of death which contribute most to the life expectancy gap should have the biggest impact on reducing inequalities. The tool provides data tables and charts showing the breakdown of the life expectancy gap in 2012-14 for two comparisons: 1. The gap between the upper tier local authority as a whole and England as a whole. 2. The gap between the most deprived quintile of the selected local authority and the least deprived quintile of the local authority. Questions or comments on the tool can be sent to EandS-Enquiries@phe.gov.uk
C24: May 2016 update This update of the tool provides data for a more recent time period, and incorporates some small changes to the data sources used. The changes are: • Update of data to 2012-14 • Update to use the new Index of Multiple Deprivation 2015 to define the most and least deprived areas • Adjustment of counts of deaths to take account of changes in ICD-10 coding made in 2014. Because of these changes, the results in this version of the Segment Tool are not directly comparable with the previous version.

Sheet Guidance
G1: THE SEGMENT TOOL
G2: SEGMENTING LIFE EXPECTANCY GAPS BY CAUSE OF DEATH
C9: Guidance on use of the tool and interpretation of outputs Information on how to use the tool and interpret the outputs is provided below. Selecting an appropriate comparison for your area When a local authority is selected within the tool, contextual information is provided for that area in the grey box on the right hand side of the page. This includes the current life expectancy in the selected area and England and the absolute gap between them. Life expectancy in the most deprived and least deprived quintiles of the selected area is also displayed and the absolute gap between them. Comparison: LA as a whole - England If the LA - England selection is made, the charts will then show the causes of death which are driving inequalities in life expectancy between the selected area and the national average. The scarf chart will only be shown if life expectancy in the selected area is lower than England. However, bar charts can be viewed for all areas. If the gap between the selected local authority and England is very small then it may not be meaningful to select England as a comparator as the gap may be based on a very small number of deaths. The number of deaths in each cause can be viewed in the table which accompanies the charts. Comparison: LA most deprived quintile - least deprived quintile The causes of death driving life expectancy inequalities within each area can be viewed by selecting the most deprived quintile to least deprived quintile comparison. This option will provide a breakdown of the life expectancy gap between the most and least deprived fifth of areas in the selected local authority. Life expectancy in the most deprived quintile and least deprived quintile of the selected area is shown. In a few cases, life expectancy in the most deprived quintile is higher than life expectancy in the least deprived quintile. Where this is the case, scarf charts are not shown. Interpreting the outputs Two types of chart are available in the tool, scarf charts and bar charts. The scarf charts show, for each broad cause of death, the percentage contribution that it makes to the overall life expectancy gap between the areas selected. This could be between the local authority as a whole and England, or between the most deprived quintile of the local authority and the least deprived quintile of the local authority, depending on which comparison has been selected. If a cause shows a contribution of 0, this means that the cause of death does not make any contribution to the life expectancy gap. The bar charts show, both for broad causes, and a more detailed breakdown of causes of death, the years of life expectancy that would be lost or gained in the selected area, if it had the same mortality rates as the comparator area. Where the figure is negative, this means that the selected area already has a lower mortality rate for that cause and life years would be lost if the comparator's mortality rate was applied. The tables show the percentage contributions and years of life lost or gained for each cause of death. The number of deaths occurring in the area in 2012-14 are shown, and alongside, the number of excess deaths. Excess deaths are the number of 'extra' deaths that occur in the selected area because it has a higher mortality rate for that cause of death than the comparator area. If these deaths were prevented, then the contribution of that cause of death to the overall life expectancy gap would be eliminated. For some causes of death, there are no excess deaths in the selected area, and therefore no impact is made to the life expectancy gap. If this is the case the table shows a value of "..". The tables and charts illustrate which causes of death have the biggest impact of the life expectancy gap between the selected areas. Targeting these causes should have the biggest impact on reducing the gap. Comparability with previous Segment Tools This version of the Segment Tool is not directly comparable with the previous version, published in January 2015. This is due to two changes implemented in this version of the tool: 1. Counts of deaths have been adjusted take account of changes in ICD-10 coding made in 2014. 2. The new Index of Multiple Deprivation 2015 has been used to define the most and least deprived quintiles, while in the earlier tool the Index of Multiple Deprivation 2010 was used. Further information A user guide providing further information on how to use the tool and interpret the results and a technical document containing information on the data and methods can be downloaded from: http://fingertips.phe.org.uk/profile/segment .

Sheet Area select
C1: THE SEGMENT TOOL
C2: SEGMENTING LIFE EXPECTANCY GAPS BY CAUSE OF DEATH
B8: How to use this tool: Step 1. To start using the tool, select the Local Authority that you are interested in from the dropdown box. Once a selection has been made, some contextual information for the selected Local Authority will appear in the grey box on the right hand side. This includes life expectancy for the selected area, and for England, and the absolute gap in years between the two. Step 2. Next, select the comparison that you would like to make from the dropdown box. Step 3. The results of the gap analysis can now be viewed. Use a button in step 3 to view the results.
B16: Step 1:
B17: Select an area from the dropdown box: | G17: ="Information on inequalities in life expectancy between "&'presentation buffer'!D3&" and England" -> Information on inequalities in life expectancy between Adur and England
B19: Step 2: | H19: Male | I19: Female
B20: Select a comparison from the dropdown box: | G20: ="Life expectancy at birth in " & 'presentation buffer'!D3 & ", 2012-2014" -> Life expectancy at birth in Adur, 2012-2014 | H20: ='presentation buffer'!N3 -> 80.2 | I20: ='presentation buffer'!M3 -> 83.6
G22: Life expectancy at birth in England, 2012-2014 | H22: =ROUND('data LE '!E4,1) -> 79.6 | I22: =ROUND('data LE '!D4,1) -> 83.2
B23: Step 3:
B24: Click on a button to view results: | G24: ="Absolute gap in life expectancy between " & 'presentation buffer'!D3 & " and England" -> Absolute gap in life expectancy between Adur and England | H24: =H20-H22 -> 0.6 | I24: =I20-I22 -> 0.4
G25: in years*
C26: =IF(AND('presentation buffer'!A7=2,H24>=0, I24>=0),"**The scarf chart is not available for this comparison as life expectancy in the selected area is the same as or higher than England**","") -> 
G27: *A value below 0 indicates a lower life expectancy in the selected area compared with England.
G29: ="Information on inequalities in life expectancy within " & 'presentation buffer'!D3 -> Information on inequalities in life expectancy within Adur
H30: Male | I30: Female
G31: ="Life expectancy at birth in the most deprived quintile of " & 'presentation buffer'!$D$3 & ", 2012-2014" -> Life expectancy at birth in the most deprived quintile of Adur, 2012-2014 | H31: ='presentation buffer'!N7 -> 77.9 | I31: ='presentation buffer'!M7 -> 80.2
G33: ="Life expectancy at birth in the least deprived quintile of " & 'presentation buffer'!$D$3 & ", 2012-2014" -> Life expectancy at birth in the least deprived quintile of Adur, 2012-2014 | H33: ='presentation buffer'!N8 -> 83.4 | I33: ='presentation buffer'!M8 -> 86.9
G35: ="Absolute gap in life expectancy between least deprived and most " -> Absolute gap in life expectancy between least deprived and most
G36: ="deprived quintile in " & 'presentation buffer'!$D$3 & " in years*" -> deprived quintile in Adur in years* | H36: =H31-H33 -> -5.5 | I36: =I31-I33 -> -6.7
G38: *A value below 0 indicates a lower life expectancy in the most deprived quintile compared
G39: with the least deprived quintile.
G42: Sources:
G43: - Life expectancies for local authorities - Office for National Statistics (ONS), life expectancy at birth for local areas in England and Wales
G44: - Life expectancies for deprivation quintiles within each local authority - Analysis by Public Health England Epidemiology and Surveillance team based on ONS death registration data, and mid year population estimates, and DCLG Index of Multiple Deprivation, 2015

Sheet Scarf - broad
D1: THE SEGMENT TOOL
D2: SEGMENTING LIFE EXPECTANCY GAPS BY CAUSE OF DEATH
B4: Selected area: | C4: ='presentation buffer'!B3 -> Adur (E07000223)
B5: Selected comparison: | C5: ='presentation buffer'!B7 -> No selection
B8: ="Scarf chart showing the breakdown of the life expectancy gap between " & 'presentation buffer'!E7 & " and " & 'presentation buffer'!F7 & ", by broad cause of death, 2012-2014" -> Scarf chart showing the breakdown of the life expectancy gap between Adur most deprived quintile and Adur least deprived quintile, by broad cause of death, 2012-2014
B9: =IF(AND(C45="++", F45="++"), "**This chart is not available as life expectancy in this area is the same as or higher than England**", IF(AND(C45="##", F45="##"), "**This chart is not available as life expectancy in the most deprived quintile is the same as or higher than the least deprived quintile**","")) -> 
B37: Footnote: Circulatory diseases includes coronary heart disease and stroke. Respiratory diseases includes flu, pneumonia and chronic obstructive airways disease.
B38: Digestive diseases includes alcohol-related conditions such as chronic liver disease and cirrhosis.
B39: External causes include deaths from injury, poisoning and suicide. Mental and behavioural includes dementia and Alzheimer’s disease.
B41: ="Table showing the breakdown of the life expectancy gap between " & 'presentation buffer'!E7 & " and " & 'presentation buffer'!F7 & ", by broad cause of death, 2012-2014" -> Table showing the breakdown of the life expectancy gap between Adur most deprived quintile and Adur least deprived quintile, by broad cause of death, 2012-2014
C43: Male | F43: Female
B44: Broad cause of death | C44: ="Number of deaths in " & 'presentation buffer'!C7 -> Number of deaths in local authority | D44: ="Number of excess deaths in "& 'presentation buffer'!C7 -> Number of excess deaths in local authority | E44: Contribution to the gap (%) | F44: =C44 -> Number of deaths in local authority | G44: =D44 -> Number of excess deaths in local authority | H44: Contribution to the gap (%)
B45: Circulatory | C45: =IF(AND('Area select'!$H$24>=0, 'presentation buffer'!$A$7=2), "++", IF(E45="##", "##", 'presentation buffer'!G25)) ->  | D45: =IF(AND('Area select'!$H$24>=0, 'presentation buffer'!$A$7=2), "++", IF(E45="##", "##", 'presentation buffer'!H25)) ->  | E45: =IF(AND('Area select'!$H$24>=0, 'presentation buffer'!$A$7=2), "++", 'presentation buffer'!K25) ->  | F45: =IF(AND('Area select'!$I$24>=0, 'presentation buffer'!$A$7=2),"++", IF(H45="##", "##", 'presentation buffer'!L25)) ->  | G45: =IF(AND('Area select'!$I$24>=0, 'presentation buffer'!$A$7=2),"++", IF(H45="##", "##", 'presentation buffer'!M25)) ->  | H45: =IF(AND('Area select'!$I$24>=0, 'presentation buffer'!$A$7=2),"++",'presentation buffer'!P25) -> 
B46: Cancer | C46: =IF(AND('Area select'!$H$24>=0, 'presentation buffer'!$A$7=2), "++", IF(E46="##", "##", 'presentation buffer'!G26)) ->  | D46: =IF(AND('Area select'!$H$24>=0, 'presentation buffer'!$A$7=2), "++", IF(E46="##", "##", 'presentation buffer'!H26)) ->  | E46: =IF(AND('Area select'!$H$24>=0, 'presentation buffer'!$A$7=2), "++", 'presentation buffer'!K26) ->  | F46: =IF(AND('Area select'!$I$24>=0, 'presentation buffer'!$A$7=2),"++", IF(H46="##", "##", 'presentation buffer'!L26)) ->  | G46: =IF(AND('Area select'!$I$24>=0, 'presentation buffer'!$A$7=2),"++", IF(H46="##", "##", 'presentation buffer'!M26)) ->  | H46: =IF(AND('Area select'!$I$24>=0, 'presentation buffer'!$A$7=2),"++",'presentation buffer'!P26) -> 
B47: Respiratory | C47: =IF(AND('Area select'!$H$24>=0, 'presentation buffer'!$A$7=2), "++", IF(E47="##", "##", 'presentation buffer'!G27)) ->  | D47: =IF(AND('Area select'!$H$24>=0, 'presentation buffer'!$A$7=2), "++", IF(E47="##", "##", 'presentation buffer'!H27)) ->  | E47: =IF(AND('Area select'!$H$24>=0, 'presentation buffer'!$A$7=2), "++", 'presentation buffer'!K27) ->  | F47: =IF(AND('Area select'!$I$24>=0, 'presentation buffer'!$A$7=2),"++", IF(H47="##", "##", 'presentation buffer'!L27)) ->  | G47: =IF(AND('Area select'!$I$24>=0, 'presentation buffer'!$A$7=2),"++", IF(H47="##", "##", 'presentation buffer'!M27)) ->  | H47: =IF(AND('Area select'!$I$24>=0, 'presentation buffer'!$A$7=2),"++",'presentation buffer'!P27) -> 
B48: Digestive | C48: =IF(AND('Area select'!$H$24>=0, 'presentation buffer'!$A$7=2), "++", IF(E48="##", "##", 'presentation buffer'!G28)) ->  | D48: =IF(AND('Area select'!$H$24>=0, 'presentation buffer'!$A$7=2), "++", IF(E48="##", "##", 'presentation buffer'!H28)) ->  | E48: =IF(AND('Area select'!$H$24>=0, 'presentation buffer'!$A$7=2), "++", 'presentation buffer'!K28) ->  | F48: =IF(AND('Area select'!$I$24>=0, 'presentation buffer'!$A$7=2),"++", IF(H48="##", "##", 'presentation buffer'!L28)) ->  | G48: =IF(AND('Area select'!$I$24>=0, 'presentation buffer'!$A$7=2),"++", IF(H48="##", "##", 'presentation buffer'!M28)) ->  | H48: =IF(AND('Area select'!$I$24>=0, 'presentation buffer'!$A$7=2),"++",'presentation buffer'!P28) -> 
B49: External causes | C49: =IF(AND('Area select'!$H$24>=0, 'presentation buffer'!$A$7=2), "++", IF(E49="##", "##", 'presentation buffer'!G29)) ->  | D49: =IF(AND('Area select'!$H$24>=0, 'presentation buffer'!$A$7=2), "++", IF(E49="##", "##", 'presentation buffer'!H29)) ->  | E49: =IF(AND('Area select'!$H$24>=0, 'presentation buffer'!$A$7=2), "++", 'presentation buffer'!K29) ->  | F49: =IF(AND('Area select'!$I$24>=0, 'presentation buffer'!$A$7=2),"++", IF(H49="##", "##", 'presentation buffer'!L29)) ->  | G49: =IF(AND('Area select'!$I$24>=0, 'presentation buffer'!$A$7=2),"++", IF(H49="##", "##", 'presentation buffer'!M29)) ->  | H49: =IF(AND('Area select'!$I$24>=0, 'presentation buffer'!$A$7=2),"++",'presentation buffer'!P29) -> 
B50: Mental and behavioural | C50: =IF(AND('Area select'!$H$24>=0, 'presentation buffer'!$A$7=2), "++", IF(E50="##", "##", 'presentation buffer'!G30)) ->  | D50: =IF(AND('Area select'!$H$24>=0, 'presentation buffer'!$A$7=2), "++", IF(E50="##", "##", 'presentation buffer'!H30)) ->  | E50: =IF(AND('Area select'!$H$24>=0, 'presentation buffer'!$A$7=2), "++", 'presentation buffer'!K30) ->  | F50: =IF(AND('Area select'!$I$24>=0, 'presentation buffer'!$A$7=2),"++", IF(H50="##", "##", 'presentation buffer'!L30)) ->  | G50: =IF(AND('Area select'!$I$24>=0, 'presentation buffer'!$A$7=2),"++", IF(H50="##", "##", 'presentation buffer'!M30)) ->  | H50: =IF(AND('Area select'!$I$24>=0, 'presentation buffer'!$A$7=2),"++",'presentation buffer'!P30) -> 
B51: Other | C51: =IF(AND('Area select'!$H$24>=0, 'presentation buffer'!$A$7=2), "++", IF(E51="##", "##", 'presentation buffer'!G31)) ->  | D51: =IF(AND('Area select'!$H$24>=0, 'presentation buffer'!$A$7=2), "++", IF(E51="##", "##", 'presentation buffer'!H31)) ->  | E51: =IF(AND('Area select'!$H$24>=0, 'presentation buffer'!$A$7=2), "++", 'presentation buffer'!K31) ->  | F51: =IF(AND('Area select'!$I$24>=0, 'presentation buffer'!$A$7=2),"++", IF(H51="##", "##", 'presentation buffer'!L31)) ->  | G51: =IF(AND('Area select'!$I$24>=0, 'presentation buffer'!$A$7=2),"++", IF(H51="##", "##", 'presentation buffer'!M31)) ->  | H51: =IF(AND('Area select'!$I$24>=0, 'presentation buffer'!$A$7=2),"++",'presentation buffer'!P31) -> 
B52: Deaths under 28 days | C52: =IF(AND('Area select'!$H$24>=0, 'presentation buffer'!$A$7=2), "++", IF(E52="##", "##", 'presentation buffer'!G32)) ->  | D52: =IF(AND('Area select'!$H$24>=0, 'presentation buffer'!$A$7=2), "++", IF(E52="##", "##", 'presentation buffer'!H32)) ->  | E52: =IF(AND('Area select'!$H$24>=0, 'presentation buffer'!$A$7=2), "++", 'presentation buffer'!K32) ->  | F52: =IF(AND('Area select'!$I$24>=0, 'presentation buffer'!$A$7=2),"++", IF(H52="##", "##", 'presentation buffer'!L32)) ->  | G52: =IF(AND('Area select'!$I$24>=0, 'presentation buffer'!$A$7=2),"++", IF(H52="##", "##", 'presentation buffer'!M32)) ->  | H52: =IF(AND('Area select'!$I$24>=0, 'presentation buffer'!$A$7=2),"++",'presentation buffer'!P32) -> 
B54: Total | C54: =IF(OR(C45="++", C45="##"), C45, SUM(C45:C52)) -> 0 | E54: =IF(OR(C45="++", C45="##"), C45, SUM(E45:E52)) -> 0 | F54: =IF(OR(F45="++", F45="##"), F45, SUM(F45:F52)) -> 0 | H54: =IF(OR(F45="++", F45="##"), F45, SUM(H45:H52)) -> 0
B56: Counts of deaths have been adjusted take account of changes in ICD-10 coding made in 2014. This means totals may differ between tables. Further details can be found in the technical document.
B57: .. The calculated contribution to the gap is negative
B58: ++ The figures have not been calculated as life expectancy is higher than England
B59: ## The figures have not been calculated as life expectancy in the most deprived quintile is higher than life expectancy in the least deprived quintile
B60: Since changes have been made to the methodology, scarf charts in this version of the Segment Tool should not be compared to scarf charts in the previous version.
B61: Analysis by Public Health England Epidemiology and Surveillance team based on ONS death registration data, and mid year population estimates, and DCLG Index of Multiple Deprivation, 2015

Sheet YLG - broad
D1: THE SEGMENT TOOL
D2: SEGMENTING LIFE EXPECTANCY GAPS BY CAUSE OF DEATH
B4: Selected area: | C4: ='presentation buffer'!B3 -> Adur (E07000223)
B5: Selected comparison: | C5: ='presentation buffer'!B7 -> No selection
B8: ="Bar chart showing life expectancy years gained or lost in " & 'presentation buffer'!E7 & " if it had the same mortality rates as " & 'presentation buffer'!F7 & ", by broad cause of death, 2012-2014" -> Bar chart showing life expectancy years gained or lost in Adur most deprived quintile if it had the same mortality rates as Adur least deprived quintile, by broad cause of death, 2012-2014
B10: Male | G10: Female
B34: Footnote: Circulatory diseases includes coronary heart disease and stroke. Respiratory diseases includes flu, pneumonia and chronic obstructive airways disease.
B35: Digestive diseases includes alcohol-related conditions such as chronic liver disease and cirrhosis.
B36: External causes include deaths from injury, poisoning and suicide. Mental and behavioural includes dementia and Alzheimer’s disease.
B38: ="Table showing life expectancy years gained or lost in " & 'presentation buffer'!E7 & " if it had the same mortality rates as " & 'presentation buffer'!F7 & ", by broad cause of death, 2012-2014" -> Table showing life expectancy years gained or lost in Adur most deprived quintile if it had the same mortality rates as Adur least deprived quintile, by broad cause of death, 2012-2014
C40: Male | F40: Female
B41: Broad cause of death | C41: ="Number of deaths in " & 'presentation buffer'!C7 -> Number of deaths in local authority | D41: ="Number of excess deaths in "& 'presentation buffer'!C7 -> Number of excess deaths in local authority | E41: ="Number of years of life gained/lost* in " & 'presentation buffer'!C7 -> Number of years of life gained/lost* in local authority | F41: =C41 -> Number of deaths in local authority | G41: =D41 -> Number of excess deaths in local authority | H41: ="Number of years of life gained/lost* in " & 'presentation buffer'!C7 -> Number of years of life gained/lost* in local authority
B42: Circulatory | C42: ='presentation buffer'!G25 ->  | D42: ='presentation buffer'!H25 ->  | E42: ='presentation buffer'!I25 ->  | F42: ='presentation buffer'!L25 ->  | G42: ='presentation buffer'!M25 ->  | H42: ='presentation buffer'!N25 -> 
B43: Cancer | C43: ='presentation buffer'!G26 ->  | D43: ='presentation buffer'!H26 ->  | E43: ='presentation buffer'!I26 ->  | F43: ='presentation buffer'!L26 ->  | G43: ='presentation buffer'!M26 ->  | H43: ='presentation buffer'!N26 -> 
B44: Respiratory | C44: ='presentation buffer'!G27 ->  | D44: ='presentation buffer'!H27 ->  | E44: ='presentation buffer'!I27 ->  | F44: ='presentation buffer'!L27 ->  | G44: ='presentation buffer'!M27 ->  | H44: ='presentation buffer'!N27 -> 
B45: Digestive | C45: ='presentation buffer'!G28 ->  | D45: ='presentation buffer'!H28 ->  | E45: ='presentation buffer'!I28 ->  | F45: ='presentation buffer'!L28 ->  | G45: ='presentation buffer'!M28 ->  | H45: ='presentation buffer'!N28 -> 
B46: External causes | C46: ='presentation buffer'!G29 ->  | D46: ='presentation buffer'!H29 ->  | E46: ='presentation buffer'!I29 ->  | F46: ='presentation buffer'!L29 ->  | G46: ='presentation buffer'!M29 ->  | H46: ='presentation buffer'!N29 -> 
B47: Mental and behavioural | C47: ='presentation buffer'!G30 ->  | D47: ='presentation buffer'!H30 ->  | E47: ='presentation buffer'!I30 ->  | F47: ='presentation buffer'!L30 ->  | G47: ='presentation buffer'!M30 ->  | H47: ='presentation buffer'!N30 -> 
B48: Other | C48: ='presentation buffer'!G31 ->  | D48: ='presentation buffer'!H31 ->  | E48: ='presentation buffer'!I31 ->  | F48: ='presentation buffer'!L31 ->  | G48: ='presentation buffer'!M31 ->  | H48: ='presentation buffer'!N31 -> 
B49: Deaths under 28 days | C49: ='presentation buffer'!G32 ->  | D49: ='presentation buffer'!H32 ->  | E49: ='presentation buffer'!I32 ->  | F49: ='presentation buffer'!L32 ->  | G49: ='presentation buffer'!M32 ->  | H49: ='presentation buffer'!N32 -> 
B51: Total | C51: =SUM(C42:C49) -> 0 | F51: =SUM(F42:F49) -> 0
B53: Counts of deaths have been adjusted take account of changes in ICD-10 coding made in 2014. This means totals may differ between tables. Further details can be found in the technical document.
B54: * A positive figure indicates that life expectancy years would be gained if the base area had the same mortality rate as the comparator area (ie the mortality rate in the base area for the cause is higher than the comparator).
B55: A negative figure indicates that life expectancy years would be lost if the base area had the same mortality rate as the comparator (the mortality rate in the base area is lower than the comparator)
B56: Analysis by Public Health England Epidemiology and Surveillance team based on ONS death registration data, and mid year population estimates, and DCLG Index of Multiple Deprivation, 2015

Sheet YLG - detailed
D1: THE SEGMENT TOOL
D2: SEGMENTING LIFE EXPECTANCY GAPS BY CAUSE OF DEATH
B4: Selected area: | C4: ='presentation buffer'!B3 -> Adur (E07000223)
B5: Selected comparison: | C5: ='presentation buffer'!B7 -> No selection
B8: ="Bar chart showing life expectancy years gained or lost in " & 'presentation buffer'!E7 & " if it had the same mortality rates as " & 'presentation buffer'!F7 & ", by detailed cause of death, 2012-2014" -> Bar chart showing life expectancy years gained or lost in Adur most deprived quintile if it had the same mortality rates as Adur least deprived quintile, by detailed cause of death, 2012-2014
B10: Male | F10: Female
B34: Footnote: See table below for details of cause groupings. Details of causes of death included in the 'other' category can be found in the Technical Document.
B38: ="Table showing life expectancy years gained or lost in " & 'presentation buffer'!E7 & " if it had the same mortality rates as " & 'presentation buffer'!F7 & ", by detailed cause of death, 2012-2014" -> Table showing life expectancy years gained or lost in Adur most deprived quintile if it had the same mortality rates as Adur least deprived quintile, by detailed cause of death, 2012-2014
D40: Male | G40: Female
B41: Broad cause of death | C41: Detailed cause of death | D41: ="Number of deaths in " & 'presentation buffer'!C7 -> Number of deaths in local authority | E41: ="Number of excess deaths in "& 'presentation buffer'!C7 -> Number of excess deaths in local authority | F41: ="Number of years of life gained/lost* in " & 'presentation buffer'!C7 -> Number of years of life gained/lost* in local authority | G41: =D41 -> Number of deaths in local authority | H41: =E41 -> Number of excess deaths in local authority | I41: ="Number of years of life gained/lost* in " & 'presentation buffer'!C7 -> Number of years of life gained/lost* in local authority
B42: Circulatory | C42: Coronary Heart Disease | D42: ='presentation buffer'!G52 ->  | E42: ='presentation buffer'!H52 ->  | F42: ='presentation buffer'!I52 ->  | G42: ='presentation buffer'!K52 ->  | H42: ='presentation buffer'!L52 ->  | I42: ='presentation buffer'!M52 -> 
C43: Stroke | D43: ='presentation buffer'!G53 ->  | E43: ='presentation buffer'!H53 ->  | F43: ='presentation buffer'!I53 ->  | G43: ='presentation buffer'!K53 ->  | H43: ='presentation buffer'!L53 ->  | I43: ='presentation buffer'!M53 -> 
C44: Other circulatory | D44: ='presentation buffer'!G54 ->  | E44: ='presentation buffer'!H54 ->  | F44: ='presentation buffer'!I54 ->  | G44: ='presentation buffer'!K54 ->  | H44: ='presentation buffer'!L54 ->  | I44: ='presentation buffer'!M54 -> 
B45: Cancer | C45: Lung cancer | D45: ='presentation buffer'!G55 ->  | E45: ='presentation buffer'!H55 ->  | F45: ='presentation buffer'!I55 ->  | G45: ='presentation buffer'!K55 ->  | H45: ='presentation buffer'!L55 ->  | I45: ='presentation buffer'!M55 -> 
C46: Other cancers | D46: ='presentation buffer'!G56 ->  | E46: ='presentation buffer'!H56 ->  | F46: ='presentation buffer'!I56 ->  | G46: ='presentation buffer'!K56 ->  | H46: ='presentation buffer'!L56 ->  | I46: ='presentation buffer'!M56 -> 
B47: Respiratory | C47: Pneumonia | D47: ='presentation buffer'!G57 ->  | E47: ='presentation buffer'!H57 ->  | F47: ='presentation buffer'!I57 ->  | G47: ='presentation buffer'!K57 ->  | H47: ='presentation buffer'!L57 ->  | I47: ='presentation buffer'!M57 -> 
C48: Chronic obstructive airways disease | D48: ='presentation buffer'!G58 ->  | E48: ='presentation buffer'!H58 ->  | F48: ='presentation buffer'!I58 ->  | G48: ='presentation buffer'!K58 ->  | H48: ='presentation buffer'!L58 ->  | I48: ='presentation buffer'!M58 -> 
C49: Other respiratory disease | D49: ='presentation buffer'!G59 ->  | E49: ='presentation buffer'!H59 ->  | F49: ='presentation buffer'!I59 ->  | G49: ='presentation buffer'!K59 ->  | H49: ='presentation buffer'!L59 ->  | I49: ='presentation buffer'!M59 -> 
B50: Digestive | C50: Chronic liver disease including cirrhosis | D50: ='presentation buffer'!G60 ->  | E50: ='presentation buffer'!H60 ->  | F50: ='presentation buffer'!I60 ->  | G50: ='presentation buffer'!K60 ->  | H50: ='presentation buffer'!L60 ->  | I50: ='presentation buffer'!M60 -> 
C51: Other digestive | D51: ='presentation buffer'!G61 ->  | E51: ='presentation buffer'!H61 ->  | F51: ='presentation buffer'!I61 ->  | G51: ='presentation buffer'!K61 ->  | H51: ='presentation buffer'!L61 ->  | I51: ='presentation buffer'!M61 -> 
B52: External | C52: Suicide | D52: ='presentation buffer'!G62 ->  | E52: ='presentation buffer'!H62 ->  | F52: ='presentation buffer'!I62 ->  | G52: ='presentation buffer'!K62 ->  | H52: ='presentation buffer'!L62 ->  | I52: ='presentation buffer'!M62 -> 
C53: Other external | D53: ='presentation buffer'!G63 ->  | E53: ='presentation buffer'!H63 ->  | F53: ='presentation buffer'!I63 ->  | G53: ='presentation buffer'!K63 ->  | H53: ='presentation buffer'!L63 ->  | I53: ='presentation buffer'!M63 -> 
B54: Mental and behavioural | C54: Dementia & Alzheimer's disease | D54: ='presentation buffer'!G64 ->  | E54: ='presentation buffer'!H64 ->  | F54: ='presentation buffer'!I64 ->  | G54: ='presentation buffer'!K64 ->  | H54: ='presentation buffer'!L64 ->  | I54: ='presentation buffer'!M64 -> 
C55: Other mental and behavioural disorders | D55: ='presentation buffer'!G65 ->  | E55: ='presentation buffer'!H65 ->  | F55: ='presentation buffer'!I65 ->  | G55: ='presentation buffer'!K65 ->  | H55: ='presentation buffer'!L65 ->  | I55: ='presentation buffer'!M65 -> 
B56: Other | C56: Infectious and parasitic diseases | D56: ='presentation buffer'!G66 ->  | E56: ='presentation buffer'!H66 ->  | F56: ='presentation buffer'!I66 ->  | G56: ='presentation buffer'!K66 ->  | H56: ='presentation buffer'!L66 ->  | I56: ='presentation buffer'!M66 -> 
C57: Urinary conditions | D57: ='presentation buffer'!G67 ->  | E57: ='presentation buffer'!H67 ->  | F57: ='presentation buffer'!I67 ->  | G57: ='presentation buffer'!K67 ->  | H57: ='presentation buffer'!L67 ->  | I57: ='presentation buffer'!M67 -> 
C58: Ill defined conditions | D58: ='presentation buffer'!G68 ->  | E58: ='presentation buffer'!H68 ->  | F58: ='presentation buffer'!I68 ->  | G58: ='presentation buffer'!K68 ->  | H58: ='presentation buffer'!L68 ->  | I58: ='presentation buffer'!M68 -> 
C59: Diabetes | D59: ='presentation buffer'!G69 ->  | E59: ='presentation buffer'!H69 ->  | F59: ='presentation buffer'!I69 ->  | G59: ='presentation buffer'!K69 ->  | H59: ='presentation buffer'!L69 ->  | I59: ='presentation buffer'!M69 -> 
C60: Other | D60: ='presentation buffer'!G70 ->  | E60: ='presentation buffer'!H70 ->  | F60: ='presentation buffer'!I70 ->  | G60: ='presentation buffer'!K70 ->  | H60: ='presentation buffer'!L70 ->  | I60: ='presentation buffer'!M70 -> 
B61: Deaths under 28 days | C61: Deaths under 28 days | D61: ='presentation buffer'!G71 ->  | E61: ='presentation buffer'!H71 ->  | F61: ='presentation buffer'!I71 ->  | G61: ='presentation buffer'!K71 ->  | H61: ='presentation buffer'!L71 ->  | I61: ='presentation buffer'!M71 -> 
C63: Total | D63: =SUM(D42:D61) -> 0 | G63: =SUM(G42:G61) -> 0
B65: Counts of deaths have been adjusted take account of changes in ICD-10 coding made in 2014. This means totals may differ between tables. Further details can be found in the technical document.
B66: * A positive figure indicates that life expectancy years would be gained if the base area had the same mortality rate as the comparator area (ie the mortality rate in the base area for the cause is higher than the comparator)
B67: A negative figure indicates that life expectancy years would be lost if the base area had the same mortality rate as the comparator (the mortality rate in the base area is lower than the comparator)
B68: Analysis by Public Health England Epidemiology and Surveillance team based on ONS death registration data, and mid year population estimates, and DCLG Index of Multiple Deprivation, 2015

Sheet Alcohol
D1: THE SEGMENT TOOL
D2: SEGMENTING LIFE EXPECTANCY GAPS BY CAUSE OF DEATH
B4: Selected area: | C4: ='presentation buffer'!B3 -> Adur (E07000223)
B5: Selected comparison: | C5: ='presentation buffer'!B7 -> No selection
B8: ="Bar chart showing life expectancy years gained or lost in " & 'presentation buffer'!E7 & " if it had the same mortality rates as " & 'presentation buffer'!F7 & ", alcohol specific deaths, 2012-2014" -> Bar chart showing life expectancy years gained or lost in Adur most deprived quintile if it had the same mortality rates as Adur least deprived quintile, alcohol specific deaths, 2012-2014
B11: Male | G11: Female
B19: Footnote: Alcohol specific includes causes of death that are wholly attributable to alcohol
B23: ="Table showing life expectancy years gained or lost in " & 'presentation buffer'!E7 & " if it had the same mortality rates as " & 'presentation buffer'!F7 & ", alcohol specific deaths and all other causes of death, 2012-2014" -> Table showing life expectancy years gained or lost in Adur most deprived quintile if it had the same mortality rates as Adur least deprived quintile, alcohol specific deaths and all other causes of death, 2012-2014
C25: Male | F25: Female
B26: Cause of death | C26: ="Number of deaths in " & 'presentation buffer'!C7 -> Number of deaths in local authority | D26: ="Number of excess deaths in "& 'presentation buffer'!C7 -> Number of excess deaths in local authority | E26: ="Number of years of life gained/lost* in " & 'presentation buffer'!C7 -> Number of years of life gained/lost* in local authority | F26: =C26 -> Number of deaths in local authority | G26: =D26 -> Number of excess deaths in local authority | H26: ="Number of years of life gained/lost* in " & 'presentation buffer'!C7 -> Number of years of life gained/lost* in local authority
B27: Alcohol specific | C27: ='presentation buffer'!E103 ->  | D27: ='presentation buffer'!F103 ->  | E27: ='presentation buffer'!G103 ->  | F27: ='presentation buffer'!H103 ->  | G27: ='presentation buffer'!I103 ->  | H27: ='presentation buffer'!J103 -> 
B28: All other causes of death | C28: ='presentation buffer'!E104 ->  | D28: ='presentation buffer'!F104 ->  | E28: ='presentation buffer'!G104 ->  | F28: ='presentation buffer'!H104 ->  | G28: ='presentation buffer'!I104 ->  | H28: ='presentation buffer'!J104 -> 
B30: Total | C30: =SUM(C27:C28) -> 0 | F30: =SUM(F27:F28) -> 0
B32: * A positive figure indicates that life expectancy years would be gained if the base area had the same mortality rate as the comparator area (ie the mortality rate in the base area for the cause is higher than the comparator)
B33: A negative figure indicates that life expectancy years would be lost if the base area had the same mortality rate as the comparator (the mortality rate in the base area is lower than the comparator)
B34: Analysis by Public Health England Epidemiology and Surveillance team based on ONS death registration data, and mid year population estimates, and DCLG Index of Multiple Deprivation, 2015

Sheet presentation pdf with YLG (hidden)
B1: THE SEGMENT TOOL
B2: SEGMENTING LIFE EXPECTANCY GAPS BY CAUSE OF DEATH | L2: Updated May 2016 | Q2: 9.97265625
B4: ="Key results for " & 'presentation buffer'!B3 -> Key results for Adur (E07000223)
B6: Introduction
B7: This tool has been developed by Public Health England's (PHE) Epidemiology and Surveillance team and provides information on the causes of death that are driving inequalities in life expectancy at local area level. Targeting the causes of death which contribute most to the life expectancy gap should have the biggest impact on reducing inequalities. The tool provides data tables and charts showing the breakdown of the life expectancy gap in 2012-14 for two comparisons: 1. The gap between the Local Authority as a whole and England as a whole. This option is only available if the selected area has a lower life expectancy than England. 2. The gap between the most deprived quintile of the selected Local Authority and the least deprived quintile of the Local Authority. This option is only available where the most deprived quintile has a lower life expectancy than the least deprived quintile.
B8: ="This document presents key results for " & 'presentation buffer'!$D$3 & ". The tool, along with a user guide and technical document, can be downloaded from http://fingertips.phe.org.uk/profile/segment" -> This document presents key results for Adur. The tool, along with a user guide and technical document, can be downloaded from http://fingertips.phe.org.uk/profile/segment
B9: Due to changes made in this version of the Segment Tool, the results presented here are not directly comparable with previous versions.
B10: Interpreting the charts
B11: Two types of chart are included below. The scarf charts show, for each broad cause of death, the percentage contribution that it makes to the overall life expectancy gap between the areas selected. This could be between the local authority as a whole and England, or between the most deprived quintile of the local authority and the least deprived quintile of the local authority, depending on which comparison has been selected. If a cause shows a contribution of 0, this means that the cause of death does not make any contribution to the life expectancy gap. The bar charts show, for a more detailed breakdown of causes of death, the years of life expectancy that would be gained or lost in the selected area, if it had the same mortality rates as the comparator area. The tables show the percentage contributions and years of life gained for each cause of death. The number of deaths occurring in the area in 2012-14 are shown, and alongside, the number of excess deaths. Excess deaths are the number of 'extra' deaths that occur in the selected area because it has a higher mortality rate for that cause of death than the comparator area. If these deaths were prevented, then the contribution of that cause of death to the overall life expectancy gap would be eliminated. For some causes of death, there are no excess deaths in the selected area, and therefore no impact is made to the life expectancy gap. If this is the case the table shows a value of "..".
B13: THE SEGMENT TOOL
B14: SEGMENTING LIFE EXPECTANCY GAPS BY CAUSE OF DEATH
B16: ="Contextual information for " & 'presentation buffer'!D3 -> Contextual information for Adur
B19: =" Information on inequalities in life expectancy between "&'presentation buffer'!D3&" and England" -> Information on inequalities in life expectancy between Adur and England
K20: Male | L20: Female
B21: =" Life expectancy at birth in " & 'presentation buffer'!D3 & ", 2012-2014" -> Life expectancy at birth in Adur, 2012-2014 | K21: ='Area select'!H20 -> 80.2 | L21: ='Area select'!I20 -> 83.6
B23: Life expectancy at birth in England, 2012-2014 | K23: ='Area select'!H22 -> 79.6 | L23: ='Area select'!I22 -> 83.2
B25: =" Absolute gap in life expectancy between " & 'presentation buffer'!D3 & " and England" -> Absolute gap in life expectancy between Adur and England | K25: ='Area select'!H24 -> 0.6 | L25: ='Area select'!I24 -> 0.4
B26: in years*
B28: *A value below 0 indicates a lower life expectancy in the selected area compared to England.
B30: =" Information on inequalities in life expectancy within " & 'presentation buffer'!D3 -> Information on inequalities in life expectancy within Adur
K31: Male | L31: Female
B32: =" Life expectancy at birth in the most deprived quintile of " & 'presentation buffer'!D3 &", 2012-2014" -> Life expectancy at birth in the most deprived quintile of Adur, 2012-2014 | K32: ='Area select'!H31 -> 77.9 | L32: ='Area select'!I31 -> 80.2
B34: =" Life expectancy at birth in the least deprived quintile of " &'presentation buffer'!D3 & ", 2012-2014" -> Life expectancy at birth in the least deprived quintile of Adur, 2012-2014 | K34: ='Area select'!H33 -> 83.4 | L34: ='Area select'!I33 -> 86.9
B36: =" Absolute gap in life expectancy between most deprived and least deprived areas within "&'presentation buffer'!D3 -> Absolute gap in life expectancy between most deprived and least deprived areas within Adur | K36: =K32-K34 -> -5.5 | L36: =L32-L34 -> -6.7
B38: *A value below 0 indicates a lower life expectancy in the most deprived quintile compared with the least deprived quintile.
B41: Sources:
B42: - Life expectancies for local authorities - Office for National Statistics (ONS), life expectancy at birth for local areas in England and Wales
B43: - Life expectancies for deprivation quintiles within each local authority - Analysis by Public Health England Epidemiology and Surveillance team based on ONS death registration data, and mid year population estimates, and DCLG Index of Multiple Deprivation, 2015
B49: THE SEGMENT TOOL
B50: SEGMENTING LIFE EXPECTANCY GAPS BY CAUSE OF DEATH
B51: ="Between area inequalities: Life expectancy gap between " & 'presentation buffer'!D3 & " as a whole and England" -> Between area inequalities: Life expectancy gap between Adur as a whole and England
B52: ="Chart 1: Scarf chart showing the breakdown of the life expectancy gap between " & 'presentation buffer'!D3 & " as a whole and England as a whole, by broad cause of death, 2012-2014" -> Chart 1: Scarf chart showing the breakdown of the life expectancy gap between Adur as a whole and England as a whole, by broad cause of death, 2012-2014
B53: =IF(AND($H$129="++", $L$129="++"),"**This chart is not available as life expectancy is the same as or higher in " & 'presentation buffer'!$D$3 & " than in England as a whole**", "") -> **This chart is not available as life expectancy is the same as or higher in Adur than in England as a whole**
R59: Chart data
S60: Male | T60: Female
R61: <28 days | S61: =IFERROR(H136/100,0) -> 0 | T61: =IFERROR(L136/100,0) -> 0
R62: Other | S62: =IFERROR(H135/100,0) -> 0 | T62: =IFERROR(L135/100,0) -> 0
R63: Mental and behavioural | S63: =IFERROR(H134/100,0) -> 0 | T63: =IFERROR(L134/100,0) -> 0
R64: External causes | S64: =IFERROR(H133/100,0) -> 0 | T64: =IFERROR(L133/100,0) -> 0
R65: Digestive | S65: =IFERROR(H132/100,0) -> 0 | T65: =IFERROR(L132/100,0) -> 0
R66: Respiratory | S66: =IFERROR(H131/100,0) -> 0 | T66: =IFERROR(L131/100,0) -> 0
R67: Cancer | S67: =IFERROR(H130/100,0) -> 0 | T67: =IFERROR(L130/100,0) -> 0
R68: Circulatory | S68: =IFERROR(H129/100,0) -> 0 | T68: =IFERROR(L129/100,0) -> 0
B84: Footnote: Circulatory diseases includes coronary heart disease and stroke. Respiratory diseases includes flu, pneumonia and chronic obstructive airways disease. Digestive diseases includes alcohol-related conditions such as chronic liver disease and cirrhosis. External causes include deaths from injury, poisoning and suicide. Mental and behavioural includes dementia and Alzheimer’s disease.
B85: Analysis by Public Health England Epidemiology and Surveillance team based on ONS death registration data, and mid year population estimates
B86: THE SEGMENT TOOL
B87: SEGMENTING LIFE EXPECTANCY GAPS BY CAUSE OF DEATH
B89: ="Chart 2: Bar chart showing life expectancy years gained or lost if " & 'presentation buffer'!D3 & " as a whole had the same mortality rates as England as a whole, by broad cause of death, 2012-2014" -> Chart 2: Bar chart showing life expectancy years gained or lost if Adur as a whole had the same mortality rates as England as a whole, by broad cause of death, 2012-2014 | R89: YLG chart data
R90: Male | V90: Female
B91: Male | I91: Female | R91: Rank | S91: Cause | T91: YLG_YLL | V91: Rank | W91: Cause | X91: YLG_YLL
R92: 8 | S92: =VLOOKUP(R92,$Q$129:$W$136,6,FALSE) -> Digestive | T92: =VLOOKUP(R92,$Q$129:$W$136,7,FALSE) -> -0.24 | V92: 8 | W92: =VLOOKUP(V92,$R$129:$X$136,5,FALSE) -> Respiratory | X92: =VLOOKUP(V92,$R$129:$X$136,7,FALSE) -> -0.25
R93: 7 | S93: =VLOOKUP(R93,$Q$129:$W$136,6,FALSE) -> Deaths under 28 days | T93: =VLOOKUP(R93,$Q$129:$W$136,7,FALSE) -> -0.17 | V93: 7 | W93: =VLOOKUP(V93,$R$129:$X$136,5,FALSE) -> Digestive | X93: =VLOOKUP(V93,$R$129:$X$136,7,FALSE) -> -0.12
R94: 6 | S94: Circulatory | T94: -0.14 | V94: 6 | W94: Mental and behavioural | X94: -0.08
R95: 5 | S95: Respiratory | T95: -0.12 | V95: 5 | W95: Other | X95: -0.06
R96: 4 | S96: Other | T96: -0.06 | V96: 4 | W96: External causes | X96: -0.05
R97: 3 | S97: Mental and behavioural | T97: -0.05 | V97: 3 | W97: Circulatory | X97: 0.02
R98: 2 | S98: External causes | T98: 0.01 | V98: 2 | W98: Cancer | X98: 0.03
R99: 1 | S99: Cancer | T99: 0.09 | V99: 1 | W99: Deaths under 28 days | X99: 0.1
B119: Footnote: Circulatory diseases includes coronary heart disease and stroke. Respiratory diseases includes flu, pneumonia and chronic obstructive airways disease. Digestive diseases includes alcohol-related conditions such as chronic liver disease and cirrhosis. External causes include deaths from injury, poisoning and suicide. Mental and behavioural includes dementia and Alzheimer’s disease.
B120: Analysis by Public Health England Epidemiology and Surveillance team based on ONS death registration data, and mid year population estimates
B122: THE SEGMENT TOOL
B123: SEGMENTING LIFE EXPECTANCY GAPS BY CAUSE OF DEATH
B126: ="Table 1: Breakdown of the life expectancy gap between " & 'presentation buffer'!D3 & " as a whole and England as a whole, by broad cause of death, 2012-2014" -> Table 1: Breakdown of the life expectancy gap between Adur as a whole and England as a whole, by broad cause of death, 2012-2014
E127: Male | I127: Female
B128: Broad cause of death | E128: Number of deaths in local authority | F128: Number of excess deaths in local authority | G128: Number of years of life gained/lost* | H128: Contribution to the gap (%) | I128: Number of deaths in local authority | J128: Number of excess deaths in local authority | K128: Number of years of life gained/lost* | L128: Contribution to the gap (%) | Q128: Adj rank male | R128: Adj rank female | S128: Cause Code | T128: rank male | U128: rank female | V128: Cause | W128: ylg male | X128: ylg female
B129: Circulatory | E129: =IFERROR(VLOOKUP('presentation buffer'!$E25&'presentation buffer'!$C$3&1,'data broad'!$A:$N, 5,FALSE),0) -> 289.1 | F129: =IFERROR(VLOOKUP('presentation buffer'!$E25&'presentation buffer'!$C$3&1,'data broad'!$A:$N, 6,FALSE),0) -> -9.1 | G129: =IFERROR(VLOOKUP('presentation buffer'!$E25&'presentation buffer'!$C$3&1,'data broad'!$A:$N, 7,FALSE),0) -> -0.14 | H129: =IFERROR(VLOOKUP('presentation buffer'!$E25&'presentation buffer'!$C$3&1,'data broad'!$A:$N, 9,FALSE),0) -> ++ | I129: =IFERROR(VLOOKUP('presentation buffer'!$E25&'presentation buffer'!$C$3&2,'data broad'!$A:$N, 5,FALSE),0) -> 319.7 | J129: =IFERROR(VLOOKUP('presentation buffer'!$E25&'presentation buffer'!$C$3&2,'data broad'!$A:$N, 6,FALSE),0) -> 8 | K129: =IFERROR(VLOOKUP('presentation buffer'!$E25&'presentation buffer'!$C$3&2,'data broad'!$A:$N, 7,FALSE),0) -> 0.02 | L129: =IFERROR(VLOOKUP('presentation buffer'!$E25&'presentation buffer'!$C$3&2,'data broad'!$A:$N, 9,FALSE),0) -> ++ | Q129: =IF(COUNTIF(T$129:T$136,T129)=1,T129,T129+COUNTIF(T$129:T129,T129)-1) -> 6 | R129: =IF(COUNTIF(U$129:U$136,U129)=1,U129,U129+COUNTIF(U$129:U129,U129)-1) -> 3 | S129: 1 | T129: =RANK(G129,$G$129:$G$136) -> 6 | U129: =RANK(K129,$K$129:$K$136) -> 3 | V129: Circulatory | W129: =G129 -> -0.14 | X129: =K129 -> 0.02
B130: Cancer | E130: =IFERROR(VLOOKUP('presentation buffer'!$E26&'presentation buffer'!$C$3&1,'data broad'!$A:$N, 5,FALSE),0) -> 316 | F130: =IFERROR(VLOOKUP('presentation buffer'!$E26&'presentation buffer'!$C$3&1,'data broad'!$A:$N, 6,FALSE),0) -> 0.1 | G130: =IFERROR(VLOOKUP('presentation buffer'!$E26&'presentation buffer'!$C$3&1,'data broad'!$A:$N, 7,FALSE),0) -> 0.09 | H130: =IFERROR(VLOOKUP('presentation buffer'!$E26&'presentation buffer'!$C$3&1,'data broad'!$A:$N, 9,FALSE),0) -> ++ | I130: =IFERROR(VLOOKUP('presentation buffer'!$E26&'presentation buffer'!$C$3&2,'data broad'!$A:$N, 5,FALSE),0) -> 276 | J130: =IFERROR(VLOOKUP('presentation buffer'!$E26&'presentation buffer'!$C$3&2,'data broad'!$A:$N, 6,FALSE),0) -> -10.1 | K130: =IFERROR(VLOOKUP('presentation buffer'!$E26&'presentation buffer'!$C$3&2,'data broad'!$A:$N, 7,FALSE),0) -> 0.03 | L130: =IFERROR(VLOOKUP('presentation buffer'!$E26&'presentation buffer'!$C$3&2,'data broad'!$A:$N, 9,FALSE),0) -> ++ | Q130: =IF(COUNTIF(T$129:T$136,T130)=1,T130,T130+COUNTIF(T$129:T130,T130)-1) -> 1 | R130: =IF(COUNTIF(U$129:U$136,U130)=1,U130,U130+COUNTIF(U$129:U130,U130)-1) -> 2 | S130: 2 | T130: 1 | U130: 2 | V130: Cancer | W130: 0.09 | X130: 0.03
B131: Respiratory | E131: =IFERROR(VLOOKUP('presentation buffer'!$E27&'presentation buffer'!$C$3&1,'data broad'!$A:$N, 5,FALSE),0) -> 138.1 | F131: =IFERROR(VLOOKUP('presentation buffer'!$E27&'presentation buffer'!$C$3&1,'data broad'!$A:$N, 6,FALSE),0) -> -10 | G131: =IFERROR(VLOOKUP('presentation buffer'!$E27&'presentation buffer'!$C$3&1,'data broad'!$A:$N, 7,FALSE),0) -> -0.12 | H131: =IFERROR(VLOOKUP('presentation buffer'!$E27&'presentation buffer'!$C$3&1,'data broad'!$A:$N, 9,FALSE),0) -> ++ | I131: =IFERROR(VLOOKUP('presentation buffer'!$E27&'presentation buffer'!$C$3&2,'data broad'!$A:$N, 5,FALSE),0) -> 143.8 | J131: =IFERROR(VLOOKUP('presentation buffer'!$E27&'presentation buffer'!$C$3&2,'data broad'!$A:$N, 6,FALSE),0) -> -18.2 | K131: =IFERROR(VLOOKUP('presentation buffer'!$E27&'presentation buffer'!$C$3&2,'data broad'!$A:$N, 7,FALSE),0) -> -0.25 | L131: =IFERROR(VLOOKUP('presentation buffer'!$E27&'presentation buffer'!$C$3&2,'data broad'!$A:$N, 9,FALSE),0) -> ++ | Q131: =IF(COUNTIF(T$129:T$136,T131)=1,T131,T131+COUNTIF(T$129:T131,T131)-1) -> 5 | R131: =IF(COUNTIF(U$129:U$136,U131)=1,U131,U131+COUNTIF(U$129:U131,U131)-1) -> 8 | S131: 3 | T131: 5 | U131: 8 | V131: Respiratory | W131: -0.12 | X131: -0.25
B132: Digestive | E132: =IFERROR(VLOOKUP('presentation buffer'!$E28&'presentation buffer'!$C$3&1,'data broad'!$A:$N, 5,FALSE),0) -> 34 | F132: =IFERROR(VLOOKUP('presentation buffer'!$E28&'presentation buffer'!$C$3&1,'data broad'!$A:$N, 6,FALSE),0) -> -13.8 | G132: =IFERROR(VLOOKUP('presentation buffer'!$E28&'presentation buffer'!$C$3&1,'data broad'!$A:$N, 7,FALSE),0) -> -0.24 | H132: =IFERROR(VLOOKUP('presentation buffer'!$E28&'presentation buffer'!$C$3&1,'data broad'!$A:$N, 9,FALSE),0) -> ++ | I132: =IFERROR(VLOOKUP('presentation buffer'!$E28&'presentation buffer'!$C$3&2,'data broad'!$A:$N, 5,FALSE),0) -> 51.5 | J132: =IFERROR(VLOOKUP('presentation buffer'!$E28&'presentation buffer'!$C$3&2,'data broad'!$A:$N, 6,FALSE),0) -> -2.3 | K132: =IFERROR(VLOOKUP('presentation buffer'!$E28&'presentation buffer'!$C$3&2,'data broad'!$A:$N, 7,FALSE),0) -> -0.12 | L132: =IFERROR(VLOOKUP('presentation buffer'!$E28&'presentation buffer'!$C$3&2,'data broad'!$A:$N, 9,FALSE),0) -> ++ | Q132: =IF(COUNTIF(T$129:T$136,T132)=1,T132,T132+COUNTIF(T$129:T132,T132)-1) -> 8 | R132: =IF(COUNTIF(U$129:U$136,U132)=1,U132,U132+COUNTIF(U$129:U132,U132)-1) -> 7 | S132: 4 | T132: 8 | U132: 7 | V132: Digestive | W132: -0.24 | X132: -0.12
B133: External causes | E133: =IFERROR(VLOOKUP('presentation buffer'!$E29&'presentation buffer'!$C$3&1,'data broad'!$A:$N, 5,FALSE),0) -> 41 | F133: =IFERROR(VLOOKUP('presentation buffer'!$E29&'presentation buffer'!$C$3&1,'data broad'!$A:$N, 6,FALSE),0) -> -0.5 | G133: =IFERROR(VLOOKUP('presentation buffer'!$E29&'presentation buffer'!$C$3&1,'data broad'!$A:$N, 7,FALSE),0) -> 0.01 | H133: =IFERROR(VLOOKUP('presentation buffer'!$E29&'presentation buffer'!$C$3&1,'data broad'!$A:$N, 9,FALSE),0) -> ++ | I133: =IFERROR(VLOOKUP('presentation buffer'!$E29&'presentation buffer'!$C$3&2,'data broad'!$A:$N, 5,FALSE),0) -> 30.4 | J133: =IFERROR(VLOOKUP('presentation buffer'!$E29&'presentation buffer'!$C$3&2,'data broad'!$A:$N, 6,FALSE),0) -> 0.8 | K133: =IFERROR(VLOOKUP('presentation buffer'!$E29&'presentation buffer'!$C$3&2,'data broad'!$A:$N, 7,FALSE),0) -> -0.05 | L133: =IFERROR(VLOOKUP('presentation buffer'!$E29&'presentation buffer'!$C$3&2,'data broad'!$A:$N, 9,FALSE),0) -> ++ | Q133: =IF(COUNTIF(T$129:T$136,T133)=1,T133,T133+COUNTIF(T$129:T133,T133)-1) -> 2 | R133: =IF(COUNTIF(U$129:U$136,U133)=1,U133,U133+COUNTIF(U$129:U133,U133)-1) -> 4 | S133: 5 | T133: 2 | U133: 4 | V133: External causes | W133: 0.01 | X133: -0.05
B134: Mental and behavioural | E134: =IFERROR(VLOOKUP('presentation buffer'!$E30&'presentation buffer'!$C$3&1,'data broad'!$A:$N, 5,FALSE),0) -> 71.9 | F134: =IFERROR(VLOOKUP('presentation buffer'!$E30&'presentation buffer'!$C$3&1,'data broad'!$A:$N, 6,FALSE),0) -> -7 | G134: =IFERROR(VLOOKUP('presentation buffer'!$E30&'presentation buffer'!$C$3&1,'data broad'!$A:$N, 7,FALSE),0) -> -0.05 | H134: =IFERROR(VLOOKUP('presentation buffer'!$E30&'presentation buffer'!$C$3&1,'data broad'!$A:$N, 9,FALSE),0) -> ++ | I134: =IFERROR(VLOOKUP('presentation buffer'!$E30&'presentation buffer'!$C$3&2,'data broad'!$A:$N, 5,FALSE),0) -> 141.6 | J134: =IFERROR(VLOOKUP('presentation buffer'!$E30&'presentation buffer'!$C$3&2,'data broad'!$A:$N, 6,FALSE),0) -> -12.9 | K134: =IFERROR(VLOOKUP('presentation buffer'!$E30&'presentation buffer'!$C$3&2,'data broad'!$A:$N, 7,FALSE),0) -> -0.08 | L134: =IFERROR(VLOOKUP('presentation buffer'!$E30&'presentation buffer'!$C$3&2,'data broad'!$A:$N, 9,FALSE),0) -> ++ | Q134: =IF(COUNTIF(T$129:T$136,T134)=1,T134,T134+COUNTIF(T$129:T134,T134)-1) -> 3 | R134: =IF(COUNTIF(U$129:U$136,U134)=1,U134,U134+COUNTIF(U$129:U134,U134)-1) -> 6 | S134: 6 | T134: 3 | U134: 6 | V134: Mental and behavioural | W134: -0.05 | X134: -0.08
B135: Other | E135: =IFERROR(VLOOKUP('presentation buffer'!$E31&'presentation buffer'!$C$3&1,'data broad'!$A:$N, 5,FALSE),0) -> 102 | F135: =IFERROR(VLOOKUP('presentation buffer'!$E31&'presentation buffer'!$C$3&1,'data broad'!$A:$N, 6,FALSE),0) -> -2.3 | G135: =IFERROR(VLOOKUP('presentation buffer'!$E31&'presentation buffer'!$C$3&1,'data broad'!$A:$N, 7,FALSE),0) -> -0.06 | H135: =IFERROR(VLOOKUP('presentation buffer'!$E31&'presentation buffer'!$C$3&1,'data broad'!$A:$N, 9,FALSE),0) -> ++ | I135: =IFERROR(VLOOKUP('presentation buffer'!$E31&'presentation buffer'!$C$3&2,'data broad'!$A:$N, 5,FALSE),0) -> 146.2 | J135: =IFERROR(VLOOKUP('presentation buffer'!$E31&'presentation buffer'!$C$3&2,'data broad'!$A:$N, 6,FALSE),0) -> 3.4 | K135: =IFERROR(VLOOKUP('presentation buffer'!$E31&'presentation buffer'!$C$3&2,'data broad'!$A:$N, 7,FALSE),0) -> -0.06 | L135: =IFERROR(VLOOKUP('presentation buffer'!$E31&'presentation buffer'!$C$3&2,'data broad'!$A:$N, 9,FALSE),0) -> ++ | Q135: =IF(COUNTIF(T$129:T$136,T135)=1,T135,T135+COUNTIF(T$129:T135,T135)-1) -> 4 | R135: =IF(COUNTIF(U$129:U$136,U135)=1,U135,U135+COUNTIF(U$129:U135,U135)-1) -> 5 | S135: 7 | T135: 4 | U135: 5 | V135: Other | W135: -0.06 | X135: -0.06
B136: Deaths under 28 days | E136: =IFERROR(VLOOKUP('presentation buffer'!$E32&'presentation buffer'!$C$3&1,'data broad'!$A:$N, 5,FALSE),0) -> 1 | F136: =IFERROR(VLOOKUP('presentation buffer'!$E32&'presentation buffer'!$C$3&1,'data broad'!$A:$N, 6,FALSE),0) -> -2.5 | G136: =IFERROR(VLOOKUP('presentation buffer'!$E32&'presentation buffer'!$C$3&1,'data broad'!$A:$N, 7,FALSE),0) -> -0.17 | H136: =IFERROR(VLOOKUP('presentation buffer'!$E32&'presentation buffer'!$C$3&1,'data broad'!$A:$N, 9,FALSE),0) -> ++ | I136: =IFERROR(VLOOKUP('presentation buffer'!$E32&'presentation buffer'!$C$3&2,'data broad'!$A:$N, 5,FALSE),0) -> 4 | J136: =IFERROR(VLOOKUP('presentation buffer'!$E32&'presentation buffer'!$C$3&2,'data broad'!$A:$N, 6,FALSE),0) -> 1.3 | K136: =IFERROR(VLOOKUP('presentation buffer'!$E32&'presentation buffer'!$C$3&2,'data broad'!$A:$N, 7,FALSE),0) -> 0.1 | L136: =IFERROR(VLOOKUP('presentation buffer'!$E32&'presentation buffer'!$C$3&2,'data broad'!$A:$N, 9,FALSE),0) -> ++ | Q136: =IF(COUNTIF(T$129:T$136,T136)=1,T136,T136+COUNTIF(T$129:T136,T136)-1) -> 7 | R136: =IF(COUNTIF(U$129:U$136,U136)=1,U136,U136+COUNTIF(U$129:U136,U136)-1) -> 1 | S136: 8 | T136: 7 | U136: 1 | V136: Deaths under 28 days | W136: -0.17 | X136: 0.1
B138: Total | E138: =SUM(E129:E136) -> 993.1 | H138: =IF(H129="++", "++", SUM(H129:H136)) -> ++ | I138: =SUM(I129:I136) -> 1113.2 | L138: =IF(L129="++", "++", SUM(L129:L136)) -> ++
B140: Counts of deaths have been adjusted take account of changes in ICD-10 coding made in 2014. This means totals may differ between tables. Further details can be found in the technical document. * A positive figure indicates that life expectancy years would be gained if the local authority had the same mortality rate as England as a whole (ie the mortality rate in the local authority for the cause is higher than England as a whole). A negative figure indicates that life expectancy years would be lost if the local authority had the same mortality rate as England as a whole.
B141: .. The calculated contribution to the gap is negative
B142: ++ The figures have not been calculated as life expectancy is higher than England
B143: Analysis by Public Health England Epidemiology and Surveillance team based on ONS death registration data, and mid year population estimates
B155: THE SEGMENT TOOL
B156: SEGMENTING LIFE EXPECTANCY GAPS BY CAUSE OF DEATH
B158: ="Chart 3: Bar chart showing life expectancy years gained or lost if " & 'presentation buffer'!D3 & " as a whole had the same mortality rates as England as a whole, by detailed cause of death, 2012-2014" -> Chart 3: Bar chart showing life expectancy years gained or lost if Adur as a whole had the same mortality rates as England as a whole, by detailed cause of death, 2012-2014 | R158: YLG chart data
R159: Male | V159: Female
B160: Male | I160: Female | R160: Rank | S160: Cause | T160: YLG_YLL | V160: Rank | W160: Cause | X160: YLG_YLL
R161: 20 | S161: =VLOOKUP(R161,$Q$198:$W$217,6,FALSE) -> Coronary Heart Disease | T161: =VLOOKUP(R161,$Q$198:$W$217,7,FALSE) -> -0.24 | V161: 20 | W161: =VLOOKUP(V161,$R$198:$X$217,5,FALSE) -> Chronic obstructive airways disease | X161: =VLOOKUP(V161,$R$198:$X$217,7,FALSE) -> -0.15
R162: 19 | S162: =VLOOKUP(R162,$Q$198:$W$217,6,FALSE) -> Deaths under 28 days | T162: =VLOOKUP(R162,$Q$198:$W$217,7,FALSE) -> -0.17 | V162: 19 | W162: =VLOOKUP(V162,$R$198:$X$217,5,FALSE) -> Lung cancer | X162: =VLOOKUP(V162,$R$198:$X$217,7,FALSE) -> -0.15
R163: 18 | S163: Other digestive | T163: -0.14 | V163: 18 | W163: Pneumonia | X163: -0.14
R164: 17 | S164: Lung cancer | T164: -0.13 | V164: 17 | W164: Coronary Heart Disease | X164: -0.14
R165: 16 | S165: Chronic liver disease including cirrhosis | T165: -0.11 | V165: 16 | W165: Dementia & Alzheimer's disease | X165: -0.08
R166: 15 | S166: Diabetes | T166: -0.07 | V166: 15 | W166: Chronic liver disease including cirrhosis | X166: -0.08
R167: 14 | S167: Stroke | T167: -0.07 | V167: 14 | W167: Diabetes | X167: -0.05
R168: 13 | S168: Dementia & Alzheimer's disease | T168: -0.06 | V168: 13 | W168: Urinary conditions | X168: -0.05
R169: 12 | S169: Other | T169: -0.05 | V169: 12 | W169: Suicide | X169: -0.05
R170: 11 | S170: Other respiratory disease | T170: -0.05 | V170: 11 | W170: Other digestive | X170: -0.04
R171: 10 | S171: Pneumonia | T171: -0.04 | V171: 10 | W171: Infectious and parasitic diseases | X171: -0.02
R172: 9 | S172: Chronic obstructive airways disease | T172: -0.03 | V172: 9 | W172: Other | X172: -0.01
R173: 8 | S173: Urinary conditions | T173: -0.01 | V173: 8 | W173: Other mental and behavioural disorders | X173: 0
R174: 7 | S174: Other external | T174: -0.01 | V174: 7 | W174: Other external | X174: 0.01
R175: 6 | S175: Other mental and behavioural disorders | T175: 0.01 | V175: 6 | W175: Other respiratory disease | X175: 0.02
R176: 5 | S176: Suicide | T176: 0.02 | V176: 5 | W176: Ill defined conditions | X176: 0.07
R177: 4 | S177: Infectious and parasitic diseases | T177: 0.03 | V177: 4 | W177: Other circulatory | X177: 0.08
R178: 3 | S178: Ill defined conditions | T178: 0.04 | V178: 3 | W178: Stroke | X178: 0.08
R179: 2 | S179: Other circulatory | T179: 0.17 | V179: 2 | W179: Deaths under 28 days | X179: 0.1
R180: 1 | S180: Other cancers | T180: 0.23 | V180: 1 | W180: Other cancers | X180: 0.18
B187: Footnote: See table below for details of cause groupings. Details of causes of death included in the 'other' category can be found in the Technical Document.
B188: Analysis by Public Health England Epidemiology and Surveillance team based on ONS death registration data, and mid year population estimates
B191: THE SEGMENT TOOL
B192: SEGMENTING LIFE EXPECTANCY GAPS BY CAUSE OF DEATH
B195: ="Table 2: Table showing life expectancy years gained or lost if " & 'presentation buffer'!D3 & " as a whole had the same mortality rates as England as a whole, by detailed cause of death, 2012-2014" -> Table 2: Table showing life expectancy years gained or lost if Adur as a whole had the same mortality rates as England as a whole, by detailed cause of death, 2012-2014
G196: Male | J196: Female
B197: Broad cause of death | C197: Detailed cause of death | G197: Number of deaths in local authority | H197: Number of excess deaths in local authority | I197: Number of years of life gained/lost* | J197: Number of deaths in local authority | K197: Number of excess deaths in local authority | L197: Number of years of life gained/lost* | Q197: Adj rank male | R197: Adj rank female | S197: Cause Code | T197: rank male | U197: rank female | V197: Cause | W197: ylg male | X197: ylg female
B198: Circulatory | C198: Coronary Heart Disease | G198: =IFERROR(VLOOKUP('presentation buffer'!$E52&'presentation buffer'!$C$3&1,'data detailed'!$A:$M, 5,FALSE),0) -> 137 | H198: =IFERROR(VLOOKUP('presentation buffer'!$E52&'presentation buffer'!$C$3&1,'data detailed'!$A:$M, 6,FALSE),0) -> -19.8 | I198: =IFERROR(VLOOKUP('presentation buffer'!$E52&'presentation buffer'!$C$3&1,'data detailed'!$A:$M, 7,FALSE),0) -> -0.24 | J198: =IFERROR(VLOOKUP('presentation buffer'!$E52&'presentation buffer'!$C$3&2,'data detailed'!$A:$M, 5,FALSE),0) -> 101.1 | K198: =IFERROR(VLOOKUP('presentation buffer'!$E52&'presentation buffer'!$C$3&2,'data detailed'!$A:$M, 6,FALSE),0) -> -12.6 | L198: =IFERROR(VLOOKUP('presentation buffer'!$E52&'presentation buffer'!$C$3&2,'data detailed'!$A:$M, 7,FALSE),0) -> -0.14 | Q198: =IF(COUNTIF(T$198:T$217,T198)=1,T198,T198+COUNTIF(T$198:T198,T198)-1) -> 20 | R198: =IF(COUNTIF(U$198:U$217,U198)=1,U198,U198+COUNTIF(U$198:U198,U198)-1) -> 17 | S198: 1 | T198: =RANK(I198,$I$198:$I$217) -> 20 | U198: =RANK(L198,$L$198:$L$217) -> 17 | V198: Coronary Heart Disease | W198: =I198 -> -0.24 | X198: =L198 -> -0.14
C199: Stroke | G199: =IFERROR(VLOOKUP('presentation buffer'!$E53&'presentation buffer'!$C$3&1,'data detailed'!$A:$M, 5,FALSE),0) -> 58.5 | H199: =IFERROR(VLOOKUP('presentation buffer'!$E53&'presentation buffer'!$C$3&1,'data detailed'!$A:$M, 6,FALSE),0) -> -4.7 | I199: =IFERROR(VLOOKUP('presentation buffer'!$E53&'presentation buffer'!$C$3&1,'data detailed'!$A:$M, 7,FALSE),0) -> -0.07 | J199: =IFERROR(VLOOKUP('presentation buffer'!$E53&'presentation buffer'!$C$3&2,'data detailed'!$A:$M, 5,FALSE),0) -> 101.2 | K199: =IFERROR(VLOOKUP('presentation buffer'!$E53&'presentation buffer'!$C$3&2,'data detailed'!$A:$M, 6,FALSE),0) -> 6.5 | L199: =IFERROR(VLOOKUP('presentation buffer'!$E53&'presentation buffer'!$C$3&2,'data detailed'!$A:$M, 7,FALSE),0) -> 0.08 | Q199: =IF(COUNTIF(T$198:T$217,T199)=1,T199,T199+COUNTIF(T$198:T199,T199)-1) -> 14 | R199: =IF(COUNTIF(U$198:U$217,U199)=1,U199,U199+COUNTIF(U$198:U199,U199)-1) -> 3 | S199: 2 | T199: 14 | U199: 3 | V199: Stroke | W199: -0.07 | X199: 0.08
C200: Other circulatory | G200: =IFERROR(VLOOKUP('presentation buffer'!$E54&'presentation buffer'!$C$3&1,'data detailed'!$A:$M, 5,FALSE),0) -> 93.4 | H200: =IFERROR(VLOOKUP('presentation buffer'!$E54&'presentation buffer'!$C$3&1,'data detailed'!$A:$M, 6,FALSE),0) -> 15.1 | I200: =IFERROR(VLOOKUP('presentation buffer'!$E54&'presentation buffer'!$C$3&1,'data detailed'!$A:$M, 7,FALSE),0) -> 0.17 | J200: =IFERROR(VLOOKUP('presentation buffer'!$E54&'presentation buffer'!$C$3&2,'data detailed'!$A:$M, 5,FALSE),0) -> 118 | K200: =IFERROR(VLOOKUP('presentation buffer'!$E54&'presentation buffer'!$C$3&2,'data detailed'!$A:$M, 6,FALSE),0) -> 14.2 | L200: =IFERROR(VLOOKUP('presentation buffer'!$E54&'presentation buffer'!$C$3&2,'data detailed'!$A:$M, 7,FALSE),0) -> 0.08 | Q200: =IF(COUNTIF(T$198:T$217,T200)=1,T200,T200+COUNTIF(T$198:T200,T200)-1) -> 2 | R200: =IF(COUNTIF(U$198:U$217,U200)=1,U200,U200+COUNTIF(U$198:U200,U200)-1) -> 4 | S200: 3 | T200: 2 | U200: 3 | V200: Other circulatory | W200: 0.17 | X200: 0.08
B201: Cancer | C201: Lung cancer | G201: =IFERROR(VLOOKUP('presentation buffer'!$E55&'presentation buffer'!$C$3&1,'data detailed'!$A:$M, 5,FALSE),0) -> 55 | H201: =IFERROR(VLOOKUP('presentation buffer'!$E55&'presentation buffer'!$C$3&1,'data detailed'!$A:$M, 6,FALSE),0) -> -14.5 | I201: =IFERROR(VLOOKUP('presentation buffer'!$E55&'presentation buffer'!$C$3&1,'data detailed'!$A:$M, 7,FALSE),0) -> -0.13 | J201: =IFERROR(VLOOKUP('presentation buffer'!$E55&'presentation buffer'!$C$3&2,'data detailed'!$A:$M, 5,FALSE),0) -> 45 | K201: =IFERROR(VLOOKUP('presentation buffer'!$E55&'presentation buffer'!$C$3&2,'data detailed'!$A:$M, 6,FALSE),0) -> -13.7 | L201: =IFERROR(VLOOKUP('presentation buffer'!$E55&'presentation buffer'!$C$3&2,'data detailed'!$A:$M, 7,FALSE),0) -> -0.15 | Q201: =IF(COUNTIF(T$198:T$217,T201)=1,T201,T201+COUNTIF(T$198:T201,T201)-1) -> 17 | R201: =IF(COUNTIF(U$198:U$217,U201)=1,U201,U201+COUNTIF(U$198:U201,U201)-1) -> 19 | S201: 4 | T201: 17 | U201: 19 | V201: Lung cancer | W201: -0.13 | X201: -0.15
C202: Other cancers | G202: =IFERROR(VLOOKUP('presentation buffer'!$E56&'presentation buffer'!$C$3&1,'data detailed'!$A:$M, 5,FALSE),0) -> 261 | H202: =IFERROR(VLOOKUP('presentation buffer'!$E56&'presentation buffer'!$C$3&1,'data detailed'!$A:$M, 6,FALSE),0) -> 14.6 | I202: =IFERROR(VLOOKUP('presentation buffer'!$E56&'presentation buffer'!$C$3&1,'data detailed'!$A:$M, 7,FALSE),0) -> 0.23 | J202: =IFERROR(VLOOKUP('presentation buffer'!$E56&'presentation buffer'!$C$3&2,'data detailed'!$A:$M, 5,FALSE),0) -> 231 | K202: =IFERROR(VLOOKUP('presentation buffer'!$E56&'presentation buffer'!$C$3&2,'data detailed'!$A:$M, 6,FALSE),0) -> 3.6 | L202: =IFERROR(VLOOKUP('presentation buffer'!$E56&'presentation buffer'!$C$3&2,'data detailed'!$A:$M, 7,FALSE),0) -> 0.18 | Q202: =IF(COUNTIF(T$198:T$217,T202)=1,T202,T202+COUNTIF(T$198:T202,T202)-1) -> 1 | R202: =IF(COUNTIF(U$198:U$217,U202)=1,U202,U202+COUNTIF(U$198:U202,U202)-1) -> 1 | S202: 5 | T202: 1 | U202: 1 | V202: Other cancers | W202: 0.23 | X202: 0.18
B203: Respiratory | C203: Pneumonia | G203: =IFERROR(VLOOKUP('presentation buffer'!$E57&'presentation buffer'!$C$3&1,'data detailed'!$A:$M, 5,FALSE),0) -> 52.8 | H203: =IFERROR(VLOOKUP('presentation buffer'!$E57&'presentation buffer'!$C$3&1,'data detailed'!$A:$M, 6,FALSE),0) -> -1.9 | I203: =IFERROR(VLOOKUP('presentation buffer'!$E57&'presentation buffer'!$C$3&1,'data detailed'!$A:$M, 7,FALSE),0) -> -0.04 | J203: =IFERROR(VLOOKUP('presentation buffer'!$E57&'presentation buffer'!$C$3&2,'data detailed'!$A:$M, 5,FALSE),0) -> 56.4 | K203: =IFERROR(VLOOKUP('presentation buffer'!$E57&'presentation buffer'!$C$3&2,'data detailed'!$A:$M, 6,FALSE),0) -> -13.2 | L203: =IFERROR(VLOOKUP('presentation buffer'!$E57&'presentation buffer'!$C$3&2,'data detailed'!$A:$M, 7,FALSE),0) -> -0.14 | Q203: =IF(COUNTIF(T$198:T$217,T203)=1,T203,T203+COUNTIF(T$198:T203,T203)-1) -> 10 | R203: =IF(COUNTIF(U$198:U$217,U203)=1,U203,U203+COUNTIF(U$198:U203,U203)-1) -> 18 | S203: 6 | T203: 10 | U203: 17 | V203: Pneumonia | W203: -0.04 | X203: -0.14
C204: Chronic obstructive airways disease | G204: =IFERROR(VLOOKUP('presentation buffer'!$E58&'presentation buffer'!$C$3&1,'data detailed'!$A:$M, 5,FALSE),0) -> 56 | H204: =IFERROR(VLOOKUP('presentation buffer'!$E58&'presentation buffer'!$C$3&1,'data detailed'!$A:$M, 6,FALSE),0) -> -4 | I204: =IFERROR(VLOOKUP('presentation buffer'!$E58&'presentation buffer'!$C$3&1,'data detailed'!$A:$M, 7,FALSE),0) -> -0.03 | J204: =IFERROR(VLOOKUP('presentation buffer'!$E58&'presentation buffer'!$C$3&2,'data detailed'!$A:$M, 5,FALSE),0) -> 43 | K204: =IFERROR(VLOOKUP('presentation buffer'!$E58&'presentation buffer'!$C$3&2,'data detailed'!$A:$M, 6,FALSE),0) -> -14.3 | L204: =IFERROR(VLOOKUP('presentation buffer'!$E58&'presentation buffer'!$C$3&2,'data detailed'!$A:$M, 7,FALSE),0) -> -0.15 | Q204: =IF(COUNTIF(T$198:T$217,T204)=1,T204,T204+COUNTIF(T$198:T204,T204)-1) -> 9 | R204: =IF(COUNTIF(U$198:U$217,U204)=1,U204,U204+COUNTIF(U$198:U204,U204)-1) -> 20 | S204: 7 | T204: 9 | U204: 19 | V204: Chronic obstructive airways disease | W204: -0.03 | X204: -0.15
C205: Other respiratory disease | G205: =IFERROR(VLOOKUP('presentation buffer'!$E59&'presentation buffer'!$C$3&1,'data detailed'!$A:$M, 5,FALSE),0) -> 28.1 | H205: =IFERROR(VLOOKUP('presentation buffer'!$E59&'presentation buffer'!$C$3&1,'data detailed'!$A:$M, 6,FALSE),0) -> -4.4 | I205: =IFERROR(VLOOKUP('presentation buffer'!$E59&'presentation buffer'!$C$3&1,'data detailed'!$A:$M, 7,FALSE),0) -> -0.05 | J205: =IFERROR(VLOOKUP('presentation buffer'!$E59&'presentation buffer'!$C$3&2,'data detailed'!$A:$M, 5,FALSE),0) -> 41.9 | K205: =IFERROR(VLOOKUP('presentation buffer'!$E59&'presentation buffer'!$C$3&2,'data detailed'!$A:$M, 6,FALSE),0) -> 7.7 | L205: =IFERROR(VLOOKUP('presentation buffer'!$E59&'presentation buffer'!$C$3&2,'data detailed'!$A:$M, 7,FALSE),0) -> 0.02 | Q205: =IF(COUNTIF(T$198:T$217,T205)=1,T205,T205+COUNTIF(T$198:T205,T205)-1) -> 11 | R205: =IF(COUNTIF(U$198:U$217,U205)=1,U205,U205+COUNTIF(U$198:U205,U205)-1) -> 6 | S205: 8 | T205: 11 | U205: 6 | V205: Other respiratory disease | W205: -0.05 | X205: 0.02
B206: Digestive | C206: Chronic liver disease including cirrhosis | G206: =IFERROR(VLOOKUP('presentation buffer'!$E60&'presentation buffer'!$C$3&1,'data detailed'!$A:$M, 5,FALSE),0) -> 9 | H206: =IFERROR(VLOOKUP('presentation buffer'!$E60&'presentation buffer'!$C$3&1,'data detailed'!$A:$M, 6,FALSE),0) -> -5.1 | I206: =IFERROR(VLOOKUP('presentation buffer'!$E60&'presentation buffer'!$C$3&1,'data detailed'!$A:$M, 7,FALSE),0) -> -0.11 | J206: =IFERROR(VLOOKUP('presentation buffer'!$E60&'presentation buffer'!$C$3&2,'data detailed'!$A:$M, 5,FALSE),0) -> 3.8 | K206: =IFERROR(VLOOKUP('presentation buffer'!$E60&'presentation buffer'!$C$3&2,'data detailed'!$A:$M, 6,FALSE),0) -> -4.5 | L206: =IFERROR(VLOOKUP('presentation buffer'!$E60&'presentation buffer'!$C$3&2,'data detailed'!$A:$M, 7,FALSE),0) -> -0.08 | Q206: =IF(COUNTIF(T$198:T$217,T206)=1,T206,T206+COUNTIF(T$198:T206,T206)-1) -> 16 | R206: =IF(COUNTIF(U$198:U$217,U206)=1,U206,U206+COUNTIF(U$198:U206,U206)-1) -> 15 | S206: 9 | T206: 16 | U206: 15 | V206: Chronic liver disease including cirrhosis | W206: -0.11 | X206: -0.08
C207: Other digestive | G207: =IFERROR(VLOOKUP('presentation buffer'!$E61&'presentation buffer'!$C$3&1,'data detailed'!$A:$M, 5,FALSE),0) -> 24.8 | H207: =IFERROR(VLOOKUP('presentation buffer'!$E61&'presentation buffer'!$C$3&1,'data detailed'!$A:$M, 6,FALSE),0) -> -8.6 | I207: =IFERROR(VLOOKUP('presentation buffer'!$E61&'presentation buffer'!$C$3&1,'data detailed'!$A:$M, 7,FALSE),0) -> -0.14 | J207: =IFERROR(VLOOKUP('presentation buffer'!$E61&'presentation buffer'!$C$3&2,'data detailed'!$A:$M, 5,FALSE),0) -> 47.7 | K207: =IFERROR(VLOOKUP('presentation buffer'!$E61&'presentation buffer'!$C$3&2,'data detailed'!$A:$M, 6,FALSE),0) -> 2.2 | L207: =IFERROR(VLOOKUP('presentation buffer'!$E61&'presentation buffer'!$C$3&2,'data detailed'!$A:$M, 7,FALSE),0) -> -0.04 | Q207: =IF(COUNTIF(T$198:T$217,T207)=1,T207,T207+COUNTIF(T$198:T207,T207)-1) -> 18 | R207: =IF(COUNTIF(U$198:U$217,U207)=1,U207,U207+COUNTIF(U$198:U207,U207)-1) -> 11 | S207: 10 | T207: 18 | U207: 11 | V207: Other digestive | W207: -0.14 | X207: -0.04
B208: External | C208: Suicide | G208: =IFERROR(VLOOKUP('presentation buffer'!$E62&'presentation buffer'!$C$3&1,'data detailed'!$A:$M, 5,FALSE),0) -> 12 | H208: =IFERROR(VLOOKUP('presentation buffer'!$E62&'presentation buffer'!$C$3&1,'data detailed'!$A:$M, 6,FALSE),0) -> -0.5 | I208: =IFERROR(VLOOKUP('presentation buffer'!$E62&'presentation buffer'!$C$3&1,'data detailed'!$A:$M, 7,FALSE),0) -> 0.02 | J208: =IFERROR(VLOOKUP('presentation buffer'!$E62&'presentation buffer'!$C$3&2,'data detailed'!$A:$M, 5,FALSE),0) -> 4 | K208: =IFERROR(VLOOKUP('presentation buffer'!$E62&'presentation buffer'!$C$3&2,'data detailed'!$A:$M, 6,FALSE),0) -> 0 | L208: =IFERROR(VLOOKUP('presentation buffer'!$E62&'presentation buffer'!$C$3&2,'data detailed'!$A:$M, 7,FALSE),0) -> -0.05 | Q208: =IF(COUNTIF(T$198:T$217,T208)=1,T208,T208+COUNTIF(T$198:T208,T208)-1) -> 5 | R208: =IF(COUNTIF(U$198:U$217,U208)=1,U208,U208+COUNTIF(U$198:U208,U208)-1) -> 12 | S208: 11 | T208: 5 | U208: 12 | V208: Suicide | W208: 0.02 | X208: -0.05
C209: Other external | G209: =IFERROR(VLOOKUP('presentation buffer'!$E63&'presentation buffer'!$C$3&1,'data detailed'!$A:$M, 5,FALSE),0) -> 29 | H209: =IFERROR(VLOOKUP('presentation buffer'!$E63&'presentation buffer'!$C$3&1,'data detailed'!$A:$M, 6,FALSE),0) -> 0 | I209: =IFERROR(VLOOKUP('presentation buffer'!$E63&'presentation buffer'!$C$3&1,'data detailed'!$A:$M, 7,FALSE),0) -> -0.01 | J209: =IFERROR(VLOOKUP('presentation buffer'!$E63&'presentation buffer'!$C$3&2,'data detailed'!$A:$M, 5,FALSE),0) -> 26.6 | K209: =IFERROR(VLOOKUP('presentation buffer'!$E63&'presentation buffer'!$C$3&2,'data detailed'!$A:$M, 6,FALSE),0) -> 0.8 | L209: =IFERROR(VLOOKUP('presentation buffer'!$E63&'presentation buffer'!$C$3&2,'data detailed'!$A:$M, 7,FALSE),0) -> 0.01 | Q209: =IF(COUNTIF(T$198:T$217,T209)=1,T209,T209+COUNTIF(T$198:T209,T209)-1) -> 7 | R209: =IF(COUNTIF(U$198:U$217,U209)=1,U209,U209+COUNTIF(U$198:U209,U209)-1) -> 7 | S209: 12 | T209: 7 | U209: 7 | V209: Other external | W209: -0.01 | X209: 0.01
B210: Mental and behavioural | C210: Dementia & Alzheimer's disease | G210: =IFERROR(VLOOKUP('presentation buffer'!$E64&'presentation buffer'!$C$3&1,'data detailed'!$A:$M, 5,FALSE),0) -> 68.8 | H210: =IFERROR(VLOOKUP('presentation buffer'!$E64&'presentation buffer'!$C$3&1,'data detailed'!$A:$M, 6,FALSE),0) -> -8.2 | I210: =IFERROR(VLOOKUP('presentation buffer'!$E64&'presentation buffer'!$C$3&1,'data detailed'!$A:$M, 7,FALSE),0) -> -0.06 | J210: =IFERROR(VLOOKUP('presentation buffer'!$E64&'presentation buffer'!$C$3&2,'data detailed'!$A:$M, 5,FALSE),0) -> 138.6 | K210: =IFERROR(VLOOKUP('presentation buffer'!$E64&'presentation buffer'!$C$3&2,'data detailed'!$A:$M, 6,FALSE),0) -> -14.4 | L210: =IFERROR(VLOOKUP('presentation buffer'!$E64&'presentation buffer'!$C$3&2,'data detailed'!$A:$M, 7,FALSE),0) -> -0.08 | Q210: =IF(COUNTIF(T$198:T$217,T210)=1,T210,T210+COUNTIF(T$198:T210,T210)-1) -> 13 | R210: =IF(COUNTIF(U$198:U$217,U210)=1,U210,U210+COUNTIF(U$198:U210,U210)-1) -> 16 | S210: 13 | T210: 13 | U210: 15 | V210: Dementia & Alzheimer's disease | W210: -0.06 | X210: -0.08
C211: Other mental and behavioural disorders | G211: =IFERROR(VLOOKUP('presentation buffer'!$E65&'presentation buffer'!$C$3&1,'data detailed'!$A:$M, 5,FALSE),0) -> 3 | H211: =IFERROR(VLOOKUP('presentation buffer'!$E65&'presentation buffer'!$C$3&1,'data detailed'!$A:$M, 6,FALSE),0) -> 1.1 | I211: =IFERROR(VLOOKUP('presentation buffer'!$E65&'presentation buffer'!$C$3&1,'data detailed'!$A:$M, 7,FALSE),0) -> 0.01 | J211: =IFERROR(VLOOKUP('presentation buffer'!$E65&'presentation buffer'!$C$3&2,'data detailed'!$A:$M, 5,FALSE),0) -> 3 | K211: =IFERROR(VLOOKUP('presentation buffer'!$E65&'presentation buffer'!$C$3&2,'data detailed'!$A:$M, 6,FALSE),0) -> 1.5 | L211: =IFERROR(VLOOKUP('presentation buffer'!$E65&'presentation buffer'!$C$3&2,'data detailed'!$A:$M, 7,FALSE),0) -> 0 | Q211: =IF(COUNTIF(T$198:T$217,T211)=1,T211,T211+COUNTIF(T$198:T211,T211)-1) -> 6 | R211: =IF(COUNTIF(U$198:U$217,U211)=1,U211,U211+COUNTIF(U$198:U211,U211)-1) -> 8 | S211: 14 | T211: 6 | U211: 8 | V211: Other mental and behavioural disorders | W211: 0.01 | X211: 0
B212: Other | C212: Infectious and parasitic diseases | G212: =IFERROR(VLOOKUP('presentation buffer'!$E66&'presentation buffer'!$C$3&1,'data detailed'!$A:$M, 5,FALSE),0) -> 15.4 | H212: =IFERROR(VLOOKUP('presentation buffer'!$E66&'presentation buffer'!$C$3&1,'data detailed'!$A:$M, 6,FALSE),0) -> 5.4 | I212: =IFERROR(VLOOKUP('presentation buffer'!$E66&'presentation buffer'!$C$3&1,'data detailed'!$A:$M, 7,FALSE),0) -> 0.03 | J212: =IFERROR(VLOOKUP('presentation buffer'!$E66&'presentation buffer'!$C$3&2,'data detailed'!$A:$M, 5,FALSE),0) -> 14 | K212: =IFERROR(VLOOKUP('presentation buffer'!$E66&'presentation buffer'!$C$3&2,'data detailed'!$A:$M, 6,FALSE),0) -> 1.7 | L212: =IFERROR(VLOOKUP('presentation buffer'!$E66&'presentation buffer'!$C$3&2,'data detailed'!$A:$M, 7,FALSE),0) -> -0.02 | Q212: =IF(COUNTIF(T$198:T$217,T212)=1,T212,T212+COUNTIF(T$198:T212,T212)-1) -> 4 | R212: =IF(COUNTIF(U$198:U$217,U212)=1,U212,U212+COUNTIF(U$198:U212,U212)-1) -> 10 | S212: 15 | T212: 4 | U212: 10 | V212: Infectious and parasitic diseases | W212: 0.03 | X212: -0.02
C213: Urinary conditions | G213: =IFERROR(VLOOKUP('presentation buffer'!$E67&'presentation buffer'!$C$3&1,'data detailed'!$A:$M, 5,FALSE),0) -> 15 | H213: =IFERROR(VLOOKUP('presentation buffer'!$E67&'presentation buffer'!$C$3&1,'data detailed'!$A:$M, 6,FALSE),0) -> -1 | I213: =IFERROR(VLOOKUP('presentation buffer'!$E67&'presentation buffer'!$C$3&1,'data detailed'!$A:$M, 7,FALSE),0) -> -0.01 | J213: =IFERROR(VLOOKUP('presentation buffer'!$E67&'presentation buffer'!$C$3&2,'data detailed'!$A:$M, 5,FALSE),0) -> 16 | K213: =IFERROR(VLOOKUP('presentation buffer'!$E67&'presentation buffer'!$C$3&2,'data detailed'!$A:$M, 6,FALSE),0) -> -6.5 | L213: =IFERROR(VLOOKUP('presentation buffer'!$E67&'presentation buffer'!$C$3&2,'data detailed'!$A:$M, 7,FALSE),0) -> -0.05 | Q213: =IF(COUNTIF(T$198:T$217,T213)=1,T213,T213+COUNTIF(T$198:T213,T213)-1) -> 8 | R213: =IF(COUNTIF(U$198:U$217,U213)=1,U213,U213+COUNTIF(U$198:U213,U213)-1) -> 13 | S213: 16 | T213: 7 | U213: 12 | V213: Urinary conditions | W213: -0.01 | X213: -0.05
C214: Ill defined conditions | G214: =IFERROR(VLOOKUP('presentation buffer'!$E68&'presentation buffer'!$C$3&1,'data detailed'!$A:$M, 5,FALSE),0) -> 17 | H214: =IFERROR(VLOOKUP('presentation buffer'!$E68&'presentation buffer'!$C$3&1,'data detailed'!$A:$M, 6,FALSE),0) -> 3.7 | I214: =IFERROR(VLOOKUP('presentation buffer'!$E68&'presentation buffer'!$C$3&1,'data detailed'!$A:$M, 7,FALSE),0) -> 0.04 | J214: =IFERROR(VLOOKUP('presentation buffer'!$E68&'presentation buffer'!$C$3&2,'data detailed'!$A:$M, 5,FALSE),0) -> 44 | K214: =IFERROR(VLOOKUP('presentation buffer'!$E68&'presentation buffer'!$C$3&2,'data detailed'!$A:$M, 6,FALSE),0) -> 6.6 | L214: =IFERROR(VLOOKUP('presentation buffer'!$E68&'presentation buffer'!$C$3&2,'data detailed'!$A:$M, 7,FALSE),0) -> 0.07 | Q214: =IF(COUNTIF(T$198:T$217,T214)=1,T214,T214+COUNTIF(T$198:T214,T214)-1) -> 3 | R214: =IF(COUNTIF(U$198:U$217,U214)=1,U214,U214+COUNTIF(U$198:U214,U214)-1) -> 5 | S214: 17 | T214: 3 | U214: 5 | V214: Ill defined conditions | W214: 0.04 | X214: 0.07
C215: Diabetes | G215: =IFERROR(VLOOKUP('presentation buffer'!$E69&'presentation buffer'!$C$3&1,'data detailed'!$A:$M, 5,FALSE),0) -> 5.1 | H215: =IFERROR(VLOOKUP('presentation buffer'!$E69&'presentation buffer'!$C$3&1,'data detailed'!$A:$M, 6,FALSE),0) -> -5.8 | I215: =IFERROR(VLOOKUP('presentation buffer'!$E69&'presentation buffer'!$C$3&1,'data detailed'!$A:$M, 7,FALSE),0) -> -0.07 | J215: =IFERROR(VLOOKUP('presentation buffer'!$E69&'presentation buffer'!$C$3&2,'data detailed'!$A:$M, 5,FALSE),0) -> 7 | K215: =IFERROR(VLOOKUP('presentation buffer'!$E69&'presentation buffer'!$C$3&2,'data detailed'!$A:$M, 6,FALSE),0) -> -4.9 | L215: =IFERROR(VLOOKUP('presentation buffer'!$E69&'presentation buffer'!$C$3&2,'data detailed'!$A:$M, 7,FALSE),0) -> -0.05 | Q215: =IF(COUNTIF(T$198:T$217,T215)=1,T215,T215+COUNTIF(T$198:T215,T215)-1) -> 15 | R215: =IF(COUNTIF(U$198:U$217,U215)=1,U215,U215+COUNTIF(U$198:U215,U215)-1) -> 14 | S215: 18 | T215: 14 | U215: 12 | V215: Diabetes | W215: -0.07 | X215: -0.05
C216: Other | G216: =IFERROR(VLOOKUP('presentation buffer'!$E70&'presentation buffer'!$C$3&1,'data detailed'!$A:$M, 5,FALSE),0) -> 49 | H216: =IFERROR(VLOOKUP('presentation buffer'!$E70&'presentation buffer'!$C$3&1,'data detailed'!$A:$M, 6,FALSE),0) -> -4.8 | I216: =IFERROR(VLOOKUP('presentation buffer'!$E70&'presentation buffer'!$C$3&1,'data detailed'!$A:$M, 7,FALSE),0) -> -0.05 | J216: =IFERROR(VLOOKUP('presentation buffer'!$E70&'presentation buffer'!$C$3&2,'data detailed'!$A:$M, 5,FALSE),0) -> 64.9 | K216: =IFERROR(VLOOKUP('presentation buffer'!$E70&'presentation buffer'!$C$3&2,'data detailed'!$A:$M, 6,FALSE),0) -> 7 | L216: =IFERROR(VLOOKUP('presentation buffer'!$E70&'presentation buffer'!$C$3&2,'data detailed'!$A:$M, 7,FALSE),0) -> -0.01 | Q216: =IF(COUNTIF(T$198:T$217,T216)=1,T216,T216+COUNTIF(T$198:T216,T216)-1) -> 12 | R216: =IF(COUNTIF(U$198:U$217,U216)=1,U216,U216+COUNTIF(U$198:U216,U216)-1) -> 9 | S216: 19 | T216: 11 | U216: 9 | V216: Other | W216: -0.05 | X216: -0.01
B217: < 28 days | C217: Deaths under 28 days | G217: =IFERROR(VLOOKUP('presentation buffer'!$E71&'presentation buffer'!$C$3&1,'data detailed'!$A:$M, 5,FALSE),0) -> 1 | H217: =IFERROR(VLOOKUP('presentation buffer'!$E71&'presentation buffer'!$C$3&1,'data detailed'!$A:$M, 6,FALSE),0) -> -2.5 | I217: =IFERROR(VLOOKUP('presentation buffer'!$E71&'presentation buffer'!$C$3&1,'data detailed'!$A:$M, 7,FALSE),0) -> -0.17 | J217: =IFERROR(VLOOKUP('presentation buffer'!$E71&'presentation buffer'!$C$3&2,'data detailed'!$A:$M, 5,FALSE),0) -> 4 | K217: =IFERROR(VLOOKUP('presentation buffer'!$E71&'presentation buffer'!$C$3&2,'data detailed'!$A:$M, 6,FALSE),0) -> 1.3 | L217: =IFERROR(VLOOKUP('presentation buffer'!$E71&'presentation buffer'!$C$3&2,'data detailed'!$A:$M, 7,FALSE),0) -> 0.1 | Q217: =IF(COUNTIF(T$198:T$217,T217)=1,T217,T217+COUNTIF(T$198:T217,T217)-1) -> 19 | R217: =IF(COUNTIF(U$198:U$217,U217)=1,U217,U217+COUNTIF(U$198:U217,U217)-1) -> 2 | S217: 20 | T217: 19 | U217: 2 | V217: Deaths under 28 days | W217: -0.17 | X217: 0.1
C219: Total | G219: =SUM(G198:G217) -> 990.9 | J219: =SUM(J198:J217) -> 1111.2
B221: Counts of deaths have been adjusted take account of changes in ICD-10 coding made in 2014. This means totals may differ between tables. Further details can be found in the technical document. * A positive figure indicates that life expectancy years would be gained if the local authority had the same mortality rate as England as a whole (ie the mortality rate in the local authority for the cause is higher than England as a whole). A negative figure indicates that life expectancy years would be lost if the local authority had the same mortality rate as England as a whole.
B222: Analysis by Public Health England Epidemiology and Surveillance team based on ONS death registration data, and mid year population estimates
B224: THE SEGMENT TOOL
B225: SEGMENTING LIFE EXPECTANCY GAPS BY CAUSE OF DEATH
B228: ="Chart 4: Bar chart showing life expectancy years gained or lost if " & 'presentation buffer'!D3 & " as a whole had the same mortality rates as England as a whole, alcohol specific deaths, 2012-2014" -> Chart 4: Bar chart showing life expectancy years gained or lost if Adur as a whole had the same mortality rates as England as a whole, alcohol specific deaths, 2012-2014
R229: ylg male | S229: ylg female
B230: Male | I230: Female | Q230: Alcohol specific | R230: =G249 -> -0.05 | S230: =J249 -> -0.09
B239: Footnote: Alcohol specific includes causes of death that are wholly attributable to alcohol
B246: ="Table 3: Table showing life expectancy years gained or lost if " & 'presentation buffer'!D3 & " as a whole had the same mortality rates as England as a whole, alcohol specific deaths and all other causes of death, 2012-2014" -> Table 3: Table showing life expectancy years gained or lost if Adur as a whole had the same mortality rates as England as a whole, alcohol specific deaths and all other causes of death, 2012-2014
E247: Male | H247: Female
B248: Cause of death | E248: Number of deaths in local authority | F248: Number of excess deaths in local authority | G248: Number of years of life gained/lost* | H248: Number of deaths in local authority | I248: Number of excess deaths in local authority | J248: Number of years of life gained/lost*
B249: Alcohol specific | E249: =IFERROR(VLOOKUP($P249&'presentation buffer'!$C$3&1,'data alcohol'!$A:$J, 5,FALSE),0) -> 11 | F249: =IFERROR(VLOOKUP($P249&'presentation buffer'!$C$3&1,'data alcohol'!$A:$J, 6,FALSE),0) -> -1.9 | G249: =IFERROR(VLOOKUP($P249&'presentation buffer'!$C$3&1,'data alcohol'!$A:$J, 7,FALSE),0) -> -0.05 | H249: =IFERROR(VLOOKUP($P249&'presentation buffer'!$C$3&2,'data alcohol'!$A:$J, 5,FALSE),0) -> 4 | I249: =IFERROR(VLOOKUP($P249&'presentation buffer'!$C$3&2,'data alcohol'!$A:$J, 6,FALSE),0) -> -2.6 | J249: =IFERROR(VLOOKUP($P249&'presentation buffer'!$C$3&2,'data alcohol'!$A:$J, 7,FALSE),0) -> -0.09 | P249: 1
B250: All other causes of death | E250: =IFERROR(VLOOKUP($P250&'presentation buffer'!$C$3&1,'data alcohol'!$A:$J, 5,FALSE),0) -> 983 | F250: =IFERROR(VLOOKUP($P250&'presentation buffer'!$C$3&1,'data alcohol'!$A:$J, 6,FALSE),0) -> -42.9 | G250: =IFERROR(VLOOKUP($P250&'presentation buffer'!$C$3&1,'data alcohol'!$A:$J, 7,FALSE),0) -> -0.61 | H250: =IFERROR(VLOOKUP($P250&'presentation buffer'!$C$3&2,'data alcohol'!$A:$J, 5,FALSE),0) -> 1109 | I250: =IFERROR(VLOOKUP($P250&'presentation buffer'!$C$3&2,'data alcohol'!$A:$J, 6,FALSE),0) -> -27.2 | J250: =IFERROR(VLOOKUP($P250&'presentation buffer'!$C$3&2,'data alcohol'!$A:$J, 7,FALSE),0) -> -0.33 | P250: 2
B252: Total | E252: =SUM(E249:E250) -> 994 | H252: =SUM(H249:H250) -> 1113
B254: * A positive figure indicates that life expectancy years would be gained if the local authority had the same mortality rate as England as a whole (ie the mortality rate in the local authority for the cause is higher than England as a whole). A negative figure indicates that life expectancy years would be lost if the local authority had the same mortality rate as England as a whole
B255: Analysis by Public Health England Epidemiology and Surveillance team based on ONS death registration data, and mid year population estimates
B257: THE SEGMENT TOOL
B258: SEGMENTING LIFE EXPECTANCY GAPS BY CAUSE OF DEATH
B259: ="Within area inequalities: Life expectancy gap between the most deprived quintile and least deprived quintle of " & 'presentation buffer'!D3 -> Within area inequalities: Life expectancy gap between the most deprived quintile and least deprived quintle of Adur
B260: ="Chart 5: Scarf chart showing the breakdown of the life expectancy gap between " & 'presentation buffer'!D3 & " most deprived quintile and " & 'presentation buffer'!D3 &" least deprived quinitle, by broad cause of death, 2012-2014" -> Chart 5: Scarf chart showing the breakdown of the life expectancy gap between Adur most deprived quintile and Adur least deprived quinitle, by broad cause of death, 2012-2014
B261: =IF(AND($H$337="##", $L$337="##"),"**This chart is not available as life expectancy is the same as or higher in the most deprived quintile as the least deprived quintile**", "") -> 
R267: Chart data
S268: Male | T268: Female
R269: <28 days | S269: =IFERROR(H344/100,0) -> 0.064 | T269: =IFERROR(L344/100,0) -> 0
R270: Other | S270: =IFERROR(H343/100,0) -> 0.09 | T270: =IFERROR(L343/100,0) -> 0.073
R271: Mental and behavioural | S271: =IFERROR(H342/100,0) -> 0.113 | T271: =IFERROR(L342/100,0) -> 0.091
R272: External causes | S272: =IFERROR(H341/100,0) -> 0 | T272: =IFERROR(L341/100,0) -> 0.022
R273: Digestive | S273: =IFERROR(H340/100,0) -> 0.139 | T273: =IFERROR(L340/100,0) -> 0.121
R274: Respiratory | S274: =IFERROR(H339/100,0) -> 0.138 | T274: =IFERROR(L339/100,0) -> 0.214
R275: Cancer | S275: =IFERROR(H338/100,0) -> 0.212 | T275: =IFERROR(L338/100,0) -> 0.131
R276: Circulatory | S276: =IFERROR(H337/100,0) -> 0.243 | T276: =IFERROR(L337/100,0) -> 0.348
B292: Footnote: Circulatory diseases includes coronary heart disease and stroke. Respiratory diseases includes flu, pneumonia and chronic obstructive airways disease. Digestive diseases includes alcohol-related conditions such as chronic liver disease and cirrhosis. External causes include deaths from injury, poisoning and suicide. Mental and behavioural includes dementia and Alzheimer’s disease.
B293: Analysis by Public Health England Epidemiology and Surveillance team based on ONS death registration data, and mid year population estimates, and DCLG Index of Multiple Deprivation, 2015
B294: THE SEGMENT TOOL
B295: SEGMENTING LIFE EXPECTANCY GAPS BY CAUSE OF DEATH
B297: ="Chart 6: Bar chart showing life expectancy years gained or lost if " & 'presentation buffer'!D3 & " most deprived quintile had the same mortality rates as " & 'presentation buffer'!D3 & " least deprived quintile, by broad cause of death, 2012-2014" -> Chart 6: Bar chart showing life expectancy years gained or lost if Adur most deprived quintile had the same mortality rates as Adur least deprived quintile, by broad cause of death, 2012-2014 | R297: YLG chart data
R298: Male | V298: Female
B299: Male | I299: Female | R299: Rank | S299: Cause | T299: YLG_YLL | V299: Rank | W299: Cause | X299: YLG_YLL
R300: 8 | S300: =VLOOKUP(R300,$Q$337:$W$344,6,FALSE) -> External causes | T300: =VLOOKUP(R300,$Q$337:$W$344,7,FALSE) -> -0.36 | V300: 8 | W300: =VLOOKUP(V300,$R$337:$X$344,5,FALSE) -> Deaths under 28 days | X300: =VLOOKUP(V300,$R$337:$X$344,7,FALSE) -> -0.12
R301: 7 | S301: =VLOOKUP(R301,$Q$337:$W$344,6,FALSE) -> Deaths under 28 days | T301: =VLOOKUP(R301,$Q$337:$W$344,7,FALSE) -> 0.32 | V301: 7 | W301: =VLOOKUP(V301,$R$337:$X$344,5,FALSE) -> External causes | X301: =VLOOKUP(V301,$R$337:$X$344,7,FALSE) -> 0.12
R302: 6 | S302: Other | T302: 0.44 | V302: 6 | W302: Other | X302: 0.39
R303: 5 | S303: Mental and behavioural | T303: 0.56 | V303: 5 | W303: Mental and behavioural | X303: 0.49
R304: 4 | S304: Digestive | T304: 0.68 | V304: 4 | W304: Digestive | X304: 0.66
R305: 3 | S305: Respiratory | T305: 0.68 | V305: 3 | W305: Cancer | X305: 0.71
R306: 2 | S306: Cancer | T306: 1.04 | V306: 2 | W306: Respiratory | X306: 1.16
R307: 1 | S307: Circulatory | T307: 1.19 | V307: 1 | W307: Circulatory | X307: 1.88
B327: Footnote: Circulatory diseases includes coronary heart disease and stroke. Respiratory diseases includes flu, pneumonia and chronic obstructive airways disease. Digestive diseases includes alcohol-related conditions such as chronic liver disease and cirrhosis. External causes include deaths from injury, poisoning and suicide. Mental and behavioural includes dementia and Alzheimer’s disease.
B328: Analysis by Public Health England Epidemiology and Surveillance team based on ONS death registration data, and mid year population estimates, and DCLG Index of Multiple Deprivation, 2015
B330: THE SEGMENT TOOL
B331: SEGMENTING LIFE EXPECTANCY GAPS BY CAUSE OF DEATH
B334: ="Table 4: Breakdown of the life expectancy gap between " & 'presentation buffer'!D3 & " most deprived quintile and " & 'presentation buffer'!D3 & " least deprived quintile, by broad cause of death, 2012-2014" -> Table 4: Breakdown of the life expectancy gap between Adur most deprived quintile and Adur least deprived quintile, by broad cause of death, 2012-2014
E335: Male | I335: Female
B336: Broad cause of death | E336: Number of deaths in most deprived quintile | F336: Number of excess deaths in most deprived quintile | G336: Number of years of life gained/lost* | H336: Contribution to the gap (%) | I336: Number of deaths in most deprived quintile | J336: Number of excess deaths in most deprived quintile | K336: Number of years of life gained/lost* | L336: Contribution to the gap (%) | Q336: Adj rank male | R336: Adj rank female | S336: Cause Code | T336: rank male | U336: rank female | V336: Cause | W336: ylg male | X336: ylg female
B337: Circulatory | E337: =IFERROR(VLOOKUP('presentation buffer'!$E25&'presentation buffer'!$C$3&1,'data broad'!$A:$N, 10,FALSE),0) -> 52.7 | F337: =IFERROR(VLOOKUP('presentation buffer'!$E25&'presentation buffer'!$C$3&1,'data broad'!$A:$N, 11,FALSE),0) -> 17.5 | G337: =IFERROR(VLOOKUP('presentation buffer'!$E25&'presentation buffer'!$C$3&1,'data broad'!$A:$N, 12,FALSE),0) -> 1.19 | H337: =IFERROR(VLOOKUP('presentation buffer'!$E25&'presentation buffer'!$C$3&1,'data broad'!$A:$N, 14,FALSE),0) -> 24.3 | I337: =IFERROR(VLOOKUP('presentation buffer'!$E25&'presentation buffer'!$C$3&2,'data broad'!$A:$N, 10,FALSE),0) -> 81.8 | J337: =IFERROR(VLOOKUP('presentation buffer'!$E25&'presentation buffer'!$C$3&2,'data broad'!$A:$N, 11,FALSE),0) -> 37.2 | K337: =IFERROR(VLOOKUP('presentation buffer'!$E25&'presentation buffer'!$C$3&2,'data broad'!$A:$N, 12,FALSE),0) -> 1.88 | L337: =IFERROR(VLOOKUP('presentation buffer'!$E25&'presentation buffer'!$C$3&2,'data broad'!$A:$N, 14,FALSE),0) -> 34.8 | Q337: =IF(COUNTIF(T$337:T$344,T337)=1,T337,T337+COUNTIF(T$337:T337,T337)-1) -> 1 | R337: =IF(COUNTIF(U$337:U$344,U337)=1,U337,U337+COUNTIF(U$337:U337,U337)-1) -> 1 | S337: 1 | T337: =RANK(G337,$G$337:$G$344) -> 1 | U337: =RANK(K337,$K$337:$K$344) -> 1 | V337: Circulatory | W337: =G337 -> 1.19 | X337: =K337 -> 1.88
B338: Cancer | E338: =IFERROR(VLOOKUP('presentation buffer'!$E26&'presentation buffer'!$C$3&1,'data broad'!$A:$N, 10,FALSE),0) -> 58 | F338: =IFERROR(VLOOKUP('presentation buffer'!$E26&'presentation buffer'!$C$3&1,'data broad'!$A:$N, 11,FALSE),0) -> 15.2 | G338: =IFERROR(VLOOKUP('presentation buffer'!$E26&'presentation buffer'!$C$3&1,'data broad'!$A:$N, 12,FALSE),0) -> 1.04 | H338: =IFERROR(VLOOKUP('presentation buffer'!$E26&'presentation buffer'!$C$3&1,'data broad'!$A:$N, 14,FALSE),0) -> 21.2 | I338: =IFERROR(VLOOKUP('presentation buffer'!$E26&'presentation buffer'!$C$3&2,'data broad'!$A:$N, 10,FALSE),0) -> 57 | J338: =IFERROR(VLOOKUP('presentation buffer'!$E26&'presentation buffer'!$C$3&2,'data broad'!$A:$N, 11,FALSE),0) -> 17.7 | K338: =IFERROR(VLOOKUP('presentation buffer'!$E26&'presentation buffer'!$C$3&2,'data broad'!$A:$N, 12,FALSE),0) -> 0.71 | L338: =IFERROR(VLOOKUP('presentation buffer'!$E26&'presentation buffer'!$C$3&2,'data broad'!$A:$N, 14,FALSE),0) -> 13.1 | Q338: =IF(COUNTIF(T$337:T$344,T338)=1,T338,T338+COUNTIF(T$337:T338,T338)-1) -> 2 | R338: =IF(COUNTIF(U$337:U$344,U338)=1,U338,U338+COUNTIF(U$337:U338,U338)-1) -> 3 | S338: 2 | T338: 2 | U338: 3 | V338: Cancer | W338: 1.04 | X338: 0.71
B339: Respiratory | E339: =IFERROR(VLOOKUP('presentation buffer'!$E27&'presentation buffer'!$C$3&1,'data broad'!$A:$N, 10,FALSE),0) -> 29.6 | F339: =IFERROR(VLOOKUP('presentation buffer'!$E27&'presentation buffer'!$C$3&1,'data broad'!$A:$N, 11,FALSE),0) -> 12.4 | G339: =IFERROR(VLOOKUP('presentation buffer'!$E27&'presentation buffer'!$C$3&1,'data broad'!$A:$N, 12,FALSE),0) -> 0.68 | H339: =IFERROR(VLOOKUP('presentation buffer'!$E27&'presentation buffer'!$C$3&1,'data broad'!$A:$N, 14,FALSE),0) -> 13.8 | I339: =IFERROR(VLOOKUP('presentation buffer'!$E27&'presentation buffer'!$C$3&2,'data broad'!$A:$N, 10,FALSE),0) -> 47.9 | J339: =IFERROR(VLOOKUP('presentation buffer'!$E27&'presentation buffer'!$C$3&2,'data broad'!$A:$N, 11,FALSE),0) -> 32 | K339: =IFERROR(VLOOKUP('presentation buffer'!$E27&'presentation buffer'!$C$3&2,'data broad'!$A:$N, 12,FALSE),0) -> 1.16 | L339: =IFERROR(VLOOKUP('presentation buffer'!$E27&'presentation buffer'!$C$3&2,'data broad'!$A:$N, 14,FALSE),0) -> 21.4 | Q339: =IF(COUNTIF(T$337:T$344,T339)=1,T339,T339+COUNTIF(T$337:T339,T339)-1) -> 3 | R339: =IF(COUNTIF(U$337:U$344,U339)=1,U339,U339+COUNTIF(U$337:U339,U339)-1) -> 2 | S339: 3 | T339: 3 | U339: 2 | V339: Respiratory | W339: 0.68 | X339: 1.16
B340: Digestive | E340: =IFERROR(VLOOKUP('presentation buffer'!$E28&'presentation buffer'!$C$3&1,'data broad'!$A:$N, 10,FALSE),0) -> 11 | F340: =IFERROR(VLOOKUP('presentation buffer'!$E28&'presentation buffer'!$C$3&1,'data broad'!$A:$N, 11,FALSE),0) -> 9.3 | G340: =IFERROR(VLOOKUP('presentation buffer'!$E28&'presentation buffer'!$C$3&1,'data broad'!$A:$N, 12,FALSE),0) -> 0.68 | H340: =IFERROR(VLOOKUP('presentation buffer'!$E28&'presentation buffer'!$C$3&1,'data broad'!$A:$N, 14,FALSE),0) -> 13.9 | I340: =IFERROR(VLOOKUP('presentation buffer'!$E28&'presentation buffer'!$C$3&2,'data broad'!$A:$N, 10,FALSE),0) -> 19.9 | J340: =IFERROR(VLOOKUP('presentation buffer'!$E28&'presentation buffer'!$C$3&2,'data broad'!$A:$N, 11,FALSE),0) -> 12.8 | K340: =IFERROR(VLOOKUP('presentation buffer'!$E28&'presentation buffer'!$C$3&2,'data broad'!$A:$N, 12,FALSE),0) -> 0.66 | L340: =IFERROR(VLOOKUP('presentation buffer'!$E28&'presentation buffer'!$C$3&2,'data broad'!$A:$N, 14,FALSE),0) -> 12.1 | Q340: =IF(COUNTIF(T$337:T$344,T340)=1,T340,T340+COUNTIF(T$337:T340,T340)-1) -> 4 | R340: =IF(COUNTIF(U$337:U$344,U340)=1,U340,U340+COUNTIF(U$337:U340,U340)-1) -> 4 | S340: 4 | T340: 3 | U340: 4 | V340: Digestive | W340: 0.68 | X340: 0.66
B341: External causes | E341: =IFERROR(VLOOKUP('presentation buffer'!$E29&'presentation buffer'!$C$3&1,'data broad'!$A:$N, 10,FALSE),0) -> 9 | F341: =IFERROR(VLOOKUP('presentation buffer'!$E29&'presentation buffer'!$C$3&1,'data broad'!$A:$N, 11,FALSE),0) -> -0.2 | G341: =IFERROR(VLOOKUP('presentation buffer'!$E29&'presentation buffer'!$C$3&1,'data broad'!$A:$N, 12,FALSE),0) -> -0.36 | H341: =IFERROR(VLOOKUP('presentation buffer'!$E29&'presentation buffer'!$C$3&1,'data broad'!$A:$N, 14,FALSE),0) -> .. | I341: =IFERROR(VLOOKUP('presentation buffer'!$E29&'presentation buffer'!$C$3&2,'data broad'!$A:$N, 10,FALSE),0) -> 7.3 | J341: =IFERROR(VLOOKUP('presentation buffer'!$E29&'presentation buffer'!$C$3&2,'data broad'!$A:$N, 11,FALSE),0) -> 0.6 | K341: =IFERROR(VLOOKUP('presentation buffer'!$E29&'presentation buffer'!$C$3&2,'data broad'!$A:$N, 12,FALSE),0) -> 0.12 | L341: =IFERROR(VLOOKUP('presentation buffer'!$E29&'presentation buffer'!$C$3&2,'data broad'!$A:$N, 14,FALSE),0) -> 2.2 | Q341: =IF(COUNTIF(T$337:T$344,T341)=1,T341,T341+COUNTIF(T$337:T341,T341)-1) -> 8 | R341: =IF(COUNTIF(U$337:U$344,U341)=1,U341,U341+COUNTIF(U$337:U341,U341)-1) -> 7 | S341: 5 | T341: 8 | U341: 7 | V341: External causes | W341: -0.36 | X341: 0.12
B342: Mental and behavioural | E342: =IFERROR(VLOOKUP('presentation buffer'!$E30&'presentation buffer'!$C$3&1,'data broad'!$A:$N, 10,FALSE),0) -> 19.6 | F342: =IFERROR(VLOOKUP('presentation buffer'!$E30&'presentation buffer'!$C$3&1,'data broad'!$A:$N, 11,FALSE),0) -> 13.4 | G342: =IFERROR(VLOOKUP('presentation buffer'!$E30&'presentation buffer'!$C$3&1,'data broad'!$A:$N, 12,FALSE),0) -> 0.56 | H342: =IFERROR(VLOOKUP('presentation buffer'!$E30&'presentation buffer'!$C$3&1,'data broad'!$A:$N, 14,FALSE),0) -> 11.3 | I342: =IFERROR(VLOOKUP('presentation buffer'!$E30&'presentation buffer'!$C$3&2,'data broad'!$A:$N, 10,FALSE),0) -> 23.4 | J342: =IFERROR(VLOOKUP('presentation buffer'!$E30&'presentation buffer'!$C$3&2,'data broad'!$A:$N, 11,FALSE),0) -> 14.8 | K342: =IFERROR(VLOOKUP('presentation buffer'!$E30&'presentation buffer'!$C$3&2,'data broad'!$A:$N, 12,FALSE),0) -> 0.49 | L342: =IFERROR(VLOOKUP('presentation buffer'!$E30&'presentation buffer'!$C$3&2,'data broad'!$A:$N, 14,FALSE),0) -> 9.1 | Q342: =IF(COUNTIF(T$337:T$344,T342)=1,T342,T342+COUNTIF(T$337:T342,T342)-1) -> 5 | R342: =IF(COUNTIF(U$337:U$344,U342)=1,U342,U342+COUNTIF(U$337:U342,U342)-1) -> 5 | S342: 6 | T342: 5 | U342: 5 | V342: Mental and behavioural | W342: 0.56 | X342: 0.49
B343: Other | E343: =IFERROR(VLOOKUP('presentation buffer'!$E31&'presentation buffer'!$C$3&1,'data broad'!$A:$N, 10,FALSE),0) -> 22 | F343: =IFERROR(VLOOKUP('presentation buffer'!$E31&'presentation buffer'!$C$3&1,'data broad'!$A:$N, 11,FALSE),0) -> 9.3 | G343: =IFERROR(VLOOKUP('presentation buffer'!$E31&'presentation buffer'!$C$3&1,'data broad'!$A:$N, 12,FALSE),0) -> 0.44 | H343: =IFERROR(VLOOKUP('presentation buffer'!$E31&'presentation buffer'!$C$3&1,'data broad'!$A:$N, 14,FALSE),0) -> 9 | I343: =IFERROR(VLOOKUP('presentation buffer'!$E31&'presentation buffer'!$C$3&2,'data broad'!$A:$N, 10,FALSE),0) -> 24.7 | J343: =IFERROR(VLOOKUP('presentation buffer'!$E31&'presentation buffer'!$C$3&2,'data broad'!$A:$N, 11,FALSE),0) -> -2.2 | K343: =IFERROR(VLOOKUP('presentation buffer'!$E31&'presentation buffer'!$C$3&2,'data broad'!$A:$N, 12,FALSE),0) -> 0.39 | L343: =IFERROR(VLOOKUP('presentation buffer'!$E31&'presentation buffer'!$C$3&2,'data broad'!$A:$N, 14,FALSE),0) -> 7.3 | Q343: =IF(COUNTIF(T$337:T$344,T343)=1,T343,T343+COUNTIF(T$337:T343,T343)-1) -> 6 | R343: =IF(COUNTIF(U$337:U$344,U343)=1,U343,U343+COUNTIF(U$337:U343,U343)-1) -> 6 | S343: 7 | T343: 6 | U343: 6 | V343: Other | W343: 0.44 | X343: 0.39
B344: Deaths under 28 days | E344: =IFERROR(VLOOKUP('presentation buffer'!$E32&'presentation buffer'!$C$3&1,'data broad'!$A:$N, 10,FALSE),0) -> 1 | F344: =IFERROR(VLOOKUP('presentation buffer'!$E32&'presentation buffer'!$C$3&1,'data broad'!$A:$N, 11,FALSE),0) -> 1 | G344: =IFERROR(VLOOKUP('presentation buffer'!$E32&'presentation buffer'!$C$3&1,'data broad'!$A:$N, 12,FALSE),0) -> 0.32 | H344: =IFERROR(VLOOKUP('presentation buffer'!$E32&'presentation buffer'!$C$3&1,'data broad'!$A:$N, 14,FALSE),0) -> 6.4 | I344: =IFERROR(VLOOKUP('presentation buffer'!$E32&'presentation buffer'!$C$3&2,'data broad'!$A:$N, 10,FALSE),0) -> 1 | J344: =IFERROR(VLOOKUP('presentation buffer'!$E32&'presentation buffer'!$C$3&2,'data broad'!$A:$N, 11,FALSE),0) -> -0.4 | K344: =IFERROR(VLOOKUP('presentation buffer'!$E32&'presentation buffer'!$C$3&2,'data broad'!$A:$N, 12,FALSE),0) -> -0.12 | L344: =IFERROR(VLOOKUP('presentation buffer'!$E32&'presentation buffer'!$C$3&2,'data broad'!$A:$N, 14,FALSE),0) -> .. | Q344: =IF(COUNTIF(T$337:T$344,T344)=1,T344,T344+COUNTIF(T$337:T344,T344)-1) -> 7 | R344: =IF(COUNTIF(U$337:U$344,U344)=1,U344,U344+COUNTIF(U$337:U344,U344)-1) -> 8 | S344: 8 | T344: 7 | U344: 8 | V344: Deaths under 28 days | W344: 0.32 | X344: -0.12
B346: Total | E346: =SUM(E337:E344) -> 202.9 | H346: =IF(H337="++", "++", IF(H337="##", "##", SUM(H337:H344))) -> 99.9 | I346: =SUM(I337:I344) -> 263 | L346: =IF(L337="++", "++", IF(L337="##", "##", SUM(L337:L344))) -> 100
B348: Counts of deaths have been adjusted take account of changes in ICD-10 coding made in 2014. This means totals may differ between tables. Further details can be found in the technical document. * A positive figure indicates that life expectancy years would be gained if the most deprived quintile of the local authority had the same mortality rate as the least deprived quintile (ie the mortality rate in the most deprived quintile for the cause is higher than that of the least deprived quintile). A negative figure indicates that life expectancy years would be lost if the most deprived quintile in the local authority had the same mortality rate as the least deprived quintile.
B349: .. The calculated contribution to the gap is negative
B350: ## The figures have not been calculated as life expectancy in the most deprived quintile is higher than life expectancy in the least deprived quintile
B351: Analysis by Public Health England Epidemiology and Surveillance team based on ONS death registration data, and mid year population estimates, and DCLG Index of Multiple Deprivation, 2015
B362: THE SEGMENT TOOL
B363: SEGMENTING LIFE EXPECTANCY GAPS BY CAUSE OF DEATH
B365: ="Chart 7: Bar chart showing life expectancy years gained or lost if " & 'presentation buffer'!D3 & " most deprived quintile had the same mortality rates as " & 'presentation buffer'!D3 & " least deprived quintile, by detailed cause of death, 2012-2014" -> Chart 7: Bar chart showing life expectancy years gained or lost if Adur most deprived quintile had the same mortality rates as Adur least deprived quintile, by detailed cause of death, 2012-2014 | R365: YLG chart data
... 66 more rows

Sheet presentation buffer (hidden)
A1: Area selection | L1: Contextual data
C2: code | D2: name | M2: female | N2: male
A3: 1 | B3: =VLOOKUP($A$3,'lkup upper tier'!$A:$E,2,FALSE) -> Adur (E07000223) | C3: =VLOOKUP($A$3,'lkup upper tier'!$A:$E,3,FALSE) -> E07000223 | D3: =VLOOKUP($A$3,'lkup upper tier'!$A:$E,5,FALSE) -> Adur | L3: Life expectancy | M3: =VLOOKUP(C3,'data LE '!$A:$E,4, FALSE) -> 83.6 | N3: =VLOOKUP(C3,'data LE '!$A:$E,5, FALSE) -> 80.2
L4: SII
A5: Comparator selection | L5: England LE | M5: ='data LE '!D4 -> 83.2 | N5: ='data LE '!E4 -> 79.55
C6: Base area | D6: Comparator area | E6: Base label text | F6: Comparator label text | L6: LE gap | M6: =M3-M5 -> 0.4 | N6: =N3-N5 -> 0.65
A7: 1 | B7: =VLOOKUP($A$7,'lkup comparison'!$A$2:$D$4,2,FALSE) -> No selection | C7: =IF(LEFT(B7,4) = "LA m", "most deprived quintile", "local authority") -> local authority | D7: =IF(C7="most deprived quintile", "least deprived quintile", "England") -> England | E7: =IF(LEFT(B7,4)="LA a", D3&" as a whole", D3 & " most deprived quintile") -> Adur most deprived quintile | F7: =IF(LEFT(B7,4)="LA a", "England as a whole", D3 & " least deprived quintile") -> Adur least deprived quintile | L7: MDQ LE | M7: =VLOOKUP($C$3,'data LE quintiles'!$A$5:$E$356, 4,FALSE) -> 80.2 | N7: =VLOOKUP($C$3,'data LE quintiles'!$A$5:$E$356, 2,FALSE) -> 77.9
L8: LDQ LE | M8: =VLOOKUP($C$3,'data LE quintiles'!$A$5:$E$356, 5,FALSE) -> 86.9 | N8: =VLOOKUP($C$3,'data LE quintiles'!$A$5:$E$356, 3,FALSE) -> 83.4
L9: Within Flag > | M9: =IF(M7>=M8,1,0) -> 0 | N9: =IF(N7>=N8,1,0) -> 0
A10: Scarf chart data - Broad causes
C11: Male | D11: Female
A12: 8 | B12: <28 days | C12: =IF(AND($A$7=2, $N$6<=0), IFERROR(VLOOKUP(A12&$C$3&1,'data broad'!$A:$N, 9,FALSE)/100,0), IF($A$7=3, IFERROR(VLOOKUP(A12&$C$3&1,'data broad'!$A:$N, 14,FALSE)/100,0), "")) ->  | D12: =IF(AND($A$7=2, $M$6<=0), IFERROR(VLOOKUP(A12&$C$3&2,'data broad'!$A:$N, 9,FALSE)/100,0), IF($A$7=3, IFERROR(VLOOKUP(A12&$C$3&2,'data broad'!$A:$N, 14,FALSE)/100,0), "")) -> 
A13: 7 | B13: Other | C13: =IF(AND($A$7=2, $N$6<=0), IFERROR(VLOOKUP(A13&$C$3&1,'data broad'!$A:$N, 9,FALSE)/100,0), IF($A$7=3, IFERROR(VLOOKUP(A13&$C$3&1,'data broad'!$A:$N, 14,FALSE)/100,0), "")) ->  | D13: =IF(AND($A$7=2, $M$6<=0), IFERROR(VLOOKUP(A13&$C$3&2,'data broad'!$A:$N, 9,FALSE)/100,0), IF($A$7=3, IFERROR(VLOOKUP(A13&$C$3&2,'data broad'!$A:$N, 14,FALSE)/100,0), "")) -> 
A14: 6 | B14: Mental and behavioural | C14: =IF(AND($A$7=2, $N$6<=0), IFERROR(VLOOKUP(A14&$C$3&1,'data broad'!$A:$N, 9,FALSE)/100,0), IF($A$7=3, IFERROR(VLOOKUP(A14&$C$3&1,'data broad'!$A:$N, 14,FALSE)/100,0), "")) ->  | D14: =IF(AND($A$7=2, $M$6<=0), IFERROR(VLOOKUP(A14&$C$3&2,'data broad'!$A:$N, 9,FALSE)/100,0), IF($A$7=3, IFERROR(VLOOKUP(A14&$C$3&2,'data broad'!$A:$N, 14,FALSE)/100,0), "")) -> 
A15: 5 | B15: External causes | C15: =IF(AND($A$7=2, $N$6<=0), IFERROR(VLOOKUP(A15&$C$3&1,'data broad'!$A:$N, 9,FALSE)/100,0), IF($A$7=3, IFERROR(VLOOKUP(A15&$C$3&1,'data broad'!$A:$N, 14,FALSE)/100,0), "")) ->  | D15: =IF(AND($A$7=2, $M$6<=0), IFERROR(VLOOKUP(A15&$C$3&2,'data broad'!$A:$N, 9,FALSE)/100,0), IF($A$7=3, IFERROR(VLOOKUP(A15&$C$3&2,'data broad'!$A:$N, 14,FALSE)/100,0), "")) -> 
A16: 4 | B16: Digestive | C16: =IF(AND($A$7=2, $N$6<=0), IFERROR(VLOOKUP(A16&$C$3&1,'data broad'!$A:$N, 9,FALSE)/100,0), IF($A$7=3, IFERROR(VLOOKUP(A16&$C$3&1,'data broad'!$A:$N, 14,FALSE)/100,0), "")) ->  | D16: =IF(AND($A$7=2, $M$6<=0), IFERROR(VLOOKUP(A16&$C$3&2,'data broad'!$A:$N, 9,FALSE)/100,0), IF($A$7=3, IFERROR(VLOOKUP(A16&$C$3&2,'data broad'!$A:$N, 14,FALSE)/100,0), "")) -> 
A17: 3 | B17: Respiratory | C17: =IF(AND($A$7=2, $N$6<=0), IFERROR(VLOOKUP(A17&$C$3&1,'data broad'!$A:$N, 9,FALSE)/100,0), IF($A$7=3, IFERROR(VLOOKUP(A17&$C$3&1,'data broad'!$A:$N, 14,FALSE)/100,0), "")) ->  | D17: =IF(AND($A$7=2, $M$6<=0), IFERROR(VLOOKUP(A17&$C$3&2,'data broad'!$A:$N, 9,FALSE)/100,0), IF($A$7=3, IFERROR(VLOOKUP(A17&$C$3&2,'data broad'!$A:$N, 14,FALSE)/100,0), "")) -> 
A18: 2 | B18: Cancer | C18: =IF(AND($A$7=2, $N$6<=0), IFERROR(VLOOKUP(A18&$C$3&1,'data broad'!$A:$N, 9,FALSE)/100,0), IF($A$7=3, IFERROR(VLOOKUP(A18&$C$3&1,'data broad'!$A:$N, 14,FALSE)/100,0), "")) ->  | D18: =IF(AND($A$7=2, $M$6<=0), IFERROR(VLOOKUP(A18&$C$3&2,'data broad'!$A:$N, 9,FALSE)/100,0), IF($A$7=3, IFERROR(VLOOKUP(A18&$C$3&2,'data broad'!$A:$N, 14,FALSE)/100,0), "")) -> 
A19: 1 | B19: Circulatory | C19: =IF(AND($A$7=2, $N$6<=0), IFERROR(VLOOKUP(A19&$C$3&1,'data broad'!$A:$N, 9,FALSE)/100,0), IF($A$7=3, IFERROR(VLOOKUP(A19&$C$3&1,'data broad'!$A:$N, 14,FALSE)/100,0), "")) ->  | D19: =IF(AND($A$7=2, $M$6<=0), IFERROR(VLOOKUP(A19&$C$3&2,'data broad'!$A:$N, 9,FALSE)/100,0), IF($A$7=3, IFERROR(VLOOKUP(A19&$C$3&2,'data broad'!$A:$N, 14,FALSE)/100,0), "")) -> 
A22: Table data - broad causes
G23: Male | L23: Female
A24: Adj rank YLG/YLL male | B24: Adj rank YLG/YLL female | C24: Rank YLG/YLL male | D24: Rank YLG/YLL female | E24: Cause code | F24: Cause | G24: totaldeaths | H24: XSdeaths | I24: YLG_YLL | J24: YLG | K24: percentcontribution | L24: totaldeaths | M24: XSdeaths | N24: YLG_YLL | O24: YLG | P24: percentcontribution
A25: =IF(COUNTIF(C$25:C$32,C25)=1,C25,C25+COUNTIF(C$25:C25,C25)-1) ->  | B25: =IF(COUNTIF(D$25:D$32,D25)=1,D25,D25+COUNTIF(D$25:D25,D25)-1) ->  | C25: =RANK(I25,$I$25:$I$32) ->  | D25: =RANK(N25,$N$25:$N$32) ->  | E25: 1 | F25: Circulatory | G25: =IF($A$7=2, IFERROR(VLOOKUP($E25&$C$3&1,'data broad'!$A:$N, 5,FALSE),0), IF($A$7=3, IFERROR(VLOOKUP($E25&$C$3&1,'data broad'!$A:$N, 10,FALSE),0), "")) ->  | H25: =IF($A$7=2, IFERROR(VLOOKUP($E25&$C$3&1,'data broad'!$A:$N, 6,FALSE),0), IF($A$7=3, IFERROR(VLOOKUP($E25&$C$3&1,'data broad'!$A:$N, 11,FALSE),0), "")) ->  | I25: =IF($A$7=2, IFERROR(VLOOKUP($E25&$C$3&1,'data broad'!$A:$N, 7,FALSE),0), IF($A$7=3, IFERROR(VLOOKUP($E25&$C$3&1,'data broad'!$A:$N, 12,FALSE),0), "")) ->  | J25: =IF($A$7=2, IFERROR(VLOOKUP($E25&$C$3&1,'data broad'!$A:$N, 8,FALSE),0), IF($A$7=3, IFERROR(VLOOKUP($E25&$C$3&1,'data broad'!$A:$N, 13,FALSE),0), "")) ->  | K25: =IF($A$7=2, IFERROR(VLOOKUP($E25&$C$3&1,'data broad'!$A:$N, 9,FALSE),0), IF($A$7=3, IFERROR(VLOOKUP($E25&$C$3&1,'data broad'!$A:$N, 14,FALSE),0), "")) ->  | L25: =IF($A$7=2, IFERROR(VLOOKUP($E25&$C$3&2,'data broad'!$A:$N, 5,FALSE),0), IF($A$7=3, IFERROR(VLOOKUP($E25&$C$3&2,'data broad'!$A:$N, 10,FALSE),0), "")) ->  | M25: =IF($A$7=2, IFERROR(VLOOKUP($E25&$C$3&2,'data broad'!$A:$N, 6,FALSE),0), IF($A$7=3, IFERROR(VLOOKUP($E25&$C$3&2,'data broad'!$A:$N, 11,FALSE),0), "")) ->  | N25: =IF($A$7=2, IFERROR(VLOOKUP($E25&$C$3&2,'data broad'!$A:$N, 7,FALSE),0), IF($A$7=3, IFERROR(VLOOKUP($E25&$C$3&2,'data broad'!$A:$N, 12,FALSE),0), "")) ->  | O25: =IF($A$7=2, IFERROR(VLOOKUP($E25&$C$3&2,'data broad'!$A:$N, 8,FALSE),0), IF($A$7=3, IFERROR(VLOOKUP($E25&$C$3&2,'data broad'!$A:$N, 13,FALSE),0), "")) ->  | P25: =IF($A$7=2, IFERROR(VLOOKUP($E25&$C$3&2,'data broad'!$A:$N, 9,FALSE),0), IF($A$7=3, IFERROR(VLOOKUP($E25&$C$3&2,'data broad'!$A:$N, 14,FALSE),0), "")) -> 
A26: =IF(COUNTIF(C$25:C$32,C26)=1,C26,C26+COUNTIF(C$25:C26,C26)-1) ->  | B26: =IF(COUNTIF(D$25:D$32,D26)=1,D26,D26+COUNTIF(D$25:D26,D26)-1) ->  | E26: 2 | F26: Cancer | G26: =IF($A$7=2, IFERROR(VLOOKUP($E26&$C$3&1,'data broad'!$A:$N, 5,FALSE),0), IF($A$7=3, IFERROR(VLOOKUP($E26&$C$3&1,'data broad'!$A:$N, 10,FALSE),0), "")) ->  | H26: =IF($A$7=2, IFERROR(VLOOKUP($E26&$C$3&1,'data broad'!$A:$N, 6,FALSE),0), IF($A$7=3, IFERROR(VLOOKUP($E26&$C$3&1,'data broad'!$A:$N, 11,FALSE),0), "")) ->  | I26: =IF($A$7=2, IFERROR(VLOOKUP($E26&$C$3&1,'data broad'!$A:$N, 7,FALSE),0), IF($A$7=3, IFERROR(VLOOKUP($E26&$C$3&1,'data broad'!$A:$N, 12,FALSE),0), "")) ->  | J26: =IF($A$7=2, IFERROR(VLOOKUP($E26&$C$3&1,'data broad'!$A:$N, 8,FALSE),0), IF($A$7=3, IFERROR(VLOOKUP($E26&$C$3&1,'data broad'!$A:$N, 13,FALSE),0), "")) ->  | K26: =IF($A$7=2, IFERROR(VLOOKUP($E26&$C$3&1,'data broad'!$A:$N, 9,FALSE),0), IF($A$7=3, IFERROR(VLOOKUP($E26&$C$3&1,'data broad'!$A:$N, 14,FALSE),0), "")) ->  | L26: =IF($A$7=2, IFERROR(VLOOKUP($E26&$C$3&2,'data broad'!$A:$N, 5,FALSE),0), IF($A$7=3, IFERROR(VLOOKUP($E26&$C$3&2,'data broad'!$A:$N, 10,FALSE),0), "")) ->  | M26: =IF($A$7=2, IFERROR(VLOOKUP($E26&$C$3&2,'data broad'!$A:$N, 6,FALSE),0), IF($A$7=3, IFERROR(VLOOKUP($E26&$C$3&2,'data broad'!$A:$N, 11,FALSE),0), "")) ->  | N26: =IF($A$7=2, IFERROR(VLOOKUP($E26&$C$3&2,'data broad'!$A:$N, 7,FALSE),0), IF($A$7=3, IFERROR(VLOOKUP($E26&$C$3&2,'data broad'!$A:$N, 12,FALSE),0), "")) ->  | O26: =IF($A$7=2, IFERROR(VLOOKUP($E26&$C$3&2,'data broad'!$A:$N, 8,FALSE),0), IF($A$7=3, IFERROR(VLOOKUP($E26&$C$3&2,'data broad'!$A:$N, 13,FALSE),0), "")) ->  | P26: =IF($A$7=2, IFERROR(VLOOKUP($E26&$C$3&2,'data broad'!$A:$N, 9,FALSE),0), IF($A$7=3, IFERROR(VLOOKUP($E26&$C$3&2,'data broad'!$A:$N, 14,FALSE),0), "")) -> 
A27: =IF(COUNTIF(C$25:C$32,C27)=1,C27,C27+COUNTIF(C$25:C27,C27)-1) ->  | B27: =IF(COUNTIF(D$25:D$32,D27)=1,D27,D27+COUNTIF(D$25:D27,D27)-1) ->  | E27: 3 | F27: Respiratory | G27: =IF($A$7=2, IFERROR(VLOOKUP($E27&$C$3&1,'data broad'!$A:$N, 5,FALSE),0), IF($A$7=3, IFERROR(VLOOKUP($E27&$C$3&1,'data broad'!$A:$N, 10,FALSE),0), "")) ->  | H27: =IF($A$7=2, IFERROR(VLOOKUP($E27&$C$3&1,'data broad'!$A:$N, 6,FALSE),0), IF($A$7=3, IFERROR(VLOOKUP($E27&$C$3&1,'data broad'!$A:$N, 11,FALSE),0), "")) ->  | I27: =IF($A$7=2, IFERROR(VLOOKUP($E27&$C$3&1,'data broad'!$A:$N, 7,FALSE),0), IF($A$7=3, IFERROR(VLOOKUP($E27&$C$3&1,'data broad'!$A:$N, 12,FALSE),0), "")) ->  | J27: =IF($A$7=2, IFERROR(VLOOKUP($E27&$C$3&1,'data broad'!$A:$N, 8,FALSE),0), IF($A$7=3, IFERROR(VLOOKUP($E27&$C$3&1,'data broad'!$A:$N, 13,FALSE),0), "")) ->  | K27: =IF($A$7=2, IFERROR(VLOOKUP($E27&$C$3&1,'data broad'!$A:$N, 9,FALSE),0), IF($A$7=3, IFERROR(VLOOKUP($E27&$C$3&1,'data broad'!$A:$N, 14,FALSE),0), "")) ->  | L27: =IF($A$7=2, IFERROR(VLOOKUP($E27&$C$3&2,'data broad'!$A:$N, 5,FALSE),0), IF($A$7=3, IFERROR(VLOOKUP($E27&$C$3&2,'data broad'!$A:$N, 10,FALSE),0), "")) ->  | M27: =IF($A$7=2, IFERROR(VLOOKUP($E27&$C$3&2,'data broad'!$A:$N, 6,FALSE),0), IF($A$7=3, IFERROR(VLOOKUP($E27&$C$3&2,'data broad'!$A:$N, 11,FALSE),0), "")) ->  | N27: =IF($A$7=2, IFERROR(VLOOKUP($E27&$C$3&2,'data broad'!$A:$N, 7,FALSE),0), IF($A$7=3, IFERROR(VLOOKUP($E27&$C$3&2,'data broad'!$A:$N, 12,FALSE),0), "")) ->  | O27: =IF($A$7=2, IFERROR(VLOOKUP($E27&$C$3&2,'data broad'!$A:$N, 8,FALSE),0), IF($A$7=3, IFERROR(VLOOKUP($E27&$C$3&2,'data broad'!$A:$N, 13,FALSE),0), "")) ->  | P27: =IF($A$7=2, IFERROR(VLOOKUP($E27&$C$3&2,'data broad'!$A:$N, 9,FALSE),0), IF($A$7=3, IFERROR(VLOOKUP($E27&$C$3&2,'data broad'!$A:$N, 14,FALSE),0), "")) -> 
A28: =IF(COUNTIF(C$25:C$32,C28)=1,C28,C28+COUNTIF(C$25:C28,C28)-1) ->  | B28: =IF(COUNTIF(D$25:D$32,D28)=1,D28,D28+COUNTIF(D$25:D28,D28)-1) ->  | E28: 4 | F28: Digestive | G28: =IF($A$7=2, IFERROR(VLOOKUP($E28&$C$3&1,'data broad'!$A:$N, 5,FALSE),0), IF($A$7=3, IFERROR(VLOOKUP($E28&$C$3&1,'data broad'!$A:$N, 10,FALSE),0), "")) ->  | H28: =IF($A$7=2, IFERROR(VLOOKUP($E28&$C$3&1,'data broad'!$A:$N, 6,FALSE),0), IF($A$7=3, IFERROR(VLOOKUP($E28&$C$3&1,'data broad'!$A:$N, 11,FALSE),0), "")) ->  | I28: =IF($A$7=2, IFERROR(VLOOKUP($E28&$C$3&1,'data broad'!$A:$N, 7,FALSE),0), IF($A$7=3, IFERROR(VLOOKUP($E28&$C$3&1,'data broad'!$A:$N, 12,FALSE),0), "")) ->  | J28: =IF($A$7=2, IFERROR(VLOOKUP($E28&$C$3&1,'data broad'!$A:$N, 8,FALSE),0), IF($A$7=3, IFERROR(VLOOKUP($E28&$C$3&1,'data broad'!$A:$N, 13,FALSE),0), "")) ->  | K28: =IF($A$7=2, IFERROR(VLOOKUP($E28&$C$3&1,'data broad'!$A:$N, 9,FALSE),0), IF($A$7=3, IFERROR(VLOOKUP($E28&$C$3&1,'data broad'!$A:$N, 14,FALSE),0), "")) ->  | L28: =IF($A$7=2, IFERROR(VLOOKUP($E28&$C$3&2,'data broad'!$A:$N, 5,FALSE),0), IF($A$7=3, IFERROR(VLOOKUP($E28&$C$3&2,'data broad'!$A:$N, 10,FALSE),0), "")) ->  | M28: =IF($A$7=2, IFERROR(VLOOKUP($E28&$C$3&2,'data broad'!$A:$N, 6,FALSE),0), IF($A$7=3, IFERROR(VLOOKUP($E28&$C$3&2,'data broad'!$A:$N, 11,FALSE),0), "")) ->  | N28: =IF($A$7=2, IFERROR(VLOOKUP($E28&$C$3&2,'data broad'!$A:$N, 7,FALSE),0), IF($A$7=3, IFERROR(VLOOKUP($E28&$C$3&2,'data broad'!$A:$N, 12,FALSE),0), "")) ->  | O28: =IF($A$7=2, IFERROR(VLOOKUP($E28&$C$3&2,'data broad'!$A:$N, 8,FALSE),0), IF($A$7=3, IFERROR(VLOOKUP($E28&$C$3&2,'data broad'!$A:$N, 13,FALSE),0), "")) ->  | P28: =IF($A$7=2, IFERROR(VLOOKUP($E28&$C$3&2,'data broad'!$A:$N, 9,FALSE),0), IF($A$7=3, IFERROR(VLOOKUP($E28&$C$3&2,'data broad'!$A:$N, 14,FALSE),0), "")) -> 
A29: =IF(COUNTIF(C$25:C$32,C29)=1,C29,C29+COUNTIF(C$25:C29,C29)-1) ->  | B29: =IF(COUNTIF(D$25:D$32,D29)=1,D29,D29+COUNTIF(D$25:D29,D29)-1) ->  | E29: 5 | F29: External causes | G29: =IF($A$7=2, IFERROR(VLOOKUP($E29&$C$3&1,'data broad'!$A:$N, 5,FALSE),0), IF($A$7=3, IFERROR(VLOOKUP($E29&$C$3&1,'data broad'!$A:$N, 10,FALSE),0), "")) ->  | H29: =IF($A$7=2, IFERROR(VLOOKUP($E29&$C$3&1,'data broad'!$A:$N, 6,FALSE),0), IF($A$7=3, IFERROR(VLOOKUP($E29&$C$3&1,'data broad'!$A:$N, 11,FALSE),0), "")) ->  | I29: =IF($A$7=2, IFERROR(VLOOKUP($E29&$C$3&1,'data broad'!$A:$N, 7,FALSE),0), IF($A$7=3, IFERROR(VLOOKUP($E29&$C$3&1,'data broad'!$A:$N, 12,FALSE),0), "")) ->  | J29: =IF($A$7=2, IFERROR(VLOOKUP($E29&$C$3&1,'data broad'!$A:$N, 8,FALSE),0), IF($A$7=3, IFERROR(VLOOKUP($E29&$C$3&1,'data broad'!$A:$N, 13,FALSE),0), "")) ->  | K29: =IF($A$7=2, IFERROR(VLOOKUP($E29&$C$3&1,'data broad'!$A:$N, 9,FALSE),0), IF($A$7=3, IFERROR(VLOOKUP($E29&$C$3&1,'data broad'!$A:$N, 14,FALSE),0), "")) ->  | L29: =IF($A$7=2, IFERROR(VLOOKUP($E29&$C$3&2,'data broad'!$A:$N, 5,FALSE),0), IF($A$7=3, IFERROR(VLOOKUP($E29&$C$3&2,'data broad'!$A:$N, 10,FALSE),0), "")) ->  | M29: =IF($A$7=2, IFERROR(VLOOKUP($E29&$C$3&2,'data broad'!$A:$N, 6,FALSE),0), IF($A$7=3, IFERROR(VLOOKUP($E29&$C$3&2,'data broad'!$A:$N, 11,FALSE),0), "")) ->  | N29: =IF($A$7=2, IFERROR(VLOOKUP($E29&$C$3&2,'data broad'!$A:$N, 7,FALSE),0), IF($A$7=3, IFERROR(VLOOKUP($E29&$C$3&2,'data broad'!$A:$N, 12,FALSE),0), "")) ->  | O29: =IF($A$7=2, IFERROR(VLOOKUP($E29&$C$3&2,'data broad'!$A:$N, 8,FALSE),0), IF($A$7=3, IFERROR(VLOOKUP($E29&$C$3&2,'data broad'!$A:$N, 13,FALSE),0), "")) ->  | P29: =IF($A$7=2, IFERROR(VLOOKUP($E29&$C$3&2,'data broad'!$A:$N, 9,FALSE),0), IF($A$7=3, IFERROR(VLOOKUP($E29&$C$3&2,'data broad'!$A:$N, 14,FALSE),0), "")) -> 
A30: =IF(COUNTIF(C$25:C$32,C30)=1,C30,C30+COUNTIF(C$25:C30,C30)-1) ->  | B30: =IF(COUNTIF(D$25:D$32,D30)=1,D30,D30+COUNTIF(D$25:D30,D30)-1) ->  | E30: 6 | F30: Mental and behavioural | G30: =IF($A$7=2, IFERROR(VLOOKUP($E30&$C$3&1,'data broad'!$A:$N, 5,FALSE),0), IF($A$7=3, IFERROR(VLOOKUP($E30&$C$3&1,'data broad'!$A:$N, 10,FALSE),0), "")) ->  | H30: =IF($A$7=2, IFERROR(VLOOKUP($E30&$C$3&1,'data broad'!$A:$N, 6,FALSE),0), IF($A$7=3, IFERROR(VLOOKUP($E30&$C$3&1,'data broad'!$A:$N, 11,FALSE),0), "")) ->  | I30: =IF($A$7=2, IFERROR(VLOOKUP($E30&$C$3&1,'data broad'!$A:$N, 7,FALSE),0), IF($A$7=3, IFERROR(VLOOKUP($E30&$C$3&1,'data broad'!$A:$N, 12,FALSE),0), "")) ->  | J30: =IF($A$7=2, IFERROR(VLOOKUP($E30&$C$3&1,'data broad'!$A:$N, 8,FALSE),0), IF($A$7=3, IFERROR(VLOOKUP($E30&$C$3&1,'data broad'!$A:$N, 13,FALSE),0), "")) ->  | K30: =IF($A$7=2, IFERROR(VLOOKUP($E30&$C$3&1,'data broad'!$A:$N, 9,FALSE),0), IF($A$7=3, IFERROR(VLOOKUP($E30&$C$3&1,'data broad'!$A:$N, 14,FALSE),0), "")) ->  | L30: =IF($A$7=2, IFERROR(VLOOKUP($E30&$C$3&2,'data broad'!$A:$N, 5,FALSE),0), IF($A$7=3, IFERROR(VLOOKUP($E30&$C$3&2,'data broad'!$A:$N, 10,FALSE),0), "")) ->  | M30: =IF($A$7=2, IFERROR(VLOOKUP($E30&$C$3&2,'data broad'!$A:$N, 6,FALSE),0), IF($A$7=3, IFERROR(VLOOKUP($E30&$C$3&2,'data broad'!$A:$N, 11,FALSE),0), "")) ->  | N30: =IF($A$7=2, IFERROR(VLOOKUP($E30&$C$3&2,'data broad'!$A:$N, 7,FALSE),0), IF($A$7=3, IFERROR(VLOOKUP($E30&$C$3&2,'data broad'!$A:$N, 12,FALSE),0), "")) ->  | O30: =IF($A$7=2, IFERROR(VLOOKUP($E30&$C$3&2,'data broad'!$A:$N, 8,FALSE),0), IF($A$7=3, IFERROR(VLOOKUP($E30&$C$3&2,'data broad'!$A:$N, 13,FALSE),0), "")) ->  | P30: =IF($A$7=2, IFERROR(VLOOKUP($E30&$C$3&2,'data broad'!$A:$N, 9,FALSE),0), IF($A$7=3, IFERROR(VLOOKUP($E30&$C$3&2,'data broad'!$A:$N, 14,FALSE),0), "")) -> 
A31: =IF(COUNTIF(C$25:C$32,C31)=1,C31,C31+COUNTIF(C$25:C31,C31)-1) ->  | B31: =IF(COUNTIF(D$25:D$32,D31)=1,D31,D31+COUNTIF(D$25:D31,D31)-1) ->  | E31: 7 | F31: Other | G31: =IF($A$7=2, IFERROR(VLOOKUP($E31&$C$3&1,'data broad'!$A:$N, 5,FALSE),0), IF($A$7=3, IFERROR(VLOOKUP($E31&$C$3&1,'data broad'!$A:$N, 10,FALSE),0), "")) ->  | H31: =IF($A$7=2, IFERROR(VLOOKUP($E31&$C$3&1,'data broad'!$A:$N, 6,FALSE),0), IF($A$7=3, IFERROR(VLOOKUP($E31&$C$3&1,'data broad'!$A:$N, 11,FALSE),0), "")) ->  | I31: =IF($A$7=2, IFERROR(VLOOKUP($E31&$C$3&1,'data broad'!$A:$N, 7,FALSE),0), IF($A$7=3, IFERROR(VLOOKUP($E31&$C$3&1,'data broad'!$A:$N, 12,FALSE),0), "")) ->  | J31: =IF($A$7=2, IFERROR(VLOOKUP($E31&$C$3&1,'data broad'!$A:$N, 8,FALSE),0), IF($A$7=3, IFERROR(VLOOKUP($E31&$C$3&1,'data broad'!$A:$N, 13,FALSE),0), "")) ->  | K31: =IF($A$7=2, IFERROR(VLOOKUP($E31&$C$3&1,'data broad'!$A:$N, 9,FALSE),0), IF($A$7=3, IFERROR(VLOOKUP($E31&$C$3&1,'data broad'!$A:$N, 14,FALSE),0), "")) ->  | L31: =IF($A$7=2, IFERROR(VLOOKUP($E31&$C$3&2,'data broad'!$A:$N, 5,FALSE),0), IF($A$7=3, IFERROR(VLOOKUP($E31&$C$3&2,'data broad'!$A:$N, 10,FALSE),0), "")) ->  | M31: =IF($A$7=2, IFERROR(VLOOKUP($E31&$C$3&2,'data broad'!$A:$N, 6,FALSE),0), IF($A$7=3, IFERROR(VLOOKUP($E31&$C$3&2,'data broad'!$A:$N, 11,FALSE),0), "")) ->  | N31: =IF($A$7=2, IFERROR(VLOOKUP($E31&$C$3&2,'data broad'!$A:$N, 7,FALSE),0), IF($A$7=3, IFERROR(VLOOKUP($E31&$C$3&2,'data broad'!$A:$N, 12,FALSE),0), "")) ->  | O31: =IF($A$7=2, IFERROR(VLOOKUP($E31&$C$3&2,'data broad'!$A:$N, 8,FALSE),0), IF($A$7=3, IFERROR(VLOOKUP($E31&$C$3&2,'data broad'!$A:$N, 13,FALSE),0), "")) ->  | P31: =IF($A$7=2, IFERROR(VLOOKUP($E31&$C$3&2,'data broad'!$A:$N, 9,FALSE),0), IF($A$7=3, IFERROR(VLOOKUP($E31&$C$3&2,'data broad'!$A:$N, 14,FALSE),0), "")) -> 
A32: =IF(COUNTIF(C$25:C$32,C32)=1,C32,C32+COUNTIF(C$25:C32,C32)-1) ->  | B32: =IF(COUNTIF(D$25:D$32,D32)=1,D32,D32+COUNTIF(D$25:D32,D32)-1) ->  | E32: 8 | F32: Deaths under 28 days | G32: =IF($A$7=2, IFERROR(VLOOKUP($E32&$C$3&1,'data broad'!$A:$N, 5,FALSE),0), IF($A$7=3, IFERROR(VLOOKUP($E32&$C$3&1,'data broad'!$A:$N, 10,FALSE),0), "")) ->  | H32: =IF($A$7=2, IFERROR(VLOOKUP($E32&$C$3&1,'data broad'!$A:$N, 6,FALSE),0), IF($A$7=3, IFERROR(VLOOKUP($E32&$C$3&1,'data broad'!$A:$N, 11,FALSE),0), "")) ->  | I32: =IF($A$7=2, IFERROR(VLOOKUP($E32&$C$3&1,'data broad'!$A:$N, 7,FALSE),0), IF($A$7=3, IFERROR(VLOOKUP($E32&$C$3&1,'data broad'!$A:$N, 12,FALSE),0), "")) ->  | J32: =IF($A$7=2, IFERROR(VLOOKUP($E32&$C$3&1,'data broad'!$A:$N, 8,FALSE),0), IF($A$7=3, IFERROR(VLOOKUP($E32&$C$3&1,'data broad'!$A:$N, 13,FALSE),0), "")) ->  | K32: =IF($A$7=2, IFERROR(VLOOKUP($E32&$C$3&1,'data broad'!$A:$N, 9,FALSE),0), IF($A$7=3, IFERROR(VLOOKUP($E32&$C$3&1,'data broad'!$A:$N, 14,FALSE),0), "")) ->  | L32: =IF($A$7=2, IFERROR(VLOOKUP($E32&$C$3&2,'data broad'!$A:$N, 5,FALSE),0), IF($A$7=3, IFERROR(VLOOKUP($E32&$C$3&2,'data broad'!$A:$N, 10,FALSE),0), "")) ->  | M32: =IF($A$7=2, IFERROR(VLOOKUP($E32&$C$3&2,'data broad'!$A:$N, 6,FALSE),0), IF($A$7=3, IFERROR(VLOOKUP($E32&$C$3&2,'data broad'!$A:$N, 11,FALSE),0), "")) ->  | N32: =IF($A$7=2, IFERROR(VLOOKUP($E32&$C$3&2,'data broad'!$A:$N, 7,FALSE),0), IF($A$7=3, IFERROR(VLOOKUP($E32&$C$3&2,'data broad'!$A:$N, 12,FALSE),0), "")) ->  | O32: =IF($A$7=2, IFERROR(VLOOKUP($E32&$C$3&2,'data broad'!$A:$N, 8,FALSE),0), IF($A$7=3, IFERROR(VLOOKUP($E32&$C$3&2,'data broad'!$A:$N, 13,FALSE),0), "")) ->  | P32: =IF($A$7=2, IFERROR(VLOOKUP($E32&$C$3&2,'data broad'!$A:$N, 9,FALSE),0), IF($A$7=3, IFERROR(VLOOKUP($E32&$C$3&2,'data broad'!$A:$N, 14,FALSE),0), "")) -> 
A35: Horizonal bar - broad causes
A37: Male | E37: Female
A38: Rank | B38: Cause | C38: YLG_YLL | E38: Rank | F38: Cause | G38: YLG_YLL
A39: 8 | B39: =VLOOKUP(A39,$A$25:$I$32,6,FALSE) ->  | C39: =VLOOKUP(A39,$A$25:$I$32,9,FALSE) ->  | E39: 8 | F39: =VLOOKUP(E39,$B$25:$N$32,5,FALSE) ->  | G39: =VLOOKUP(E39,$B$25:$N$32,13,FALSE) -> 
A40: 7 | E40: 7
A41: 6 | E41: 6
A42: 5 | E42: 5
A43: 4 | E43: 4
A44: 3 | E44: 3
A45: 2 | E45: 2
A46: 1 | E46: 1
A49: Table data - detailed causes
G50: Male | K50: Female
A51: Adj rank YLG/YLL male | B51: Adj rank YLG/YLL female | C51: Rank YLG/YLL male | D51: Rank YLG/YLL female | E51: Cause code | F51: Cause | G51: totaldeaths | H51: XSdeaths | I51: YLG_YLL | J51: YLG | K51: totaldeaths | L51: XSdeaths | M51: YLG_YLL | N51: YLG
A52: =IF(COUNTIF(C$52:C$71,C52)=1,C52,C52+COUNTIF(C$52:C52,C52)-1) ->  | B52: =IF(COUNTIF(D$52:D$71,D52)=1,D52,D52+COUNTIF(D$52:D52,D52)-1) ->  | C52: =RANK(I52,$I$52:$I$71) ->  | D52: =RANK(M52,$M$52:$M$71) ->  | E52: 1 | F52: Coronary Heart Disease | G52: =IF($A$7=2, IFERROR(VLOOKUP($E52&$C$3&1,'data detailed'!$A:$M, 5,FALSE),0), IF($A$7=3, IFERROR(VLOOKUP($E52&$C$3&1,'data detailed'!$A:$M, 9,FALSE),0), "")) ->  | H52: =IF($A$7=2, IFERROR(VLOOKUP($E52&$C$3&1,'data detailed'!$A:$M, 6,FALSE),0), IF($A$7=3, IFERROR(VLOOKUP($E52&$C$3&1,'data detailed'!$A:$M, 10,FALSE),0), "")) ->  | I52: =IF($A$7=2, IFERROR(VLOOKUP($E52&$C$3&1,'data detailed'!$A:$M, 7,FALSE),0), IF($A$7=3, IFERROR(VLOOKUP($E52&$C$3&1,'data detailed'!$A:$M, 11,FALSE),0), "")) ->  | J52: =IF($A$7=2, IFERROR(VLOOKUP($E52&$C$3&1,'data detailed'!$A:$M, 8,FALSE),0), IF($A$7=3, IFERROR(VLOOKUP($E52&$C$3&1,'data detailed'!$A:$M, 12,FALSE),0), "")) ->  | K52: =IF($A$7=2, IFERROR(VLOOKUP($E52&$C$3&2,'data detailed'!$A:$M, 5,FALSE),0), IF($A$7=3, IFERROR(VLOOKUP($E52&$C$3&2,'data detailed'!$A:$M, 9,FALSE),0), "")) ->  | L52: =IF($A$7=2, IFERROR(VLOOKUP($E52&$C$3&2,'data detailed'!$A:$M, 6,FALSE),0), IF($A$7=3, IFERROR(VLOOKUP($E52&$C$3&2,'data detailed'!$A:$M, 10,FALSE),0), "")) ->  | M52: =IF($A$7=2, IFERROR(VLOOKUP($E52&$C$3&2,'data detailed'!$A:$M, 7,FALSE),0), IF($A$7=3, IFERROR(VLOOKUP($E52&$C$3&2,'data detailed'!$A:$M, 11,FALSE),0), "")) ->  | N52: =IF($A$7=2, IFERROR(VLOOKUP($E52&$C$3&2,'data detailed'!$A:$M, 8,FALSE),0), IF($A$7=3, IFERROR(VLOOKUP($E52&$C$3&2,'data detailed'!$A:$M, 12,FALSE),0), "")) -> 
A53: =IF(COUNTIF(C$52:C$71,C53)=1,C53,C53+COUNTIF(C$52:C53,C53)-1) ->  | B53: =IF(COUNTIF(D$52:D$71,D53)=1,D53,D53+COUNTIF(D$52:D53,D53)-1) ->  | E53: 2 | F53: Stroke | G53: =IF($A$7=2, IFERROR(VLOOKUP($E53&$C$3&1,'data detailed'!$A:$M, 5,FALSE),0), IF($A$7=3, IFERROR(VLOOKUP($E53&$C$3&1,'data detailed'!$A:$M, 9,FALSE),0), "")) ->  | H53: =IF($A$7=2, IFERROR(VLOOKUP($E53&$C$3&1,'data detailed'!$A:$M, 6,FALSE),0), IF($A$7=3, IFERROR(VLOOKUP($E53&$C$3&1,'data detailed'!$A:$M, 10,FALSE),0), "")) ->  | I53: =IF($A$7=2, IFERROR(VLOOKUP($E53&$C$3&1,'data detailed'!$A:$M, 7,FALSE),0), IF($A$7=3, IFERROR(VLOOKUP($E53&$C$3&1,'data detailed'!$A:$M, 11,FALSE),0), "")) ->  | J53: =IF($A$7=2, IFERROR(VLOOKUP($E53&$C$3&1,'data detailed'!$A:$M, 8,FALSE),0), IF($A$7=3, IFERROR(VLOOKUP($E53&$C$3&1,'data detailed'!$A:$M, 12,FALSE),0), "")) ->  | K53: =IF($A$7=2, IFERROR(VLOOKUP($E53&$C$3&2,'data detailed'!$A:$M, 5,FALSE),0), IF($A$7=3, IFERROR(VLOOKUP($E53&$C$3&2,'data detailed'!$A:$M, 9,FALSE),0), "")) ->  | L53: =IF($A$7=2, IFERROR(VLOOKUP($E53&$C$3&2,'data detailed'!$A:$M, 6,FALSE),0), IF($A$7=3, IFERROR(VLOOKUP($E53&$C$3&2,'data detailed'!$A:$M, 10,FALSE),0), "")) ->  | M53: =IF($A$7=2, IFERROR(VLOOKUP($E53&$C$3&2,'data detailed'!$A:$M, 7,FALSE),0), IF($A$7=3, IFERROR(VLOOKUP($E53&$C$3&2,'data detailed'!$A:$M, 11,FALSE),0), "")) ->  | N53: =IF($A$7=2, IFERROR(VLOOKUP($E53&$C$3&2,'data detailed'!$A:$M, 8,FALSE),0), IF($A$7=3, IFERROR(VLOOKUP($E53&$C$3&2,'data detailed'!$A:$M, 12,FALSE),0), "")) -> 
A54: =IF(COUNTIF(C$52:C$71,C54)=1,C54,C54+COUNTIF(C$52:C54,C54)-1) ->  | B54: =IF(COUNTIF(D$52:D$71,D54)=1,D54,D54+COUNTIF(D$52:D54,D54)-1) ->  | E54: 3 | F54: Other circulatory | G54: =IF($A$7=2, IFERROR(VLOOKUP($E54&$C$3&1,'data detailed'!$A:$M, 5,FALSE),0), IF($A$7=3, IFERROR(VLOOKUP($E54&$C$3&1,'data detailed'!$A:$M, 9,FALSE),0), "")) ->  | H54: =IF($A$7=2, IFERROR(VLOOKUP($E54&$C$3&1,'data detailed'!$A:$M, 6,FALSE),0), IF($A$7=3, IFERROR(VLOOKUP($E54&$C$3&1,'data detailed'!$A:$M, 10,FALSE),0), "")) ->  | I54: =IF($A$7=2, IFERROR(VLOOKUP($E54&$C$3&1,'data detailed'!$A:$M, 7,FALSE),0), IF($A$7=3, IFERROR(VLOOKUP($E54&$C$3&1,'data detailed'!$A:$M, 11,FALSE),0), "")) ->  | J54: =IF($A$7=2, IFERROR(VLOOKUP($E54&$C$3&1,'data detailed'!$A:$M, 8,FALSE),0), IF($A$7=3, IFERROR(VLOOKUP($E54&$C$3&1,'data detailed'!$A:$M, 12,FALSE),0), "")) ->  | K54: =IF($A$7=2, IFERROR(VLOOKUP($E54&$C$3&2,'data detailed'!$A:$M, 5,FALSE),0), IF($A$7=3, IFERROR(VLOOKUP($E54&$C$3&2,'data detailed'!$A:$M, 9,FALSE),0), "")) ->  | L54: =IF($A$7=2, IFERROR(VLOOKUP($E54&$C$3&2,'data detailed'!$A:$M, 6,FALSE),0), IF($A$7=3, IFERROR(VLOOKUP($E54&$C$3&2,'data detailed'!$A:$M, 10,FALSE),0), "")) ->  | M54: =IF($A$7=2, IFERROR(VLOOKUP($E54&$C$3&2,'data detailed'!$A:$M, 7,FALSE),0), IF($A$7=3, IFERROR(VLOOKUP($E54&$C$3&2,'data detailed'!$A:$M, 11,FALSE),0), "")) ->  | N54: =IF($A$7=2, IFERROR(VLOOKUP($E54&$C$3&2,'data detailed'!$A:$M, 8,FALSE),0), IF($A$7=3, IFERROR(VLOOKUP($E54&$C$3&2,'data detailed'!$A:$M, 12,FALSE),0), "")) -> 
A55: =IF(COUNTIF(C$52:C$71,C55)=1,C55,C55+COUNTIF(C$52:C55,C55)-1) ->  | B55: =IF(COUNTIF(D$52:D$71,D55)=1,D55,D55+COUNTIF(D$52:D55,D55)-1) ->  | E55: 4 | F55: Lung cancer | G55: =IF($A$7=2, IFERROR(VLOOKUP($E55&$C$3&1,'data detailed'!$A:$M, 5,FALSE),0), IF($A$7=3, IFERROR(VLOOKUP($E55&$C$3&1,'data detailed'!$A:$M, 9,FALSE),0), "")) ->  | H55: =IF($A$7=2, IFERROR(VLOOKUP($E55&$C$3&1,'data detailed'!$A:$M, 6,FALSE),0), IF($A$7=3, IFERROR(VLOOKUP($E55&$C$3&1,'data detailed'!$A:$M, 10,FALSE),0), "")) ->  | I55: =IF($A$7=2, IFERROR(VLOOKUP($E55&$C$3&1,'data detailed'!$A:$M, 7,FALSE),0), IF($A$7=3, IFERROR(VLOOKUP($E55&$C$3&1,'data detailed'!$A:$M, 11,FALSE),0), "")) ->  | J55: =IF($A$7=2, IFERROR(VLOOKUP($E55&$C$3&1,'data detailed'!$A:$M, 8,FALSE),0), IF($A$7=3, IFERROR(VLOOKUP($E55&$C$3&1,'data detailed'!$A:$M, 12,FALSE),0), "")) ->  | K55: =IF($A$7=2, IFERROR(VLOOKUP($E55&$C$3&2,'data detailed'!$A:$M, 5,FALSE),0), IF($A$7=3, IFERROR(VLOOKUP($E55&$C$3&2,'data detailed'!$A:$M, 9,FALSE),0), "")) ->  | L55: =IF($A$7=2, IFERROR(VLOOKUP($E55&$C$3&2,'data detailed'!$A:$M, 6,FALSE),0), IF($A$7=3, IFERROR(VLOOKUP($E55&$C$3&2,'data detailed'!$A:$M, 10,FALSE),0), "")) ->  | M55: =IF($A$7=2, IFERROR(VLOOKUP($E55&$C$3&2,'data detailed'!$A:$M, 7,FALSE),0), IF($A$7=3, IFERROR(VLOOKUP($E55&$C$3&2,'data detailed'!$A:$M, 11,FALSE),0), "")) ->  | N55: =IF($A$7=2, IFERROR(VLOOKUP($E55&$C$3&2,'data detailed'!$A:$M, 8,FALSE),0), IF($A$7=3, IFERROR(VLOOKUP($E55&$C$3&2,'data detailed'!$A:$M, 12,FALSE),0), "")) -> 
A56: =IF(COUNTIF(C$52:C$71,C56)=1,C56,C56+COUNTIF(C$52:C56,C56)-1) ->  | B56: =IF(COUNTIF(D$52:D$71,D56)=1,D56,D56+COUNTIF(D$52:D56,D56)-1) ->  | E56: 5 | F56: Other cancers | G56: =IF($A$7=2, IFERROR(VLOOKUP($E56&$C$3&1,'data detailed'!$A:$M, 5,FALSE),0), IF($A$7=3, IFERROR(VLOOKUP($E56&$C$3&1,'data detailed'!$A:$M, 9,FALSE),0), "")) ->  | H56: =IF($A$7=2, IFERROR(VLOOKUP($E56&$C$3&1,'data detailed'!$A:$M, 6,FALSE),0), IF($A$7=3, IFERROR(VLOOKUP($E56&$C$3&1,'data detailed'!$A:$M, 10,FALSE),0), "")) ->  | I56: =IF($A$7=2, IFERROR(VLOOKUP($E56&$C$3&1,'data detailed'!$A:$M, 7,FALSE),0), IF($A$7=3, IFERROR(VLOOKUP($E56&$C$3&1,'data detailed'!$A:$M, 11,FALSE),0), "")) ->  | J56: =IF($A$7=2, IFERROR(VLOOKUP($E56&$C$3&1,'data detailed'!$A:$M, 8,FALSE),0), IF($A$7=3, IFERROR(VLOOKUP($E56&$C$3&1,'data detailed'!$A:$M, 12,FALSE),0), "")) ->  | K56: =IF($A$7=2, IFERROR(VLOOKUP($E56&$C$3&2,'data detailed'!$A:$M, 5,FALSE),0), IF($A$7=3, IFERROR(VLOOKUP($E56&$C$3&2,'data detailed'!$A:$M, 9,FALSE),0), "")) ->  | L56: =IF($A$7=2, IFERROR(VLOOKUP($E56&$C$3&2,'data detailed'!$A:$M, 6,FALSE),0), IF($A$7=3, IFERROR(VLOOKUP($E56&$C$3&2,'data detailed'!$A:$M, 10,FALSE),0), "")) ->  | M56: =IF($A$7=2, IFERROR(VLOOKUP($E56&$C$3&2,'data detailed'!$A:$M, 7,FALSE),0), IF($A$7=3, IFERROR(VLOOKUP($E56&$C$3&2,'data detailed'!$A:$M, 11,FALSE),0), "")) ->  | N56: =IF($A$7=2, IFERROR(VLOOKUP($E56&$C$3&2,'data detailed'!$A:$M, 8,FALSE),0), IF($A$7=3, IFERROR(VLOOKUP($E56&$C$3&2,'data detailed'!$A:$M, 12,FALSE),0), "")) -> 
A57: =IF(COUNTIF(C$52:C$71,C57)=1,C57,C57+COUNTIF(C$52:C57,C57)-1) ->  | B57: =IF(COUNTIF(D$52:D$71,D57)=1,D57,D57+COUNTIF(D$52:D57,D57)-1) ->  | E57: 6 | F57: Pneumonia | G57: =IF($A$7=2, IFERROR(VLOOKUP($E57&$C$3&1,'data detailed'!$A:$M, 5,FALSE),0), IF($A$7=3, IFERROR(VLOOKUP($E57&$C$3&1,'data detailed'!$A:$M, 9,FALSE),0), "")) ->  | H57: =IF($A$7=2, IFERROR(VLOOKUP($E57&$C$3&1,'data detailed'!$A:$M, 6,FALSE),0), IF($A$7=3, IFERROR(VLOOKUP($E57&$C$3&1,'data detailed'!$A:$M, 10,FALSE),0), "")) ->  | I57: =IF($A$7=2, IFERROR(VLOOKUP($E57&$C$3&1,'data detailed'!$A:$M, 7,FALSE),0), IF($A$7=3, IFERROR(VLOOKUP($E57&$C$3&1,'data detailed'!$A:$M, 11,FALSE),0), "")) ->  | J57: =IF($A$7=2, IFERROR(VLOOKUP($E57&$C$3&1,'data detailed'!$A:$M, 8,FALSE),0), IF($A$7=3, IFERROR(VLOOKUP($E57&$C$3&1,'data detailed'!$A:$M, 12,FALSE),0), "")) ->  | K57: =IF($A$7=2, IFERROR(VLOOKUP($E57&$C$3&2,'data detailed'!$A:$M, 5,FALSE),0), IF($A$7=3, IFERROR(VLOOKUP($E57&$C$3&2,'data detailed'!$A:$M, 9,FALSE),0), "")) ->  | L57: =IF($A$7=2, IFERROR(VLOOKUP($E57&$C$3&2,'data detailed'!$A:$M, 6,FALSE),0), IF($A$7=3, IFERROR(VLOOKUP($E57&$C$3&2,'data detailed'!$A:$M, 10,FALSE),0), "")) ->  | M57: =IF($A$7=2, IFERROR(VLOOKUP($E57&$C$3&2,'data detailed'!$A:$M, 7,FALSE),0), IF($A$7=3, IFERROR(VLOOKUP($E57&$C$3&2,'data detailed'!$A:$M, 11,FALSE),0), "")) ->  | N57: =IF($A$7=2, IFERROR(VLOOKUP($E57&$C$3&2,'data detailed'!$A:$M, 8,FALSE),0), IF($A$7=3, IFERROR(VLOOKUP($E57&$C$3&2,'data detailed'!$A:$M, 12,FALSE),0), "")) -> 
A58: =IF(COUNTIF(C$52:C$71,C58)=1,C58,C58+COUNTIF(C$52:C58,C58)-1) ->  | B58: =IF(COUNTIF(D$52:D$71,D58)=1,D58,D58+COUNTIF(D$52:D58,D58)-1) ->  | E58: 7 | F58: Chronic obstructive airways disease | G58: =IF($A$7=2, IFERROR(VLOOKUP($E58&$C$3&1,'data detailed'!$A:$M, 5,FALSE),0), IF($A$7=3, IFERROR(VLOOKUP($E58&$C$3&1,'data detailed'!$A:$M, 9,FALSE),0), "")) ->  | H58: =IF($A$7=2, IFERROR(VLOOKUP($E58&$C$3&1,'data detailed'!$A:$M, 6,FALSE),0), IF($A$7=3, IFERROR(VLOOKUP($E58&$C$3&1,'data detailed'!$A:$M, 10,FALSE),0), "")) ->  | I58: =IF($A$7=2, IFERROR(VLOOKUP($E58&$C$3&1,'data detailed'!$A:$M, 7,FALSE),0), IF($A$7=3, IFERROR(VLOOKUP($E58&$C$3&1,'data detailed'!$A:$M, 11,FALSE),0), "")) ->  | J58: =IF($A$7=2, IFERROR(VLOOKUP($E58&$C$3&1,'data detailed'!$A:$M, 8,FALSE),0), IF($A$7=3, IFERROR(VLOOKUP($E58&$C$3&1,'data detailed'!$A:$M, 12,FALSE),0), "")) ->  | K58: =IF($A$7=2, IFERROR(VLOOKUP($E58&$C$3&2,'data detailed'!$A:$M, 5,FALSE),0), IF($A$7=3, IFERROR(VLOOKUP($E58&$C$3&2,'data detailed'!$A:$M, 9,FALSE),0), "")) ->  | L58: =IF($A$7=2, IFERROR(VLOOKUP($E58&$C$3&2,'data detailed'!$A:$M, 6,FALSE),0), IF($A$7=3, IFERROR(VLOOKUP($E58&$C$3&2,'data detailed'!$A:$M, 10,FALSE),0), "")) ->  | M58: =IF($A$7=2, IFERROR(VLOOKUP($E58&$C$3&2,'data detailed'!$A:$M, 7,FALSE),0), IF($A$7=3, IFERROR(VLOOKUP($E58&$C$3&2,'data detailed'!$A:$M, 11,FALSE),0), "")) ->  | N58: =IF($A$7=2, IFERROR(VLOOKUP($E58&$C$3&2,'data detailed'!$A:$M, 8,FALSE),0), IF($A$7=3, IFERROR(VLOOKUP($E58&$C$3&2,'data detailed'!$A:$M, 12,FALSE),0), "")) -> 
A59: =IF(COUNTIF(C$52:C$71,C59)=1,C59,C59+COUNTIF(C$52:C59,C59)-1) ->  | B59: =IF(COUNTIF(D$52:D$71,D59)=1,D59,D59+COUNTIF(D$52:D59,D59)-1) ->  | E59: 8 | F59: Other respiratory disease | G59: =IF($A$7=2, IFERROR(VLOOKUP($E59&$C$3&1,'data detailed'!$A:$M, 5,FALSE),0), IF($A$7=3, IFERROR(VLOOKUP($E59&$C$3&1,'data detailed'!$A:$M, 9,FALSE),0), "")) ->  | H59: =IF($A$7=2, IFERROR(VLOOKUP($E59&$C$3&1,'data detailed'!$A:$M, 6,FALSE),0), IF($A$7=3, IFERROR(VLOOKUP($E59&$C$3&1,'data detailed'!$A:$M, 10,FALSE),0), "")) ->  | I59: =IF($A$7=2, IFERROR(VLOOKUP($E59&$C$3&1,'data detailed'!$A:$M, 7,FALSE),0), IF($A$7=3, IFERROR(VLOOKUP($E59&$C$3&1,'data detailed'!$A:$M, 11,FALSE),0), "")) ->  | J59: =IF($A$7=2, IFERROR(VLOOKUP($E59&$C$3&1,'data detailed'!$A:$M, 8,FALSE),0), IF($A$7=3, IFERROR(VLOOKUP($E59&$C$3&1,'data detailed'!$A:$M, 12,FALSE),0), "")) ->  | K59: =IF($A$7=2, IFERROR(VLOOKUP($E59&$C$3&2,'data detailed'!$A:$M, 5,FALSE),0), IF($A$7=3, IFERROR(VLOOKUP($E59&$C$3&2,'data detailed'!$A:$M, 9,FALSE),0), "")) ->  | L59: =IF($A$7=2, IFERROR(VLOOKUP($E59&$C$3&2,'data detailed'!$A:$M, 6,FALSE),0), IF($A$7=3, IFERROR(VLOOKUP($E59&$C$3&2,'data detailed'!$A:$M, 10,FALSE),0), "")) ->  | M59: =IF($A$7=2, IFERROR(VLOOKUP($E59&$C$3&2,'data detailed'!$A:$M, 7,FALSE),0), IF($A$7=3, IFERROR(VLOOKUP($E59&$C$3&2,'data detailed'!$A:$M, 11,FALSE),0), "")) ->  | N59: =IF($A$7=2, IFERROR(VLOOKUP($E59&$C$3&2,'data detailed'!$A:$M, 8,FALSE),0), IF($A$7=3, IFERROR(VLOOKUP($E59&$C$3&2,'data detailed'!$A:$M, 12,FALSE),0), "")) -> 
A60: =IF(COUNTIF(C$52:C$71,C60)=1,C60,C60+COUNTIF(C$52:C60,C60)-1) ->  | B60: =IF(COUNTIF(D$52:D$71,D60)=1,D60,D60+COUNTIF(D$52:D60,D60)-1) ->  | E60: 9 | F60: Chronic liver disease including cirrhosis | G60: =IF($A$7=2, IFERROR(VLOOKUP($E60&$C$3&1,'data detailed'!$A:$M, 5,FALSE),0), IF($A$7=3, IFERROR(VLOOKUP($E60&$C$3&1,'data detailed'!$A:$M, 9,FALSE),0), "")) ->  | H60: =IF($A$7=2, IFERROR(VLOOKUP($E60&$C$3&1,'data detailed'!$A:$M, 6,FALSE),0), IF($A$7=3, IFERROR(VLOOKUP($E60&$C$3&1,'data detailed'!$A:$M, 10,FALSE),0), "")) ->  | I60: =IF($A$7=2, IFERROR(VLOOKUP($E60&$C$3&1,'data detailed'!$A:$M, 7,FALSE),0), IF($A$7=3, IFERROR(VLOOKUP($E60&$C$3&1,'data detailed'!$A:$M, 11,FALSE),0), "")) ->  | J60: =IF($A$7=2, IFERROR(VLOOKUP($E60&$C$3&1,'data detailed'!$A:$M, 8,FALSE),0), IF($A$7=3, IFERROR(VLOOKUP($E60&$C$3&1,'data detailed'!$A:$M, 12,FALSE),0), "")) ->  | K60: =IF($A$7=2, IFERROR(VLOOKUP($E60&$C$3&2,'data detailed'!$A:$M, 5,FALSE),0), IF($A$7=3, IFERROR(VLOOKUP($E60&$C$3&2,'data detailed'!$A:$M, 9,FALSE),0), "")) ->  | L60: =IF($A$7=2, IFERROR(VLOOKUP($E60&$C$3&2,'data detailed'!$A:$M, 6,FALSE),0), IF($A$7=3, IFERROR(VLOOKUP($E60&$C$3&2,'data detailed'!$A:$M, 10,FALSE),0), "")) ->  | M60: =IF($A$7=2, IFERROR(VLOOKUP($E60&$C$3&2,'data detailed'!$A:$M, 7,FALSE),0), IF($A$7=3, IFERROR(VLOOKUP($E60&$C$3&2,'data detailed'!$A:$M, 11,FALSE),0), "")) ->  | N60: =IF($A$7=2, IFERROR(VLOOKUP($E60&$C$3&2,'data detailed'!$A:$M, 8,FALSE),0), IF($A$7=3, IFERROR(VLOOKUP($E60&$C$3&2,'data detailed'!$A:$M, 12,FALSE),0), "")) -> 
A61: =IF(COUNTIF(C$52:C$71,C61)=1,C61,C61+COUNTIF(C$52:C61,C61)-1) ->  | B61: =IF(COUNTIF(D$52:D$71,D61)=1,D61,D61+COUNTIF(D$52:D61,D61)-1) ->  | E61: 10 | F61: Other digestive | G61: =IF($A$7=2, IFERROR(VLOOKUP($E61&$C$3&1,'data detailed'!$A:$M, 5,FALSE),0), IF($A$7=3, IFERROR(VLOOKUP($E61&$C$3&1,'data detailed'!$A:$M, 9,FALSE),0), "")) ->  | H61: =IF($A$7=2, IFERROR(VLOOKUP($E61&$C$3&1,'data detailed'!$A:$M, 6,FALSE),0), IF($A$7=3, IFERROR(VLOOKUP($E61&$C$3&1,'data detailed'!$A:$M, 10,FALSE),0), "")) ->  | I61: =IF($A$7=2, IFERROR(VLOOKUP($E61&$C$3&1,'data detailed'!$A:$M, 7,FALSE),0), IF($A$7=3, IFERROR(VLOOKUP($E61&$C$3&1,'data detailed'!$A:$M, 11,FALSE),0), "")) ->  | J61: =IF($A$7=2, IFERROR(VLOOKUP($E61&$C$3&1,'data detailed'!$A:$M, 8,FALSE),0), IF($A$7=3, IFERROR(VLOOKUP($E61&$C$3&1,'data detailed'!$A:$M, 12,FALSE),0), "")) ->  | K61: =IF($A$7=2, IFERROR(VLOOKUP($E61&$C$3&2,'data detailed'!$A:$M, 5,FALSE),0), IF($A$7=3, IFERROR(VLOOKUP($E61&$C$3&2,'data detailed'!$A:$M, 9,FALSE),0), "")) ->  | L61: =IF($A$7=2, IFERROR(VLOOKUP($E61&$C$3&2,'data detailed'!$A:$M, 6,FALSE),0), IF($A$7=3, IFERROR(VLOOKUP($E61&$C$3&2,'data detailed'!$A:$M, 10,FALSE),0), "")) ->  | M61: =IF($A$7=2, IFERROR(VLOOKUP($E61&$C$3&2,'data detailed'!$A:$M, 7,FALSE),0), IF($A$7=3, IFERROR(VLOOKUP($E61&$C$3&2,'data detailed'!$A:$M, 11,FALSE),0), "")) ->  | N61: =IF($A$7=2, IFERROR(VLOOKUP($E61&$C$3&2,'data detailed'!$A:$M, 8,FALSE),0), IF($A$7=3, IFERROR(VLOOKUP($E61&$C$3&2,'data detailed'!$A:$M, 12,FALSE),0), "")) -> 
A62: =IF(COUNTIF(C$52:C$71,C62)=1,C62,C62+COUNTIF(C$52:C62,C62)-1) ->  | B62: =IF(COUNTIF(D$52:D$71,D62)=1,D62,D62+COUNTIF(D$52:D62,D62)-1) ->  | E62: 11 | F62: Suicide | G62: =IF($A$7=2, IFERROR(VLOOKUP($E62&$C$3&1,'data detailed'!$A:$M, 5,FALSE),0), IF($A$7=3, IFERROR(VLOOKUP($E62&$C$3&1,'data detailed'!$A:$M, 9,FALSE),0), "")) ->  | H62: =IF($A$7=2, IFERROR(VLOOKUP($E62&$C$3&1,'data detailed'!$A:$M, 6,FALSE),0), IF($A$7=3, IFERROR(VLOOKUP($E62&$C$3&1,'data detailed'!$A:$M, 10,FALSE),0), "")) ->  | I62: =IF($A$7=2, IFERROR(VLOOKUP($E62&$C$3&1,'data detailed'!$A:$M, 7,FALSE),0), IF($A$7=3, IFERROR(VLOOKUP($E62&$C$3&1,'data detailed'!$A:$M, 11,FALSE),0), "")) ->  | J62: =IF($A$7=2, IFERROR(VLOOKUP($E62&$C$3&1,'data detailed'!$A:$M, 8,FALSE),0), IF($A$7=3, IFERROR(VLOOKUP($E62&$C$3&1,'data detailed'!$A:$M, 12,FALSE),0), "")) ->  | K62: =IF($A$7=2, IFERROR(VLOOKUP($E62&$C$3&2,'data detailed'!$A:$M, 5,FALSE),0), IF($A$7=3, IFERROR(VLOOKUP($E62&$C$3&2,'data detailed'!$A:$M, 9,FALSE),0), "")) ->  | L62: =IF($A$7=2, IFERROR(VLOOKUP($E62&$C$3&2,'data detailed'!$A:$M, 6,FALSE),0), IF($A$7=3, IFERROR(VLOOKUP($E62&$C$3&2,'data detailed'!$A:$M, 10,FALSE),0), "")) ->  | M62: =IF($A$7=2, IFERROR(VLOOKUP($E62&$C$3&2,'data detailed'!$A:$M, 7,FALSE),0), IF($A$7=3, IFERROR(VLOOKUP($E62&$C$3&2,'data detailed'!$A:$M, 11,FALSE),0), "")) ->  | N62: =IF($A$7=2, IFERROR(VLOOKUP($E62&$C$3&2,'data detailed'!$A:$M, 8,FALSE),0), IF($A$7=3, IFERROR(VLOOKUP($E62&$C$3&2,'data detailed'!$A:$M, 12,FALSE),0), "")) -> 
A63: =IF(COUNTIF(C$52:C$71,C63)=1,C63,C63+COUNTIF(C$52:C63,C63)-1) ->  | B63: =IF(COUNTIF(D$52:D$71,D63)=1,D63,D63+COUNTIF(D$52:D63,D63)-1) ->  | E63: 12 | F63: Other external | G63: =IF($A$7=2, IFERROR(VLOOKUP($E63&$C$3&1,'data detailed'!$A:$M, 5,FALSE),0), IF($A$7=3, IFERROR(VLOOKUP($E63&$C$3&1,'data detailed'!$A:$M, 9,FALSE),0), "")) ->  | H63: =IF($A$7=2, IFERROR(VLOOKUP($E63&$C$3&1,'data detailed'!$A:$M, 6,FALSE),0), IF($A$7=3, IFERROR(VLOOKUP($E63&$C$3&1,'data detailed'!$A:$M, 10,FALSE),0), "")) ->  | I63: =IF($A$7=2, IFERROR(VLOOKUP($E63&$C$3&1,'data detailed'!$A:$M, 7,FALSE),0), IF($A$7=3, IFERROR(VLOOKUP($E63&$C$3&1,'data detailed'!$A:$M, 11,FALSE),0), "")) ->  | J63: =IF($A$7=2, IFERROR(VLOOKUP($E63&$C$3&1,'data detailed'!$A:$M, 8,FALSE),0), IF($A$7=3, IFERROR(VLOOKUP($E63&$C$3&1,'data detailed'!$A:$M, 12,FALSE),0), "")) ->  | K63: =IF($A$7=2, IFERROR(VLOOKUP($E63&$C$3&2,'data detailed'!$A:$M, 5,FALSE),0), IF($A$7=3, IFERROR(VLOOKUP($E63&$C$3&2,'data detailed'!$A:$M, 9,FALSE),0), "")) ->  | L63: =IF($A$7=2, IFERROR(VLOOKUP($E63&$C$3&2,'data detailed'!$A:$M, 6,FALSE),0), IF($A$7=3, IFERROR(VLOOKUP($E63&$C$3&2,'data detailed'!$A:$M, 10,FALSE),0), "")) ->  | M63: =IF($A$7=2, IFERROR(VLOOKUP($E63&$C$3&2,'data detailed'!$A:$M, 7,FALSE),0), IF($A$7=3, IFERROR(VLOOKUP($E63&$C$3&2,'data detailed'!$A:$M, 11,FALSE),0), "")) ->  | N63: =IF($A$7=2, IFERROR(VLOOKUP($E63&$C$3&2,'data detailed'!$A:$M, 8,FALSE),0), IF($A$7=3, IFERROR(VLOOKUP($E63&$C$3&2,'data detailed'!$A:$M, 12,FALSE),0), "")) -> 
A64: =IF(COUNTIF(C$52:C$71,C64)=1,C64,C64+COUNTIF(C$52:C64,C64)-1) ->  | B64: =IF(COUNTIF(D$52:D$71,D64)=1,D64,D64+COUNTIF(D$52:D64,D64)-1) ->  | E64: 13 | F64: Dementia & Alzheimer's disease | G64: =IF($A$7=2, IFERROR(VLOOKUP($E64&$C$3&1,'data detailed'!$A:$M, 5,FALSE),0), IF($A$7=3, IFERROR(VLOOKUP($E64&$C$3&1,'data detailed'!$A:$M, 9,FALSE),0), "")) ->  | H64: =IF($A$7=2, IFERROR(VLOOKUP($E64&$C$3&1,'data detailed'!$A:$M, 6,FALSE),0), IF($A$7=3, IFERROR(VLOOKUP($E64&$C$3&1,'data detailed'!$A:$M, 10,FALSE),0), "")) ->  | I64: =IF($A$7=2, IFERROR(VLOOKUP($E64&$C$3&1,'data detailed'!$A:$M, 7,FALSE),0), IF($A$7=3, IFERROR(VLOOKUP($E64&$C$3&1,'data detailed'!$A:$M, 11,FALSE),0), "")) ->  | J64: =IF($A$7=2, IFERROR(VLOOKUP($E64&$C$3&1,'data detailed'!$A:$M, 8,FALSE),0), IF($A$7=3, IFERROR(VLOOKUP($E64&$C$3&1,'data detailed'!$A:$M, 12,FALSE),0), "")) ->  | K64: =IF($A$7=2, IFERROR(VLOOKUP($E64&$C$3&2,'data detailed'!$A:$M, 5,FALSE),0), IF($A$7=3, IFERROR(VLOOKUP($E64&$C$3&2,'data detailed'!$A:$M, 9,FALSE),0), "")) ->  | L64: =IF($A$7=2, IFERROR(VLOOKUP($E64&$C$3&2,'data detailed'!$A:$M, 6,FALSE),0), IF($A$7=3, IFERROR(VLOOKUP($E64&$C$3&2,'data detailed'!$A:$M, 10,FALSE),0), "")) ->  | M64: =IF($A$7=2, IFERROR(VLOOKUP($E64&$C$3&2,'data detailed'!$A:$M, 7,FALSE),0), IF($A$7=3, IFERROR(VLOOKUP($E64&$C$3&2,'data detailed'!$A:$M, 11,FALSE),0), "")) ->  | N64: =IF($A$7=2, IFERROR(VLOOKUP($E64&$C$3&2,'data detailed'!$A:$M, 8,FALSE),0), IF($A$7=3, IFERROR(VLOOKUP($E64&$C$3&2,'data detailed'!$A:$M, 12,FALSE),0), "")) -> 
A65: =IF(COUNTIF(C$52:C$71,C65)=1,C65,C65+COUNTIF(C$52:C65,C65)-1) ->  | B65: =IF(COUNTIF(D$52:D$71,D65)=1,D65,D65+COUNTIF(D$52:D65,D65)-1) ->  | E65: 14 | F65: Other mental and behavioural disorders | G65: =IF($A$7=2, IFERROR(VLOOKUP($E65&$C$3&1,'data detailed'!$A:$M, 5,FALSE),0), IF($A$7=3, IFERROR(VLOOKUP($E65&$C$3&1,'data detailed'!$A:$M, 9,FALSE),0), "")) ->  | H65: =IF($A$7=2, IFERROR(VLOOKUP($E65&$C$3&1,'data detailed'!$A:$M, 6,FALSE),0), IF($A$7=3, IFERROR(VLOOKUP($E65&$C$3&1,'data detailed'!$A:$M, 10,FALSE),0), "")) ->  | I65: =IF($A$7=2, IFERROR(VLOOKUP($E65&$C$3&1,'data detailed'!$A:$M, 7,FALSE),0), IF($A$7=3, IFERROR(VLOOKUP($E65&$C$3&1,'data detailed'!$A:$M, 11,FALSE),0), "")) ->  | J65: =IF($A$7=2, IFERROR(VLOOKUP($E65&$C$3&1,'data detailed'!$A:$M, 8,FALSE),0), IF($A$7=3, IFERROR(VLOOKUP($E65&$C$3&1,'data detailed'!$A:$M, 12,FALSE),0), "")) ->  | K65: =IF($A$7=2, IFERROR(VLOOKUP($E65&$C$3&2,'data detailed'!$A:$M, 5,FALSE),0), IF($A$7=3, IFERROR(VLOOKUP($E65&$C$3&2,'data detailed'!$A:$M, 9,FALSE),0), "")) ->  | L65: =IF($A$7=2, IFERROR(VLOOKUP($E65&$C$3&2,'data detailed'!$A:$M, 6,FALSE),0), IF($A$7=3, IFERROR(VLOOKUP($E65&$C$3&2,'data detailed'!$A:$M, 10,FALSE),0), "")) ->  | M65: =IF($A$7=2, IFERROR(VLOOKUP($E65&$C$3&2,'data detailed'!$A:$M, 7,FALSE),0), IF($A$7=3, IFERROR(VLOOKUP($E65&$C$3&2,'data detailed'!$A:$M, 11,FALSE),0), "")) ->  | N65: =IF($A$7=2, IFERROR(VLOOKUP($E65&$C$3&2,'data detailed'!$A:$M, 8,FALSE),0), IF($A$7=3, IFERROR(VLOOKUP($E65&$C$3&2,'data detailed'!$A:$M, 12,FALSE),0), "")) -> 
A66: =IF(COUNTIF(C$52:C$71,C66)=1,C66,C66+COUNTIF(C$52:C66,C66)-1) ->  | B66: =IF(COUNTIF(D$52:D$71,D66)=1,D66,D66+COUNTIF(D$52:D66,D66)-1) ->  | E66: 15 | F66: Infectious and parasitic diseases | G66: =IF($A$7=2, IFERROR(VLOOKUP($E66&$C$3&1,'data detailed'!$A:$M, 5,FALSE),0), IF($A$7=3, IFERROR(VLOOKUP($E66&$C$3&1,'data detailed'!$A:$M, 9,FALSE),0), "")) ->  | H66: =IF($A$7=2, IFERROR(VLOOKUP($E66&$C$3&1,'data detailed'!$A:$M, 6,FALSE),0), IF($A$7=3, IFERROR(VLOOKUP($E66&$C$3&1,'data detailed'!$A:$M, 10,FALSE),0), "")) ->  | I66: =IF($A$7=2, IFERROR(VLOOKUP($E66&$C$3&1,'data detailed'!$A:$M, 7,FALSE),0), IF($A$7=3, IFERROR(VLOOKUP($E66&$C$3&1,'data detailed'!$A:$M, 11,FALSE),0), "")) ->  | J66: =IF($A$7=2, IFERROR(VLOOKUP($E66&$C$3&1,'data detailed'!$A:$M, 8,FALSE),0), IF($A$7=3, IFERROR(VLOOKUP($E66&$C$3&1,'data detailed'!$A:$M, 12,FALSE),0), "")) ->  | K66: =IF($A$7=2, IFERROR(VLOOKUP($E66&$C$3&2,'data detailed'!$A:$M, 5,FALSE),0), IF($A$7=3, IFERROR(VLOOKUP($E66&$C$3&2,'data detailed'!$A:$M, 9,FALSE),0), "")) ->  | L66: =IF($A$7=2, IFERROR(VLOOKUP($E66&$C$3&2,'data detailed'!$A:$M, 6,FALSE),0), IF($A$7=3, IFERROR(VLOOKUP($E66&$C$3&2,'data detailed'!$A:$M, 10,FALSE),0), "")) ->  | M66: =IF($A$7=2, IFERROR(VLOOKUP($E66&$C$3&2,'data detailed'!$A:$M, 7,FALSE),0), IF($A$7=3, IFERROR(VLOOKUP($E66&$C$3&2,'data detailed'!$A:$M, 11,FALSE),0), "")) ->  | N66: =IF($A$7=2, IFERROR(VLOOKUP($E66&$C$3&2,'data detailed'!$A:$M, 8,FALSE),0), IF($A$7=3, IFERROR(VLOOKUP($E66&$C$3&2,'data detailed'!$A:$M, 12,FALSE),0), "")) -> 
A67: =IF(COUNTIF(C$52:C$71,C67)=1,C67,C67+COUNTIF(C$52:C67,C67)-1) ->  | B67: =IF(COUNTIF(D$52:D$71,D67)=1,D67,D67+COUNTIF(D$52:D67,D67)-1) ->  | E67: 16 | F67: Urinary conditions | G67: =IF($A$7=2, IFERROR(VLOOKUP($E67&$C$3&1,'data detailed'!$A:$M, 5,FALSE),0), IF($A$7=3, IFERROR(VLOOKUP($E67&$C$3&1,'data detailed'!$A:$M, 9,FALSE),0), "")) ->  | H67: =IF($A$7=2, IFERROR(VLOOKUP($E67&$C$3&1,'data detailed'!$A:$M, 6,FALSE),0), IF($A$7=3, IFERROR(VLOOKUP($E67&$C$3&1,'data detailed'!$A:$M, 10,FALSE),0), "")) ->  | I67: =IF($A$7=2, IFERROR(VLOOKUP($E67&$C$3&1,'data detailed'!$A:$M, 7,FALSE),0), IF($A$7=3, IFERROR(VLOOKUP($E67&$C$3&1,'data detailed'!$A:$M, 11,FALSE),0), "")) ->  | J67: =IF($A$7=2, IFERROR(VLOOKUP($E67&$C$3&1,'data detailed'!$A:$M, 8,FALSE),0), IF($A$7=3, IFERROR(VLOOKUP($E67&$C$3&1,'data detailed'!$A:$M, 12,FALSE),0), "")) ->  | K67: =IF($A$7=2, IFERROR(VLOOKUP($E67&$C$3&2,'data detailed'!$A:$M, 5,FALSE),0), IF($A$7=3, IFERROR(VLOOKUP($E67&$C$3&2,'data detailed'!$A:$M, 9,FALSE),0), "")) ->  | L67: =IF($A$7=2, IFERROR(VLOOKUP($E67&$C$3&2,'data detailed'!$A:$M, 6,FALSE),0), IF($A$7=3, IFERROR(VLOOKUP($E67&$C$3&2,'data detailed'!$A:$M, 10,FALSE),0), "")) ->  | M67: =IF($A$7=2, IFERROR(VLOOKUP($E67&$C$3&2,'data detailed'!$A:$M, 7,FALSE),0), IF($A$7=3, IFERROR(VLOOKUP($E67&$C$3&2,'data detailed'!$A:$M, 11,FALSE),0), "")) ->  | N67: =IF($A$7=2, IFERROR(VLOOKUP($E67&$C$3&2,'data detailed'!$A:$M, 8,FALSE),0), IF($A$7=3, IFERROR(VLOOKUP($E67&$C$3&2,'data detailed'!$A:$M, 12,FALSE),0), "")) -> 
A68: =IF(COUNTIF(C$52:C$71,C68)=1,C68,C68+COUNTIF(C$52:C68,C68)-1) ->  | B68: =IF(COUNTIF(D$52:D$71,D68)=1,D68,D68+COUNTIF(D$52:D68,D68)-1) ->  | E68: 17 | F68: Ill defined conditions | G68: =IF($A$7=2, IFERROR(VLOOKUP($E68&$C$3&1,'data detailed'!$A:$M, 5,FALSE),0), IF($A$7=3, IFERROR(VLOOKUP($E68&$C$3&1,'data detailed'!$A:$M, 9,FALSE),0), "")) ->  | H68: =IF($A$7=2, IFERROR(VLOOKUP($E68&$C$3&1,'data detailed'!$A:$M, 6,FALSE),0), IF($A$7=3, IFERROR(VLOOKUP($E68&$C$3&1,'data detailed'!$A:$M, 10,FALSE),0), "")) ->  | I68: =IF($A$7=2, IFERROR(VLOOKUP($E68&$C$3&1,'data detailed'!$A:$M, 7,FALSE),0), IF($A$7=3, IFERROR(VLOOKUP($E68&$C$3&1,'data detailed'!$A:$M, 11,FALSE),0), "")) ->  | J68: =IF($A$7=2, IFERROR(VLOOKUP($E68&$C$3&1,'data detailed'!$A:$M, 8,FALSE),0), IF($A$7=3, IFERROR(VLOOKUP($E68&$C$3&1,'data detailed'!$A:$M, 12,FALSE),0), "")) ->  | K68: =IF($A$7=2, IFERROR(VLOOKUP($E68&$C$3&2,'data detailed'!$A:$M, 5,FALSE),0), IF($A$7=3, IFERROR(VLOOKUP($E68&$C$3&2,'data detailed'!$A:$M, 9,FALSE),0), "")) ->  | L68: =IF($A$7=2, IFERROR(VLOOKUP($E68&$C$3&2,'data detailed'!$A:$M, 6,FALSE),0), IF($A$7=3, IFERROR(VLOOKUP($E68&$C$3&2,'data detailed'!$A:$M, 10,FALSE),0), "")) ->  | M68: =IF($A$7=2, IFERROR(VLOOKUP($E68&$C$3&2,'data detailed'!$A:$M, 7,FALSE),0), IF($A$7=3, IFERROR(VLOOKUP($E68&$C$3&2,'data detailed'!$A:$M, 11,FALSE),0), "")) ->  | N68: =IF($A$7=2, IFERROR(VLOOKUP($E68&$C$3&2,'data detailed'!$A:$M, 8,FALSE),0), IF($A$7=3, IFERROR(VLOOKUP($E68&$C$3&2,'data detailed'!$A:$M, 12,FALSE),0), "")) -> 
A69: =IF(COUNTIF(C$52:C$71,C69)=1,C69,C69+COUNTIF(C$52:C69,C69)-1) ->  | B69: =IF(COUNTIF(D$52:D$71,D69)=1,D69,D69+COUNTIF(D$52:D69,D69)-1) ->  | E69: 18 | F69: Diabetes | G69: =IF($A$7=2, IFERROR(VLOOKUP($E69&$C$3&1,'data detailed'!$A:$M, 5,FALSE),0), IF($A$7=3, IFERROR(VLOOKUP($E69&$C$3&1,'data detailed'!$A:$M, 9,FALSE),0), "")) ->  | H69: =IF($A$7=2, IFERROR(VLOOKUP($E69&$C$3&1,'data detailed'!$A:$M, 6,FALSE),0), IF($A$7=3, IFERROR(VLOOKUP($E69&$C$3&1,'data detailed'!$A:$M, 10,FALSE),0), "")) ->  | I69: =IF($A$7=2, IFERROR(VLOOKUP($E69&$C$3&1,'data detailed'!$A:$M, 7,FALSE),0), IF($A$7=3, IFERROR(VLOOKUP($E69&$C$3&1,'data detailed'!$A:$M, 11,FALSE),0), "")) ->  | J69: =IF($A$7=2, IFERROR(VLOOKUP($E69&$C$3&1,'data detailed'!$A:$M, 8,FALSE),0), IF($A$7=3, IFERROR(VLOOKUP($E69&$C$3&1,'data detailed'!$A:$M, 12,FALSE),0), "")) ->  | K69: =IF($A$7=2, IFERROR(VLOOKUP($E69&$C$3&2,'data detailed'!$A:$M, 5,FALSE),0), IF($A$7=3, IFERROR(VLOOKUP($E69&$C$3&2,'data detailed'!$A:$M, 9,FALSE),0), "")) ->  | L69: =IF($A$7=2, IFERROR(VLOOKUP($E69&$C$3&2,'data detailed'!$A:$M, 6,FALSE),0), IF($A$7=3, IFERROR(VLOOKUP($E69&$C$3&2,'data detailed'!$A:$M, 10,FALSE),0), "")) ->  | M69: =IF($A$7=2, IFERROR(VLOOKUP($E69&$C$3&2,'data detailed'!$A:$M, 7,FALSE),0), IF($A$7=3, IFERROR(VLOOKUP($E69&$C$3&2,'data detailed'!$A:$M, 11,FALSE),0), "")) ->  | N69: =IF($A$7=2, IFERROR(VLOOKUP($E69&$C$3&2,'data detailed'!$A:$M, 8,FALSE),0), IF($A$7=3, IFERROR(VLOOKUP($E69&$C$3&2,'data detailed'!$A:$M, 12,FALSE),0), "")) -> 
A70: =IF(COUNTIF(C$52:C$71,C70)=1,C70,C70+COUNTIF(C$52:C70,C70)-1) ->  | B70: =IF(COUNTIF(D$52:D$71,D70)=1,D70,D70+COUNTIF(D$52:D70,D70)-1) ->  | E70: 19 | F70: Other | G70: =IF($A$7=2, IFERROR(VLOOKUP($E70&$C$3&1,'data detailed'!$A:$M, 5,FALSE),0), IF($A$7=3, IFERROR(VLOOKUP($E70&$C$3&1,'data detailed'!$A:$M, 9,FALSE),0), "")) ->  | H70: =IF($A$7=2, IFERROR(VLOOKUP($E70&$C$3&1,'data detailed'!$A:$M, 6,FALSE),0), IF($A$7=3, IFERROR(VLOOKUP($E70&$C$3&1,'data detailed'!$A:$M, 10,FALSE),0), "")) ->  | I70: =IF($A$7=2, IFERROR(VLOOKUP($E70&$C$3&1,'data detailed'!$A:$M, 7,FALSE),0), IF($A$7=3, IFERROR(VLOOKUP($E70&$C$3&1,'data detailed'!$A:$M, 11,FALSE),0), "")) ->  | J70: =IF($A$7=2, IFERROR(VLOOKUP($E70&$C$3&1,'data detailed'!$A:$M, 8,FALSE),0), IF($A$7=3, IFERROR(VLOOKUP($E70&$C$3&1,'data detailed'!$A:$M, 12,FALSE),0), "")) ->  | K70: =IF($A$7=2, IFERROR(VLOOKUP($E70&$C$3&2,'data detailed'!$A:$M, 5,FALSE),0), IF($A$7=3, IFERROR(VLOOKUP($E70&$C$3&2,'data detailed'!$A:$M, 9,FALSE),0), "")) ->  | L70: =IF($A$7=2, IFERROR(VLOOKUP($E70&$C$3&2,'data detailed'!$A:$M, 6,FALSE),0), IF($A$7=3, IFERROR(VLOOKUP($E70&$C$3&2,'data detailed'!$A:$M, 10,FALSE),0), "")) ->  | M70: =IF($A$7=2, IFERROR(VLOOKUP($E70&$C$3&2,'data detailed'!$A:$M, 7,FALSE),0), IF($A$7=3, IFERROR(VLOOKUP($E70&$C$3&2,'data detailed'!$A:$M, 11,FALSE),0), "")) ->  | N70: =IF($A$7=2, IFERROR(VLOOKUP($E70&$C$3&2,'data detailed'!$A:$M, 8,FALSE),0), IF($A$7=3, IFERROR(VLOOKUP($E70&$C$3&2,'data detailed'!$A:$M, 12,FALSE),0), "")) -> 
A71: =IF(COUNTIF(C$52:C$71,C71)=1,C71,C71+COUNTIF(C$52:C71,C71)-1) ->  | B71: =IF(COUNTIF(D$52:D$71,D71)=1,D71,D71+COUNTIF(D$52:D71,D71)-1) ->  | E71: 20 | F71: Deaths under 28 days | G71: =IF($A$7=2, IFERROR(VLOOKUP($E71&$C$3&1,'data detailed'!$A:$M, 5,FALSE),0), IF($A$7=3, IFERROR(VLOOKUP($E71&$C$3&1,'data detailed'!$A:$M, 9,FALSE),0), "")) ->  | H71: =IF($A$7=2, IFERROR(VLOOKUP($E71&$C$3&1,'data detailed'!$A:$M, 6,FALSE),0), IF($A$7=3, IFERROR(VLOOKUP($E71&$C$3&1,'data detailed'!$A:$M, 10,FALSE),0), "")) ->  | I71: =IF($A$7=2, IFERROR(VLOOKUP($E71&$C$3&1,'data detailed'!$A:$M, 7,FALSE),0), IF($A$7=3, IFERROR(VLOOKUP($E71&$C$3&1,'data detailed'!$A:$M, 11,FALSE),0), "")) ->  | J71: =IF($A$7=2, IFERROR(VLOOKUP($E71&$C$3&1,'data detailed'!$A:$M, 8,FALSE),0), IF($A$7=3, IFERROR(VLOOKUP($E71&$C$3&1,'data detailed'!$A:$M, 12,FALSE),0), "")) ->  | K71: =IF($A$7=2, IFERROR(VLOOKUP($E71&$C$3&2,'data detailed'!$A:$M, 5,FALSE),0), IF($A$7=3, IFERROR(VLOOKUP($E71&$C$3&2,'data detailed'!$A:$M, 9,FALSE),0), "")) ->  | L71: =IF($A$7=2, IFERROR(VLOOKUP($E71&$C$3&2,'data detailed'!$A:$M, 6,FALSE),0), IF($A$7=3, IFERROR(VLOOKUP($E71&$C$3&2,'data detailed'!$A:$M, 10,FALSE),0), "")) ->  | M71: =IF($A$7=2, IFERROR(VLOOKUP($E71&$C$3&2,'data detailed'!$A:$M, 7,FALSE),0), IF($A$7=3, IFERROR(VLOOKUP($E71&$C$3&2,'data detailed'!$A:$M, 11,FALSE),0), "")) ->  | N71: =IF($A$7=2, IFERROR(VLOOKUP($E71&$C$3&2,'data detailed'!$A:$M, 8,FALSE),0), IF($A$7=3, IFERROR(VLOOKUP($E71&$C$3&2,'data detailed'!$A:$M, 12,FALSE),0), "")) -> 
A74: Horizonal bar - detailed causes
A76: Male | E76: Female
A77: Rank | B77: Cause | C77: YLG_YLL | E77: Rank | F77: Cause | G77: YLG_YLL
A78: 20 | B78: =VLOOKUP(A78,$A$52:$I$71,6,FALSE) ->  | C78: =VLOOKUP(A78,$A$52:$I$71,9,FALSE) ->  | E78: 20 | F78: =VLOOKUP(E78,$B$52:$N$71,5,FALSE) ->  | G78: =VLOOKUP(E78,$B$52:$N$71,12,FALSE) -> 
A79: 19 | B79: =VLOOKUP(A79,$A$52:$I$71,6,FALSE) ->  | C79: =VLOOKUP(A79,$A$52:$I$71,9,FALSE) ->  | E79: 19 | F79: =VLOOKUP(E79,$B$52:$N$71,5,FALSE) ->  | G79: =VLOOKUP(E79,$B$52:$N$71,12,FALSE) -> 
A80: 18 | E80: 18
A81: 17 | E81: 17
A82: 16 | E82: 16
A83: 15 | E83: 15
A84: 14 | E84: 14
A85: 13 | E85: 13
A86: 12 | E86: 12
A87: 11 | E87: 11
A88: 10 | E88: 10
A89: 9 | E89: 9
A90: 8 | E90: 8
A91: 7 | E91: 7
A92: 6 | E92: 6
A93: 5 | E93: 5
A94: 4 | E94: 4
A95: 3 | E95: 3
A96: 2 | E96: 2
A97: 1 | E97: 1
A100: Table data - alcohol
E101: Male | H101: Female
A102: Rank YLG/YLL male | B102: Rank YLG/YLL female | C102: Cause code | D102: Cause | E102: totaldeaths | F102: XSdeaths | G102: YLG_YLL | H102: totaldeaths | I102: XSdeaths | J102: YLG_YLL
A103: =RANK(G103,$G$103:$G$104) ->  | B103: =RANK(J103,$J$103:$J$104) ->  | C103: 1 | D103: Alcohol specific | E103: =IF($A$7=2, IFERROR(VLOOKUP($C103&$C$3&1,'data alcohol'!$A:$J, 5,FALSE),0), IF($A$7=3, IFERROR(VLOOKUP($C103&$C$3&1,'data alcohol'!$A:$J, 8,FALSE),0), "")) ->  | F103: =IF($A$7=2, IFERROR(VLOOKUP($C103&$C$3&1,'data alcohol'!$A:$J, 6,FALSE),0), IF($A$7=3, IFERROR(VLOOKUP($C103&$C$3&1,'data alcohol'!$A:$J, 9,FALSE),0), "")) ->  | G103: =IF($A$7=2, IFERROR(VLOOKUP($C103&$C$3&1,'data alcohol'!$A:$J, 7,FALSE),0), IF($A$7=3, IFERROR(VLOOKUP($C103&$C$3&1,'data alcohol'!$A:$J, 10,FALSE),0), "")) ->  | H103: =IF($A$7=2, IFERROR(VLOOKUP($C103&$C$3&2,'data alcohol'!$A:$J, 5,FALSE),0), IF($A$7=3, IFERROR(VLOOKUP($C103&$C$3&2,'data alcohol'!$A:$J, 8,FALSE),0), "")) ->  | I103: =IF($A$7=2, IFERROR(VLOOKUP($C103&$C$3&2,'data alcohol'!$A:$J, 6,FALSE),0), IF($A$7=3, IFERROR(VLOOKUP($C103&$C$3&2,'data alcohol'!$A:$J, 9,FALSE),0), "")) ->  | J103: =IF($A$7=2, IFERROR(VLOOKUP($C103&$C$3&2,'data alcohol'!$A:$J, 7,FALSE),0), IF($A$7=3, IFERROR(VLOOKUP($C103&$C$3&2,'data alcohol'!$A:$J, 10,FALSE),0), "")) -> 
A104: =RANK(G104,$G$103:$G$104) ->  | B104: =RANK(J104,$J$103:$J$104) ->  | C104: 2 | D104: All other causes | E104: =IF($A$7=2, IFERROR(VLOOKUP($C104&$C$3&1,'data alcohol'!$A:$J, 5,FALSE),0), IF($A$7=3, IFERROR(VLOOKUP($C104&$C$3&1,'data alcohol'!$A:$J, 8,FALSE),0), "")) ->  | F104: =IF($A$7=2, IFERROR(VLOOKUP($C104&$C$3&1,'data alcohol'!$A:$J, 6,FALSE),0), IF($A$7=3, IFERROR(VLOOKUP($C104&$C$3&1,'data alcohol'!$A:$J, 9,FALSE),0), "")) ->  | G104: =IF($A$7=2, IFERROR(VLOOKUP($C104&$C$3&1,'data alcohol'!$A:$J, 7,FALSE),0), IF($A$7=3, IFERROR(VLOOKUP($C104&$C$3&1,'data alcohol'!$A:$J, 10,FALSE),0), "")) ->  | H104: =IF($A$7=2, IFERROR(VLOOKUP($C104&$C$3&2,'data alcohol'!$A:$J, 5,FALSE),0), IF($A$7=3, IFERROR(VLOOKUP($C104&$C$3&2,'data alcohol'!$A:$J, 8,FALSE),0), "")) ->  | I104: =IF($A$7=2, IFERROR(VLOOKUP($C104&$C$3&2,'data alcohol'!$A:$J, 6,FALSE),0), IF($A$7=3, IFERROR(VLOOKUP($C104&$C$3&2,'data alcohol'!$A:$J, 9,FALSE),0), "")) ->  | J104: =IF($A$7=2, IFERROR(VLOOKUP($C104&$C$3&2,'data alcohol'!$A:$J, 7,FALSE),0), IF($A$7=3, IFERROR(VLOOKUP($C104&$C$3&2,'data alcohol'!$A:$J, 10,FALSE),0), "")) -> 
A108: Horizonal bar - alcohol
A110: Male | E110: Female
A111: Rank | B111: Cause | C111: YLG_YLL | E111: Rank | F111: Cause | G111: YLG_YLL
B112: Alcohol specific | C112: =ROUND(G103,2) ->  | F112: Alcohol specific | G112: =ROUND(J103,2) -> 

Sheet data broad (hidden)
A1: Data broad causes
A3: 2012-14 data | E3: LA whole - England | J3: LA MDQ - LA LDQ
A4: LookupCode | B4: geocode | C4: sex | D4: cause | E4: totaldeaths | F4: XSdeaths | G4: YLG_YLL | H4: YLG | I4: percentcontribution | J4: totaldeaths | K4: XSdeaths | L4: YLG_YLL | M4: YLG | N4: percentcontribution | O4: LAName
A5: 1E060000011 | B5: E06000001 | C5: 1 | D5: 1 | E5: 370 | F5: 30.5 | G5: 0.27 | H5: 0.27 | I5: 14.9 | J5: 88.7 | K5: 55.8 | L5: 2.4 | M5: 2.4 | N5: 29.5 | O5: =VLOOKUP(B5,'data LE '!$A$4:$C$355,3,FALSE) -> Hartlepool
A6: 2E060000011 | B6: E06000001 | C6: 1 | D6: 2 | E6: 438 | F6: 59 | G6: 0.57 | H6: 0.57 | I6: 31.4 | J6: 82 | K6: 24 | L6: 0.94 | M6: 0.94 | N6: 11.5 | O6: =VLOOKUP(B6,'data LE '!$A$4:$C$355,3,FALSE) -> Hartlepool
A7: 3E060000011 | B7: E06000001 | C7: 1 | D7: 3 | E7: 203.5 | F7: 41.6 | G7: 0.35 | H7: 0.35 | I7: 19.3 | J7: 46.5 | K7: 28.7 | L7: 1 | M7: 1 | N7: 12.3 | O7: =VLOOKUP(B7,'data LE '!$A$4:$C$355,3,FALSE) -> Hartlepool
A8: 4E060000011 | B8: E06000001 | C8: 1 | D8: 4 | E8: 83 | F8: 24.5 | G8: 0.28 | H8: 0.28 | I8: 15.2 | J8: 29 | K8: 20.7 | L8: 1.06 | M8: 1.06 | N8: 13 | O8: =VLOOKUP(B8,'data LE '!$A$4:$C$355,3,FALSE) -> Hartlepool
A9: 5E060000011 | B9: E06000001 | C9: 1 | D9: 5 | E9: 60 | F9: 4.6 | G9: 0.16 | H9: 0.16 | I9: 8.6 | J9: 25 | K9: 20.6 | L9: 1.24 | M9: 1.24 | N9: 15.2 | O9: =VLOOKUP(B9,'data LE '!$A$4:$C$355,3,FALSE) -> Hartlepool
A10: 6E060000011 | B10: E06000001 | C10: 1 | D10: 6 | E10: 85.7 | F10: 5.2 | G10: 0.05 | H10: 0.05 | I10: 2.6 | J10: 26.6 | K10: 21.7 | L10: 0.46 | M10: 0.46 | N10: 5.7 | O10: =VLOOKUP(B10,'data LE '!$A$4:$C$355,3,FALSE) -> Hartlepool
A11: 7E060000011 | B11: E06000001 | C11: 1 | D11: 7 | E11: 133 | F11: 14.5 | G11: 0.15 | H11: 0.15 | I11: 8 | J11: 33 | K11: 13.7 | L11: 1.04 | M11: 1.04 | N11: 12.8 | O11: =VLOOKUP(B11,'data LE '!$A$4:$C$355,3,FALSE) -> Hartlepool
A12: 8E060000011 | B12: E06000001 | C12: 1 | D12: 8 | E12: 4 | F12: -1.1 | G12: -0.05 | H12: .. | I12: .. | J12: 0 | K12: -1.9 | L12: -0.28 | M12: .. | N12: .. | O12: =VLOOKUP(B12,'data LE '!$A$4:$C$355,3,FALSE) -> Hartlepool
A13: 1E060000012 | B13: E06000001 | C13: 2 | D13: 1 | E13: 344.3 | F13: 4.8 | G13: 0.13 | H13: 0.13 | I13: 8.7 | J13: 70.9 | K13: 42.4 | L13: 1.27 | M13: 1.27 | N13: 19.6 | O13: =VLOOKUP(B13,'data LE '!$A$4:$C$355,3,FALSE) -> Hartlepool
A14: 2E060000012 | B14: E06000001 | C14: 2 | D14: 2 | E14: 410 | F14: 71.1 | G14: 0.78 | H14: 0.78 | I14: 52.1 | J14: 79 | K14: 29.8 | L14: 1.52 | M14: 1.52 | N14: 23.4 | O14: =VLOOKUP(B14,'data LE '!$A$4:$C$355,3,FALSE) -> Hartlepool
A15: 3E060000012 | B15: E06000001 | C15: 2 | D15: 3 | E15: 204.5 | F15: 27.6 | G15: 0.27 | H15: 0.27 | I15: 18.3 | J15: 48.2 | K15: 27.7 | L15: 0.85 | M15: 0.85 | N15: 13.1 | O15: =VLOOKUP(B15,'data LE '!$A$4:$C$355,3,FALSE) -> Hartlepool
A16: 4E060000012 | B16: E06000001 | C16: 2 | D16: 4 | E16: 60.1 | F16: -1.6 | G16: -0.02 | H16: .. | I16: .. | J16: 15.7 | K16: 11.9 | L16: 0.47 | M16: 0.47 | N16: 7.3 | O16: =VLOOKUP(B16,'data LE '!$A$4:$C$355,3,FALSE) -> Hartlepool
A17: 5E060000012 | B17: E06000001 | C17: 2 | D17: 5 | E17: 37.6 | F17: 2.2 | G17: -0.03 | H17: .. | I17: .. | J17: 10.5 | K17: 5.8 | L17: 0.39 | M17: 0.39 | N17: 6 | O17: =VLOOKUP(B17,'data LE '!$A$4:$C$355,3,FALSE) -> Hartlepool
A18: 6E060000012 | B18: E06000001 | C18: 2 | D18: 6 | E18: 157.2 | F18: -4.2 | G18: -0.01 | H18: .. | I18: .. | J18: 46.7 | K18: 31.3 | L18: 0.63 | M18: 0.63 | N18: 9.8 | O18: =VLOOKUP(B18,'data LE '!$A$4:$C$355,3,FALSE) -> Hartlepool
A19: 7E060000012 | B19: E06000001 | C19: 2 | D19: 7 | E19: 203.6 | F19: 46.5 | G19: 0.31 | H19: 0.31 | I19: 20.6 | J19: 51.4 | K19: 31.2 | L19: 1 | M19: 1 | N19: 15.4 | O19: =VLOOKUP(B19,'data LE '!$A$4:$C$355,3,FALSE) -> Hartlepool
A20: 8E060000012 | B20: E06000001 | C20: 2 | D20: 8 | E20: 4 | F20: 0.1 | G20: 0 | H20: 0 | I20: 0.3 | J20: 2 | K20: 2 | L20: 0.36 | M20: 0.36 | N20: 5.5 | O20: =VLOOKUP(B20,'data LE '!$A$4:$C$355,3,FALSE) -> Hartlepool
A21: 1E060000021 | B21: E06000002 | C21: 1 | D21: 1 | E21: 526.5 | F21: 84.2 | G21: 0.59 | H21: 0.59 | I21: 18.6 | J21: 108.6 | K21: 53.1 | L21: 1.58 | M21: 1.58 | N21: 21.2 | O21: =VLOOKUP(B21,'data LE '!$A$4:$C$355,3,FALSE) -> Middlesbrough
A22: 2E060000021 | B22: E06000002 | C22: 1 | D22: 2 | E22: 636 | F22: 140.1 | G22: 0.8 | H22: 0.8 | I22: 25.4 | J22: 139 | K22: 58.2 | L22: 1.54 | M22: 1.54 | N22: 20.6 | O22: =VLOOKUP(B22,'data LE '!$A$4:$C$355,3,FALSE) -> Middlesbrough
A23: 3E060000021 | B23: E06000002 | C23: 1 | D23: 3 | E23: 297.3 | F23: 87.7 | G23: 0.51 | H23: 0.51 | I23: 16.1 | J23: 69.1 | K23: 40.4 | L23: 0.84 | M23: 0.84 | N23: 11.3 | O23: =VLOOKUP(B23,'data LE '!$A$4:$C$355,3,FALSE) -> Middlesbrough
A24: 4E060000021 | B24: E06000002 | C24: 1 | D24: 4 | E24: 124 | F24: 46.8 | G24: 0.36 | H24: 0.36 | I24: 11.2 | J24: 32 | K24: 21.9 | L24: 0.73 | M24: 0.73 | N24: 9.8 | O24: =VLOOKUP(B24,'data LE '!$A$4:$C$355,3,FALSE) -> Middlesbrough
A25: 5E060000021 | B25: E06000002 | C25: 1 | D25: 5 | E25: 123 | F25: 43.6 | G25: 0.59 | H25: 0.59 | I25: 18.7 | J25: 35 | K25: 28.4 | L25: 1.86 | M25: 1.86 | N25: 25 | O25: =VLOOKUP(B25,'data LE '!$A$4:$C$355,3,FALSE) -> Middlesbrough
A26: 6E060000021 | B26: E06000002 | C26: 1 | D26: 6 | E26: 108.5 | F26: 5.1 | G26: 0.05 | H26: 0.05 | I26: 1.7 | J26: 13.5 | K26: 3.3 | L26: 0.08 | M26: 0.08 | N26: 1 | O26: =VLOOKUP(B26,'data LE '!$A$4:$C$355,3,FALSE) -> Middlesbrough
A27: 7E060000021 | B27: E06000002 | C27: 1 | D27: 7 | E27: 199 | F27: 42.3 | G27: 0.26 | H27: 0.26 | I27: 8.3 | J27: 41 | K27: 18.8 | L27: 0.82 | M27: 0.82 | N27: 10.9 | O27: =VLOOKUP(B27,'data LE '!$A$4:$C$355,3,FALSE) -> Middlesbrough
A28: 8E060000021 | B28: E06000002 | C28: 1 | D28: 8 | E28: 6 | F28: -3.3 | G28: -0.08 | H28: .. | I28: .. | J28: 0 | K28: 0 | L28: 0 | M28: 0 | N28: 0 | O28: =VLOOKUP(B28,'data LE '!$A$4:$C$355,3,FALSE) -> Middlesbrough
A29: 1E060000022 | B29: E06000002 | C29: 2 | D29: 1 | E29: 541.9 | F29: 97 | G29: 0.56 | H29: 0.56 | I29: 18.2 | J29: 118.7 | K29: 43.5 | L29: 1.31 | M29: 1.31 | N29: 17.6 | O29: =VLOOKUP(B29,'data LE '!$A$4:$C$355,3,FALSE) -> Middlesbrough
A30: 2E060000022 | B30: E06000002 | C30: 2 | D30: 2 | E30: 551 | F30: 103.5 | G30: 0.62 | H30: 0.62 | I30: 20.2 | J30: 140 | K30: 69.4 | L30: 2.07 | M30: 2.07 | N30: 27.7 | O30: =VLOOKUP(B30,'data LE '!$A$4:$C$355,3,FALSE) -> Middlesbrough
A31: 3E060000022 | B31: E06000002 | C31: 2 | D31: 3 | E31: 334.1 | F31: 102.4 | G31: 0.58 | H31: 0.58 | I31: 19.1 | J31: 92.8 | K31: 57.6 | L31: 1.67 | M31: 1.67 | N31: 22.3 | O31: =VLOOKUP(B31,'data LE '!$A$4:$C$355,3,FALSE) -> Middlesbrough
A32: 4E060000022 | B32: E06000002 | C32: 2 | D32: 4 | E32: 119.5 | F32: 37.9 | G32: 0.28 | H32: 0.28 | I32: 9.1 | J32: 33.3 | K32: 20.7 | L32: 0.91 | M32: 0.91 | N32: 12.1 | O32: =VLOOKUP(B32,'data LE '!$A$4:$C$355,3,FALSE) -> Middlesbrough
A33: 5E060000022 | B33: E06000002 | C33: 2 | D33: 5 | E33: 76.3 | F33: 27.8 | G33: 0.33 | H33: 0.33 | I33: 10.7 | J33: 21.6 | K33: 15.4 | L33: 0.79 | M33: 0.79 | N33: 10.6 | O33: =VLOOKUP(B33,'data LE '!$A$4:$C$355,3,FALSE) -> Middlesbrough
A34: 6E060000022 | B34: E06000002 | C34: 2 | D34: 6 | E34: 238.8 | F34: 27.5 | G34: 0.11 | H34: 0.11 | I34: 3.6 | J34: 36.3 | K34: 7.6 | L34: 0.06 | M34: 0.06 | N34: 0.8 | O34: =VLOOKUP(B34,'data LE '!$A$4:$C$355,3,FALSE) -> Middlesbrough
A35: 7E060000022 | B35: E06000002 | C35: 2 | D35: 7 | E35: 319.6 | F35: 111.4 | G35: 0.56 | H35: 0.56 | I35: 18.4 | J35: 50.5 | K35: 2.1 | L35: 0.57 | M35: 0.57 | N35: 7.6 | O35: =VLOOKUP(B35,'data LE '!$A$4:$C$355,3,FALSE) -> Middlesbrough
A36: 8E060000022 | B36: E06000002 | C36: 2 | D36: 8 | E36: 8 | F36: 0.8 | G36: 0.02 | H36: 0.02 | I36: 0.7 | J36: 1 | K36: 1 | L36: 0.1 | M36: 0.1 | N36: 1.3 | O36: =VLOOKUP(B36,'data LE '!$A$4:$C$355,3,FALSE) -> Middlesbrough
A37: 1E060000031 | B37: E06000003 | C37: 1 | D37: 1 | E37: 560.9 | F37: 2.8 | G37: 0.13 | H37: 0.13 | I37: 11.2 | J37: 104.6 | K37: 61.8 | L37: 2.59 | M37: 2.59 | N37: 34.5 | O37: =VLOOKUP(B37,'data LE '!$A$4:$C$355,3,FALSE) -> Redcar and Cleveland
A38: 2E060000031 | B38: E06000003 | C38: 1 | D38: 2 | E38: 741 | F38: 118.6 | G38: 0.61 | H38: 0.61 | I38: 54.1 | J38: 116 | K38: 30.6 | L38: 1.21 | M38: 1.21 | N38: 16.1 | O38: =VLOOKUP(B38,'data LE '!$A$4:$C$355,3,FALSE) -> Redcar and Cleveland
A39: 3E060000031 | B39: E06000003 | C39: 1 | D39: 3 | E39: 282.2 | F39: 13.6 | G39: 0.08 | H39: 0.08 | I39: 6.8 | J39: 56.3 | K39: 38.2 | L39: 1.37 | M39: 1.37 | N39: 18.2 | O39: =VLOOKUP(B39,'data LE '!$A$4:$C$355,3,FALSE) -> Redcar and Cleveland
A40: 4E060000031 | B40: E06000003 | C40: 1 | D40: 4 | E40: 102 | F40: 8.4 | G40: 0.04 | H40: 0.04 | I40: 3.8 | J40: 28 | K40: 19.5 | L40: 0.95 | M40: 0.95 | N40: 12.6 | O40: =VLOOKUP(B40,'data LE '!$A$4:$C$355,3,FALSE) -> Redcar and Cleveland
A41: 5E060000031 | B41: E06000003 | C41: 1 | D41: 5 | E41: 85 | F41: 1.3 | G41: 0.13 | H41: 0.13 | I41: 11.6 | J41: 20 | K41: 10.8 | L41: 0.8 | M41: 0.8 | N41: 10.7 | O41: =VLOOKUP(B41,'data LE '!$A$4:$C$355,3,FALSE) -> Redcar and Cleveland
A42: 6E060000031 | B42: E06000003 | C42: 1 | D42: 6 | E42: 97.1 | F42: -36.8 | G42: -0.16 | H42: .. | I42: .. | J42: 9.4 | K42: -5.9 | L42: -0.16 | M42: .. | N42: .. | O42: =VLOOKUP(B42,'data LE '!$A$4:$C$355,3,FALSE) -> Redcar and Cleveland
A43: 7E060000031 | B43: E06000003 | C43: 1 | D43: 7 | E43: 213 | F43: 20 | G43: 0.14 | H43: 0.14 | I43: 12.6 | J43: 31 | K43: 5 | L43: 0.38 | M43: 0.38 | N43: 5.1 | O43: =VLOOKUP(B43,'data LE '!$A$4:$C$355,3,FALSE) -> Redcar and Cleveland
A44: 8E060000031 | B44: E06000003 | C44: 1 | D44: 8 | E44: 7 | F44: -0.2 | G44: -0.01 | H44: .. | I44: .. | J44: 2 | K44: 2 | L44: 0.22 | M44: 0.22 | N44: 2.9 | O44: =VLOOKUP(B44,'data LE '!$A$4:$C$355,3,FALSE) -> Redcar and Cleveland
A45: 1E060000032 | B45: E06000003 | C45: 2 | D45: 1 | E45: 574.9 | F45: 33.9 | G45: 0.17 | H45: 0.17 | I45: 13.7 | J45: 83.7 | K45: 18.3 | L45: 0.84 | M45: 0.84 | N45: 17.2 | O45: =VLOOKUP(B45,'data LE '!$A$4:$C$355,3,FALSE) -> Redcar and Cleveland
A46: 2E060000032 | B46: E06000003 | C46: 2 | D46: 2 | E46: 605 | F46: 62.2 | G46: 0.49 | H46: 0.49 | I46: 38.6 | J46: 101 | K46: 29.6 | L46: 1.54 | M46: 1.54 | N46: 31.6 | O46: =VLOOKUP(B46,'data LE '!$A$4:$C$355,3,FALSE) -> Redcar and Cleveland
A47: 3E060000032 | B47: E06000003 | C47: 2 | D47: 3 | E47: 335.6 | F47: 52.8 | G47: 0.33 | H47: 0.33 | I47: 25.7 | J47: 63.1 | K47: 33.4 | L47: 1.79 | M47: 1.79 | N47: 36.8 | O47: =VLOOKUP(B47,'data LE '!$A$4:$C$355,3,FALSE) -> Redcar and Cleveland
A48: 4E060000032 | B48: E06000003 | C48: 2 | D48: 4 | E48: 105.5 | F48: 7.6 | G48: 0.13 | H48: 0.13 | I48: 10.2 | J48: 21.6 | K48: 11 | L48: 0.44 | M48: 0.44 | N48: 9 | O48: =VLOOKUP(B48,'data LE '!$A$4:$C$355,3,FALSE) -> Redcar and Cleveland
A49: 5E060000032 | B49: E06000003 | C49: 2 | D49: 5 | E49: 49.6 | F49: -5.4 | G49: 0.1 | H49: 0.1 | I49: 7.6 | J49: 8.4 | K49: 4.3 | L49: 0.26 | M49: 0.26 | N49: 5.4 | O49: =VLOOKUP(B49,'data LE '!$A$4:$C$355,3,FALSE) -> Redcar and Cleveland
A50: 6E060000032 | B50: E06000003 | C50: 2 | D50: 6 | E50: 240 | F50: -17.2 | G50: -0.07 | H50: .. | I50: .. | J50: 18.5 | K50: -21 | L50: -0.93 | M50: .. | N50: .. | O50: =VLOOKUP(B50,'data LE '!$A$4:$C$355,3,FALSE) -> Redcar and Cleveland
A51: 7E060000032 | B51: E06000003 | C51: 2 | D51: 7 | E51: 269.8 | F51: 20 | G51: 0.05 | H51: 0.05 | I51: 4.1 | J51: 29.6 | K51: -1.9 | L51: -0.06 | M51: .. | N51: .. | O51: =VLOOKUP(B51,'data LE '!$A$4:$C$355,3,FALSE) -> Redcar and Cleveland
A52: 8E060000032 | B52: E06000003 | C52: 2 | D52: 8 | E52: 3 | F52: -2.5 | G52: -0.09 | H52: .. | I52: .. | J52: 0 | K52: -2 | L52: -0.26 | M52: .. | N52: .. | O52: =VLOOKUP(B52,'data LE '!$A$4:$C$355,3,FALSE) -> Redcar and Cleveland
A53: 1E060000041 | B53: E06000004 | C53: 1 | D53: 1 | E53: 647.7 | F53: -7.9 | G53: 0.01 | H53: 0.01 | I53: 0.4 | J53: 149.3 | K53: 90.4 | L53: 1.64 | M53: 1.64 | N53: 17.1 | O53: =VLOOKUP(B53,'data LE '!$A$4:$C$355,3,FALSE) -> Stockton-on-Tees
A54: 2E060000041 | B54: E06000004 | C54: 1 | D54: 2 | E54: 822 | F54: 84.6 | G54: 0.42 | H54: 0.42 | I54: 36.6 | J54: 221 | K54: 130.1 | L54: 2.58 | M54: 2.58 | N54: 26.9 | O54: =VLOOKUP(B54,'data LE '!$A$4:$C$355,3,FALSE) -> Stockton-on-Tees
A55: 3E060000041 | B55: E06000004 | C55: 1 | D55: 3 | E55: 344.8 | F55: 34.7 | G55: 0.15 | H55: 0.15 | I55: 12.8 | J55: 103.8 | K55: 85.9 | L55: 1.16 | M55: 1.16 | N55: 12.1 | O55: =VLOOKUP(B55,'data LE '!$A$4:$C$355,3,FALSE) -> Stockton-on-Tees
A56: 4E060000041 | B56: E06000004 | C56: 1 | D56: 4 | E56: 144 | F56: 29 | G56: 0.23 | H56: 0.23 | I56: 20 | J56: 53 | K56: 43.5 | L56: 1.17 | M56: 1.17 | N56: 12.2 | O56: =VLOOKUP(B56,'data LE '!$A$4:$C$355,3,FALSE) -> Stockton-on-Tees
A57: 5E060000041 | B57: E06000004 | C57: 1 | D57: 5 | E57: 135 | F57: 21.4 | G57: 0.19 | H57: 0.19 | I57: 16.3 | J57: 57 | K57: 46 | L57: 1.6 | M57: 1.6 | N57: 16.7 | O57: =VLOOKUP(B57,'data LE '!$A$4:$C$355,3,FALSE) -> Stockton-on-Tees
A58: 6E060000041 | B58: E06000004 | C58: 1 | D58: 6 | E58: 159.3 | F58: 7 | G58: 0.06 | H58: 0.06 | I58: 5 | J58: 36.6 | K58: 26 | L58: 0.32 | M58: 0.32 | N58: 3.4 | O58: =VLOOKUP(B58,'data LE '!$A$4:$C$355,3,FALSE) -> Stockton-on-Tees
A59: 7E060000041 | B59: E06000004 | C59: 1 | D59: 7 | E59: 247 | F59: 16.8 | G59: 0.1 | H59: 0.1 | I59: 9 | J59: 64 | K59: 44.1 | L59: 0.96 | M59: 0.96 | N59: 10 | O59: =VLOOKUP(B59,'data LE '!$A$4:$C$355,3,FALSE) -> Stockton-on-Tees
A60: 8E060000041 | B60: E06000004 | C60: 1 | D60: 8 | E60: 11 | F60: -0.2 | G60: 0 | H60: .. | I60: .. | J60: 4 | K60: 2.4 | L60: 0.16 | M60: 0.16 | N60: 1.7 | O60: =VLOOKUP(B60,'data LE '!$A$4:$C$355,3,FALSE) -> Stockton-on-Tees
A61: 1E060000042 | B61: E06000004 | C61: 2 | D61: 1 | E61: 631.7 | F61: -4.9 | G61: 0.04 | H61: 0.04 | I61: 4.2 | J61: 156.7 | K61: 83.1 | L61: 1.45 | M61: 1.45 | N61: 20.7 | O61: =VLOOKUP(B61,'data LE '!$A$4:$C$355,3,FALSE) -> Stockton-on-Tees
A62: 2E060000042 | B62: E06000004 | C62: 2 | D62: 2 | E62: 705 | F62: 49.4 | G62: 0.28 | H62: 0.28 | I62: 28.3 | J62: 190 | K62: 111.2 | L62: 2.22 | M62: 2.22 | N62: 31.8 | O62: =VLOOKUP(B62,'data LE '!$A$4:$C$355,3,FALSE) -> Stockton-on-Tees
A63: 3E060000042 | B63: E06000004 | C63: 2 | D63: 3 | E63: 383.3 | F63: 51.3 | G63: 0.26 | H63: 0.26 | I63: 26.9 | J63: 125.9 | K63: 89.7 | L63: 1.41 | M63: 1.41 | N63: 20.1 | O63: =VLOOKUP(B63,'data LE '!$A$4:$C$355,3,FALSE) -> Stockton-on-Tees
A64: 4E060000042 | B64: E06000004 | C64: 2 | D64: 4 | E64: 136 | F64: 17.9 | G64: 0.12 | H64: 0.12 | I64: 12 | J64: 32.5 | K64: 16.9 | L64: 0.43 | M64: 0.43 | N64: 6.2 | O64: =VLOOKUP(B64,'data LE '!$A$4:$C$355,3,FALSE) -> Stockton-on-Tees
A65: 5E060000042 | B65: E06000004 | C65: 2 | D65: 5 | E65: 58.6 | F65: -10.7 | G65: 0.01 | H65: 0.01 | I65: 1 | J65: 18.4 | K65: 12.9 | L65: 0.53 | M65: 0.53 | N65: 7.6 | O65: =VLOOKUP(B65,'data LE '!$A$4:$C$355,3,FALSE) -> Stockton-on-Tees
A66: 6E060000042 | B66: E06000004 | C66: 2 | D66: 6 | E66: 315.5 | F66: 16.7 | G66: 0.05 | H66: 0.05 | I66: 5 | J66: 102.4 | K66: 72.6 | L66: 0.64 | M66: 0.64 | N66: 9.2 | O66: =VLOOKUP(B66,'data LE '!$A$4:$C$355,3,FALSE) -> Stockton-on-Tees
A67: 7E060000042 | B67: E06000004 | C67: 2 | D67: 7 | E67: 345.2 | F67: 48.3 | G67: 0.22 | H67: 0.22 | I67: 22.6 | J67: 82 | K67: 31.7 | L67: 0.31 | M67: 0.31 | N67: 4.4 | O67: =VLOOKUP(B67,'data LE '!$A$4:$C$355,3,FALSE) -> Stockton-on-Tees
A68: 8E060000042 | B68: E06000004 | C68: 2 | D68: 8 | E68: 6 | F68: -2.6 | G68: -0.06 | H68: .. | I68: .. | J68: 1 | K68: -0.8 | L68: -0.06 | M68: .. | N68: .. | O68: =VLOOKUP(B68,'data LE '!$A$4:$C$355,3,FALSE) -> Stockton-on-Tees
A69: 1E060000051 | B69: E06000005 | C69: 1 | D69: 1 | E69: 440.8 | F69: 37.1 | G69: 0.36 | H69: 0.36 | I69: 25.7 | J69: 86.7 | K69: 42.1 | L69: 2.03 | M69: 2.03 | N69: 25 | O69: =VLOOKUP(B69,'data LE '!$A$4:$C$355,3,FALSE) -> Darlington
A70: 2E060000051 | B70: E06000005 | C70: 1 | D70: 2 | E70: 496 | F70: 51.7 | G70: 0.4 | H70: 0.4 | I70: 28 | J70: 97 | K70: 40.7 | L70: 1.85 | M70: 1.85 | N70: 22.7 | O70: =VLOOKUP(B70,'data LE '!$A$4:$C$355,3,FALSE) -> Darlington
A71: 3E060000051 | B71: E06000005 | C71: 1 | D71: 3 | E71: 171.7 | F71: -22.9 | G71: -0.11 | H71: .. | I71: .. | J71: 36.6 | K71: 20.3 | L71: 0.72 | M71: 0.72 | N71: 8.8 | O71: =VLOOKUP(B71,'data LE '!$A$4:$C$355,3,FALSE) -> Darlington
A72: 4E060000051 | B72: E06000005 | C72: 1 | D72: 4 | E72: 82 | F72: 13.4 | G72: 0.12 | H72: 0.12 | I72: 8.3 | J72: 26 | K72: 20.4 | L72: 1.15 | M72: 1.15 | N72: 14.2 | O72: =VLOOKUP(B72,'data LE '!$A$4:$C$355,3,FALSE) -> Darlington
A73: 5E060000051 | B73: E06000005 | C73: 1 | D73: 5 | E73: 74 | F73: 9.6 | G73: 0.26 | H73: 0.26 | I73: 18.7 | J73: 23 | K73: 19.5 | L73: 1.32 | M73: 1.32 | N73: 16.2 | O73: =VLOOKUP(B73,'data LE '!$A$4:$C$355,3,FALSE) -> Darlington
A74: 6E060000051 | B74: E06000005 | C74: 1 | D74: 6 | E74: 113.1 | F74: 14.4 | G74: 0.12 | H74: 0.12 | I74: 8.4 | J74: 26.8 | K74: 20.4 | L74: 0.69 | M74: 0.69 | N74: 8.5 | O74: =VLOOKUP(B74,'data LE '!$A$4:$C$355,3,FALSE) -> Darlington
A75: 7E060000051 | B75: E06000005 | C75: 1 | D75: 7 | E75: 152 | F75: 10.5 | G75: 0.11 | H75: 0.11 | I75: 7.8 | J75: 27 | K75: 10.1 | L75: 0.37 | M75: 0.37 | N75: 4.5 | O75: =VLOOKUP(B75,'data LE '!$A$4:$C$355,3,FALSE) -> Darlington
A76: 8E060000051 | B76: E06000005 | C76: 1 | D76: 8 | E76: 7 | F76: 1.1 | G76: 0.04 | H76: 0.04 | I76: 2.9 | J76: 2 | K76: -2.9 | L76: -0.46 | M76: .. | N76: .. | O76: =VLOOKUP(B76,'data LE '!$A$4:$C$355,3,FALSE) -> Darlington
A77: 1E060000052 | B77: E06000005 | C77: 2 | D77: 1 | E77: 427.4 | F77: 10.1 | G77: 0.04 | H77: 0.04 | I77: 3.9 | J77: 76.9 | K77: 19.1 | L77: 1.07 | M77: 1.07 | N77: 16.7 | O77: =VLOOKUP(B77,'data LE '!$A$4:$C$355,3,FALSE) -> Darlington
A78: 2E060000052 | B78: E06000005 | C78: 2 | D78: 2 | E78: 450 | F78: 51.4 | G78: 0.37 | H78: 0.37 | I78: 37.4 | J78: 90 | K78: 31.1 | L78: 1.59 | M78: 1.59 | N78: 24.8 | O78: =VLOOKUP(B78,'data LE '!$A$4:$C$355,3,FALSE) -> Darlington
A79: 3E060000052 | B79: E06000005 | C79: 2 | D79: 3 | E79: 215.7 | F79: -1.3 | G79: 0.01 | H79: 0.01 | I79: 0.7 | J79: 53.9 | K79: 27.2 | L79: 0.99 | M79: 0.99 | N79: 15.5 | O79: =VLOOKUP(B79,'data LE '!$A$4:$C$355,3,FALSE) -> Darlington
A80: 4E060000052 | B80: E06000005 | C80: 2 | D80: 4 | E80: 82.7 | F80: 8.5 | G80: 0.06 | H80: 0.06 | I80: 6.6 | J80: 19.6 | K80: 9.2 | L80: 0.49 | M80: 0.49 | N80: 7.7 | O80: =VLOOKUP(B80,'data LE '!$A$4:$C$355,3,FALSE) -> Darlington
A81: 5E060000052 | B81: E06000005 | C81: 2 | D81: 5 | E81: 45 | F81: 2.4 | G81: 0.1 | H81: 0.1 | I81: 10.3 | J81: 13.6 | K81: 9.5 | L81: 0.72 | M81: 0.72 | N81: 11.2 | O81: =VLOOKUP(B81,'data LE '!$A$4:$C$355,3,FALSE) -> Darlington
A82: 6E060000052 | B82: E06000005 | C82: 2 | D82: 6 | E82: 228.3 | F82: 24.3 | G82: 0.19 | H82: 0.19 | I82: 19.4 | J82: 61.2 | K82: 38.8 | L82: 0.85 | M82: 0.85 | N82: 13.2 | O82: =VLOOKUP(B82,'data LE '!$A$4:$C$355,3,FALSE) -> Darlington
A83: 7E060000052 | B83: E06000005 | C83: 2 | D83: 7 | E83: 249.2 | F83: 55.3 | G83: 0.2 | H83: 0.2 | I83: 20.1 | J83: 40.6 | K83: 8.4 | L83: 0.35 | M83: 0.35 | N83: 5.4 | O83: =VLOOKUP(B83,'data LE '!$A$4:$C$355,3,FALSE) -> Darlington
A84: 8E060000052 | B84: E06000005 | C84: 2 | D84: 8 | E84: 5 | F84: 0.4 | G84: 0.02 | H84: 0.02 | I84: 1.7 | J84: 2 | K84: 2 | L84: 0.34 | M84: 0.34 | N84: 5.4 | O84: =VLOOKUP(B84,'data LE '!$A$4:$C$355,3,FALSE) -> Darlington
A85: 1E060000061 | B85: E06000006 | C85: 1 | D85: 1 | E85: 459.8 | F85: 60.4 | G85: 0.46 | H85: 0.46 | I85: 21.1 | J85: 106.6 | K85: 65.6 | L85: 2.47 | M85: 2.47 | N85: 31.4 | O85: =VLOOKUP(B85,'data LE '!$A$4:$C$355,3,FALSE) -> Halton
A86: 2E060000061 | B86: E06000006 | C86: 1 | D86: 2 | E86: 586 | F86: 124.9 | G86: 0.8 | H86: 0.8 | I86: 36.7 | J86: 120 | K86: 47.1 | L86: 1.64 | M86: 1.64 | N86: 20.9 | O86: =VLOOKUP(B86,'data LE '!$A$4:$C$355,3,FALSE) -> Halton
A87: 3E060000061 | B87: E06000006 | C87: 1 | D87: 3 | E87: 235.3 | F87: 49.8 | G87: 0.31 | H87: 0.31 | I87: 14.5 | J87: 51.4 | K87: 22.7 | L87: 0.83 | M87: 0.83 | N87: 10.6 | O87: =VLOOKUP(B87,'data LE '!$A$4:$C$355,3,FALSE) -> Halton
A88: 4E060000061 | B88: E06000006 | C88: 1 | D88: 4 | E88: 93 | F88: 20.6 | G88: 0.19 | H88: 0.19 | I88: 8.7 | J88: 22 | K88: 12.3 | L88: 0.64 | M88: 0.64 | N88: 8.2 | O88: =VLOOKUP(B88,'data LE '!$A$4:$C$355,3,FALSE) -> Halton
A89: 5E060000061 | B89: E06000006 | C89: 1 | D89: 5 | E89: 77 | F89: 5 | G89: 0.05 | H89: 0.05 | I89: 2.4 | J89: 17 | K89: 9.7 | L89: 0.77 | M89: 0.77 | N89: 9.9 | O89: =VLOOKUP(B89,'data LE '!$A$4:$C$355,3,FALSE) -> Halton
A90: 6E060000061 | B90: E06000006 | C90: 1 | D90: 6 | E90: 123.3 | F90: 35.5 | G90: 0.2 | H90: 0.2 | I90: 9 | J90: 15.4 | K90: -0.8 | L90: 0.09 | M90: 0.09 | N90: 1.1 | O90: =VLOOKUP(B90,'data LE '!$A$4:$C$355,3,FALSE) -> Halton
A91: 7E060000061 | B91: E06000006 | C91: 1 | D91: 7 | E91: 163 | F91: 23.1 | G91: 0.17 | H91: 0.17 | I91: 7.7 | J91: 43 | K91: 28.6 | L91: 1.12 | M91: 1.12 | N91: 14.2 | O91: =VLOOKUP(B91,'data LE '!$A$4:$C$355,3,FALSE) -> Halton
A92: 8E060000061 | B92: E06000006 | C92: 1 | D92: 8 | E92: 6 | F92: -1.4 | G92: -0.04 | H92: .. | I92: .. | J92: 4 | K92: 2.5 | L92: 0.29 | M92: 0.29 | N92: 3.7 | O92: =VLOOKUP(B92,'data LE '!$A$4:$C$355,3,FALSE) -> Halton
A93: 1E060000062 | B93: E06000006 | C93: 2 | D93: 1 | E93: 446.8 | F93: 70.8 | G93: 0.5 | H93: 0.5 | I93: 20.3 | J93: 91.7 | K93: 42 | L93: 1.44 | M93: 1.44 | N93: 23.1 | O93: =VLOOKUP(B93,'data LE '!$A$4:$C$355,3,FALSE) -> Halton
A94: 2E060000062 | B94: E06000006 | C94: 2 | D94: 2 | E94: 489 | F94: 80.7 | G94: 0.59 | H94: 0.59 | I94: 24 | J94: 110 | K94: 55.4 | L94: 1.92 | M94: 1.92 | N94: 30.9 | O94: =VLOOKUP(B94,'data LE '!$A$4:$C$355,3,FALSE) -> Halton
A95: 3E060000062 | B95: E06000006 | C95: 2 | D95: 3 | E95: 305.3 | F95: 108.4 | G95: 0.57 | H95: 0.57 | I95: 23.4 | J95: 56.3 | K95: 26.3 | L95: 1.08 | M95: 1.08 | N95: 17.4 | O95: =VLOOKUP(B95,'data LE '!$A$4:$C$355,3,FALSE) -> Halton
A96: 4E060000062 | B96: E06000006 | C96: 2 | D96: 4 | E96: 103.5 | F96: 31.7 | G96: 0.27 | H96: 0.27 | I96: 11 | J96: 27.3 | K96: 18 | L96: 0.75 | M96: 0.75 | N96: 12.1 | O96: =VLOOKUP(B96,'data LE '!$A$4:$C$355,3,FALSE) -> Halton
A97: 5E060000062 | B97: E06000006 | C97: 2 | D97: 5 | E97: 48.1 | F97: 5.5 | G97: 0.06 | H97: 0.06 | I97: 2.5 | J97: 12.5 | K97: 3.7 | L97: 0.5 | M97: 0.5 | N97: 8.1 | O97: =VLOOKUP(B97,'data LE '!$A$4:$C$355,3,FALSE) -> Halton
A98: 6E060000062 | B98: E06000006 | C98: 2 | D98: 6 | E98: 271.8 | F98: 99.6 | G98: 0.43 | H98: 0.43 | I98: 17.6 | J98: 18.5 | K98: -20.8 | L98: -0.5 | M98: .. | N98: .. | O98: =VLOOKUP(B98,'data LE '!$A$4:$C$355,3,FALSE) -> Halton
A99: 7E060000062 | B99: E06000006 | C99: 2 | D99: 7 | E99: 189.4 | F99: 12.3 | G99: 0.03 | H99: 0.03 | I99: 1.1 | J99: 31.7 | K99: 13.5 | L99: 0.52 | M99: 0.52 | N99: 8.4 | O99: =VLOOKUP(B99,'data LE '!$A$4:$C$355,3,FALSE) -> Halton
A100: 8E060000062 | B100: E06000006 | C100: 2 | D100: 8 | E100: 4 | F100: -1.7 | G100: -0.06 | H100: .. | I100: .. | J100: 1 | K100: -0.4 | L100: -0.06 | M100: .. | N100: .. | O100: =VLOOKUP(B100,'data LE '!$A$4:$C$355,3,FALSE) -> Halton
A101: 1E060000071 | B101: E06000007 | C101: 1 | D101: 1 | E101: 725.9 | F101: 39.2 | G101: 0.11 | H101: 0.11 | I101: 11.6 | J101: 162.2 | K101: 73.1 | L101: 1.52 | M101: 1.52 | N101: 19.3 | O101: =VLOOKUP(B101,'data LE '!$A$4:$C$355,3,FALSE) -> Warrington
A102: 2E060000071 | B102: E06000007 | C102: 1 | D102: 2 | E102: 819 | F102: 38.3 | G102: 0.06 | H102: 0.06 | I102: 6.9 | J102: 179 | K102: 81 | L102: 1.61 | M102: 1.61 | N102: 20.5 | O102: =VLOOKUP(B102,'data LE '!$A$4:$C$355,3,FALSE) -> Warrington
A103: 3E060000071 | B103: E06000007 | C103: 1 | D103: 3 | E103: 403 | F103: 80.7 | G103: 0.25 | H103: 0.25 | I103: 27.6 | J103: 122.8 | K103: 80.6 | L103: 1.44 | M103: 1.44 | N103: 18.3 | O103: =VLOOKUP(B103,'data LE '!$A$4:$C$355,3,FALSE) -> Warrington
A104: 4E060000071 | B104: E06000007 | C104: 1 | D104: 4 | E104: 146 | F104: 23.3 | G104: 0.13 | H104: 0.13 | I104: 14.5 | J104: 41 | K104: 30.7 | L104: 0.83 | M104: 0.83 | N104: 10.6 | O104: =VLOOKUP(B104,'data LE '!$A$4:$C$355,3,FALSE) -> Warrington
A105: 5E060000071 | B105: E06000007 | C105: 1 | D105: 5 | E105: 127 | F105: 4.6 | G105: 0.08 | H105: 0.08 | I105: 8.9 | J105: 39 | K105: 21.7 | L105: 0.97 | M105: 0.97 | N105: 12.3 | O105: =VLOOKUP(B105,'data LE '!$A$4:$C$355,3,FALSE) -> Warrington
A106: 6E060000071 | B106: E06000007 | C106: 1 | D106: 6 | E106: 191.4 | F106: 35.9 | G106: 0.1 | H106: 0.1 | I106: 11 | J106: 58.2 | K106: 38.6 | L106: 0.41 | M106: 0.41 | N106: 5.3 | O106: =VLOOKUP(B106,'data LE '!$A$4:$C$355,3,FALSE) -> Warrington
A107: 7E060000071 | B107: E06000007 | C107: 1 | D107: 7 | E107: 281 | F107: 40.2 | G107: 0.18 | H107: 0.18 | I107: 19.6 | J107: 68 | K107: 28.5 | L107: 0.88 | M107: 0.88 | N107: 11.1 | O107: =VLOOKUP(B107,'data LE '!$A$4:$C$355,3,FALSE) -> Warrington
A108: 8E060000071 | B108: E06000007 | C108: 1 | D108: 8 | E108: 9 | F108: -2.3 | G108: -0.05 | H108: .. | I108: .. | J108: 5 | K108: 3.2 | L108: 0.21 | M108: 0.21 | N108: 2.7 | O108: =VLOOKUP(B108,'data LE '!$A$4:$C$355,3,FALSE) -> Warrington
A109: 1E060000072 | B109: E06000007 | C109: 2 | D109: 1 | E109: 752.6 | F109: 81.9 | G109: 0.31 | H109: 0.31 | I109: 22.7 | J109: 164.6 | K109: 50.6 | L109: 1.35 | M109: 1.35 | N109: 21.1 | O109: =VLOOKUP(B109,'data LE '!$A$4:$C$355,3,FALSE) -> Warrington
A110: 2E060000072 | B110: E06000007 | C110: 2 | D110: 2 | E110: 756 | F110: 63.2 | G110: 0.25 | H110: 0.25 | I110: 18.3 | J110: 166 | K110: 72.5 | L110: 1.99 | M110: 1.99 | N110: 31.2 | O110: =VLOOKUP(B110,'data LE '!$A$4:$C$355,3,FALSE) -> Warrington
A111: 3E060000072 | B111: E06000007 | C111: 2 | D111: 3 | E111: 441.1 | F111: 90.6 | G111: 0.24 | H111: 0.24 | I111: 17.3 | J111: 108.8 | K111: 55.9 | L111: 0.97 | M111: 0.97 | N111: 15.2 | O111: =VLOOKUP(B111,'data LE '!$A$4:$C$355,3,FALSE) -> Warrington
A112: 4E060000072 | B112: E06000007 | C112: 2 | D112: 4 | E112: 152.9 | F112: 28.4 | G112: 0.13 | H112: 0.13 | I112: 9.5 | J112: 32.4 | K112: 15.4 | L112: 0.48 | M112: 0.48 | N112: 7.6 | O112: =VLOOKUP(B112,'data LE '!$A$4:$C$355,3,FALSE) -> Warrington
A113: 5E060000072 | B113: E06000007 | C113: 2 | D113: 5 | E113: 76.3 | F113: 3.2 | G113: 0.08 | H113: 0.08 | I113: 6 | J113: 25 | K113: 19.3 | L113: 0.52 | M113: 0.52 | N113: 8.2 | O113: =VLOOKUP(B113,'data LE '!$A$4:$C$355,3,FALSE) -> Warrington
A114: 6E060000072 | B114: E06000007 | C114: 2 | D114: 6 | E114: 413.6 | F114: 98.4 | G114: 0.24 | H114: 0.24 | I114: 17.3 | J114: 103.9 | K114: 32 | L114: 0.36 | M114: 0.36 | N114: 5.6 | O114: =VLOOKUP(B114,'data LE '!$A$4:$C$355,3,FALSE) -> Warrington
A115: 7E060000072 | B115: E06000007 | C115: 2 | D115: 7 | E115: 330.4 | F115: 16.2 | G115: 0 | H115: 0 | I115: 0 | J115: 66.4 | K115: 9.8 | L115: 0.6 | M115: 0.6 | N115: 9.3 | O115: =VLOOKUP(B115,'data LE '!$A$4:$C$355,3,FALSE) -> Warrington
A116: 8E060000072 | B116: E06000007 | C116: 2 | D116: 8 | E116: 14 | F116: 5.3 | G116: 0.12 | H116: 0.12 | I116: 9 | J116: 3 | K116: 1.4 | L116: 0.11 | M116: 0.11 | N116: 1.8 | O116: =VLOOKUP(B116,'data LE '!$A$4:$C$355,3,FALSE) -> Warrington
A117: 1E060000081 | B117: E06000008 | C117: 1 | D117: 1 | E117: 551.3 | F117: 140.9 | G117: 0.93 | H117: 0.93 | I117: 35.1 | J117: 136.4 | K117: 82.9 | L117: 2.62 | M117: 2.62 | N117: 33.4 | O117: =VLOOKUP(B117,'data LE '!$A$4:$C$355,3,FALSE) -> Blackburn with Darwen
A118: 2E060000081 | B118: E06000008 | C118: 1 | D118: 2 | E118: 505 | F118: 37.2 | G118: 0.26 | H118: 0.26 | I118: 9.8 | J118: 110 | K118: 48.7 | L118: 1.32 | M118: 1.32 | N118: 16.9 | O118: =VLOOKUP(B118,'data LE '!$A$4:$C$355,3,FALSE) -> Blackburn with Darwen
A119: 3E060000081 | B119: E06000008 | C119: 1 | D119: 3 | E119: 269.6 | F119: 78.5 | G119: 0.42 | H119: 0.42 | I119: 15.8 | J119: 69.3 | K119: 45.4 | L119: 1.16 | M119: 1.16 | N119: 14.9 | O119: =VLOOKUP(B119,'data LE '!$A$4:$C$355,3,FALSE) -> Blackburn with Darwen
A120: 4E060000081 | B120: E06000008 | C120: 1 | D120: 4 | E120: 108 | F120: 32.8 | G120: 0.33 | H120: 0.33 | I120: 12.5 | J120: 35 | K120: 24.8 | L120: 0.88 | M120: 0.88 | N120: 11.2 | O120: =VLOOKUP(B120,'data LE '!$A$4:$C$355,3,FALSE) -> Blackburn with Darwen
A121: 5E060000081 | B121: E06000008 | C121: 1 | D121: 5 | E121: 118 | F121: 36.7 | G121: 0.34 | H121: 0.34 | I121: 12.9 | J121: 39 | K121: 31.4 | L121: 1.38 | M121: 1.38 | N121: 17.6 | O121: =VLOOKUP(B121,'data LE '!$A$4:$C$355,3,FALSE) -> Blackburn with Darwen
A122: 6E060000081 | B122: E06000008 | C122: 1 | D122: 6 | E122: 90.1 | F122: -1.6 | G122: -0.03 | H122: .. | I122: .. | J122: 14.6 | K122: 9.2 | L122: 0.19 | M122: 0.19 | N122: 2.5 | O122: =VLOOKUP(B122,'data LE '!$A$4:$C$355,3,FALSE) -> Blackburn with Darwen
A123: 7E060000081 | B123: E06000008 | C123: 1 | D123: 7 | E123: 175 | F123: 27.6 | G123: 0.29 | H123: 0.29 | I123: 11.1 | J123: 33 | K123: 13.3 | L123: 0.27 | M123: 0.27 | N123: 3.4 | O123: =VLOOKUP(B123,'data LE '!$A$4:$C$355,3,FALSE) -> Blackburn with Darwen
A124: 8E060000081 | B124: E06000008 | C124: 1 | D124: 8 | E124: 14 | F124: 3.5 | G124: 0.08 | H124: 0.08 | I124: 2.9 | J124: 4 | K124: 0.1 | L124: 0.01 | M124: 0.01 | N124: 0.1 | O124: =VLOOKUP(B124,'data LE '!$A$4:$C$355,3,FALSE) -> Blackburn with Darwen
A125: 1E060000082 | B125: E06000008 | C125: 2 | D125: 1 | E125: 531.7 | F125: 126.7 | G125: 0.74 | H125: 0.74 | I125: 37.8 | J125: 123.7 | K125: 66.7 | L125: 1.84 | M125: 1.84 | N125: 30 | O125: =VLOOKUP(B125,'data LE '!$A$4:$C$355,3,FALSE) -> Blackburn with Darwen
A126: 2E060000082 | B126: E06000008 | C126: 2 | D126: 2 | E126: 452 | F126: 37.5 | G126: 0.27 | H126: 0.27 | I126: 14 | J126: 95 | K126: 32.6 | L126: 1.34 | M126: 1.34 | N126: 21.8 | O126: =VLOOKUP(B126,'data LE '!$A$4:$C$355,3,FALSE) -> Blackburn with Darwen
A127: 3E060000082 | B127: E06000008 | C127: 2 | D127: 3 | E127: 270.4 | F127: 59.5 | G127: 0.35 | H127: 0.35 | I127: 18 | J127: 82.8 | K127: 54.6 | L127: 1.68 | M127: 1.68 | N127: 27.4 | O127: =VLOOKUP(B127,'data LE '!$A$4:$C$355,3,FALSE) -> Blackburn with Darwen
A128: 4E060000082 | B128: E06000008 | C128: 2 | D128: 4 | E128: 83.9 | F128: 8.3 | G128: 0.12 | H128: 0.12 | I128: 6.3 | J128: 17.9 | K128: 6.4 | L128: 0.2 | M128: 0.2 | N128: 3.3 | O128: =VLOOKUP(B128,'data LE '!$A$4:$C$355,3,FALSE) -> Blackburn with Darwen
A129: 5E060000082 | B129: E06000008 | C129: 2 | D129: 5 | E129: 46 | F129: -0.5 | G129: -0.02 | H129: .. | I129: .. | J129: 11.6 | K129: 6.6 | L129: 0.39 | M129: 0.39 | N129: 6.4 | O129: =VLOOKUP(B129,'data LE '!$A$4:$C$355,3,FALSE) -> Blackburn with Darwen
A130: 6E060000082 | B130: E06000008 | C130: 2 | D130: 6 | E130: 216.1 | F130: 24.2 | G130: 0.12 | H130: 0.12 | I130: 6 | J130: 22.5 | K130: 7.3 | L130: 0.13 | M130: 0.13 | N130: 2.2 | O130: =VLOOKUP(B130,'data LE '!$A$4:$C$355,3,FALSE) -> Blackburn with Darwen
A131: 7E060000082 | B131: E06000008 | C131: 2 | D131: 7 | E131: 230.5 | F131: 37.8 | G131: 0.3 | H131: 0.3 | I131: 15.6 | J131: 46.5 | K131: 22.9 | L131: 0.55 | M131: 0.55 | N131: 9 | O131: =VLOOKUP(B131,'data LE '!$A$4:$C$355,3,FALSE) -> Blackburn with Darwen
A132: 8E060000082 | B132: E06000008 | C132: 2 | D132: 8 | E132: 10 | F132: 1.9 | G132: 0.05 | H132: 0.05 | I132: 2.4 | J132: 0 | K132: -4 | L132: -0.4 | M132: .. | N132: .. | O132: =VLOOKUP(B132,'data LE '!$A$4:$C$355,3,FALSE) -> Blackburn with Darwen
A133: 1E060000091 | B133: E06000009 | C133: 1 | D133: 1 | E133: 781 | F133: 216.3 | G133: 1.06 | H133: 1.06 | I133: 23.6 | J133: 153.4 | K133: 71.8 | L133: 1.85 | M133: 1.85 | N133: 22.3 | O133: =VLOOKUP(B133,'data LE '!$A$4:$C$355,3,FALSE) -> Blackpool
A134: 2E060000091 | B134: E06000009 | C134: 1 | D134: 2 | E134: 751 | F134: 124.8 | G134: 0.68 | H134: 0.68 | I134: 15.1 | J134: 136 | K134: 47.6 | L134: 1.19 | M134: 1.19 | N134: 14.2 | O134: =VLOOKUP(B134,'data LE '!$A$4:$C$355,3,FALSE) -> Blackpool
A135: 3E060000091 | B135: E06000009 | C135: 1 | D135: 3 | E135: 404.8 | F135: 133.5 | G135: 0.59 | H135: 0.59 | I135: 13.1 | J135: 75.3 | K135: 34.8 | L135: 0.69 | M135: 0.69 | N135: 8.3 | O135: =VLOOKUP(B135,'data LE '!$A$4:$C$355,3,FALSE) -> Blackpool
A136: 4E060000091 | B136: E06000009 | C136: 1 | D136: 4 | E136: 202 | F136: 106.1 | G136: 0.71 | H136: 0.71 | I136: 15.9 | J136: 62 | K136: 49 | L136: 1.5 | M136: 1.5 | N136: 18 | O136: =VLOOKUP(B136,'data LE '!$A$4:$C$355,3,FALSE) -> Blackpool
A137: 5E060000091 | B137: E06000009 | C137: 1 | D137: 5 | E137: 162 | F137: 73.4 | G137: 1.06 | H137: 1.06 | I137: 23.6 | J137: 66 | K137: 52.1 | L137: 2.42 | M137: 2.42 | N137: 29 | O137: =VLOOKUP(B137,'data LE '!$A$4:$C$355,3,FALSE) -> Blackpool
A138: 6E060000091 | B138: E06000009 | C138: 1 | D138: 6 | E138: 156.2 | F138: 20.1 | G138: 0.09 | H138: 0.09 | I138: 2 | J138: 20.8 | K138: 6.6 | L138: 0.15 | M138: 0.15 | N138: 1.8 | O138: =VLOOKUP(B138,'data LE '!$A$4:$C$355,3,FALSE) -> Blackpool
A139: 7E060000091 | B139: E06000009 | C139: 1 | D139: 7 | E139: 224 | F139: 27.4 | G139: 0.24 | H139: 0.24 | I139: 5.4 | J139: 41 | K139: 16.7 | L139: 0.52 | M139: 0.52 | N139: 6.3 | O139: =VLOOKUP(B139,'data LE '!$A$4:$C$355,3,FALSE) -> Blackpool
A140: 8E060000091 | B140: E06000009 | C140: 1 | D140: 8 | E140: 10 | F140: 2.1 | G140: 0.06 | H140: 0.06 | I140: 1.3 | J140: 0 | K140: -3.9 | L140: -0.47 | M140: .. | N140: .. | O140: =VLOOKUP(B140,'data LE '!$A$4:$C$355,3,FALSE) -> Blackpool
A141: 1E060000092 | B141: E06000009 | C141: 2 | D141: 1 | E141: 705.6 | F141: 108.1 | G141: 0.59 | H141: 0.59 | I141: 19.3 | J141: 90.7 | K141: 23 | L141: 1 | M141: 1 | N141: 15.3 | O141: =VLOOKUP(B141,'data LE '!$A$4:$C$355,3,FALSE) -> Blackpool
A142: 2E060000092 | B142: E06000009 | C142: 2 | D142: 2 | E142: 641 | F142: 78.4 | G142: 0.43 | H142: 0.43 | I142: 14.1 | J142: 92 | K142: 23.8 | L142: 0.86 | M142: 0.86 | N142: 13.2 | O142: =VLOOKUP(B142,'data LE '!$A$4:$C$355,3,FALSE) -> Blackpool
A143: 3E060000092 | B143: E06000009 | C143: 2 | D143: 3 | E143: 453.8 | F143: 142.9 | G143: 0.66 | H143: 0.66 | I143: 21.5 | J143: 66.2 | K143: 33.7 | L143: 1.41 | M143: 1.41 | N143: 21.5 | O143: =VLOOKUP(B143,'data LE '!$A$4:$C$355,3,FALSE) -> Blackpool
A144: 4E060000092 | B144: E06000009 | C144: 2 | D144: 4 | E144: 185.5 | F144: 80.5 | G144: 0.52 | H144: 0.52 | I144: 17 | J144: 42.6 | K144: 26.3 | L144: 1.16 | M144: 1.16 | N144: 17.7 | O144: =VLOOKUP(B144,'data LE '!$A$4:$C$355,3,FALSE) -> Blackpool
A145: 5E060000092 | B145: E06000009 | C145: 2 | D145: 5 | E145: 79.5 | F145: 20 | G145: 0.32 | H145: 0.32 | I145: 10.6 | J145: 13.6 | K145: 5.7 | L145: 0.75 | M145: 0.75 | N145: 11.5 | O145: =VLOOKUP(B145,'data LE '!$A$4:$C$355,3,FALSE) -> Blackpool
A146: 6E060000092 | B146: E06000009 | C146: 2 | D146: 6 | E146: 342.7 | F146: 49.2 | G146: 0.15 | H146: 0.15 | I146: 4.9 | J146: 35.1 | K146: 2.9 | L146: 0.13 | M146: 0.13 | N146: 1.9 | O146: =VLOOKUP(B146,'data LE '!$A$4:$C$355,3,FALSE) -> Blackpool
A147: 7E060000092 | B147: E06000009 | C147: 2 | D147: 7 | E147: 303.6 | F147: 27.3 | G147: 0.18 | H147: 0.18 | I147: 6.1 | J147: 46.6 | K147: 15 | L147: 1.17 | M147: 1.17 | N147: 17.9 | O147: =VLOOKUP(B147,'data LE '!$A$4:$C$355,3,FALSE) -> Blackpool
A148: 8E060000092 | B148: E06000009 | C148: 2 | D148: 8 | E148: 13 | F148: 6.6 | G148: 0.2 | H148: 0.2 | I148: 6.5 | J148: 3 | K148: 0.5 | L148: 0.06 | M148: 0.06 | N148: 1 | O148: =VLOOKUP(B148,'data LE '!$A$4:$C$355,3,FALSE) -> Blackpool
A149: 1E060000101 | B149: E06000010 | C149: 1 | D149: 1 | E149: 1005.7 | F149: 221.9 | G149: 0.77 | H149: 0.77 | I149: 28.7 | J149: 267.7 | K149: 129.3 | L149: 1.92 | M149: 1.92 | N149: 27.2 | O149: =VLOOKUP(B149,'data LE '!$A$4:$C$355,3,FALSE) -> Kingston upon Hull
A150: 2E060000101 | B150: E06000010 | C150: 1 | D150: 2 | E150: 1102 | F150: 229 | G150: 0.78 | H150: 0.78 | I150: 28.9 | J150: 279 | K150: 121.7 | L150: 1.84 | M150: 1.84 | N150: 26 | O150: =VLOOKUP(B150,'data LE '!$A$4:$C$355,3,FALSE) -> Kingston upon Hull
A151: 3E060000101 | B151: E06000010 | C151: 1 | D151: 3 | E151: 540.4 | F151: 169.4 | G151: 0.53 | H151: 0.53 | I151: 19.6 | J151: 140.3 | K151: 72.8 | L151: 0.9 | M151: 0.9 | N151: 12.8 | O151: =VLOOKUP(B151,'data LE '!$A$4:$C$355,3,FALSE) -> Kingston upon Hull
A152: 4E060000101 | B152: E06000010 | C152: 1 | D152: 4 | E152: 206 | F152: 66.7 | G152: 0.26 | H152: 0.26 | I152: 9.6 | J152: 54 | K152: 29.6 | L152: 0.53 | M152: 0.53 | N152: 7.5 | O152: =VLOOKUP(B152,'data LE '!$A$4:$C$355,3,FALSE) -> Kingston upon Hull
A153: 5E060000101 | B153: E06000010 | C153: 1 | D153: 5 | E153: 161 | F153: 9.6 | G153: 0.09 | H153: 0.09 | I153: 3.3 | J153: 47 | K153: 23.9 | L153: 0.7 | M153: 0.7 | N153: 9.9 | O153: =VLOOKUP(B153,'data LE '!$A$4:$C$355,3,FALSE) -> Kingston upon Hull
A154: 6E060000101 | B154: E06000010 | C154: 1 | D154: 6 | E154: 187.1 | F154: 2.4 | G154: 0.01 | H154: 0.01 | I154: 0.3 | J154: 65.6 | K154: 50.6 | L154: 0.33 | M154: 0.33 | N154: 4.6 | O154: =VLOOKUP(B154,'data LE '!$A$4:$C$355,3,FALSE) -> Kingston upon Hull
A155: 7E060000101 | B155: E06000010 | C155: 1 | D155: 7 | E155: 335 | F155: 53.9 | G155: 0.23 | H155: 0.23 | I155: 8.7 | J155: 87 | K155: 49.9 | L155: 0.84 | M155: 0.84 | N155: 11.9 | O155: =VLOOKUP(B155,'data LE '!$A$4:$C$355,3,FALSE) -> Kingston upon Hull
A156: 8E060000101 | B156: E06000010 | C156: 1 | D156: 8 | E156: 19 | F156: 1.8 | G156: 0.02 | H156: 0.02 | I156: 0.9 | J156: 4 | K156: -2.8 | L156: -0.13 | M156: .. | N156: .. | O156: =VLOOKUP(B156,'data LE '!$A$4:$C$355,3,FALSE) -> Kingston upon Hull
A157: 1E060000102 | B157: E06000010 | C157: 2 | D157: 1 | E157: 992.4 | F157: 213.8 | G157: 0.59 | H157: 0.59 | I157: 23.3 | J157: 239.5 | K157: 115.5 | L157: 1.62 | M157: 1.62 | N157: 30.6 | O157: =VLOOKUP(B157,'data LE '!$A$4:$C$355,3,FALSE) -> Kingston upon Hull
A158: 2E060000102 | B158: E06000010 | C158: 2 | D158: 2 | E158: 984 | F158: 206.9 | G158: 0.82 | H158: 0.82 | I158: 32.4 | J158: 210 | K158: 61.3 | L158: 1.04 | M158: 1.04 | N158: 19.7 | O158: =VLOOKUP(B158,'data LE '!$A$4:$C$355,3,FALSE) -> Kingston upon Hull
A159: 3E060000102 | B159: E06000010 | C159: 2 | D159: 3 | E159: 639.1 | F159: 234.2 | G159: 0.73 | H159: 0.73 | I159: 29 | J159: 171.9 | K159: 102.5 | L159: 1.25 | M159: 1.25 | N159: 23.6 | O159: =VLOOKUP(B159,'data LE '!$A$4:$C$355,3,FALSE) -> Kingston upon Hull
A160: 4E060000102 | B160: E06000010 | C160: 2 | D160: 4 | E160: 178.8 | F160: 36.3 | G160: 0.11 | H160: 0.11 | I160: 4.4 | J160: 34.3 | K160: 6.6 | L160: 0.2 | M160: 0.2 | N160: 3.8 | O160: =VLOOKUP(B160,'data LE '!$A$4:$C$355,3,FALSE) -> Kingston upon Hull
A161: 5E060000102 | B161: E06000010 | C161: 2 | D161: 5 | E161: 99.6 | F161: 13 | G161: 0.1 | H161: 0.1 | I161: 3.9 | J161: 24.4 | K161: 14.8 | L161: 0.44 | M161: 0.44 | N161: 8.4 | O161: =VLOOKUP(B161,'data LE '!$A$4:$C$355,3,FALSE) -> Kingston upon Hull
A162: 6E060000102 | B162: E06000010 | C162: 2 | D162: 6 | E162: 414.6 | F162: 42.8 | G162: 0.09 | H162: 0.09 | I162: 3.7 | J162: 106.2 | K162: 57.6 | L162: 0.35 | M162: 0.35 | N162: 6.6 | O162: =VLOOKUP(B162,'data LE '!$A$4:$C$355,3,FALSE) -> Kingston upon Hull
A163: 7E060000102 | B163: E06000010 | C163: 2 | D163: 7 | E163: 369.2 | F163: 3.1 | G163: 0.09 | H163: 0.09 | I163: 3.4 | J163: 82.2 | K163: 25.2 | L163: 0.22 | M163: 0.22 | N163: 4.2 | O163: =VLOOKUP(B163,'data LE '!$A$4:$C$355,3,FALSE) -> Kingston upon Hull
A164: 8E060000102 | B164: E06000010 | C164: 2 | D164: 8 | E164: 10 | F164: -3.4 | G164: -0.05 | H164: .. | I164: .. | J164: 3 | K164: 3 | L164: 0.17 | M164: 0.17 | N164: 3.2 | O164: =VLOOKUP(B164,'data LE '!$A$4:$C$355,3,FALSE) -> Kingston upon Hull
A165: 1E060000111 | B165: E06000011 | C165: 1 | D165: 1 | E165: 1551.7 | F165: 0.7 | G165: -0.06 | H165: .. | I165: ++ | J165: 383.9 | K165: 152.2 | L165: 1.76 | M165: 1.76 | N165: 31 | O165: =VLOOKUP(B165,'data LE '!$A$4:$C$355,3,FALSE) -> East Riding of Yorkshire
A166: 2E060000111 | B166: E06000011 | C166: 1 | D166: 2 | E166: 1638 | F166: -88.6 | G166: -0.27 | H166: .. | I166: ++ | J166: 398 | K166: 129.6 | L166: 1.21 | M166: 1.21 | N166: 21.4 | O166: =VLOOKUP(B166,'data LE '!$A$4:$C$355,3,FALSE) -> East Riding of Yorkshire
A167: 3E060000111 | B167: E06000011 | C167: 1 | D167: 3 | E167: 745 | F167: -4.1 | G167: -0.02 | H167: .. | I167: ++ | J167: 185.6 | K167: 80.5 | L167: 0.62 | M167: 0.62 | N167: 11 | O167: =VLOOKUP(B167,'data LE '!$A$4:$C$355,3,FALSE) -> East Riding of Yorkshire
A168: 4E060000111 | B168: E06000011 | C168: 1 | D168: 4 | E168: 238 | F168: -19.8 | G168: -0.05 | H168: .. | I168: ++ | J168: 73 | K168: 38.5 | L168: 0.69 | M168: 0.69 | N168: 12.2 | O168: =VLOOKUP(B168,'data LE '!$A$4:$C$355,3,FALSE) -> East Riding of Yorkshire
A169: 5E060000111 | B169: E06000011 | C169: 1 | D169: 5 | E169: 179 | F169: -41.3 | G169: -0.14 | H169: .. | I169: ++ | J169: 55 | K169: 28.7 | L169: 0.71 | M169: 0.71 | N169: 12.5 | O169: =VLOOKUP(B169,'data LE '!$A$4:$C$355,3,FALSE) -> East Riding of Yorkshire
A170: 6E060000111 | B170: E06000011 | C170: 1 | D170: 6 | E170: 312.9 | F170: -61.9 | G170: -0.11 | H170: .. | I170: ++ | J170: 84.4 | K170: 15.1 | L170: 0.14 | M170: 0.14 | N170: 2.4 | O170: =VLOOKUP(B170,'data LE '!$A$4:$C$355,3,FALSE) -> East Riding of Yorkshire
A171: 7E060000111 | B171: E06000011 | C171: 1 | D171: 7 | E171: 510 | F171: -21.8 | G171: -0.02 | H171: .. | I171: ++ | J171: 129 | K171: 46.8 | L171: 0.53 | M171: 0.53 | N171: 9.3 | O171: =VLOOKUP(B171,'data LE '!$A$4:$C$355,3,FALSE) -> East Riding of Yorkshire
A172: 8E060000111 | B172: E06000011 | C172: 1 | D172: 8 | E172: 9 | F172: -5.4 | G172: -0.09 | H172: .. | I172: ++ | J172: 2 | K172: 0.3 | L172: 0.02 | M172: 0.02 | N172: 0.3 | O172: =VLOOKUP(B172,'data LE '!$A$4:$C$355,3,FALSE) -> East Riding of Yorkshire
A173: 1E060000112 | B173: E06000011 | C173: 2 | D173: 1 | E173: 1680.6 | F173: 169.9 | G173: 0.19 | H173: 0.19 | I173: ++ | J173: 395.4 | K173: 40.2 | L173: 0.65 | M173: 0.65 | N173: 15.6 | O173: =VLOOKUP(B173,'data LE '!$A$4:$C$355,3,FALSE) -> East Riding of Yorkshire
A174: 2E060000112 | B174: E06000011 | C174: 2 | D174: 2 | E174: 1526 | F174: 34.2 | G174: 0.04 | H174: 0.04 | I174: ++ | J174: 345 | K174: 46.8 | L174: 0.85 | M174: 0.85 | N174: 20.4 | O174: =VLOOKUP(B174,'data LE '!$A$4:$C$355,3,FALSE) -> East Riding of Yorkshire
A175: 3E060000112 | B175: E06000011 | C175: 2 | D175: 3 | E175: 820.8 | F175: 31.2 | G175: -0.02 | H175: .. | I175: ++ | J175: 211.5 | K175: 58 | L175: 0.76 | M175: 0.76 | N175: 18.4 | O175: =VLOOKUP(B175,'data LE '!$A$4:$C$355,3,FALSE) -> East Riding of Yorkshire
A176: 4E060000112 | B176: E06000011 | C176: 2 | D176: 4 | E176: 260.6 | F176: -9.5 | G176: -0.04 | H176: .. | I176: ++ | J176: 78.9 | K176: 43.2 | L176: 0.45 | M176: 0.45 | N176: 11 | O176: =VLOOKUP(B176,'data LE '!$A$4:$C$355,3,FALSE) -> East Riding of Yorkshire
A177: 5E060000112 | B177: E06000011 | C177: 2 | D177: 5 | E177: 128.2 | F177: -19.7 | G177: -0.02 | H177: .. | I177: ++ | J177: 37.4 | K177: 18.4 | L177: 0.56 | M177: 0.56 | N177: 13.6 | O177: =VLOOKUP(B177,'data LE '!$A$4:$C$355,3,FALSE) -> East Riding of Yorkshire
A178: 6E060000112 | B178: E06000011 | C178: 2 | D178: 6 | E178: 726.7 | F178: 2.6 | G178: 0 | H178: 0 | I178: ++ | J178: 182.1 | K178: 13.5 | L178: 0.18 | M178: 0.18 | N178: 4.3 | O178: =VLOOKUP(B178,'data LE '!$A$4:$C$355,3,FALSE) -> East Riding of Yorkshire
A179: 7E060000112 | B179: E06000011 | C179: 2 | D179: 7 | E179: 663.2 | F179: -30 | G179: -0.09 | H179: .. | I179: ++ | J179: 150.5 | K179: 15.8 | L179: 0.69 | M179: 0.69 | N179: 16.6 | O179: =VLOOKUP(B179,'data LE '!$A$4:$C$355,3,FALSE) -> East Riding of Yorkshire
A180: 8E060000112 | B180: E06000011 | C180: 2 | D180: 8 | E180: 8 | F180: -2.7 | G180: -0.05 | H180: .. | I180: ++ | J180: 0 | K180: -1.6 | L180: -0.11 | M180: .. | N180: .. | O180: =VLOOKUP(B180,'data LE '!$A$4:$C$355,3,FALSE) -> East Riding of Yorkshire
A181: 1E060000121 | B181: E06000012 | C181: 1 | D181: 1 | E181: 737.2 | F181: 122.2 | G181: 0.62 | H181: 0.62 | I181: 37.4 | J181: 160.5 | K181: 90.6 | L181: 2.72 | M181: 2.72 | N181: 32.1 | O181: =VLOOKUP(B181,'data LE '!$A$4:$C$355,3,FALSE) -> North East Lincolnshire
A182: 2E060000121 | B182: E06000012 | C182: 1 | D182: 2 | E182: 777 | F182: 96.3 | G182: 0.41 | H182: 0.41 | I182: 24.8 | J182: 133 | K182: 41.1 | L182: 1.15 | M182: 1.15 | N182: 13.6 | O182: =VLOOKUP(B182,'data LE '!$A$4:$C$355,3,FALSE) -> North East Lincolnshire
A183: 3E060000121 | B183: E06000012 | C183: 1 | D183: 3 | E183: 336.2 | F183: 40.6 | G183: 0.18 | H183: 0.18 | I183: 10.8 | J183: 75.1 | K183: 50.9 | L183: 1.23 | M183: 1.23 | N183: 14.5 | O183: =VLOOKUP(B183,'data LE '!$A$4:$C$355,3,FALSE) -> North East Lincolnshire
A184: 4E060000121 | B184: E06000012 | C184: 1 | D184: 4 | E184: 138 | F184: 33.7 | G184: 0.29 | H184: 0.29 | I184: 17.4 | J184: 35 | K184: 25 | L184: 0.92 | M184: 0.92 | N184: 10.9 | O184: =VLOOKUP(B184,'data LE '!$A$4:$C$355,3,FALSE) -> North East Lincolnshire
A185: 5E060000121 | B185: E06000012 | C185: 1 | D185: 5 | E185: 88 | F185: -10 | G185: 0.03 | H185: 0.03 | I185: 1.5 | J185: 32 | K185: 26.7 | L185: 1.28 | M185: 1.28 | N185: 15.1 | O185: =VLOOKUP(B185,'data LE '!$A$4:$C$355,3,FALSE) -> North East Lincolnshire
A186: 6E060000121 | B186: E06000012 | C186: 1 | D186: 6 | E186: 138.4 | F186: -10.4 | G186: -0.01 | H186: .. | I186: .. | J186: 19.7 | K186: 8.1 | L186: 0.2 | M186: 0.2 | N186: 2.4 | O186: =VLOOKUP(B186,'data LE '!$A$4:$C$355,3,FALSE) -> North East Lincolnshire
A187: 7E060000121 | B187: E06000012 | C187: 1 | D187: 7 | E187: 228 | F187: 13.3 | G187: 0.13 | H187: 0.13 | I187: 8 | J187: 49 | K187: 25.8 | L187: 0.89 | M187: 0.89 | N187: 10.5 | O187: =VLOOKUP(B187,'data LE '!$A$4:$C$355,3,FALSE) -> North East Lincolnshire
A188: 8E060000121 | B188: E06000012 | C188: 1 | D188: 8 | E188: 7 | F188: -1.8 | G188: -0.05 | H188: .. | I188: .. | J188: 1 | K188: 1 | L188: 0.08 | M188: 0.08 | N188: 1 | O188: =VLOOKUP(B188,'data LE '!$A$4:$C$355,3,FALSE) -> North East Lincolnshire
A189: 1E060000122 | B189: E06000012 | C189: 2 | D189: 1 | E189: 679.8 | F189: 56.7 | G189: 0.26 | H189: 0.26 | I189: 21.4 | J189: 116.7 | K189: 41.5 | L189: 1.37 | M189: 1.37 | N189: 20.1 | O189: =VLOOKUP(B189,'data LE '!$A$4:$C$355,3,FALSE) -> North East Lincolnshire
A190: 2E060000122 | B190: E06000012 | C190: 2 | D190: 2 | E190: 647 | F190: 44.3 | G190: 0.38 | H190: 0.38 | I190: 31.2 | J190: 125 | K190: 62.5 | L190: 2.19 | M190: 2.19 | N190: 32.2 | O190: =VLOOKUP(B190,'data LE '!$A$4:$C$355,3,FALSE) -> North East Lincolnshire
A191: 3E060000122 | B191: E06000012 | C191: 2 | D191: 3 | E191: 393.2 | F191: 68.8 | G191: 0.29 | H191: 0.29 | I191: 23.8 | J191: 86.5 | K191: 51.7 | L191: 1.46 | M191: 1.46 | N191: 21.4 | O191: =VLOOKUP(B191,'data LE '!$A$4:$C$355,3,FALSE) -> North East Lincolnshire
A192: 4E060000122 | B192: E06000012 | C192: 2 | D192: 4 | E192: 127.9 | F192: 16.7 | G192: 0.13 | H192: 0.13 | I192: 11 | J192: 21.3 | K192: 8.5 | L192: 0.68 | M192: 0.68 | N192: 9.9 | O192: =VLOOKUP(B192,'data LE '!$A$4:$C$355,3,FALSE) -> North East Lincolnshire
A193: 5E060000122 | B193: E06000012 | C193: 2 | D193: 5 | E193: 70.4 | F193: 6.8 | G193: 0 | H193: 0 | I193: 0.2 | J193: 13.7 | K193: 4.1 | L193: 0.15 | M193: 0.15 | N193: 2.2 | O193: =VLOOKUP(B193,'data LE '!$A$4:$C$355,3,FALSE) -> North East Lincolnshire
A194: 6E060000122 | B194: E06000012 | C194: 2 | D194: 6 | E194: 272.2 | F194: -29.6 | G194: -0.08 | H194: .. | I194: .. | J194: 36.1 | K194: 8.9 | L194: 0.2 | M194: 0.2 | N194: 2.9 | O194: =VLOOKUP(B194,'data LE '!$A$4:$C$355,3,FALSE) -> North East Lincolnshire
A195: 7E060000122 | B195: E06000012 | C195: 2 | D195: 7 | E195: 313.2 | F195: 24.5 | G195: 0.15 | H195: 0.15 | I195: 12.4 | J195: 55.4 | K195: 22.7 | L195: 0.76 | M195: 0.76 | N195: 11.2 | O195: =VLOOKUP(B195,'data LE '!$A$4:$C$355,3,FALSE) -> North East Lincolnshire
A196: 8E060000122 | B196: E06000012 | C196: 2 | D196: 8 | E196: 3 | F196: -4.3 | G196: -0.12 | H196: .. | I196: .. | J196: 0 | K196: 0 | L196: 0 | M196: 0 | N196: 0 | O196: =VLOOKUP(B196,'data LE '!$A$4:$C$355,3,FALSE) -> North East Lincolnshire
A197: 1E060000131 | B197: E06000013 | C197: 1 | D197: 1 | E197: 748.8 | F197: 93.3 | G197: 0.36 | H197: 0.36 | I197: 28.1 | J197: 157.2 | K197: 64 | L197: 1.52 | M197: 1.52 | N197: 22.3 | O197: =VLOOKUP(B197,'data LE '!$A$4:$C$355,3,FALSE) -> North Lincolnshire
A198: 2E060000131 | B198: E06000013 | C198: 1 | D198: 2 | E198: 785 | F198: 49.2 | G198: 0.21 | H198: 0.21 | I198: 16.3 | J198: 154 | K198: 51 | L198: 1.11 | M198: 1.11 | N198: 16.2 | O198: =VLOOKUP(B198,'data LE '!$A$4:$C$355,3,FALSE) -> North Lincolnshire
A199: 3E060000131 | B199: E06000013 | C199: 1 | D199: 3 | E199: 349.2 | F199: 36.7 | G199: 0.14 | H199: 0.14 | I199: 11.3 | J199: 92.8 | K199: 54.5 | L199: 1.08 | M199: 1.08 | N199: 15.9 | O199: =VLOOKUP(B199,'data LE '!$A$4:$C$355,3,FALSE) -> North Lincolnshire
A200: 4E060000131 | B200: E06000013 | C200: 1 | D200: 4 | E200: 132 | F200: 19.2 | G200: 0.09 | H200: 0.09 | I200: 6.8 | J200: 35 | K200: 19 | L200: 0.67 | M200: 0.67 | N200: 9.9 | O200: =VLOOKUP(B200,'data LE '!$A$4:$C$355,3,FALSE) -> North Lincolnshire
A201: 5E060000131 | B201: E06000013 | C201: 1 | D201: 5 | E201: 137 | F201: 32.6 | G201: 0.39 | H201: 0.39 | I201: 30.2 | J201: 46 | K201: 28.3 | L201: 1.03 | M201: 1.03 | N201: 15.1 | O201: =VLOOKUP(B201,'data LE '!$A$4:$C$355,3,FALSE) -> North Lincolnshire
... 5419 more rows

Sheet data detailed (hidden)
A1: Data detailed causes
A3: 2012-14 data | E3: LA whole - England | I3: LA MDQ - LA LDQ
A4: LookupCode | B4: geocode | C4: sex | D4: cause | E4: totaldeaths | F4: XSdeaths | G4: YLG_YLL | H4: YLG | I4: totaldeaths | J4: XSdeaths | K4: YLL_YLG | L4: YLG | M4: LaName
A5: 1E060000011 | B5: E06000001 | C5: 1 | D5: 1 | E5: 216.7 | F5: 34.5 | G5: 0.32 | H5: 0.32 | I5: 44.8 | J5: 25.6 | K5: 1.15 | L5: 1.15 | M5: =VLOOKUP(B5,'data LE '!$A$5:$C$355,3,FALSE) -> Hartlepool
A6: 2E060000011 | B6: E06000001 | C6: 1 | D6: 2 | E6: 74.6 | F6: 5.3 | G6: 0.05 | H6: 0.05 | I6: 21.1 | J6: 13.9 | K6: 0.52 | L6: 0.52 | M6: =VLOOKUP(B6,'data LE '!$A$5:$C$355,3,FALSE) -> Hartlepool
A7: 3E060000011 | B7: E06000001 | C7: 1 | D7: 3 | E7: 78.8 | F7: -9.2 | G7: -0.1 | H7: .. | I7: 22.8 | J7: 16.2 | K7: 0.61 | L7: 0.61 | M7: =VLOOKUP(B7,'data LE '!$A$5:$C$355,3,FALSE) -> Hartlepool
A8: 4E060000011 | B8: E06000001 | C8: 1 | D8: 4 | E8: 124 | F8: 39 | G8: 0.32 | H8: 0.32 | I8: 30 | J8: 17 | K8: 0.79 | L8: 0.79 | M8: =VLOOKUP(B8,'data LE '!$A$5:$C$355,3,FALSE) -> Hartlepool
A9: 5E060000011 | B9: E06000001 | C9: 1 | D9: 5 | E9: 314 | F9: 20 | G9: 0.25 | H9: 0.25 | I9: 52 | J9: 7.1 | K9: 0.14 | L9: 0.14 | M9: =VLOOKUP(B9,'data LE '!$A$5:$C$355,3,FALSE) -> Hartlepool
A10: 6E060000011 | B10: E06000001 | C10: 1 | D10: 6 | E10: 83.1 | F10: 26.1 | G10: 0.2 | H10: 0.2 | I10: 20.4 | J10: 13.8 | K10: 0.37 | L10: 0.37 | M10: =VLOOKUP(B10,'data LE '!$A$5:$C$355,3,FALSE) -> Hartlepool
A11: 7E060000011 | B11: E06000001 | C11: 1 | D11: 7 | E11: 75 | F11: 7 | G11: 0.07 | H11: 0.07 | I11: 15 | J11: 9.2 | K11: 0.3 | L11: 0.3 | M11: =VLOOKUP(B11,'data LE '!$A$5:$C$355,3,FALSE) -> Hartlepool
A12: 8E060000011 | B12: E06000001 | C12: 1 | D12: 8 | E12: 46.5 | F12: 10.5 | G12: 0.1 | H12: 0.1 | I12: 11.4 | J12: 6.3 | K12: 0.3 | L12: 0.3 | M12: =VLOOKUP(B12,'data LE '!$A$5:$C$355,3,FALSE) -> Hartlepool
A13: 9E060000011 | B13: E06000001 | C13: 1 | D13: 9 | E13: 29 | F13: 9.3 | G13: 0.13 | H13: 0.13 | I13: 13 | J13: 9.6 | K13: 0.61 | L13: 0.61 | M13: =VLOOKUP(B13,'data LE '!$A$5:$C$355,3,FALSE) -> Hartlepool
A14: 10E060000011 | B14: E06000001 | C14: 1 | D14: 10 | E14: 53.4 | F14: 15.1 | G14: 0.14 | H14: 0.14 | I14: 15.8 | J14: 11 | K14: 0.42 | L14: 0.42 | M14: =VLOOKUP(B14,'data LE '!$A$5:$C$355,3,FALSE) -> Hartlepool
A15: 11E060000011 | B15: E06000001 | C15: 1 | D15: 11 | E15: 18 | F15: -0.3 | G15: 0.05 | H15: 0.05 | I15: 7 | J15: 3.3 | K15: 0.23 | L15: 0.23 | M15: =VLOOKUP(B15,'data LE '!$A$5:$C$355,3,FALSE) -> Hartlepool
A16: 12E060000011 | B16: E06000001 | C16: 1 | D16: 12 | E16: 42 | F16: 5 | G16: 0.1 | H16: 0.1 | I16: 18 | J16: 17.3 | K16: 1 | L16: 1 | M16: =VLOOKUP(B16,'data LE '!$A$5:$C$355,3,FALSE) -> Hartlepool
A17: 13E060000011 | B17: E06000001 | C17: 1 | D17: 13 | E17: 83.7 | F17: 5.8 | G17: 0.06 | H17: 0.06 | I17: 25.6 | J17: 20.7 | K17: 0.39 | L17: 0.39 | M17: =VLOOKUP(B17,'data LE '!$A$5:$C$355,3,FALSE) -> Hartlepool
A18: 14E060000011 | B18: E06000001 | C18: 1 | D18: 14 | E18: 2 | F18: -0.6 | G18: -0.01 | H18: .. | I18: 1 | J18: 1 | K18: 0.07 | L18: 0.07 | M18: =VLOOKUP(B18,'data LE '!$A$5:$C$355,3,FALSE) -> Hartlepool
A19: 15E060000011 | B19: E06000001 | C19: 1 | D19: 15 | E19: 17.6 | F19: 5.8 | G19: 0.07 | H19: 0.07 | I19: 6.2 | J19: 1.3 | K19: 0.24 | L19: 0.24 | M19: =VLOOKUP(B19,'data LE '!$A$5:$C$355,3,FALSE) -> Hartlepool
A20: 16E060000011 | B20: E06000001 | C20: 1 | D20: 16 | E20: 21.9 | F20: 5.1 | G20: 0.04 | H20: 0.04 | I20: 5.9 | J20: 3.7 | K20: 0.12 | L20: 0.12 | M20: =VLOOKUP(B20,'data LE '!$A$5:$C$355,3,FALSE) -> Hartlepool
A21: 17E060000011 | B21: E06000001 | C21: 1 | D21: 17 | E21: 19 | F21: 5.3 | G21: 0.07 | H21: 0.07 | I21: 5 | J21: 1.6 | K21: 0.29 | L21: 0.29 | M21: =VLOOKUP(B21,'data LE '!$A$5:$C$355,3,FALSE) -> Hartlepool
A22: 18E060000011 | B22: E06000001 | C22: 1 | D22: 18 | E22: 13.4 | F22: 0.9 | G22: 0 | H22: 0 | I22: 4.1 | J22: 4.1 | K22: 0.1 | L22: 0.1 | M22: =VLOOKUP(B22,'data LE '!$A$5:$C$355,3,FALSE) -> Hartlepool
A23: 19E060000011 | B23: E06000001 | C23: 1 | D23: 19 | E23: 61 | F23: -2.7 | G23: -0.02 | H23: .. | I23: 12 | J23: 3.1 | K23: 0.28 | L23: 0.28 | M23: =VLOOKUP(B23,'data LE '!$A$5:$C$355,3,FALSE) -> Hartlepool
A24: 20E060000011 | B24: E06000001 | C24: 1 | D24: 20 | E24: 4 | F24: -1.1 | G24: -0.05 | H24: .. | I24: 0 | J24: -1.9 | K24: -0.28 | L24: .. | M24: =VLOOKUP(B24,'data LE '!$A$5:$C$355,3,FALSE) -> Hartlepool
A25: 1E060000012 | B25: E06000001 | C25: 2 | D25: 1 | E25: 126.1 | F25: 1.2 | G25: 0.08 | H25: 0.08 | I25: 22.8 | J25: 13.7 | K25: 0.36 | L25: 0.36 | M25: =VLOOKUP(B25,'data LE '!$A$5:$C$355,3,FALSE) -> Hartlepool
A26: 2E060000012 | B26: E06000001 | C26: 2 | D26: 2 | E26: 115.2 | F26: 12.9 | G26: 0.09 | H26: 0.09 | I26: 25.2 | J26: 16.9 | K26: 0.53 | L26: 0.53 | M26: =VLOOKUP(B26,'data LE '!$A$5:$C$355,3,FALSE) -> Hartlepool
A27: 3E060000012 | B27: E06000001 | C27: 2 | D27: 3 | E27: 104 | F27: -8.9 | G27: -0.03 | H27: .. | I27: 23 | J27: 12 | K27: 0.3 | L27: 0.3 | M27: =VLOOKUP(B27,'data LE '!$A$5:$C$355,3,FALSE) -> Hartlepool
A28: 4E060000012 | B28: E06000001 | C28: 2 | D28: 4 | E28: 131 | F28: 61.1 | G28: 0.56 | H28: 0.56 | I28: 22 | J28: 8.8 | K28: 0.55 | L28: 0.55 | M28: =VLOOKUP(B28,'data LE '!$A$5:$C$355,3,FALSE) -> Hartlepool
A29: 5E060000012 | B29: E06000001 | C29: 2 | D29: 5 | E29: 279 | F29: 9.9 | G29: 0.22 | H29: 0.22 | I29: 57 | J29: 21 | K29: 0.94 | L29: 0.94 | M29: =VLOOKUP(B29,'data LE '!$A$5:$C$355,3,FALSE) -> Hartlepool
A30: 6E060000012 | B30: E06000001 | C30: 2 | D30: 6 | E30: 70.4 | F30: -3.2 | G30: 0.03 | H30: 0.03 | I30: 16.4 | J30: 11.6 | K30: 0.51 | L30: 0.51 | M30: =VLOOKUP(B30,'data LE '!$A$5:$C$355,3,FALSE) -> Hartlepool
A31: 7E060000012 | B31: E06000001 | C31: 2 | D31: 7 | E31: 92 | F31: 27 | G31: 0.23 | H31: 0.23 | I31: 25 | J31: 18.2 | K31: 0.46 | L31: 0.46 | M31: =VLOOKUP(B31,'data LE '!$A$5:$C$355,3,FALSE) -> Hartlepool
A32: 8E060000012 | B32: E06000001 | C32: 2 | D32: 8 | E32: 40.1 | F32: 2.8 | G32: 0.01 | H32: 0.01 | I32: 7.9 | J32: 0.6 | K32: -0.04 | L32: .. | M32: =VLOOKUP(B32,'data LE '!$A$5:$C$355,3,FALSE) -> Hartlepool
A33: 9E060000012 | B33: E06000001 | C33: 2 | D33: 9 | E33: 9.8 | F33: -1.4 | G33: -0.01 | H33: .. | I33: 2.9 | J33: 1.4 | K33: 0.18 | L33: 0.18 | M33: =VLOOKUP(B33,'data LE '!$A$5:$C$355,3,FALSE) -> Hartlepool
A34: 10E060000012 | B34: E06000001 | C34: 2 | D34: 10 | E34: 50.3 | F34: -0.2 | G34: -0.01 | H34: .. | I34: 12.8 | J34: 10.5 | K34: 0.29 | L34: 0.29 | M34: =VLOOKUP(B34,'data LE '!$A$5:$C$355,3,FALSE) -> Hartlepool
A35: 11E060000012 | B35: E06000001 | C35: 2 | D35: 11 | E35: 6 | F35: 0.4 | G35: -0.03 | H35: .. | I35: 1 | J35: 0.2 | K35: -0.02 | L35: .. | M35: =VLOOKUP(B35,'data LE '!$A$5:$C$355,3,FALSE) -> Hartlepool
A36: 12E060000012 | B36: E06000001 | C36: 2 | D36: 12 | E36: 32.1 | F36: 2 | G36: 0.01 | H36: 0.01 | I36: 9.7 | J36: 5.8 | K36: 0.42 | L36: 0.42 | M36: =VLOOKUP(B36,'data LE '!$A$5:$C$355,3,FALSE) -> Hartlepool
A37: 13E060000012 | B37: E06000001 | C37: 2 | D37: 13 | E37: 155.2 | F37: -4.4 | G37: -0.02 | H37: .. | I37: 46.7 | J37: 31.3 | K37: 0.63 | L37: 0.63 | M37: =VLOOKUP(B37,'data LE '!$A$5:$C$355,3,FALSE) -> Hartlepool
A38: 14E060000012 | B38: E06000001 | C38: 2 | D38: 14 | E38: 2 | F38: 0.2 | G38: 0.01 | H38: 0.01 | I38: 0 | J38: 0 | K38: 0 | L38: 0 | M38: =VLOOKUP(B38,'data LE '!$A$5:$C$355,3,FALSE) -> Hartlepool
A39: 15E060000012 | B39: E06000001 | C39: 2 | D39: 15 | E39: 17 | F39: 3.1 | G39: 0.01 | H39: 0.01 | I39: 7 | J39: 6 | K39: 0.21 | L39: 0.21 | M39: =VLOOKUP(B39,'data LE '!$A$5:$C$355,3,FALSE) -> Hartlepool
A40: 16E060000012 | B40: E06000001 | C40: 2 | D40: 16 | E40: 31.2 | F40: 7 | G40: 0.05 | H40: 0.05 | I40: 3.7 | J40: -0.7 | K40: -0.07 | L40: .. | M40: =VLOOKUP(B40,'data LE '!$A$5:$C$355,3,FALSE) -> Hartlepool
A41: 17E060000012 | B41: E06000001 | C41: 2 | D41: 17 | E41: 81 | F41: 43 | G41: 0.28 | H41: 0.28 | I41: 22 | J41: 16.1 | K41: 0.38 | L41: 0.38 | M41: =VLOOKUP(B41,'data LE '!$A$5:$C$355,3,FALSE) -> Hartlepool
A42: 18E060000012 | B42: E06000001 | C42: 2 | D42: 18 | E42: 13 | F42: -0.2 | G42: -0.01 | H42: .. | I42: 6 | J42: 5.2 | K42: 0.14 | L42: 0.14 | M42: =VLOOKUP(B42,'data LE '!$A$5:$C$355,3,FALSE) -> Hartlepool
A43: 19E060000012 | B43: E06000001 | C43: 2 | D43: 19 | E43: 61.3 | F43: -5.8 | G43: -0.01 | H43: .. | I43: 12.8 | J43: 4.8 | K43: 0.3 | L43: 0.3 | M43: =VLOOKUP(B43,'data LE '!$A$5:$C$355,3,FALSE) -> Hartlepool
A44: 20E060000012 | B44: E06000001 | C44: 2 | D44: 20 | E44: 4 | F44: 0.1 | G44: 0 | H44: 0 | I44: 2 | J44: 2 | K44: 0.36 | L44: 0.36 | M44: =VLOOKUP(B44,'data LE '!$A$5:$C$355,3,FALSE) -> Hartlepool
A45: 1E060000021 | B45: E06000002 | C45: 1 | D45: 1 | E45: 273.6 | F45: 36.1 | G45: 0.34 | H45: 0.34 | I45: 63.8 | J45: 32.8 | K45: 0.95 | L45: 0.95 | M45: =VLOOKUP(B45,'data LE '!$A$5:$C$355,3,FALSE) -> Middlesbrough
A46: 2E060000021 | B46: E06000002 | C46: 1 | D46: 2 | E46: 122.9 | F46: 33 | G46: 0.17 | H46: 0.17 | I46: 19.1 | J46: 5.1 | K46: 0.24 | L46: 0.24 | M46: =VLOOKUP(B46,'data LE '!$A$5:$C$355,3,FALSE) -> Middlesbrough
A47: 3E060000021 | B47: E06000002 | C47: 1 | D47: 3 | E47: 130.1 | F47: 15.3 | G47: 0.08 | H47: 0.08 | I47: 25.7 | J47: 15.2 | K47: 0.34 | L47: 0.34 | M47: =VLOOKUP(B47,'data LE '!$A$5:$C$355,3,FALSE) -> Middlesbrough
A48: 4E060000021 | B48: E06000002 | C48: 1 | D48: 4 | E48: 174 | F48: 62.9 | G48: 0.37 | H48: 0.37 | I48: 48 | J48: 31.8 | K48: 0.81 | L48: 0.81 | M48: =VLOOKUP(B48,'data LE '!$A$5:$C$355,3,FALSE) -> Middlesbrough
A49: 5E060000021 | B49: E06000002 | C49: 1 | D49: 5 | E49: 462 | F49: 77.2 | G49: 0.42 | H49: 0.42 | I49: 91 | J49: 26.4 | K49: 0.67 | L49: 0.67 | M49: =VLOOKUP(B49,'data LE '!$A$5:$C$355,3,FALSE) -> Middlesbrough
A50: 6E060000021 | B50: E06000002 | C50: 1 | D50: 6 | E50: 107.4 | F50: 33.9 | G50: 0.23 | H50: 0.23 | I50: 22 | J50: 11 | K50: 0.37 | L50: 0.37 | M50: =VLOOKUP(B50,'data LE '!$A$5:$C$355,3,FALSE) -> Middlesbrough
A51: 7E060000021 | B51: E06000002 | C51: 1 | D51: 7 | E51: 128 | F51: 39.8 | G51: 0.2 | H51: 0.2 | I51: 35 | J51: 25.9 | K51: 0.52 | L51: 0.52 | M51: =VLOOKUP(B51,'data LE '!$A$5:$C$355,3,FALSE) -> Middlesbrough
A52: 8E060000021 | B52: E06000002 | C52: 1 | D52: 8 | E52: 63.1 | F52: 16.4 | G52: 0.09 | H52: 0.09 | I52: 13.4 | J52: 4.6 | K52: -0.04 | L52: .. | M52: =VLOOKUP(B52,'data LE '!$A$5:$C$355,3,FALSE) -> Middlesbrough
A53: 9E060000021 | B53: E06000002 | C53: 1 | D53: 9 | E53: 43 | F53: 16.4 | G53: 0.15 | H53: 0.15 | I53: 9 | J53: 6.3 | K53: 0.26 | L53: 0.26 | M53: =VLOOKUP(B53,'data LE '!$A$5:$C$355,3,FALSE) -> Middlesbrough
A54: 10E060000021 | B54: E06000002 | C54: 1 | D54: 10 | E54: 79.6 | F54: 29.6 | G54: 0.19 | H54: 0.19 | I54: 22.6 | J54: 15.2 | K54: 0.46 | L54: 0.46 | M54: =VLOOKUP(B54,'data LE '!$A$5:$C$355,3,FALSE) -> Middlesbrough
A55: 11E060000021 | B55: E06000002 | C55: 1 | D55: 11 | E55: 47 | F55: 20 | G55: 0.29 | H55: 0.29 | I55: 12 | J55: 10.5 | K55: 0.7 | L55: 0.7 | M55: =VLOOKUP(B55,'data LE '!$A$5:$C$355,3,FALSE) -> Middlesbrough
A56: 12E060000021 | B56: E06000002 | C56: 1 | D56: 12 | E56: 76 | F56: 23.6 | G56: 0.3 | H56: 0.3 | I56: 23 | J56: 17.9 | K56: 1.14 | L56: 1.14 | M56: =VLOOKUP(B56,'data LE '!$A$5:$C$355,3,FALSE) -> Middlesbrough
A57: 13E060000021 | B57: E06000002 | C57: 1 | D57: 13 | E57: 103.5 | F57: 3.6 | G57: 0.03 | H57: 0.03 | I57: 12.5 | J57: 2.3 | K57: 0.04 | L57: 0.04 | M57: =VLOOKUP(B57,'data LE '!$A$5:$C$355,3,FALSE) -> Middlesbrough
A58: 14E060000021 | B58: E06000002 | C58: 1 | D58: 14 | E58: 5 | F58: 1.5 | G58: 0.02 | H58: 0.02 | I58: 1 | J58: 1 | K58: 0.03 | L58: 0.03 | M58: =VLOOKUP(B58,'data LE '!$A$5:$C$355,3,FALSE) -> Middlesbrough
A59: 15E060000021 | B59: E06000002 | C59: 1 | D59: 15 | E59: 19.7 | F59: 4.2 | G59: 0.02 | H59: 0.02 | I59: 3.1 | J59: 0.4 | K59: 0.04 | L59: 0.04 | M59: =VLOOKUP(B59,'data LE '!$A$5:$C$355,3,FALSE) -> Middlesbrough
A60: 16E060000021 | B60: E06000002 | C60: 1 | D60: 16 | E60: 33.7 | F60: 12.1 | G60: 0.07 | H60: 0.07 | I60: 7.7 | J60: 2 | K60: 0.06 | L60: 0.06 | M60: =VLOOKUP(B60,'data LE '!$A$5:$C$355,3,FALSE) -> Middlesbrough
A61: 17E060000021 | B61: E06000002 | C61: 1 | D61: 17 | E61: 30 | F61: 11.8 | G61: 0.06 | H61: 0.06 | I61: 5 | J61: 2.2 | K61: 0.17 | L61: 0.17 | M61: =VLOOKUP(B61,'data LE '!$A$5:$C$355,3,FALSE) -> Middlesbrough
A62: 18E060000021 | B62: E06000002 | C62: 1 | D62: 18 | E62: 16.6 | F62: 0.3 | G62: 0.02 | H62: 0.02 | I62: 4.1 | J62: 3.6 | K62: 0.11 | L62: 0.11 | M62: =VLOOKUP(B62,'data LE '!$A$5:$C$355,3,FALSE) -> Middlesbrough
A63: 19E060000021 | B63: E06000002 | C63: 1 | D63: 19 | E63: 99 | F63: 14.1 | G63: 0.1 | H63: 0.1 | I63: 21 | J63: 10.5 | K63: 0.43 | L63: 0.43 | M63: =VLOOKUP(B63,'data LE '!$A$5:$C$355,3,FALSE) -> Middlesbrough
A64: 20E060000021 | B64: E06000002 | C64: 1 | D64: 20 | E64: 6 | F64: -3.3 | G64: -0.08 | H64: .. | I64: 0 | J64: 0 | K64: 0 | L64: 0 | M64: =VLOOKUP(B64,'data LE '!$A$5:$C$355,3,FALSE) -> Middlesbrough
A65: 1E060000022 | B65: E06000002 | C65: 2 | D65: 1 | E65: 200.5 | F65: 37 | G65: 0.24 | H65: 0.24 | I65: 39.7 | J65: 11 | K65: 0.5 | L65: 0.5 | M65: =VLOOKUP(B65,'data LE '!$A$5:$C$355,3,FALSE) -> Middlesbrough
A66: 2E060000022 | B66: E06000002 | C66: 2 | D66: 2 | E66: 171.8 | F66: 37.7 | G66: 0.17 | H66: 0.17 | I66: 33.4 | J66: 6.7 | K66: 0.15 | L66: 0.15 | M66: =VLOOKUP(B66,'data LE '!$A$5:$C$355,3,FALSE) -> Middlesbrough
A67: 3E060000022 | B67: E06000002 | C67: 2 | D67: 3 | E67: 171 | F67: 22.9 | G67: 0.14 | H67: 0.14 | I67: 46 | J67: 26.1 | K67: 0.65 | L67: 0.65 | M67: =VLOOKUP(B67,'data LE '!$A$5:$C$355,3,FALSE) -> Middlesbrough
A68: 4E060000022 | B68: E06000002 | C68: 2 | D68: 4 | E68: 185 | F68: 93.1 | G68: 0.53 | H68: 0.53 | I68: 54 | J68: 37.9 | K68: 1.06 | L68: 1.06 | M68: =VLOOKUP(B68,'data LE '!$A$5:$C$355,3,FALSE) -> Middlesbrough
A69: 5E060000022 | B69: E06000002 | C69: 2 | D69: 5 | E69: 366 | F69: 10.4 | G69: 0.08 | H69: 0.08 | I69: 86 | J69: 31.5 | K69: 0.93 | L69: 0.93 | M69: =VLOOKUP(B69,'data LE '!$A$5:$C$355,3,FALSE) -> Middlesbrough
A70: 6E060000022 | B70: E06000002 | C70: 2 | D70: 6 | E70: 133.2 | F70: 36.6 | G70: 0.18 | H70: 0.18 | I70: 32.4 | J70: 17.4 | K70: 0.47 | L70: 0.47 | M70: =VLOOKUP(B70,'data LE '!$A$5:$C$355,3,FALSE) -> Middlesbrough
A71: 7E060000022 | B71: E06000002 | C71: 2 | D71: 7 | E71: 153 | F71: 68.2 | G71: 0.34 | H71: 0.34 | I71: 47 | J71: 36.7 | K71: 0.86 | L71: 0.86 | M71: =VLOOKUP(B71,'data LE '!$A$5:$C$355,3,FALSE) -> Middlesbrough
A72: 8E060000022 | B72: E06000002 | C72: 2 | D72: 8 | E72: 48.8 | F72: 0 | G72: 0.05 | H72: 0.05 | I72: 13.3 | J72: 3.8 | K72: 0.25 | L72: 0.25 | M72: =VLOOKUP(B72,'data LE '!$A$5:$C$355,3,FALSE) -> Middlesbrough
A73: 9E060000022 | B73: E06000002 | C73: 2 | D73: 9 | E73: 19.5 | F73: 4.3 | G73: 0.09 | H73: 0.09 | I73: 9.7 | J73: 9.7 | K73: 0.52 | L73: 0.52 | M73: =VLOOKUP(B73,'data LE '!$A$5:$C$355,3,FALSE) -> Middlesbrough
A74: 10E060000022 | B74: E06000002 | C74: 2 | D74: 10 | E74: 99.9 | F74: 33.6 | G74: 0.19 | H74: 0.19 | I74: 23.7 | J74: 11 | K74: 0.38 | L74: 0.38 | M74: =VLOOKUP(B74,'data LE '!$A$5:$C$355,3,FALSE) -> Middlesbrough
A75: 11E060000022 | B75: E06000002 | C75: 2 | D75: 11 | E75: 14 | F75: 5.9 | G75: 0.08 | H75: 0.08 | I75: 5 | J75: 5 | K75: 0.32 | L75: 0.32 | M75: =VLOOKUP(B75,'data LE '!$A$5:$C$355,3,FALSE) -> Middlesbrough
A76: 12E060000022 | B76: E06000002 | C76: 2 | D76: 12 | E76: 62.7 | F76: 22.1 | G76: 0.25 | H76: 0.25 | I76: 16.8 | J76: 10.6 | K76: 0.48 | L76: 0.48 | M76: =VLOOKUP(B76,'data LE '!$A$5:$C$355,3,FALSE) -> Middlesbrough
A77: 13E060000022 | B77: E06000002 | C77: 2 | D77: 13 | E77: 231.5 | F77: 22.8 | G77: 0.09 | H77: 0.09 | I77: 34.1 | J77: 6.4 | K77: 0.06 | L77: 0.06 | M77: =VLOOKUP(B77,'data LE '!$A$5:$C$355,3,FALSE) -> Middlesbrough
A78: 14E060000022 | B78: E06000002 | C78: 2 | D78: 14 | E78: 7 | F78: 4.5 | G78: 0.01 | H78: 0.01 | I78: 2 | J78: 1.1 | K78: -0.01 | L78: .. | M78: =VLOOKUP(B78,'data LE '!$A$5:$C$355,3,FALSE) -> Middlesbrough
A79: 15E060000022 | B79: E06000002 | C79: 2 | D79: 15 | E79: 38 | F79: 19.6 | G79: 0.1 | H79: 0.1 | I79: 4 | J79: 0.6 | K79: 0.04 | L79: 0.04 | M79: =VLOOKUP(B79,'data LE '!$A$5:$C$355,3,FALSE) -> Middlesbrough
A80: 16E060000022 | B80: E06000002 | C80: 2 | D80: 16 | E80: 45.6 | F80: 13.9 | G80: 0.06 | H80: 0.06 | I80: 11.3 | J80: 7.9 | K80: 0.17 | L80: 0.17 | M80: =VLOOKUP(B80,'data LE '!$A$5:$C$355,3,FALSE) -> Middlesbrough
A81: 17E060000022 | B81: E06000002 | C81: 2 | D81: 17 | E81: 106 | F81: 55.8 | G81: 0.26 | H81: 0.26 | I81: 17 | J81: -4.8 | K81: 0.27 | L81: 0.27 | M81: =VLOOKUP(B81,'data LE '!$A$5:$C$355,3,FALSE) -> Middlesbrough
A82: 18E060000022 | B82: E06000002 | C82: 2 | D82: 18 | E82: 19 | F82: 1.7 | G82: 0 | H82: 0 | I82: 3 | J82: 0.7 | K82: 0.01 | L82: 0.01 | M82: =VLOOKUP(B82,'data LE '!$A$5:$C$355,3,FALSE) -> Middlesbrough
A83: 19E060000022 | B83: E06000002 | C83: 2 | D83: 19 | E83: 110.4 | F83: 20.8 | G83: 0.12 | H83: 0.12 | I83: 14.8 | J83: -2.8 | K83: 0.08 | L83: 0.08 | M83: =VLOOKUP(B83,'data LE '!$A$5:$C$355,3,FALSE) -> Middlesbrough
A84: 20E060000022 | B84: E06000002 | C84: 2 | D84: 20 | E84: 8 | F84: 0.8 | G84: 0.02 | H84: 0.02 | I84: 1 | J84: 1 | K84: 0.1 | L84: 0.1 | M84: =VLOOKUP(B84,'data LE '!$A$5:$C$355,3,FALSE) -> Middlesbrough
A85: 1E060000031 | B85: E06000003 | C85: 1 | D85: 1 | E85: 279.4 | F85: -19.6 | G85: 0.01 | H85: 0.01 | I85: 63.8 | J85: 43.8 | K85: 1.76 | L85: 1.76 | M85: =VLOOKUP(B85,'data LE '!$A$5:$C$355,3,FALSE) -> Redcar and Cleveland
A86: 2E060000031 | B86: E06000003 | C86: 1 | D86: 2 | E86: 116 | F86: 1.6 | G86: -0.01 | H86: .. | I86: 14.1 | J86: 6.3 | K86: 0.2 | L86: 0.2 | M86: =VLOOKUP(B86,'data LE '!$A$5:$C$355,3,FALSE) -> Redcar and Cleveland
A87: 3E060000031 | B87: E06000003 | C87: 1 | D87: 3 | E87: 165.4 | F87: 20.8 | G87: 0.13 | H87: 0.13 | I87: 26.6 | J87: 11.8 | K87: 0.53 | L87: 0.53 | M87: =VLOOKUP(B87,'data LE '!$A$5:$C$355,3,FALSE) -> Redcar and Cleveland
A88: 4E060000031 | B88: E06000003 | C88: 1 | D88: 4 | E88: 180 | F88: 40 | G88: 0.2 | H88: 0.2 | I88: 37 | J88: 20.5 | K88: 0.68 | L88: 0.68 | M88: =VLOOKUP(B88,'data LE '!$A$5:$C$355,3,FALSE) -> Redcar and Cleveland
A89: 5E060000031 | B89: E06000003 | C89: 1 | D89: 5 | E89: 561 | F89: 78.6 | G89: 0.41 | H89: 0.41 | I89: 79 | J89: 10.1 | K89: 0.52 | L89: 0.52 | M89: =VLOOKUP(B89,'data LE '!$A$5:$C$355,3,FALSE) -> Redcar and Cleveland
A90: 6E060000031 | B90: E06000003 | C90: 1 | D90: 6 | E90: 82.7 | F90: -11.9 | G90: -0.02 | H90: .. | I90: 16.4 | J90: 9.6 | K90: 0.4 | L90: 0.4 | M90: =VLOOKUP(B90,'data LE '!$A$5:$C$355,3,FALSE) -> Redcar and Cleveland
A91: 7E060000031 | B91: E06000003 | C91: 1 | D91: 7 | E91: 129 | F91: 16.1 | G91: 0.07 | H91: 0.07 | I91: 28 | J91: 22.7 | K91: 0.69 | L91: 0.69 | M91: =VLOOKUP(B91,'data LE '!$A$5:$C$355,3,FALSE) -> Redcar and Cleveland
A92: 8E060000031 | B92: E06000003 | C92: 1 | D92: 8 | E92: 67.6 | F92: 8 | G92: 0.03 | H92: 0.03 | I92: 12 | J92: 6.6 | K92: 0.24 | L92: 0.24 | M92: =VLOOKUP(B92,'data LE '!$A$5:$C$355,3,FALSE) -> Redcar and Cleveland
A93: 9E060000031 | B93: E06000003 | C93: 1 | D93: 9 | E93: 30 | F93: -0.3 | G93: 0.03 | H93: 0.03 | I93: 15 | J93: 13.3 | K93: 0.71 | L93: 0.71 | M93: =VLOOKUP(B93,'data LE '!$A$5:$C$355,3,FALSE) -> Redcar and Cleveland
A94: 10E060000031 | B94: E06000003 | C94: 1 | D94: 10 | E94: 71.2 | F94: 8.6 | G94: 0.02 | H94: 0.02 | I94: 12.9 | J94: 6.1 | K94: 0.23 | L94: 0.23 | M94: =VLOOKUP(B94,'data LE '!$A$5:$C$355,3,FALSE) -> Redcar and Cleveland
A95: 11E060000031 | B95: E06000003 | C95: 1 | D95: 11 | E95: 30 | F95: 3.2 | G95: 0.08 | H95: 0.08 | I95: 7 | J95: 1.8 | K95: 0.17 | L95: 0.17 | M95: =VLOOKUP(B95,'data LE '!$A$5:$C$355,3,FALSE) -> Redcar and Cleveland
A96: 12E060000031 | B96: E06000003 | C96: 1 | D96: 12 | E96: 55 | F96: -1.9 | G96: 0.05 | H96: 0.05 | I96: 13 | J96: 9 | K96: 0.63 | L96: 0.63 | M96: =VLOOKUP(B96,'data LE '!$A$5:$C$355,3,FALSE) -> Redcar and Cleveland
A97: 13E060000031 | B97: E06000003 | C97: 1 | D97: 13 | E97: 95.1 | F97: -34.8 | G97: -0.15 | H97: .. | I97: 9.4 | J97: -5.9 | K97: -0.16 | L97: .. | M97: =VLOOKUP(B97,'data LE '!$A$5:$C$355,3,FALSE) -> Redcar and Cleveland
A98: 14E060000031 | B98: E06000003 | C98: 1 | D98: 14 | E98: 2 | F98: -2 | G98: -0.02 | H98: .. | I98: 0 | J98: 0 | K98: 0 | L98: 0 | M98: =VLOOKUP(B98,'data LE '!$A$5:$C$355,3,FALSE) -> Redcar and Cleveland
A99: 15E060000031 | B99: E06000003 | C99: 1 | D99: 15 | E99: 21.8 | F99: 2.9 | G99: -0.01 | H99: .. | I99: 1.1 | J99: -3.2 | K99: -0.11 | L99: .. | M99: =VLOOKUP(B99,'data LE '!$A$5:$C$355,3,FALSE) -> Redcar and Cleveland
A100: 16E060000031 | B100: E06000003 | C100: 1 | D100: 16 | E100: 35.5 | F100: 7.7 | G100: 0.04 | H100: 0.04 | I100: 4.7 | J100: -0.1 | K100: 0 | L100: 0 | M100: =VLOOKUP(B100,'data LE '!$A$5:$C$355,3,FALSE) -> Redcar and Cleveland
A101: 17E060000031 | B101: E06000003 | C101: 1 | D101: 17 | E101: 17 | F101: -5.5 | G101: -0.04 | H101: .. | I101: 2 | J101: 0.6 | K101: 0.07 | L101: 0.07 | M101: =VLOOKUP(B101,'data LE '!$A$5:$C$355,3,FALSE) -> Redcar and Cleveland
A102: 18E060000031 | B102: E06000003 | C102: 1 | D102: 18 | E102: 19.1 | F102: -1.3 | G102: -0.01 | H102: .. | I102: 4.2 | J102: 2.6 | K102: 0.08 | L102: 0.08 | M102: =VLOOKUP(B102,'data LE '!$A$5:$C$355,3,FALSE) -> Redcar and Cleveland
A103: 19E060000031 | B103: E06000003 | C103: 1 | D103: 19 | E103: 119 | F103: 15.9 | G103: 0.17 | H103: 0.17 | I103: 19 | J103: 5.3 | K103: 0.34 | L103: 0.34 | M103: =VLOOKUP(B103,'data LE '!$A$5:$C$355,3,FALSE) -> Redcar and Cleveland
A104: 20E060000031 | B104: E06000003 | C104: 1 | D104: 20 | E104: 7 | F104: -0.2 | G104: -0.01 | H104: .. | I104: 2 | J104: 2 | K104: 0.22 | L104: 0.22 | M104: =VLOOKUP(B104,'data LE '!$A$5:$C$355,3,FALSE) -> Redcar and Cleveland
A105: 1E060000032 | B105: E06000003 | C105: 2 | D105: 1 | E105: 191.5 | F105: -7.8 | G105: 0.02 | H105: 0.02 | I105: 34.8 | J105: 12 | K105: 0.69 | L105: 0.69 | M105: =VLOOKUP(B105,'data LE '!$A$5:$C$355,3,FALSE) -> Redcar and Cleveland
A106: 2E060000032 | B106: E06000003 | C106: 2 | D106: 2 | E106: 198 | F106: 35 | G106: 0.15 | H106: 0.15 | I106: 25.2 | J106: 7.3 | K106: 0.27 | L106: 0.27 | M106: =VLOOKUP(B106,'data LE '!$A$5:$C$355,3,FALSE) -> Redcar and Cleveland
A107: 3E060000032 | B107: E06000003 | C107: 2 | D107: 3 | E107: 187 | F107: 7.2 | G107: 0 | H107: 0 | I107: 24 | J107: -0.8 | K107: -0.15 | L107: .. | M107: =VLOOKUP(B107,'data LE '!$A$5:$C$355,3,FALSE) -> Redcar and Cleveland
A108: 4E060000032 | B108: E06000003 | C108: 2 | D108: 4 | E108: 159 | F108: 46.1 | G108: 0.26 | H108: 0.26 | I108: 37 | J108: 22.5 | K108: 0.98 | L108: 0.98 | M108: =VLOOKUP(B108,'data LE '!$A$5:$C$355,3,FALSE) -> Redcar and Cleveland
A109: 5E060000032 | B109: E06000003 | C109: 2 | D109: 5 | E109: 446 | F109: 16.1 | G109: 0.23 | H109: 0.23 | I109: 64 | J109: 7.2 | K109: 0.55 | L109: 0.55 | M109: =VLOOKUP(B109,'data LE '!$A$5:$C$355,3,FALSE) -> Redcar and Cleveland
A110: 6E060000032 | B110: E06000003 | C110: 2 | D110: 6 | E110: 115 | F110: -2.4 | G110: 0.02 | H110: 0.02 | I110: 19.4 | J110: 10 | K110: 0.61 | L110: 0.61 | M110: =VLOOKUP(B110,'data LE '!$A$5:$C$355,3,FALSE) -> Redcar and Cleveland
A111: 7E060000032 | B111: E06000003 | C111: 2 | D111: 7 | E111: 161 | F111: 56.8 | G111: 0.32 | H111: 0.32 | I111: 37 | J111: 25.4 | K111: 1.16 | L111: 1.16 | M111: =VLOOKUP(B111,'data LE '!$A$5:$C$355,3,FALSE) -> Redcar and Cleveland
A112: 8E060000032 | B112: E06000003 | C112: 2 | D112: 8 | E112: 59.7 | F112: 0.3 | G112: 0 | H112: 0 | I112: 7.4 | J112: -0.5 | K112: 0.03 | L112: 0.03 | M112: =VLOOKUP(B112,'data LE '!$A$5:$C$355,3,FALSE) -> Redcar and Cleveland
A113: 9E060000032 | B113: E06000003 | C113: 2 | D113: 9 | E113: 25.5 | F113: 8.1 | G113: 0.1 | H113: 0.1 | I113: 5.9 | J113: 1.1 | K113: -0.01 | L113: .. | M113: =VLOOKUP(B113,'data LE '!$A$5:$C$355,3,FALSE) -> Redcar and Cleveland
A114: 10E060000032 | B114: E06000003 | C114: 2 | D114: 10 | E114: 79.9 | F114: -0.6 | G114: 0.03 | H114: 0.03 | I114: 15.8 | J114: 9.8 | K114: 0.45 | L114: 0.45 | M114: =VLOOKUP(B114,'data LE '!$A$5:$C$355,3,FALSE) -> Redcar and Cleveland
A115: 11E060000032 | B115: E06000003 | C115: 2 | D115: 11 | E115: 8 | F115: -0.4 | G115: 0.04 | H115: 0.04 | I115: 2 | J115: 2 | K115: 0.17 | L115: 0.17 | M115: =VLOOKUP(B115,'data LE '!$A$5:$C$355,3,FALSE) -> Redcar and Cleveland
A116: 12E060000032 | B116: E06000003 | C116: 2 | D116: 12 | E116: 41.9 | F116: -4.9 | G116: 0.06 | H116: 0.06 | I116: 6.5 | J116: 2.4 | K116: 0.1 | L116: 0.1 | M116: =VLOOKUP(B116,'data LE '!$A$5:$C$355,3,FALSE) -> Redcar and Cleveland
A117: 13E060000032 | B117: E06000003 | C117: 2 | D117: 13 | E117: 238 | F117: -16.3 | G117: -0.06 | H117: .. | I117: 18.5 | J117: -21 | K117: -0.92 | L117: .. | M117: =VLOOKUP(B117,'data LE '!$A$5:$C$355,3,FALSE) -> Redcar and Cleveland
A118: 14E060000032 | B118: E06000003 | C118: 2 | D118: 14 | E118: 2 | F118: -0.8 | G118: -0.01 | H118: .. | I118: 0 | J118: 0 | K118: 0 | L118: 0 | M118: =VLOOKUP(B118,'data LE '!$A$5:$C$355,3,FALSE) -> Redcar and Cleveland
A119: 15E060000032 | B119: E06000003 | C119: 2 | D119: 15 | E119: 26 | F119: 4 | G119: -0.01 | H119: .. | I119: 6 | J119: 3.8 | K119: 0.16 | L119: 0.16 | M119: =VLOOKUP(B119,'data LE '!$A$5:$C$355,3,FALSE) -> Redcar and Cleveland
A120: 16E060000032 | B120: E06000003 | C120: 2 | D120: 16 | E120: 38.5 | F120: -0.1 | G120: 0.01 | H120: 0.01 | I120: 5.6 | J120: 2.5 | K120: 0.12 | L120: 0.12 | M120: =VLOOKUP(B120,'data LE '!$A$5:$C$355,3,FALSE) -> Redcar and Cleveland
A121: 17E060000032 | B121: E06000003 | C121: 2 | D121: 17 | E121: 93 | F121: 32.2 | G121: 0.11 | H121: 0.11 | I121: 6 | J121: -6.1 | K121: -0.3 | L121: .. | M121: =VLOOKUP(B121,'data LE '!$A$5:$C$355,3,FALSE) -> Redcar and Cleveland
A122: 18E060000032 | B122: E06000003 | C122: 2 | D122: 18 | E122: 20 | F122: -0.9 | G122: 0.01 | H122: 0.01 | I122: 2 | J122: 2 | K122: 0.1 | L122: 0.1 | M122: =VLOOKUP(B122,'data LE '!$A$5:$C$355,3,FALSE) -> Redcar and Cleveland
A123: 19E060000032 | B123: E06000003 | C123: 2 | D123: 19 | E123: 91.6 | F123: -14.6 | G123: -0.06 | H123: .. | I123: 9.8 | J123: -4.4 | K123: -0.15 | L123: .. | M123: =VLOOKUP(B123,'data LE '!$A$5:$C$355,3,FALSE) -> Redcar and Cleveland
A124: 20E060000032 | B124: E06000003 | C124: 2 | D124: 20 | E124: 3 | F124: -2.5 | G124: -0.09 | H124: .. | I124: 0 | J124: -2 | K124: -0.26 | L124: .. | M124: =VLOOKUP(B124,'data LE '!$A$5:$C$355,3,FALSE) -> Redcar and Cleveland
A125: 1E060000041 | B125: E06000004 | C125: 1 | D125: 1 | E125: 339.1 | F125: -13.7 | G125: -0.03 | H125: .. | I125: 75.7 | J125: 47 | K125: 0.93 | L125: 0.93 | M125: =VLOOKUP(B125,'data LE '!$A$5:$C$355,3,FALSE) -> Stockton-on-Tees
A126: 2E060000041 | B126: E06000004 | C126: 1 | D126: 2 | E126: 155.2 | F126: 22.4 | G126: 0.11 | H126: 0.11 | I126: 41.4 | J126: 29.3 | K126: 0.35 | L126: 0.35 | M126: =VLOOKUP(B126,'data LE '!$A$5:$C$355,3,FALSE) -> Stockton-on-Tees
A127: 3E060000041 | B127: E06000004 | C127: 1 | D127: 3 | E127: 154 | F127: -15.9 | G127: -0.06 | H127: .. | I127: 32.6 | J127: 14.5 | K127: 0.29 | L127: 0.29 | M127: =VLOOKUP(B127,'data LE '!$A$5:$C$355,3,FALSE) -> Stockton-on-Tees
A128: 4E060000041 | B128: E06000004 | C128: 1 | D128: 4 | E128: 200 | F128: 34.4 | G128: 0.18 | H128: 0.18 | I128: 68 | J128: 52.7 | K128: 1.08 | L128: 1.08 | M128: =VLOOKUP(B128,'data LE '!$A$5:$C$355,3,FALSE) -> Stockton-on-Tees
A129: 5E060000041 | B129: E06000004 | C129: 1 | D129: 5 | E129: 622 | F129: 50.2 | G129: 0.24 | H129: 0.24 | I129: 153 | J129: 77.5 | K129: 1.37 | L129: 1.37 | M129: =VLOOKUP(B129,'data LE '!$A$5:$C$355,3,FALSE) -> Stockton-on-Tees
A130: 6E060000041 | B130: E06000004 | C130: 1 | D130: 6 | E130: 100.4 | F130: -8.1 | G130: -0.02 | H130: .. | I130: 29.1 | J130: 22.4 | K130: 0.31 | L130: 0.31 | M130: =VLOOKUP(B130,'data LE '!$A$5:$C$355,3,FALSE) -> Stockton-on-Tees
A131: 7E060000041 | B131: E06000004 | C131: 1 | D131: 7 | E131: 146 | F131: 15.3 | G131: 0.05 | H131: 0.05 | I131: 50 | J131: 43.2 | K131: 0.57 | L131: 0.57 | M131: =VLOOKUP(B131,'data LE '!$A$5:$C$355,3,FALSE) -> Stockton-on-Tees
A132: 8E060000041 | B132: E06000004 | C132: 1 | D132: 8 | E132: 95.6 | F132: 26.6 | G132: 0.11 | H132: 0.11 | I132: 24.5 | J132: 20.4 | K132: 0.21 | L132: 0.21 | M132: =VLOOKUP(B132,'data LE '!$A$5:$C$355,3,FALSE) -> Stockton-on-Tees
A133: 9E060000041 | B133: E06000004 | C133: 1 | D133: 9 | E133: 63 | F133: 23 | G133: 0.21 | H133: 0.21 | I133: 28 | J133: 23.7 | K133: 0.86 | L133: 0.86 | M133: =VLOOKUP(B133,'data LE '!$A$5:$C$355,3,FALSE) -> Stockton-on-Tees
A134: 10E060000041 | B134: E06000004 | C134: 1 | D134: 10 | E134: 80 | F134: 6 | G134: 0.02 | H134: 0.02 | I134: 24.7 | J134: 19.5 | K134: 0.3 | L134: 0.3 | M134: =VLOOKUP(B134,'data LE '!$A$5:$C$355,3,FALSE) -> Stockton-on-Tees
A135: 11E060000041 | B135: E06000004 | C135: 1 | D135: 11 | E135: 52 | F135: 13.5 | G135: 0.11 | H135: 0.11 | I135: 26 | J135: 21.9 | K135: 0.82 | L135: 0.82 | M135: =VLOOKUP(B135,'data LE '!$A$5:$C$355,3,FALSE) -> Stockton-on-Tees
A136: 12E060000041 | B136: E06000004 | C136: 1 | D136: 12 | E136: 83 | F136: 7.9 | G136: 0.08 | H136: 0.08 | I136: 31 | J136: 24 | K136: 0.76 | L136: 0.76 | M136: =VLOOKUP(B136,'data LE '!$A$5:$C$355,3,FALSE) -> Stockton-on-Tees
A137: 13E060000041 | B137: E06000004 | C137: 1 | D137: 13 | E137: 154.4 | F137: 7.3 | G137: 0.03 | H137: 0.03 | I137: 33.6 | J137: 23.1 | K137: 0.17 | L137: 0.17 | M137: =VLOOKUP(B137,'data LE '!$A$5:$C$355,3,FALSE) -> Stockton-on-Tees
A138: 14E060000041 | B138: E06000004 | C138: 1 | D138: 14 | E138: 5 | F138: -0.3 | G138: 0.03 | H138: 0.03 | I138: 3 | J138: 3 | K138: 0.15 | L138: 0.15 | M138: =VLOOKUP(B138,'data LE '!$A$5:$C$355,3,FALSE) -> Stockton-on-Tees
A139: 15E060000041 | B139: E06000004 | C139: 1 | D139: 15 | E139: 22.7 | F139: -0.2 | G139: 0 | H139: 0 | I139: 5.1 | J139: 4.3 | K139: 0.13 | L139: 0.13 | M139: =VLOOKUP(B139,'data LE '!$A$5:$C$355,3,FALSE) -> Stockton-on-Tees
A140: 16E060000041 | B140: E06000004 | C140: 1 | D140: 16 | E140: 43.4 | F140: 11.5 | G140: 0.04 | H140: 0.04 | I140: 13.4 | J140: 12 | K140: 0.16 | L140: 0.16 | M140: =VLOOKUP(B140,'data LE '!$A$5:$C$355,3,FALSE) -> Stockton-on-Tees
A141: 17E060000041 | B141: E06000004 | C141: 1 | D141: 17 | E141: 40 | F141: 13.4 | G141: 0.07 | H141: 0.07 | I141: 8 | J141: 1.5 | K141: 0.03 | L141: 0.03 | M141: =VLOOKUP(B141,'data LE '!$A$5:$C$355,3,FALSE) -> Stockton-on-Tees
A142: 18E060000041 | B142: E06000004 | C142: 1 | D142: 18 | E142: 33.9 | F142: 9.9 | G142: 0.04 | H142: 0.04 | I142: 6.1 | J142: 3.6 | K142: 0.09 | L142: 0.09 | M142: =VLOOKUP(B142,'data LE '!$A$5:$C$355,3,FALSE) -> Stockton-on-Tees
A143: 19E060000041 | B143: E06000004 | C143: 1 | D143: 19 | E143: 107 | F143: -17.3 | G143: -0.05 | H143: .. | I143: 31 | J143: 22.1 | K143: 0.52 | L143: 0.52 | M143: =VLOOKUP(B143,'data LE '!$A$5:$C$355,3,FALSE) -> Stockton-on-Tees
A144: 20E060000041 | B144: E06000004 | C144: 1 | D144: 20 | E144: 11 | F144: -0.2 | G144: 0 | H144: .. | I144: 4 | J144: 2.4 | K144: 0.16 | L144: 0.16 | M144: =VLOOKUP(B144,'data LE '!$A$5:$C$355,3,FALSE) -> Stockton-on-Tees
A145: 1E060000042 | B145: E06000004 | C145: 2 | D145: 1 | E145: 245.1 | F145: 10.4 | G145: 0.05 | H145: 0.05 | I145: 68.4 | J145: 35.8 | K145: 0.7 | L145: 0.7 | M145: =VLOOKUP(B145,'data LE '!$A$5:$C$355,3,FALSE) -> Stockton-on-Tees
A146: 2E060000042 | B146: E06000004 | C146: 2 | D146: 2 | E146: 194 | F146: 2.5 | G146: 0 | H146: .. | I146: 42.4 | J146: 16.8 | K146: 0.2 | L146: 0.2 | M146: =VLOOKUP(B146,'data LE '!$A$5:$C$355,3,FALSE) -> Stockton-on-Tees
A147: 3E060000042 | B147: E06000004 | C147: 2 | D147: 3 | E147: 194 | F147: -17.7 | G147: -0.01 | H147: .. | I147: 46 | J147: 30.5 | K147: 0.5 | L147: 0.5 | M147: =VLOOKUP(B147,'data LE '!$A$5:$C$355,3,FALSE) -> Stockton-on-Tees
A148: 4E060000042 | B148: E06000004 | C148: 2 | D148: 4 | E148: 173 | F148: 37.6 | G148: 0.18 | H148: 0.18 | I148: 56 | J148: 47.1 | K148: 0.94 | L148: 0.94 | M148: =VLOOKUP(B148,'data LE '!$A$5:$C$355,3,FALSE) -> Stockton-on-Tees
A149: 5E060000042 | B149: E06000004 | C149: 2 | D149: 5 | E149: 532 | F149: 11.8 | G149: 0.1 | H149: 0.1 | I149: 134 | J149: 64.2 | K149: 1.19 | L149: 1.19 | M149: =VLOOKUP(B149,'data LE '!$A$5:$C$355,3,FALSE) -> Stockton-on-Tees
A150: 6E060000042 | B150: E06000004 | C150: 2 | D150: 6 | E150: 159.9 | F150: 23 | G150: 0.1 | H150: 0.1 | I150: 50.6 | J150: 30 | K150: 0.26 | L150: 0.26 | M150: =VLOOKUP(B150,'data LE '!$A$5:$C$355,3,FALSE) -> Stockton-on-Tees
A151: 7E060000042 | B151: E06000004 | C151: 2 | D151: 7 | E151: 152 | F151: 28.8 | G151: 0.12 | H151: 0.12 | I151: 60 | J151: 55.8 | K151: 0.97 | L151: 0.97 | M151: =VLOOKUP(B151,'data LE '!$A$5:$C$355,3,FALSE) -> Stockton-on-Tees
A152: 8E060000042 | B152: E06000004 | C152: 2 | D152: 8 | E152: 71.2 | F152: 1.4 | G152: 0.05 | H152: 0.05 | I152: 15.2 | J152: 4.3 | K152: 0.1 | L152: 0.1 | M152: =VLOOKUP(B152,'data LE '!$A$5:$C$355,3,FALSE) -> Stockton-on-Tees
A153: 9E060000042 | B153: E06000004 | C153: 2 | D153: 9 | E153: 36.2 | F153: 13.5 | G153: 0.1 | H153: 0.1 | I153: 9.8 | J153: 6.9 | K153: 0.25 | L153: 0.25 | M153: =VLOOKUP(B153,'data LE '!$A$5:$C$355,3,FALSE) -> Stockton-on-Tees
A154: 10E060000042 | B154: E06000004 | C154: 2 | D154: 10 | E154: 99.8 | F154: 4.4 | G154: 0.02 | H154: 0.02 | I154: 22.6 | J154: 10.1 | K154: 0.18 | L154: 0.18 | M154: =VLOOKUP(B154,'data LE '!$A$5:$C$355,3,FALSE) -> Stockton-on-Tees
A155: 11E060000042 | B155: E06000004 | C155: 2 | D155: 11 | E155: 12 | F155: 0.3 | G155: 0 | H155: .. | I155: 4 | J155: 2.5 | K155: 0.12 | L155: 0.12 | M155: =VLOOKUP(B155,'data LE '!$A$5:$C$355,3,FALSE) -> Stockton-on-Tees
A156: 12E060000042 | B156: E06000004 | C156: 2 | D156: 12 | E156: 46.8 | F156: -11.1 | G156: 0.01 | H156: 0.01 | I156: 14.6 | J156: 10.5 | K156: 0.42 | L156: 0.42 | M156: =VLOOKUP(B156,'data LE '!$A$5:$C$355,3,FALSE) -> Stockton-on-Tees
A157: 13E060000042 | B157: E06000004 | C157: 2 | D157: 13 | E157: 312.5 | F157: 17.4 | G157: 0.05 | H157: 0.05 | I157: 100.4 | J157: 70.6 | K157: 0.56 | L157: 0.56 | M157: =VLOOKUP(B157,'data LE '!$A$5:$C$355,3,FALSE) -> Stockton-on-Tees
A158: 14E060000042 | B158: E06000004 | C158: 2 | D158: 14 | E158: 3 | F158: -0.6 | G158: 0 | H158: 0 | I158: 2 | J158: 2 | K158: 0.08 | L158: 0.08 | M158: =VLOOKUP(B158,'data LE '!$A$5:$C$355,3,FALSE) -> Stockton-on-Tees
A159: 15E060000042 | B159: E06000004 | C159: 2 | D159: 15 | E159: 22 | F159: -4.4 | G159: -0.04 | H159: .. | I159: 4 | J159: 1.4 | K159: 0.02 | L159: 0.02 | M159: =VLOOKUP(B159,'data LE '!$A$5:$C$355,3,FALSE) -> Stockton-on-Tees
A160: 16E060000042 | B160: E06000004 | C160: 2 | D160: 16 | E160: 56.6 | F160: 11.5 | G160: 0.05 | H160: 0.05 | I160: 19.9 | J160: 13.5 | K160: 0.1 | L160: 0.1 | M160: =VLOOKUP(B160,'data LE '!$A$5:$C$355,3,FALSE) -> Stockton-on-Tees
A161: 17E060000042 | B161: E06000004 | C161: 2 | D161: 17 | E161: 124 | F161: 53.9 | G161: 0.17 | H161: 0.17 | I161: 32 | J161: 15.8 | K161: 0.08 | L161: 0.08 | M161: =VLOOKUP(B161,'data LE '!$A$5:$C$355,3,FALSE) -> Stockton-on-Tees
A162: 18E060000042 | B162: E06000004 | C162: 2 | D162: 18 | E162: 25 | F162: 0.2 | G162: 0.02 | H162: 0.02 | I162: 4 | J162: -1.1 | K162: 0 | L162: 0 | M162: =VLOOKUP(B162,'data LE '!$A$5:$C$355,3,FALSE) -> Stockton-on-Tees
A163: 19E060000042 | B163: E06000004 | C163: 2 | D163: 19 | E163: 116.7 | F163: -12.2 | G163: 0.02 | H163: 0.02 | I163: 21.8 | J163: 1.7 | K163: 0.1 | L163: 0.1 | M163: =VLOOKUP(B163,'data LE '!$A$5:$C$355,3,FALSE) -> Stockton-on-Tees
A164: 20E060000042 | B164: E06000004 | C164: 2 | D164: 20 | E164: 6 | F164: -2.6 | G164: -0.06 | H164: .. | I164: 1 | J164: -0.8 | K164: -0.06 | L164: .. | M164: =VLOOKUP(B164,'data LE '!$A$5:$C$355,3,FALSE) -> Stockton-on-Tees
A165: 1E060000051 | B165: E06000005 | C165: 1 | D165: 1 | E165: 232.6 | F165: 17.2 | G165: 0.21 | H165: 0.21 | I165: 47.8 | J165: 23.3 | K165: 1.08 | L165: 1.08 | M165: =VLOOKUP(B165,'data LE '!$A$5:$C$355,3,FALSE) -> Darlington
A166: 2E060000051 | B166: E06000005 | C166: 1 | D166: 2 | E166: 87.6 | F166: 4.4 | G166: 0.07 | H166: 0.07 | I166: 15.1 | J166: 7.5 | K166: 0.4 | L166: 0.4 | M166: =VLOOKUP(B166,'data LE '!$A$5:$C$355,3,FALSE) -> Darlington
A167: 3E060000051 | B167: E06000005 | C167: 1 | D167: 3 | E167: 120.3 | F167: 15.1 | G167: 0.08 | H167: 0.08 | I167: 23.8 | J167: 11.3 | K167: 0.49 | L167: 0.49 | M167: =VLOOKUP(B167,'data LE '!$A$5:$C$355,3,FALSE) -> Darlington
A168: 4E060000051 | B168: E06000005 | C168: 1 | D168: 4 | E168: 117 | F168: 17.8 | G168: 0.11 | H168: 0.11 | I168: 30 | J168: 21.5 | K168: 0.86 | L168: 0.86 | M168: =VLOOKUP(B168,'data LE '!$A$5:$C$355,3,FALSE) -> Darlington
A169: 5E060000051 | B169: E06000005 | C169: 1 | D169: 5 | E169: 379 | F169: 33.9 | G169: 0.28 | H169: 0.28 | I169: 67 | J169: 19.1 | K169: 0.95 | L169: 0.95 | M169: =VLOOKUP(B169,'data LE '!$A$5:$C$355,3,FALSE) -> Darlington
A170: 6E060000051 | B170: E06000005 | C170: 1 | D170: 6 | E170: 57.6 | F170: -12.2 | G170: -0.09 | H170: .. | I170: 12.7 | J170: 7.6 | K170: 0.2 | L170: 0.2 | M170: =VLOOKUP(B170,'data LE '!$A$5:$C$355,3,FALSE) -> Darlington
A171: 7E060000051 | B171: E06000005 | C171: 1 | D171: 7 | E171: 70 | F171: -10.6 | G171: -0.04 | H171: .. | I171: 17 | J171: 11.3 | K171: 0.39 | L171: 0.39 | M171: =VLOOKUP(B171,'data LE '!$A$5:$C$355,3,FALSE) -> Darlington
A172: 8E060000051 | B172: E06000005 | C172: 1 | D172: 8 | E172: 42.4 | F172: -0.7 | G172: 0.01 | H172: 0.01 | I172: 6.9 | J172: 1.8 | K172: 0.11 | L172: 0.11 | M172: =VLOOKUP(B172,'data LE '!$A$5:$C$355,3,FALSE) -> Darlington
A173: 9E060000051 | B173: E06000005 | C173: 1 | D173: 9 | E173: 27 | F173: 4.3 | G173: 0.05 | H173: 0.05 | I173: 13 | J173: 12.6 | K173: 0.77 | L173: 0.77 | M173: =VLOOKUP(B173,'data LE '!$A$5:$C$355,3,FALSE) -> Darlington
A174: 10E060000051 | B174: E06000005 | C174: 1 | D174: 10 | E174: 54 | F174: 8.6 | G174: 0.07 | H174: 0.07 | I174: 12.7 | J174: 7.6 | K174: 0.35 | L174: 0.35 | M174: =VLOOKUP(B174,'data LE '!$A$5:$C$355,3,FALSE) -> Darlington
A175: 11E060000051 | B175: E06000005 | C175: 1 | D175: 11 | E175: 28 | F175: 7 | G175: 0.14 | H175: 0.14 | I175: 7 | J175: 6.3 | K175: 0.52 | L175: 0.52 | M175: =VLOOKUP(B175,'data LE '!$A$5:$C$355,3,FALSE) -> Darlington
A176: 12E060000051 | B176: E06000005 | C176: 1 | D176: 12 | E176: 46 | F176: 2.6 | G176: 0.13 | H176: 0.13 | I176: 16 | J176: 13.2 | K176: 0.79 | L176: 0.79 | M176: =VLOOKUP(B176,'data LE '!$A$5:$C$355,3,FALSE) -> Darlington
A177: 13E060000051 | B177: E06000005 | C177: 1 | D177: 13 | E177: 107.1 | F177: 11.4 | G177: 0.07 | H177: 0.07 | I177: 24.8 | J177: 18.4 | K177: 0.56 | L177: 0.56 | M177: =VLOOKUP(B177,'data LE '!$A$5:$C$355,3,FALSE) -> Darlington
A178: 14E060000051 | B178: E06000005 | C178: 1 | D178: 14 | E178: 6 | F178: 3 | G178: 0.05 | H178: 0.05 | I178: 2 | J178: 2 | K178: 0.12 | L178: 0.12 | M178: =VLOOKUP(B178,'data LE '!$A$5:$C$355,3,FALSE) -> Darlington
A179: 15E060000051 | B179: E06000005 | C179: 1 | D179: 15 | E179: 14.2 | F179: 0.4 | G179: 0.01 | H179: 0.01 | I179: 1 | J179: 0.2 | K179: 0.04 | L179: 0.04 | M179: =VLOOKUP(B179,'data LE '!$A$5:$C$355,3,FALSE) -> Darlington
A180: 16E060000051 | B180: E06000005 | C180: 1 | D180: 16 | E180: 19.7 | F180: -0.7 | G180: 0 | H180: .. | I180: 5.8 | J180: 3.3 | K180: 0.12 | L180: 0.12 | M180: =VLOOKUP(B180,'data LE '!$A$5:$C$355,3,FALSE) -> Darlington
A181: 17E060000051 | B181: E06000005 | C181: 1 | D181: 17 | E181: 13 | F181: -4.3 | G181: -0.04 | H181: .. | I181: 3 | J181: 2 | K181: 0.08 | L181: 0.08 | M181: =VLOOKUP(B181,'data LE '!$A$5:$C$355,3,FALSE) -> Darlington
A182: 18E060000051 | B182: E06000005 | C182: 1 | D182: 18 | E182: 20.8 | F182: 6.1 | G182: 0.06 | H182: 0.06 | I182: 6 | J182: 5 | K182: 0.25 | L182: 0.25 | M182: =VLOOKUP(B182,'data LE '!$A$5:$C$355,3,FALSE) -> Darlington
A183: 19E060000051 | B183: E06000005 | C183: 1 | D183: 19 | E183: 84 | F183: 9.1 | G183: 0.08 | H183: 0.08 | I183: 11 | J183: -0.4 | K183: -0.12 | L183: .. | M183: =VLOOKUP(B183,'data LE '!$A$5:$C$355,3,FALSE) -> Darlington
A184: 20E060000051 | B184: E06000005 | C184: 1 | D184: 20 | E184: 7 | F184: 1.1 | G184: 0.04 | H184: 0.04 | I184: 2 | J184: -2.9 | K184: -0.46 | L184: .. | M184: =VLOOKUP(B184,'data LE '!$A$5:$C$355,3,FALSE) -> Darlington
A185: 1E060000052 | B185: E06000005 | C185: 2 | D185: 1 | E185: 157.6 | F185: 5.1 | G185: 0.04 | H185: 0.04 | I185: 24.8 | J185: -1.6 | K185: 0.46 | L185: 0.46 | M185: =VLOOKUP(B185,'data LE '!$A$5:$C$355,3,FALSE) -> Darlington
A186: 2E060000052 | B186: E06000005 | C186: 2 | D186: 2 | E186: 135.4 | F186: 8.9 | G186: 0.04 | H186: 0.04 | I186: 24.2 | J186: 9.7 | K186: 0.25 | L186: 0.25 | M186: =VLOOKUP(B186,'data LE '!$A$5:$C$355,3,FALSE) -> Darlington
A187: 3E060000052 | B187: E06000005 | C187: 2 | D187: 3 | E187: 135 | F187: -4.1 | G187: -0.04 | H187: .. | I187: 28 | J187: 11.2 | K187: 0.37 | L187: 0.37 | M187: =VLOOKUP(B187,'data LE '!$A$5:$C$355,3,FALSE) -> Darlington
A188: 4E060000052 | B188: E06000005 | C188: 2 | D188: 4 | E188: 96 | F188: 14.4 | G188: 0.05 | H188: 0.05 | I188: 30 | J188: 23.4 | K188: 0.81 | L188: 0.81 | M188: =VLOOKUP(B188,'data LE '!$A$5:$C$355,3,FALSE) -> Darlington
A189: 5E060000052 | B189: E06000005 | C189: 2 | D189: 5 | E189: 354 | F189: 37 | G189: 0.31 | H189: 0.31 | I189: 60 | J189: 7.7 | K189: 0.76 | L189: 0.76 | M189: =VLOOKUP(B189,'data LE '!$A$5:$C$355,3,FALSE) -> Darlington
A190: 6E060000052 | B190: E06000005 | C190: 2 | D190: 6 | E190: 79.7 | F190: -12.9 | G190: -0.09 | H190: .. | I190: 20.6 | J190: 10.9 | K190: 0.31 | L190: 0.31 | M190: =VLOOKUP(B190,'data LE '!$A$5:$C$355,3,FALSE) -> Darlington
A191: 7E060000052 | B191: E06000005 | C191: 2 | D191: 7 | E191: 92 | F191: 14.8 | G191: 0.08 | H191: 0.08 | I191: 22 | J191: 14 | K191: 0.41 | L191: 0.41 | M191: =VLOOKUP(B191,'data LE '!$A$5:$C$355,3,FALSE) -> Darlington
A192: 8E060000052 | B192: E06000005 | C192: 2 | D192: 8 | E192: 42 | F192: -3.8 | G192: 0 | H192: .. | I192: 10.4 | J192: 1.7 | K192: 0.2 | L192: 0.2 | M192: =VLOOKUP(B192,'data LE '!$A$5:$C$355,3,FALSE) -> Darlington
A193: 9E060000052 | B193: E06000005 | C193: 2 | D193: 9 | E193: 12.4 | F193: -0.5 | G193: -0.01 | H193: .. | I193: 3.8 | J193: 2.7 | K193: 0.13 | L193: 0.13 | M193: =VLOOKUP(B193,'data LE '!$A$5:$C$355,3,FALSE) -> Darlington
A194: 10E060000052 | B194: E06000005 | C194: 2 | D194: 10 | E194: 70.4 | F194: 9 | G194: 0.08 | H194: 0.08 | I194: 15.9 | J194: 6.5 | K194: 0.36 | L194: 0.36 | M194: =VLOOKUP(B194,'data LE '!$A$5:$C$355,3,FALSE) -> Darlington
A195: 11E060000052 | B195: E06000005 | C195: 2 | D195: 11 | E195: 4 | F195: -2.5 | G195: -0.06 | H195: .. | I195: 2 | J195: 1.2 | K195: 0.16 | L195: 0.16 | M195: =VLOOKUP(B195,'data LE '!$A$5:$C$355,3,FALSE) -> Darlington
A196: 12E060000052 | B196: E06000005 | C196: 2 | D196: 12 | E196: 41.5 | F196: 5.2 | G196: 0.17 | H196: 0.17 | I196: 11.7 | J196: 8.4 | K196: 0.56 | L196: 0.56 | M196: =VLOOKUP(B196,'data LE '!$A$5:$C$355,3,FALSE) -> Darlington
A197: 13E060000052 | B197: E06000005 | C197: 2 | D197: 13 | E197: 223.3 | F197: 21.5 | G197: 0.11 | H197: 0.11 | I197: 60.2 | J197: 40.5 | K197: 0.96 | L197: 0.96 | M197: =VLOOKUP(B197,'data LE '!$A$5:$C$355,3,FALSE) -> Darlington
A198: 14E060000052 | B198: E06000005 | C198: 2 | D198: 14 | E198: 5 | F198: 2.8 | G198: 0.08 | H198: 0.08 | I198: 1 | J198: -1.6 | K198: -0.1 | L198: .. | M198: =VLOOKUP(B198,'data LE '!$A$5:$C$355,3,FALSE) -> Darlington
A199: 15E060000052 | B199: E06000005 | C199: 2 | D199: 15 | E199: 17 | F199: 0.2 | G199: -0.03 | H199: .. | I199: 2 | J199: -1 | K199: 0.03 | L199: 0.03 | M199: =VLOOKUP(B199,'data LE '!$A$5:$C$355,3,FALSE) -> Darlington
A200: 16E060000052 | B200: E06000005 | C200: 2 | D200: 16 | E200: 31.1 | F200: 1.1 | G200: 0.02 | H200: 0.02 | I200: 5.7 | J200: 1.4 | K200: 0.07 | L200: 0.07 | M200: =VLOOKUP(B200,'data LE '!$A$5:$C$355,3,FALSE) -> Darlington
A201: 17E060000052 | B201: E06000005 | C201: 2 | D201: 17 | E201: 89 | F201: 39.2 | G201: 0.19 | H201: 0.19 | I201: 11 | J201: -1 | K201: 0.2 | L201: 0.2 | M201: =VLOOKUP(B201,'data LE '!$A$5:$C$355,3,FALSE) -> Darlington
... 4299 more rows

Sheet data alcohol (hidden)
A1: Data alcohol
A3: 2012-14 data
E5: LA whole - England | H5: MDQ-LDQ
A6: LookupCode | B6: geocode | C6: sex | D6: cause | E6: totaldeaths | F6: xsdeaths | G6: yll_ylg | H6: Totaldeaths | I6: XSdeaths | J6: YLL_YLG
A7: 1E060000011 | B7: E06000001 | C7: 1 | D7: 1 | E7: 25 | F7: 6.5 | G7: 0.1 | H7: 11 | I7: 9.3 | J7: 0.55
A8: 2E060000011 | B8: E06000001 | C8: 1 | D8: 2 | E8: 1353 | F8: 172.2 | G8: 1.73 | H8: 319 | I8: 173.1 | J8: 9.46
A9: 1E060000012 | B9: E06000001 | C9: 2 | D9: 1 | E9: 9 | F9: -0.3 | G9: 0 | H9: 2 | I9: 1.2 | J9: 0.11
A10: 2E060000012 | B10: E06000001 | C10: 2 | D10: 2 | E10: 1413 | F10: 147.6 | G10: 1.47 | H10: 322 | I10: 180.5 | J10: 9.34
A11: 1E060000021 | B11: E06000002 | C11: 1 | D11: 1 | E11: 39 | F11: 13.9 | G11: 0.16 | H11: 11 | I11: 9.2 | J11: 0.41
A12: 2E060000021 | B12: E06000002 | C12: 1 | D12: 2 | E12: 1983 | F12: 433.2 | G12: 3.17 | H12: 428 | I12: 215.5 | J12: 8.44
A13: 1E060000022 | B13: E06000002 | C13: 2 | D13: 1 | E13: 21 | F13: 8.1 | G13: 0.12 | H13: 8 | I13: 8 | J13: 0.43
A14: 2E060000022 | B14: E06000002 | C14: 2 | D14: 2 | E14: 2170 | F14: 502.6 | G14: 3.23 | H14: 487 | I14: 209.7 | J14: 8.19
A15: 1E060000031 | B15: E06000003 | C15: 1 | D15: 1 | E15: 27 | F15: -1 | G15: 0.01 | H15: 14 | I15: 13.1 | J15: 0.72
A16: 2E060000031 | B16: E06000003 | C16: 1 | D16: 2 | E16: 2064 | F16: 130 | G16: 0.95 | H16: 354 | I16: 149.6 | J16: 7.29
A17: 1E060000032 | B17: E06000003 | C17: 2 | D17: 1 | E17: 19 | F17: 4.7 | G17: 0.07 | H17: 4 | I17: 0 | J17: -0.05
A18: 2E060000032 | B18: E06000003 | C18: 2 | D18: 2 | E18: 2167 | F18: 149.6 | G18: 1.06 | H18: 323 | I18: 73.5 | J18: 3.9
A19: 1E060000041 | B19: E06000004 | C19: 1 | D19: 1 | E19: 55 | F19: 17.2 | G19: 0.17 | H19: 28 | I19: 25.4 | J19: 0.89
A20: 2E060000041 | B20: E06000004 | C20: 1 | D20: 2 | E20: 2457 | F20: 167.7 | G20: 0.98 | H20: 661 | I20: 443 | J20: 12.73
A21: 1E060000042 | B21: E06000004 | C21: 2 | D21: 1 | E21: 32 | F21: 12.8 | G21: 0.11 | H21: 11 | I21: 8.7 | J21: 0.35
A22: 2E060000042 | B22: E06000004 | C22: 2 | D22: 2 | E22: 2551 | F22: 154.8 | G22: 0.82 | H22: 698 | I22: 408.4 | J22: 10.35
A23: 1E060000051 | B23: E06000005 | C23: 1 | D23: 1 | E23: 29 | F23: 7.8 | G23: 0.12 | H23: 15 | I23: 15 | J23: 0.98
A24: 2E060000051 | B24: E06000005 | C24: 1 | D24: 2 | E24: 1508 | F24: 106.4 | G24: 1.19 | H24: 310 | I24: 155.4 | J24: 8.35
A25: 1E060000052 | B25: E06000005 | C25: 2 | D25: 1 | E25: 13 | F25: 2.3 | G25: 0.04 | H25: 4 | I25: 3.4 | J25: 0.25
A26: 2E060000052 | B26: E06000005 | C26: 2 | D26: 2 | E26: 1689 | F26: 148.1 | G26: 1 | H26: 353 | I26: 140.9 | J26: 7.21
A27: 1E060000061 | B27: E06000006 | C27: 1 | D27: 1 | E27: 29 | F27: 3.8 | G27: 0.07 | H27: 11 | I27: 11 | J27: 0.54
A28: 2E060000061 | B28: E06000006 | C28: 1 | D28: 2 | E28: 1714 | F28: 312.8 | G28: 2.19 | H28: 369 | I28: 177.2 | J28: 8.49
A29: 1E060000062 | B29: E06000006 | C29: 2 | D29: 1 | E29: 23 | F29: 10.2 | G29: 0.08 | H29: 5 | I29: 4.2 | J29: 0.23
A30: 2E060000062 | B30: E06000006 | C30: 2 | D30: 2 | E30: 1835 | F30: 397.2 | G30: 2.57 | H30: 345 | I30: 134.9 | J30: 5.88
A31: 1E060000071 | B31: E06000007 | C31: 1 | D31: 1 | E31: 54 | F31: 12.3 | G31: 0.08 | H31: 24 | I31: 21.8 | J31: 0.58
A32: 2E060000071 | B32: E06000007 | C32: 1 | D32: 2 | E32: 2650 | F32: 247.7 | G32: 0.85 | H32: 651 | I32: 335.1 | J32: 8.99
A33: 1E060000072 | B33: E06000007 | C33: 2 | D33: 1 | E33: 35 | F33: 14.5 | G33: 0.1 | H33: 14 | I33: 11.3 | J33: 0.42
A34: 2E060000072 | B34: E06000007 | C34: 2 | D34: 2 | E34: 2900 | F34: 371.3 | G34: 1.37 | H34: 655 | I34: 245.1 | J34: 6.82
A35: 1E060000081 | B35: E06000008 | C35: 1 | D35: 1 | E35: 25 | F35: -1.8 | G35: -0.01 | H35: 11 | I35: 9.5 | J35: 0.39
A36: 2E060000081 | B36: E06000008 | C36: 1 | D36: 2 | E36: 1808 | F36: 358.5 | G36: 2.81 | H36: 431 | I36: 246.6 | J36: 10.2
A37: 1E060000082 | B37: E06000008 | C37: 2 | D37: 1 | E37: 16 | F37: 3 | G37: 0.06 | H37: 3 | I37: 1.3 | J37: 0.07
A38: 2E060000082 | B38: E06000008 | C38: 2 | D38: 2 | E38: 1825 | F38: 293.1 | G38: 2.01 | H38: 398 | I38: 192.7 | J38: 8.02
A39: 1E060000091 | B39: E06000009 | C39: 1 | D39: 1 | E39: 61 | F39: 31.5 | G39: 0.28 | H39: 28 | I39: 26.9 | J39: 0.87
A40: 2E060000091 | B40: E06000009 | C40: 1 | D40: 2 | E40: 2633 | F40: 673.8 | G40: 4.56 | H40: 527 | I40: 248 | J40: 8.28
A41: 1E060000092 | B41: E06000009 | C41: 2 | D41: 1 | E41: 31 | F41: 16.8 | G41: 0.15 | H41: 9 | I41: 6.9 | J41: 0.36
A42: 2E060000092 | B42: E06000009 | C42: 2 | D42: 2 | E42: 2695 | F42: 498.5 | G42: 3.11 | H42: 382 | I42: 125.5 | J42: 6.83
A43: 1E060000101 | B43: E06000010 | C43: 1 | D43: 1 | E43: 64 | F43: 16.9 | G43: 0.1 | H43: 16 | I43: 10.7 | J43: 0.23
A44: 2E060000101 | B44: E06000010 | C44: 1 | D44: 2 | E44: 3497 | F44: 740.7 | G44: 2.8 | H44: 929 | I44: 463.3 | J44: 8.45
A45: 1E060000102 | B45: E06000010 | C45: 2 | D45: 1 | E45: 29 | F45: 6.3 | G45: 0.05 | H45: 8 | I45: 5.2 | J45: 0.15
A46: 2E060000102 | B46: E06000010 | C46: 2 | D46: 2 | E46: 3660 | F46: 742.6 | G46: 2.63 | H46: 864 | I46: 380.9 | J46: 6.54
A47: 1E060000111 | B47: E06000011 | C47: 1 | D47: 1 | E47: 60 | F47: -15.4 | G47: -0.05 | H47: 23 | I47: 16.4 | J47: 0.34
A48: 2E060000111 | B48: E06000011 | C48: 1 | D48: 2 | E48: 5130 | F48: -224.4 | G48: -0.7 | H48: 1289 | I48: 476 | J48: 6.05
A49: 1E060000112 | B49: E06000011 | C49: 2 | D49: 1 | E49: 34 | F49: -3.5 | G49: 0 | H49: 11 | I49: 6.3 | J49: 0.19
A50: 2E060000112 | B50: E06000011 | C50: 2 | D50: 2 | E50: 5779 | F50: 179.7 | G50: 0.02 | H50: 1388 | I50: 226.1 | J50: 4.06
A51: 1E060000121 | B51: E06000012 | C51: 1 | D51: 1 | E51: 53 | F51: 21 | G51: 0.24 | H51: 17 | I51: 15.4 | J51: 0.61
A52: 2E060000121 | B52: E06000012 | C52: 1 | D52: 2 | E52: 2400 | F52: 264.6 | G52: 1.43 | H52: 489 | I52: 254.1 | J52: 9.36
A53: 1E060000122 | B53: E06000012 | C53: 2 | D53: 1 | E53: 20 | F53: 4.2 | G53: 0.06 | H53: 10 | I53: 9.6 | J53: 0.49
A54: 2E060000122 | B54: E06000012 | C54: 2 | D54: 2 | E54: 2489 | F54: 182.7 | G54: 0.99 | H54: 446 | I54: 191.7 | J54: 7.45
A55: 1E060000131 | B55: E06000013 | C55: 1 | D55: 1 | E55: 42 | F55: 6.4 | G55: 0.07 | H55: 16 | I55: 10.5 | J55: 0.45
A56: 2E060000131 | B56: E06000013 | C56: 1 | D56: 2 | E56: 2508 | F56: 230.7 | G56: 1.2 | H56: 567 | I56: 263 | J56: 7.72
A57: 1E060000132 | B57: E06000013 | C57: 2 | D57: 1 | E57: 23 | F57: 5.7 | G57: 0.05 | H57: 6 | I57: 1.9 | J57: 0.06
A58: 2E060000132 | B58: E06000013 | C58: 2 | D58: 2 | E58: 2481 | F58: 54 | G58: 0.37 | H58: 626 | I58: 295.5 | J58: 8.95
A59: 1E060000141 | B59: E06000014 | C59: 1 | D59: 1 | E59: 27 | F59: -10.1 | G59: -0.08 | H59: 11 | I59: 9.7 | J59: 0.35
A60: 2E060000141 | B60: E06000014 | C60: 1 | D60: 2 | E60: 2521 | F60: -36.1 | G60: -0.5 | H60: 489 | I60: 172.9 | J60: 5.18
A61: 1E060000142 | B61: E06000014 | C61: 2 | D61: 1 | E61: 17 | F61: -1.8 | G61: 0 | H61: 4 | I61: 2.6 | J61: 0.12
A62: 2E060000142 | B62: E06000014 | C62: 2 | D62: 2 | E62: 2805 | F62: -61.5 | G62: -0.27 | H62: 552 | I62: 95.3 | J62: 5.17
A63: 1E060000151 | B63: E06000015 | C63: 1 | D63: 1 | E63: 73 | F63: 28.1 | G63: 0.18 | H63: 24 | I63: 21.1 | J63: 0.51
A64: 2E060000151 | B64: E06000015 | C64: 1 | D64: 2 | E64: 3182 | F64: 241.3 | G64: 1.09 | H64: 672 | I64: 358.5 | J64: 9.24
A65: 1E060000152 | B65: E06000015 | C65: 2 | D65: 1 | E65: 27 | F65: 4.7 | G65: 0.02 | H65: 8 | I65: 8 | J65: 0.25
A66: 2E060000152 | B66: E06000015 | C66: 2 | D66: 2 | E66: 3287 | F66: 45 | G66: 0.49 | H66: 609 | I66: 249.3 | J66: 6.67
A67: 1E060000161 | B67: E06000016 | C67: 1 | D67: 1 | E67: 98 | F67: 44.3 | G67: 0.22 | H67: 35 | I67: 21.7 | J67: 0.42
A68: 2E060000161 | B68: E06000016 | C68: 1 | D68: 2 | E68: 3605 | F68: 572.9 | G68: 1.97 | H68: 835 | I68: 288.1 | J68: 5.51
A69: 1E060000162 | B69: E06000016 | C69: 2 | D69: 1 | E69: 32 | F69: 5.4 | G69: 0.03 | H69: 12 | I69: 4.6 | J69: 0.14
A70: 2E060000162 | B70: E06000016 | C70: 2 | D70: 2 | E70: 3605 | F70: 325.7 | G70: 1.38 | H70: 811 | I70: 183.1 | J70: 4.41
A71: 1E060000171 | B71: E06000017 | C71: 1 | D71: 1 | E71: 4 | F71: -4.1 | G71: -0.08 | H71: 0 | I71: -1.5 | J71: -0.23
A72: 2E060000171 | B72: E06000017 | C72: 1 | D72: 2 | E72: 516 | F72: -97.2 | G72: -1.83 | H72: 144 | I72: 62.5 | J72: 7.13
A73: 1E060000172 | B73: E06000017 | C73: 2 | D73: 1 | E73: 2 | F73: -1.9 | G73: -0.09 | H73: 1 | I73: 1 | J73: 0.16
A74: 2E060000172 | B74: E06000017 | C74: 2 | D74: 2 | E74: 507 | F74: -133.3 | G74: -2.65 | H74: 168 | I74: 106.2 | J74: 12
A75: 1E060000181 | B75: E06000018 | C75: 1 | D75: 1 | E75: 89 | F75: 40.5 | G75: 0.2 | H75: 26 | I75: 17.1 | J75: 0.35
A76: 2E060000181 | B76: E06000018 | C76: 1 | D76: 2 | E76: 3398 | F76: 565.7 | G76: 2.21 | H76: 751 | I76: 293.1 | J76: 5.91
A77: 1E060000182 | B77: E06000018 | C77: 2 | D77: 1 | E77: 31 | F77: 7.9 | G77: 0.05 | H77: 7 | I77: 4.9 | J77: 0.15
A78: 2E060000182 | B78: E06000018 | C78: 2 | D78: 2 | E78: 3372 | F78: 251.9 | G78: 1.55 | H78: 748 | I78: 263.8 | J78: 5.84
A79: 1E060000191 | B79: E06000019 | C79: 1 | D79: 1 | E79: 30 | F79: -10.4 | G79: -0.07 | H79: 11 | I79: 8.4 | J79: 0.31
A80: 2E060000191 | B80: E06000019 | C80: 1 | D80: 2 | E80: 2707 | F80: -276.1 | G80: -1.04 | H80: 534 | I80: 142.6 | J80: 3.91
A81: 1E060000192 | B81: E06000019 | C81: 2 | D81: 1 | E81: 17 | F81: -3 | G81: -0.02 | H81: 10 | I81: 9.3 | J81: 0.38
A82: 2E060000192 | B82: E06000019 | C82: 2 | D82: 2 | E82: 2958 | F82: -224 | G82: -0.95 | H82: 597 | I82: 146.6 | J82: 3.16
A83: 1E060000201 | B83: E06000020 | C83: 1 | D83: 1 | E83: 48 | F83: 15.2 | G83: 0.12 | H83: 12 | I83: 8.8 | J83: 0.31
A84: 2E060000201 | B84: E06000020 | C84: 1 | D84: 2 | E84: 1949 | F84: 122 | G84: 0.74 | H84: 434 | I84: 195.3 | J84: 7.13
A85: 1E060000202 | B85: E06000020 | C85: 2 | D85: 1 | E85: 22 | F85: 5.8 | G85: 0.05 | H85: 6 | I85: 3.7 | J85: 0.2
A86: 2E060000202 | B86: E06000020 | C86: 2 | D86: 2 | E86: 2035 | F86: 191.1 | G86: 1.29 | H86: 402 | I86: 126.5 | J86: 5.03
A87: 1E060000211 | B87: E06000021 | C87: 1 | D87: 1 | E87: 86 | F87: 38 | G87: 0.23 | H87: 32 | I87: 24.1 | J87: 0.58
A88: 2E060000211 | B88: E06000021 | C88: 1 | D88: 2 | E88: 3607 | F88: 735.4 | G88: 2.75 | H88: 811 | I88: 327.7 | J88: 6.67
A89: 1E060000212 | B89: E06000021 | C89: 2 | D89: 1 | E89: 36 | F89: 13.1 | G89: 0.07 | H89: 9 | I89: 4.8 | J89: 0.17
A90: 2E060000212 | B90: E06000021 | C90: 2 | D90: 2 | E90: 3552 | F90: 506.2 | G90: 2.2 | H90: 713 | I90: 185.1 | J90: 5.1
A91: 1E060000221 | B91: E06000022 | C91: 1 | D91: 1 | E91: 29 | F91: -5 | G91: -0.05 | H91: 12 | I91: 10.4 | J91: 0.47
A92: 2E060000221 | B92: E06000022 | C92: 1 | D92: 2 | E92: 2218 | F92: -297.2 | G92: -1.76 | H92: 469 | I92: 163.3 | J92: 5.94
A93: 1E060000222 | B93: E06000022 | C93: 2 | D93: 1 | E93: 19 | F93: 1.8 | G93: 0.01 | H93: 4 | I93: 1.7 | J93: 0.11
A94: 2E060000222 | B94: E06000022 | C94: 2 | D94: 2 | E94: 2530 | F94: -224.4 | G94: -1.54 | H94: 505 | I94: 56.2 | J94: 3.23
A95: 1E060000231 | B95: E06000023 | C95: 1 | D95: 1 | E95: 134 | F95: 61.1 | G95: 0.23 | H95: 58 | I95: 45.1 | J95: 0.79
A96: 2E060000231 | B96: E06000023 | C96: 1 | D96: 2 | E96: 4797 | F96: 367.1 | G96: 0.95 | H96: 1095 | I96: 428.3 | J96: 6.37
A97: 1E060000232 | B97: E06000023 | C97: 2 | D97: 1 | E97: 37 | F97: 1.7 | G97: 0.01 | H97: 11 | I97: 9 | J97: 0.18
A98: 2E060000232 | B98: E06000023 | C98: 2 | D98: 2 | E98: 5048 | F98: 51.5 | G98: 0.3 | H98: 1061 | I98: 307.8 | J98: 5.39
A99: 1E060000241 | B99: E06000024 | C99: 1 | D99: 1 | E99: 46 | F99: 2.2 | G99: 0.03 | H99: 26 | I99: 22.5 | J99: 0.64
A100: 2E060000241 | B100: E06000024 | C100: 1 | D100: 2 | E100: 3068 | F100: -202.9 | G100: -0.76 | H100: 828 | I100: 419.6 | J100: 8.77
A101: 1E060000242 | B101: E06000024 | C101: 2 | D101: 1 | E101: 20 | F101: -2 | G101: -0.03 | H101: 9 | I101: 7.3 | J101: 0.23
A102: 2E060000242 | B102: E06000024 | C102: 2 | D102: 2 | E102: 3480 | F102: -168.9 | G102: -0.56 | H102: 1027 | I102: 375.1 | J102: 6.41
A103: 1E060000251 | B103: E06000025 | C103: 1 | D103: 1 | E103: 40 | F103: -14 | G103: -0.07 | H103: 16 | I103: 11.1 | J103: 0.36
A104: 2E060000251 | B104: E06000025 | C104: 1 | D104: 2 | E104: 2984 | F104: -485 | G104: -1.92 | H104: 722 | I104: 198.3 | J104: 4.66
A105: 1E060000252 | B105: E06000025 | C105: 2 | D105: 1 | E105: 12 | F105: -14.6 | G105: -0.09 | H105: 7 | I105: 6.2 | J105: 0.17
A106: 2E060000252 | B106: E06000025 | C106: 2 | D106: 2 | E106: 3132 | F106: -402.9 | G106: -1.5 | H106: 822 | I106: 258.5 | J106: 4.87
A107: 1E060000261 | B107: E06000026 | C107: 1 | D107: 1 | E107: 58 | F107: 9.7 | G107: 0.05 | H107: 18 | I107: 13.3 | J107: 0.33
A108: 2E060000261 | B108: E06000026 | C108: 1 | D108: 2 | E108: 3390 | F108: 212.7 | G108: 1.03 | H108: 686 | I108: 261.6 | J108: 6.06
A109: 1E060000262 | B109: E06000026 | C109: 2 | D109: 1 | E109: 23 | F109: -1.1 | G109: 0.01 | H109: 10 | I109: 8.5 | J109: 0.26
A110: 2E060000262 | B110: E06000026 | C110: 2 | D110: 2 | E110: 3622 | F110: 211.9 | G110: 0.71 | H110: 584 | I110: 114.2 | J110: 3.82
A111: 1E060000271 | B111: E06000027 | C111: 1 | D111: 1 | E111: 42 | F111: 13.5 | G111: 0.15 | H111: 16 | I111: 11.4 | J111: 0.39
A112: 2E060000271 | B112: E06000027 | C112: 1 | D112: 2 | E112: 2408 | F112: 63.4 | G112: 0.34 | H112: 457 | I112: 97.9 | J112: 4.73
A113: 1E060000272 | B113: E06000027 | C113: 2 | D113: 1 | E113: 14 | F113: -0.4 | G113: -0.03 | H113: 4 | I113: 2.1 | J113: 0.1
A114: 2E060000272 | B114: E06000027 | C114: 2 | D114: 2 | E114: 2717 | F114: 49.1 | G114: 0.19 | H114: 451 | I114: 77.1 | J114: 2.88
A115: 1E060000281 | B115: E06000028 | C115: 1 | D115: 1 | E115: 51 | F115: 15.4 | G115: 0.12 | H115: 21 | I115: 17.2 | J115: 0.48
A116: 2E060000281 | B116: E06000028 | C116: 1 | D116: 2 | E116: 2730 | F116: 66.7 | G116: 0.53 | H116: 562 | I116: 258.9 | J116: 7.78
A117: 1E060000282 | B117: E06000028 | C117: 2 | D117: 1 | E117: 29 | F117: 12.4 | G117: 0.11 | H117: 1 | I117: -1.8 | J117: -0.08
A118: 2E060000282 | B118: E06000028 | C118: 2 | D118: 2 | E118: 3101 | F118: 62.5 | G118: -0.06 | H118: 570 | I118: 224.6 | J118: 6.33
A119: 1E060000291 | B119: E06000029 | C119: 1 | D119: 1 | E119: 33 | F119: 2.4 | G119: 0 | H119: 13 | I119: 10 | J119: 0.43
A120: 2E060000291 | B120: E06000029 | C120: 1 | D120: 2 | E120: 2243 | F120: -152.9 | G120: -1.05 | H120: 405 | I120: 136 | J120: 5.44
A121: 1E060000292 | B121: E06000029 | C121: 2 | D121: 1 | E121: 12 | F121: -3.2 | G121: -0.03 | H121: 2 | I121: 0.3 | J121: -0.02
A122: 2E060000292 | B122: E06000029 | C122: 2 | D122: 2 | E122: 2545 | F122: -121.8 | G122: -0.87 | H122: 464 | I122: 165.2 | J122: 5.27
A123: 1E060000301 | B123: E06000030 | C123: 1 | D123: 1 | E123: 25 | F123: -17 | G123: -0.09 | H123: 12 | I123: 8 | J123: 0.16
A124: 2E060000301 | B124: E06000030 | C124: 1 | D124: 2 | E124: 2438 | F124: 54.3 | G124: 0.13 | H124: 663 | I124: 201.4 | J124: 5.17
A125: 1E060000302 | B125: E06000030 | C125: 2 | D125: 1 | E125: 16 | F125: -4.1 | G125: -0.03 | H125: 7 | I125: 6 | J125: 0.2
A126: 2E060000302 | B126: E06000030 | C126: 2 | D126: 2 | E126: 2435 | F126: 32 | G126: 0.23 | H126: 579 | I126: 53.3 | J126: 2.07
A127: 1E060000311 | B127: E06000031 | C127: 1 | D127: 1 | E127: 29 | F127: -4.5 | G127: -0.03 | H127: 9 | I127: 6.1 | J127: 0.24
A128: 2E060000311 | B128: E06000031 | C128: 1 | D128: 2 | E128: 2117 | F128: 123.1 | G128: 1 | H128: 420 | I128: 157.1 | J128: 6.4
A129: 1E060000312 | B129: E06000031 | C129: 2 | D129: 1 | E129: 18 | F129: 1.3 | G129: 0.01 | H129: 4 | I129: 1.5 | J129: 0.08
A130: 2E060000312 | B130: E06000031 | C130: 2 | D130: 2 | E130: 2227 | F130: 102.3 | G130: 0.75 | H130: 398 | I130: 108.1 | J130: 5.05
A131: 1E060000321 | B131: E06000032 | C131: 1 | D131: 1 | E131: 28 | F131: -6 | G131: -0.04 | H131: 9 | I131: 9 | J131: 0.29
A132: 2E060000321 | B132: E06000032 | C132: 1 | D132: 2 | E132: 2114 | F132: 166.1 | G132: 1.21 | H132: 522 | I132: 250.6 | J132: 8.58
A133: 1E060000322 | B133: E06000032 | C133: 2 | D133: 1 | E133: 12 | F133: -4.6 | G133: -0.05 | H133: 4 | I133: 4 | J133: 0.18
A134: 2E060000322 | B134: E06000032 | C134: 2 | D134: 2 | E134: 2054 | F134: 143.6 | G134: 1.01 | H134: 393 | I134: 93.7 | J134: 3.98
A135: 1E060000331 | B135: E06000033 | C135: 1 | D135: 1 | E135: 32 | F135: -2.7 | G135: -0.04 | H135: 10 | I135: 5.8 | J135: 0.22
A136: 2E060000331 | B136: E06000033 | C136: 1 | D136: 2 | E136: 2378 | F136: -17.5 | G136: 0.03 | H136: 636 | I136: 349.7 | J136: 9.4
A137: 1E060000332 | B137: E06000033 | C137: 2 | D137: 1 | E137: 13 | F137: -4.1 | G137: -0.03 | H137: 3 | I137: 3 | J137: 0.12
A138: 2E060000332 | B138: E06000033 | C138: 2 | D138: 2 | E138: 2875 | F138: 68.8 | G138: 0.09 | H138: 730 | I138: 304.5 | J138: 8.2
A139: 1E060000341 | B139: E06000034 | C139: 1 | D139: 1 | E139: 18 | F139: -11.9 | G139: -0.1 | H139: 6 | I139: 5 | J139: 0.23
A140: 2E060000341 | B140: E06000034 | C140: 1 | D140: 2 | E140: 1653 | F140: 68.9 | G140: 0.32 | H140: 370 | I140: 162.7 | J140: 6.62
A141: 1E060000342 | B141: E06000034 | C141: 2 | D141: 1 | E141: 7 | F141: -7.6 | G141: -0.07 | H141: 1 | I141: 1 | J141: 0.06
A142: 2E060000342 | B142: E06000034 | C142: 2 | D142: 2 | E142: 1782 | F142: 94.9 | G142: 0.63 | H142: 415 | I142: 158.5 | J142: 5.62
A143: 1E060000351 | B143: E06000035 | C143: 1 | D143: 1 | E143: 40 | F143: -11.3 | G143: -0.07 | H143: 13 | I143: 7 | J143: 0.14
A144: 2E060000351 | B144: E06000035 | C144: 1 | D144: 2 | E144: 3085 | F144: 258.6 | G144: 0.89 | H144: 591 | I144: 195.5 | J144: 5.29
A145: 1E060000352 | B145: E06000035 | C145: 2 | D145: 1 | E145: 22 | F145: -3.3 | G145: -0.03 | H145: 6 | I145: 6 | J145: 0.19
A146: 2E060000352 | B146: E06000035 | C146: 2 | D146: 2 | E146: 3282 | F146: 303.1 | G146: 1.05 | H146: 590 | I146: 143 | J146: 3.89
A147: 1E060000361 | B147: E06000036 | C147: 1 | D147: 1 | E147: 9 | F147: -13.5 | G147: -0.17 | H147: 5 | I147: 4.3 | J147: 0.27
A148: 2E060000361 | B148: E06000036 | C148: 1 | D148: 2 | E148: 1030 | F148: -142.8 | G148: -1.68 | H148: 211 | I148: 69.1 | J148: 4.46
A149: 1E060000362 | B149: E06000036 | C149: 2 | D149: 1 | E149: 11 | F149: -0.1 | G149: 0 | H149: 3 | I149: 0.5 | J149: 0.05
A150: 2E060000362 | B150: E06000036 | C150: 2 | D150: 2 | E150: 1041 | F150: -163.8 | G150: -1.86 | H150: 194 | I150: 10.8 | J150: 0.6
A151: 1E060000371 | B151: E06000037 | C151: 1 | D151: 1 | E151: 19 | F151: -13.4 | G151: -0.12 | H151: 6 | I151: 2.5 | J151: 0.01
A152: 2E060000371 | B152: E06000037 | C152: 1 | D152: 2 | E152: 1705 | F152: -201.6 | G152: -1.35 | H152: 405 | I152: 118.5 | J152: 4.07
A153: 1E060000372 | B153: E06000037 | C153: 2 | D153: 1 | E153: 20 | F153: 4.2 | G153: 0.07 | H153: 9 | I153: 8.1 | J153: 0.49
A154: 2E060000372 | B154: E06000037 | C154: 2 | D154: 2 | E154: 1742 | F154: -171.7 | G154: -1.18 | H154: 471 | I154: 111.9 | J154: 3.9
A155: 1E060000381 | B155: E06000038 | C155: 1 | D155: 1 | E155: 38 | F155: 11.5 | G155: 0.1 | H155: 8 | I155: 7 | J155: 0.34
A156: 2E060000381 | B156: E06000038 | C156: 1 | D156: 2 | E156: 1620 | F156: 109.2 | G156: 0.97 | H156: 329 | I156: 161.7 | J156: 8.27
A157: 1E060000382 | B157: E06000038 | C157: 2 | D157: 1 | E157: 12 | F157: -0.5 | G157: 0 | H157: 2 | I157: 0.7 | J157: 0.05
A158: 2E060000382 | B158: E06000038 | C158: 2 | D158: 2 | E158: 1588 | F158: 42.6 | G158: 0.28 | H158: 255 | I158: 108.7 | J158: 7.48
A159: 1E060000391 | B159: E06000039 | C159: 1 | D159: 1 | E159: 14 | F159: -9.3 | G159: -0.11 | H159: 1 | I159: 0.3 | J159: 0.04
A160: 2E060000391 | B160: E06000039 | C160: 1 | D160: 2 | E160: 1189 | F160: 93.3 | G160: 1.07 | H160: 283 | I160: 90 | J160: 4.63
A161: 1E060000392 | B161: E06000039 | C161: 2 | D161: 1 | E161: 6 | F161: -5.2 | G161: -0.07 | H161: 1 | I161: -0.8 | J161: -0.04
A162: 2E060000392 | B162: E06000039 | C162: 2 | D162: 2 | E162: 1121 | F162: 15.9 | G162: 0.41 | H162: 256 | I162: 55.1 | J162: 4.45
A163: 1E060000401 | B163: E06000040 | C163: 1 | D163: 1 | E163: 21 | F163: -8.2 | G163: -0.09 | H163: 10 | I163: 9.2 | J163: 0.44
A164: 2E060000401 | B164: E06000040 | C164: 1 | D164: 2 | E164: 1760 | F164: -156.4 | G164: -1.2 | H164: 392 | I164: 145.8 | J164: 5.33
A165: 1E060000402 | B165: E06000040 | C165: 2 | D165: 1 | E165: 5 | F165: -9.5 | G165: -0.1 | H165: 0 | I165: -1.2 | J165: -0.08
A166: 2E060000402 | B166: E06000040 | C166: 2 | D166: 2 | E166: 1856 | F166: -216.5 | G166: -1.5 | H166: 418 | I166: 87.8 | J166: 4.28
A167: 1E060000411 | B167: E06000041 | C167: 1 | D167: 1 | E167: 14 | F167: -18.1 | G167: -0.16 | H167: 5 | I167: 3 | J167: 0.12
A168: 2E060000411 | B168: E06000041 | C168: 1 | D168: 2 | E168: 1651 | F168: -270.6 | G168: -2.14 | H168: 358 | I168: 88.2 | J168: 3.19
A169: 1E060000412 | B169: E06000041 | C169: 2 | D169: 1 | E169: 10 | F169: -6 | G169: -0.05 | H169: 3 | I169: 2.1 | J169: 0.09
A170: 2E060000412 | B170: E06000041 | C170: 2 | D170: 2 | E170: 1730 | F170: -189.9 | G170: -1.47 | H170: 400 | I170: 85.3 | J170: 3.47
A171: 1E060000421 | B171: E06000042 | C171: 1 | D171: 1 | E171: 43 | F171: -3.8 | G171: -0.03 | H171: 12 | I171: 5.8 | J171: 0.16
A172: 2E060000421 | B172: E06000042 | C172: 1 | D172: 2 | E172: 2380 | F172: 93.6 | G172: 0.45 | H172: 535 | I172: 210.9 | J172: 5.9
A173: 1E060000422 | B173: E06000042 | C173: 2 | D173: 1 | E173: 15 | F173: -8.5 | G173: -0.06 | H173: 7 | I173: 6.2 | J173: 0.19
A174: 2E060000422 | B174: E06000042 | C174: 2 | D174: 2 | E174: 2540 | F174: 144.1 | G174: 0.64 | H174: 560 | I174: 210.2 | J174: 5.73
A175: 1E060000431 | B175: E06000043 | C175: 1 | D175: 1 | E175: 84 | F175: 34.3 | G175: 0.18 | H175: 34 | I175: 29.1 | J175: 0.69
A176: 2E060000431 | B176: E06000043 | C176: 1 | D176: 2 | E176: 2956 | F176: 38.4 | G176: 0.38 | H176: 730 | I176: 359.2 | J176: 7.97
A177: 1E060000432 | B177: E06000043 | C177: 2 | D177: 1 | E177: 38 | F177: 14.1 | G177: 0.09 | H177: 13 | I177: 10.8 | J177: 0.35
A178: 2E060000432 | B178: E06000043 | C178: 2 | D178: 2 | E178: 3100 | F178: -146.7 | G178: -0.4 | H178: 661 | I178: 159.3 | J178: 4.91
A179: 1E060000441 | B179: E06000044 | C179: 1 | D179: 1 | E179: 68 | F179: 32.3 | G179: 0.21 | H179: 32 | I179: 27.5 | J179: 0.92
A180: 2E060000441 | B180: E06000044 | C180: 1 | D180: 2 | E180: 2380 | F180: 226.5 | G180: 1.12 | H180: 558 | I180: 232.7 | J180: 6.89
A181: 1E060000442 | B181: E06000044 | C181: 2 | D181: 1 | E181: 27 | F181: 9.8 | G181: 0.09 | H181: 7 | I181: 3 | J181: 0.15
A182: 2E060000442 | B182: E06000044 | C182: 2 | D182: 2 | E182: 2589 | F182: 162 | G182: 0.87 | H182: 595 | I182: 161.3 | J182: 5.15
A183: 1E060000451 | B183: E06000045 | C183: 1 | D183: 1 | E183: 57 | F183: 17.1 | G183: 0.1 | H183: 16 | I183: 12.2 | J183: 0.4
A184: 2E060000451 | B184: E06000045 | C184: 1 | D184: 2 | E184: 2733 | F184: 289.8 | G184: 1.28 | H184: 588 | I184: 220.5 | J184: 6.19
A185: 1E060000452 | B185: E06000045 | C185: 2 | D185: 1 | E185: 14 | F185: -5 | G185: -0.04 | H185: 5 | I185: 3.2 | J185: 0.13
A186: 2E060000452 | B186: E06000045 | C186: 2 | D186: 2 | E186: 2693 | F186: -12.9 | G186: 0.16 | H186: 495 | I186: 77.9 | J186: 3.21
A187: 1E060000461 | B187: E06000046 | C187: 1 | D187: 1 | E187: 29 | F187: -1.6 | G187: -0.03 | H187: 9 | I187: 6.8 | J187: 0.28
A188: 2E060000461 | B188: E06000046 | C188: 1 | D188: 2 | E188: 2443 | F188: -20.4 | G188: -0.25 | H188: 419 | I188: 90.6 | J188: 4.28
A189: 1E060000462 | B189: E06000046 | C189: 2 | D189: 1 | E189: 11 | F189: -4.4 | G189: -0.04 | H189: 2 | I189: 0.6 | J189: 0.06
A190: 2E060000462 | B190: E06000046 | C190: 2 | D190: 2 | E190: 2713 | F190: -37.7 | G190: -0.27 | H190: 482 | I190: 100.5 | J190: 2.87
A191: 1E060000471 | B191: E06000047 | C191: 1 | D191: 1 | E191: 122 | F191: 14.9 | G191: 0.05 | H191: 36 | I191: 29.5 | J191: 0.36
A192: 2E060000471 | B192: E06000047 | C192: 1 | D192: 2 | E192: 7658 | F192: 814.7 | G192: 1.42 | H192: 1624 | I192: 611 | J192: 5.94
A193: 1E060000472 | B193: E06000047 | C193: 2 | D193: 1 | E193: 79 | F193: 25.4 | G193: 0.06 | H193: 17 | I193: 13 | J193: 0.2
A194: 2E060000472 | B194: E06000047 | C194: 2 | D194: 2 | E194: 8315 | F194: 1202.7 | G194: 1.76 | H194: 1782 | I194: 588.9 | J194: 5.77
A195: 1E060000491 | B195: E06000049 | C195: 1 | D195: 1 | E195: 96 | F195: 15.7 | G195: 0.07 | H195: 33 | I195: 25.4 | J195: 0.37
A196: 2E060000491 | B196: E06000049 | C196: 1 | D196: 2 | E196: 5118 | F196: -416.3 | G196: -0.85 | H196: 1127 | I196: 570.1 | J196: 8.54
A197: 1E060000492 | B197: E06000049 | C197: 2 | D197: 1 | E197: 53 | F197: 13.1 | G197: 0.05 | H197: 16 | I197: 14.2 | J197: 0.29
A198: 2E060000492 | B198: E06000049 | C198: 2 | D198: 2 | E198: 5700 | F198: -255.1 | G198: -0.64 | H198: 1204 | I198: 452.3 | J198: 6.63
A199: 1E060000501 | B199: E06000050 | C199: 1 | D199: 1 | E199: 77 | F199: 7.8 | G199: 0.05 | H199: 25 | I199: 16.6 | J199: 0.3
A200: 2E060000501 | B200: E06000050 | C200: 1 | D200: 2 | E200: 4639 | F200: 10.7 | G200: 0.03 | H200: 1036 | I200: 488.8 | J200: 7.28
A201: 1E060000502 | B201: E06000050 | C201: 2 | D201: 1 | E201: 48 | F201: 13.3 | G201: 0.06 | H201: 16 | I201: 12.8 | J201: 0.33
A202: 2E060000502 | B202: E06000050 | C202: 2 | D202: 2 | E202: 4965 | F202: 26.1 | G202: -0.19 | H202: 1124 | I202: 405 | J202: 6.05
... 1208 more rows

Sheet data LE (hidden)
A1: 2012-14 FROM PHOF
A3: New code | B3: Old code | C3: Area name | D3: Life expectancy female | E3: Life expectancy male
A4: E92000001 | B4: Eng | C4: England | D4: 83.2 | E4: 79.55
A5: E06000001 | C5: Hartlepool | D5: 81.7 | E5: 77.7
A6: E06000002 | C6: Middlesbrough | D6: 79.8 | E6: 76.2
A7: E06000003 | C7: Redcar and Cleveland | D7: 82.1 | E7: 78.6
A8: E06000004 | C8: Stockton-on-Tees | D8: 82.3 | E8: 78.4
A9: E06000005 | C9: Darlington | D9: 82.2 | E9: 78.2
A10: E06000006 | C10: Halton | D10: 80.5 | E10: 77.3
A11: E06000007 | C11: Warrington | D11: 81.7 | E11: 78.6
A12: E06000008 | C12: Blackburn with Darwen | D12: 81.1 | E12: 76.7
A13: E06000009 | C13: Blackpool | D13: 79.9 | E13: 74.7
A14: E06000010 | C14: Kingston upon Hull | D14: 80.5 | E14: 76.6
A15: E06000011 | C15: East Riding of Yorkshire | D15: 83.2 | E15: 80.3
A16: E06000012 | C16: North East Lincolnshire | D16: 82.1 | E16: 77.9
A17: E06000013 | C17: North Lincolnshire | D17: 82.8 | E17: 78.3
A18: E06000014 | C18: York | D18: 83.5 | E18: 80.1
A19: E06000015 | C19: Derby | D19: 82.7 | E19: 78.3
A20: E06000016 | C20: Leicester | D20: 81.8 | E20: 77.3
A21: E06000017 | C21: Rutland | D21: 85.9 | E21: 81.4
A22: E06000018 | C22: Nottingham | D22: 81.6 | E22: 77.1
A23: E06000019 | C23: Herefordshire | D23: 84.2 | E23: 80.7
A24: E06000020 | C24: Telford and Wrekin | D24: 81.8 | E24: 78.7
A25: E06000021 | C25: Stoke-on-Trent | D25: 80.9 | E25: 76.6
A26: E06000022 | C26: Bath and North East Somerset | D26: 84.7 | E26: 81.3
A27: E06000023 | C27: Bristol | D27: 82.9 | E27: 78.4
A28: E06000024 | C28: North Somerset | D28: 83.8 | E28: 80.3
A29: E06000025 | C29: South Gloucestershire | D29: 84.8 | E29: 81.5
A30: E06000026 | C30: Plymouth | D30: 82.5 | E30: 78.5
A31: E06000027 | C31: Torbay | D31: 83 | E31: 79
A32: E06000028 | C32: Bournemouth | D32: 83.1 | E32: 78.9
A33: E06000029 | C33: Poole | D33: 84.1 | E33: 80.6
A34: E06000030 | C34: Swindon | D34: 83 | E34: 79.5
A35: E06000031 | C35: Peterborough | D35: 82.4 | E35: 78.6
A36: E06000032 | C36: Luton | D36: 82.2 | E36: 78.4
A37: E06000033 | C37: Southend-on-Sea | D37: 83.1 | E37: 79.6
A38: E06000034 | C38: Thurrock | D38: 82.6 | E38: 79.3
A39: E06000035 | C39: Medway | D39: 82.2 | E39: 78.7
A40: E06000036 | C40: Bracknell Forest | D40: 85 | E40: 81.4
A41: E06000037 | C41: West Berkshire | D41: 84.3 | E41: 81
A42: E06000038 | C42: Reading | D42: 82.9 | E42: 78.5
A43: E06000039 | C43: Slough | D43: 82.9 | E43: 78.6
A44: E06000040 | C44: Windsor and Maidenhead | D44: 84.8 | E44: 80.8
A45: E06000041 | C45: Wokingham | D45: 84.7 | E45: 81.8
A46: E06000042 | C46: Milton Keynes | D46: 82.6 | E46: 79.1
A47: E06000043 | C47: Brighton and Hove | D47: 83.5 | E47: 79
A48: E06000044 | C48: Portsmouth | D48: 82.2 | E48: 78.2
A49: E06000045 | C49: Southampton | D49: 83.1 | E49: 78.2
A50: E06000046 | C50: Isle of Wight | D50: 83.5 | E50: 79.8
A51: E06000047 | C51: County Durham | D51: 81.4 | E51: 78.1
A52: E06000049 | C52: Cheshire East | D52: 83.8 | E52: 80.3
A53: E06000050 | C53: Cheshire West and Chester | D53: 83.3 | E53: 79.5
A54: E06000051 | C54: Shropshire | D54: 84.1 | E54: 80.2
A55: E06000052 | C55: Cornwall | D55: 83.5 | E55: 79.5
A56: E06000054 | C56: Wiltshire | D56: 84.1 | E56: 80.9
A57: E06000055 | C57: Bedford | D57: 83.9 | E57: 80.2
A58: E06000056 | C58: Central Bedfordshire | D58: 83.8 | E58: 81.5
A59: E06000057 | C59: Northumberland | D59: 82.5 | E59: 79.4
A60: E07000004 | C60: Aylesbury Vale | D60: 84 | E60: 80.6
A61: E07000005 | C61: Chiltern | D61: 86.7 | E61: 81.8
A62: E07000006 | C62: South Bucks | D62: 85.5 | E62: 81.6
A63: E07000007 | C63: Wycombe | D63: 84.9 | E63: 82.1
A64: E07000008 | C64: Cambridge | D64: 84.1 | E64: 79.9
A65: E07000009 | C65: East Cambridgeshire | D65: 85.5 | E65: 82.2
A66: E07000010 | C66: Fenland | D66: 82.6 | E66: 79.4
A67: E07000011 | C67: Huntingdonshire | D67: 84.5 | E67: 81.2
A68: E07000012 | C68: South Cambridgeshire | D68: 85.6 | E68: 82.7
A69: E07000026 | C69: Allerdale | D69: 82.3 | E69: 78.8
A70: E07000027 | C70: Barrow-in-Furness | D70: 81.5 | E70: 77.1
A71: E07000028 | C71: Carlisle | D71: 82.5 | E71: 78.9
A72: E07000029 | C72: Copeland | D72: 81.8 | E72: 78.1
A73: E07000030 | C73: Eden | D73: 85.1 | E73: 80.9
A74: E07000031 | C74: South Lakeland | D74: 84.6 | E74: 80.6
A75: E07000032 | C75: Amber Valley | D75: 83.2 | E75: 79.6
A76: E07000033 | C76: Bolsover | D76: 81.7 | E76: 77.6
A77: E07000034 | C77: Chesterfield | D77: 82.2 | E77: 78.5
A78: E07000035 | C78: Derbyshire Dales | D78: 84.7 | E78: 81.4
A79: E07000036 | C79: Erewash | D79: 83.2 | E79: 79.7
A80: E07000037 | C80: High Peak | D80: 83.3 | E80: 79.3
A81: E07000038 | C81: North East Derbyshire | D81: 83.3 | E81: 80.4
A82: E07000039 | C82: South Derbyshire | D82: 83 | E82: 79.4
A83: E07000040 | C83: East Devon | D83: 84 | E83: 81.1
A84: E07000041 | C84: Exeter | D84: 84.4 | E84: 79.4
A85: E07000042 | C85: Mid Devon | D85: 85.6 | E85: 82
A86: E07000043 | C86: North Devon | D86: 83.4 | E86: 79.7
A87: E07000044 | C87: South Hams | D87: 85.4 | E87: 81.1
A88: E07000045 | C88: Teignbridge | D88: 84.2 | E88: 80.1
A89: E07000046 | C89: Torridge | D89: 83.3 | E89: 79.9
A90: E07000047 | C90: West Devon | D90: 85 | E90: 79.6
A91: E07000048 | C91: Christchurch | D91: 85.6 | E91: 82.5
A92: E07000049 | C92: East Dorset | D92: 86 | E92: 82.8
A93: E07000050 | C93: North Dorset | D93: 85.6 | E93: 81.8
A94: E07000051 | C94: Purbeck | D94: 85 | E94: 81.9
A95: E07000052 | C95: West Dorset | D95: 84.8 | E95: 81.5
A96: E07000053 | C96: Weymouth and Portland | D96: 83.2 | E96: 78.5
A97: E07000061 | C97: Eastbourne | D97: 83.2 | E97: 80.1
A98: E07000062 | C98: Hastings | D98: 81.7 | E98: 77.9
A99: E07000063 | C99: Lewes | D99: 85.7 | E99: 81.1
A100: E07000064 | C100: Rother | D100: 84.2 | E100: 80
A101: E07000065 | C101: Wealden | D101: 84.9 | E101: 81.6
A102: E07000066 | C102: Basildon | D102: 83.1 | E102: 79.7
A103: E07000067 | C103: Braintree | D103: 83.4 | E103: 80.1
A104: E07000068 | C104: Brentwood | D104: 83.9 | E104: 81.4
A105: E07000069 | C105: Castle Point | D105: 82.4 | E105: 79.7
A106: E07000070 | C106: Chelmsford | D106: 84.9 | E106: 81.4
A107: E07000071 | C107: Colchester | D107: 83.5 | E107: 80
A108: E07000072 | C108: Epping Forest | D108: 83.6 | E108: 80.3
A109: E07000073 | C109: Harlow | D109: 83.3 | E109: 78.6
A110: E07000074 | C110: Maldon | D110: 83.8 | E110: 81.5
A111: E07000075 | C111: Rochford | D111: 84.9 | E111: 81.5
A112: E07000076 | C112: Tendring | D112: 82 | E112: 78.7
A113: E07000077 | C113: Uttlesford | D113: 85.2 | E113: 82.5
A114: E07000078 | C114: Cheltenham | D114: 83.9 | E114: 80.5
A115: E07000079 | C115: Cotswold | D115: 85.3 | E115: 81
A116: E07000080 | C116: Forest of Dean | D116: 83.9 | E116: 79.9
A117: E07000081 | C117: Gloucester | D117: 82.6 | E117: 79.1
A118: E07000082 | C118: Stroud | D118: 82.8 | E118: 79.9
A119: E07000083 | C119: Tewkesbury | D119: 84.1 | E119: 80.5
A120: E07000084 | C120: Basingstoke and Deane | D120: 83.4 | E120: 81.1
A121: E07000085 | C121: East Hampshire | D121: 84.2 | E121: 81.2
A122: E07000086 | C122: Eastleigh | D122: 84.6 | E122: 81.9
A123: E07000087 | C123: Fareham | D123: 83.9 | E123: 80.8
A124: E07000088 | C124: Gosport | D124: 82.7 | E124: 78.3
A125: E07000089 | C125: Hart | D125: 86.6 | E125: 82.4
A126: E07000090 | C126: Havant | D126: 83.5 | E126: 80
A127: E07000091 | C127: New Forest | D127: 85.1 | E127: 82.1
A128: E07000092 | C128: Rushmoor | D128: 83.3 | E128: 79.2
A129: E07000093 | C129: Test Valley | D129: 84.3 | E129: 81.3
A130: E07000094 | C130: Winchester | D130: 85.3 | E130: 82
A131: E07000095 | C131: Broxbourne | D131: 84.9 | E131: 81
A132: E07000096 | C132: Dacorum | D132: 84.6 | E132: 80.8
A133: E07000098 | C133: Hertsmere | D133: 84 | E133: 80.6
A134: E07000099 | C134: North Hertfordshire | D134: 83.1 | E134: 80.5
A135: E07000102 | C135: Three Rivers | D135: 84.7 | E135: 81.2
A136: E07000103 | C136: Watford | D136: 82.5 | E136: 78.9
A137: E07000105 | C137: Ashford | D137: 83.9 | E137: 80.8
A138: E07000106 | C138: Canterbury | D138: 83.5 | E138: 80.3
A139: E07000107 | C139: Dartford | D139: 82.2 | E139: 79.3
A140: E07000108 | C140: Dover | D140: 82.8 | E140: 79.4
A141: E07000109 | C141: Gravesham | D141: 83.2 | E141: 79.7
A142: E07000110 | C142: Maidstone | D142: 83.4 | E142: 80.4
A143: E07000111 | C143: Sevenoaks | D143: 84.7 | E143: 81.6
A144: E07000112 | C144: Shepway | D144: 83.4 | E144: 79.7
A145: E07000113 | C145: Swale | D145: 83.1 | E145: 78.9
A146: E07000114 | C146: Thanet | D146: 82.6 | E146: 78.2
A147: E07000115 | C147: Tonbridge and Malling | D147: 85.4 | E147: 81.2
A148: E07000116 | C148: Tunbridge Wells | D148: 84.8 | E148: 81.8
A149: E07000117 | C149: Burnley | D149: 80.1 | E149: 76.1
A150: E07000118 | C150: Chorley | D150: 82.4 | E150: 79
A151: E07000119 | C151: Fylde | D151: 82.6 | E151: 79.7
A152: E07000120 | C152: Hyndburn | D152: 81.1 | E152: 76.5
A153: E07000121 | C153: Lancaster | D153: 81.9 | E153: 78.1
A154: E07000122 | C154: Pendle | D154: 81.9 | E154: 77.8
A155: E07000123 | C155: Preston | D155: 81.3 | E155: 77.4
A156: E07000124 | C156: Ribble Valley | D156: 83.2 | E156: 81.2
A157: E07000125 | C157: Rossendale | D157: 82.4 | E157: 77.7
A158: E07000126 | C158: South Ribble | D158: 83.3 | E158: 80.2
A159: E07000127 | C159: West Lancashire | D159: 82.8 | E159: 79.6
A160: E07000128 | C160: Wyre | D160: 82.2 | E160: 78.7
A161: E07000129 | C161: Blaby | D161: 84.7 | E161: 80.6
A162: E07000130 | C162: Charnwood | D162: 83.4 | E162: 80.6
A163: E07000131 | C163: Harborough | D163: 84.5 | E163: 80.8
A164: E07000132 | C164: Hinckley and Bosworth | D164: 84.7 | E164: 80.4
A165: E07000133 | C165: Melton | D165: 83.4 | E165: 80.9
A166: E07000134 | C166: North West Leicestershire | D166: 83.3 | E166: 79.2
A167: E07000135 | C167: Oadby and Wigston | D167: 84.5 | E167: 80.6
A168: E07000136 | C168: Boston | D168: 82.7 | E168: 78.7
A169: E07000137 | C169: East Lindsey | D169: 82.3 | E169: 78.9
A170: E07000138 | C170: Lincoln | D170: 82 | E170: 78.2
A171: E07000139 | C171: North Kesteven | D171: 83.9 | E171: 81.5
A172: E07000140 | C172: South Holland | D172: 83.1 | E172: 79.7
A173: E07000141 | C173: South Kesteven | D173: 84 | E173: 80.2
A174: E07000142 | C174: West Lindsey | D174: 83.6 | E174: 79.7
A175: E07000143 | C175: Breckland | D175: 83.2 | E175: 80.4
A176: E07000144 | C176: Broadland | D176: 84.6 | E176: 80.7
A177: E07000145 | C177: Great Yarmouth | D177: 82.1 | E177: 78
A178: E07000146 | C178: King's Lynn and West Norfolk | D178: 83.9 | E178: 79.8
A179: E07000147 | C179: North Norfolk | D179: 84.6 | E179: 80.3
A180: E07000148 | C180: Norwich | D180: 83.4 | E180: 79.9
A181: E07000149 | C181: South Norfolk | D181: 84.7 | E181: 81.7
A182: E07000150 | C182: Corby | D182: 81 | E182: 76.7
A183: E07000151 | C183: Daventry | D183: 82.7 | E183: 80.3
A184: E07000152 | C184: East Northamptonshire | D184: 84.1 | E184: 79.8
A185: E07000153 | C185: Kettering | D185: 83.5 | E185: 79.6
A186: E07000154 | C186: Northampton | D186: 82.3 | E186: 78.3
A187: E07000155 | C187: South Northamptonshire | D187: 84.7 | E187: 82
A188: E07000156 | C188: Wellingborough | D188: 83.3 | E188: 80.1
A189: E07000163 | C189: Craven | D189: 84.6 | E189: 81
A190: E07000164 | C190: Hambleton | D190: 85.2 | E190: 81.3
A191: E07000165 | C191: Harrogate | D191: 84.3 | E191: 81.1
A192: E07000166 | C192: Richmondshire | D192: 83.5 | E192: 81.4
A193: E07000167 | C193: Ryedale | D193: 83.4 | E193: 80
A194: E07000168 | C194: Scarborough | D194: 83 | E194: 78.2
A195: E07000169 | C195: Selby | D195: 83.7 | E195: 79.7
A196: E07000170 | C196: Ashfield | D196: 82 | E196: 78
A197: E07000171 | C197: Bassetlaw | D197: 82.2 | E197: 78.8
A198: E07000172 | C198: Broxtowe | D198: 83.7 | E198: 80.5
A199: E07000173 | C199: Gedling | D199: 83.3 | E199: 80.1
A200: E07000174 | C200: Mansfield | D200: 81.8 | E200: 78.1
A201: E07000175 | C201: Newark and Sherwood | D201: 82.9 | E201: 79.8
... 154 more rows

Sheet data LE quintiles (hidden)
A1: Data LE in MDQ/LDQ
A3: 2012-14 data | F3: 0 if LE MDQ < LE LDQ | G3: 0 if LE MDQ < LE LDQ
B4: Male | D4: Female | F4: 1 otherwise | G4: 1 otherwise
A5: geocode | B5: LE MDQ | C5: LE LDQ | D5: LE MDQ | E5: LE LDQ | F5: Flag male | G5: Flag female
A6: E06000001 | B6: 72.8 | C6: 83 | D6: 77.8 | E6: 87.2 | F6: =IF(B6>=C6,1,0) -> 0 | G6: =IF(D6>=E6,1,0) -> 0 | H6: =VLOOKUP(A6,'data LE '!$A$4:$E$355,3,FALSE) -> Hartlepool
A7: E06000002 | B7: 72.6 | C7: 81.6 | D7: 75.1 | E7: 83.9 | F7: =IF(B7>=C7,1,0) -> 0 | G7: =IF(D7>=E7,1,0) -> 0 | H7: =VLOOKUP(A7,'data LE '!$A$4:$E$355,3,FALSE) -> Middlesbrough
A8: E06000003 | B8: 75 | C8: 83.2 | D8: 80.9 | E8: 84.8 | F8: 0 | G8: 0 | H8: =VLOOKUP(A8,'data LE '!$A$4:$E$355,3,FALSE) -> Redcar and Cleveland
A9: E06000004 | B9: 71.4 | C9: 85.4 | D9: 77.3 | E9: 88.2 | F9: 0 | G9: 0 | H9: =VLOOKUP(A9,'data LE '!$A$4:$E$355,3,FALSE) -> Stockton-on-Tees
A10: E06000005 | B10: 72.9 | C10: 82.6 | D10: 78.7 | E10: 86.2 | F10: 0 | G10: 0 | H10: =VLOOKUP(A10,'data LE '!$A$4:$E$355,3,FALSE) -> Darlington
A11: E06000006 | B11: 73.4 | C11: 82.6 | D11: 78.7 | E11: 84.9 | F11: 0 | G11: 0 | H11: =VLOOKUP(A11,'data LE '!$A$4:$E$355,3,FALSE) -> Halton
A12: E06000007 | B12: 72.6 | C12: 82.5 | D12: 77.4 | E12: 84.7 | F12: 0 | G12: 0 | H12: =VLOOKUP(A12,'data LE '!$A$4:$E$355,3,FALSE) -> Warrington
A13: E06000008 | B13: 72.3 | C13: 83.1 | D13: 79.1 | E13: 87.2 | F13: 0 | G13: 0 | H13: =VLOOKUP(A13,'data LE '!$A$4:$E$355,3,FALSE) -> Blackburn with Darwen
A14: E06000009 | B14: 69.4 | C14: 78.9 | D14: 75.9 | E14: 83.2 | F14: 0 | G14: 0 | H14: =VLOOKUP(A14,'data LE '!$A$4:$E$355,3,FALSE) -> Blackpool
A15: E06000010 | B15: 71.9 | C15: 80.7 | D15: 77.2 | E15: 84 | F15: 0 | G15: 0 | H15: =VLOOKUP(A15,'data LE '!$A$4:$E$355,3,FALSE) -> Kingston upon Hull
A16: E06000011 | B16: 76.2 | C16: 82.6 | D16: 80.4 | E16: 84.6 | F16: 0 | G16: 0 | H16: =VLOOKUP(A16,'data LE '!$A$4:$E$355,3,FALSE) -> East Riding of Yorkshire
A17: E06000012 | B17: 72.1 | C17: 82.3 | D17: 77.5 | E17: 85.5 | F17: 0 | G17: 0 | H17: =VLOOKUP(A17,'data LE '!$A$4:$E$355,3,FALSE) -> North East Lincolnshire
A18: E06000013 | B18: 73.7 | C18: 81.9 | D18: 78.4 | E18: 87.5 | F18: 0 | G18: 0 | H18: =VLOOKUP(A18,'data LE '!$A$4:$E$355,3,FALSE) -> North Lincolnshire
A19: E06000014 | B19: 76.3 | C19: 81.9 | D19: 79.8 | E19: 85.2 | F19: 0 | G19: 0 | H19: =VLOOKUP(A19,'data LE '!$A$4:$E$355,3,FALSE) -> York
A20: E06000015 | B20: 73 | C20: 83 | D20: 79.2 | E20: 86.2 | F20: 0 | G20: 0 | H20: =VLOOKUP(A20,'data LE '!$A$4:$E$355,3,FALSE) -> Derby
A21: E06000016 | B21: 74.3 | C21: 80.3 | D21: 79.9 | E21: 84.4 | F21: 0 | G21: 0 | H21: =VLOOKUP(A21,'data LE '!$A$4:$E$355,3,FALSE) -> Leicester
A22: E06000017 | B22: 79.1 | C22: 86 | D22: 80.8 | E22: 93 | F22: 0 | G22: 0 | H22: =VLOOKUP(A22,'data LE '!$A$4:$E$355,3,FALSE) -> Rutland
A23: E06000018 | B23: 74.2 | C23: 80.6 | D23: 79.2 | E23: 85.2 | F23: 0 | G23: 0 | H23: =VLOOKUP(A23,'data LE '!$A$4:$E$355,3,FALSE) -> Nottingham
A24: E06000019 | B24: 77.4 | C24: 81.6 | D24: 81 | E24: 84.6 | F24: 0 | G24: 0 | H24: =VLOOKUP(A24,'data LE '!$A$4:$E$355,3,FALSE) -> Herefordshire
A25: E06000020 | B25: 75.3 | C25: 82.9 | D25: 79.7 | E25: 84.9 | F25: 0 | G25: 0 | H25: =VLOOKUP(A25,'data LE '!$A$4:$E$355,3,FALSE) -> Telford and Wrekin
A26: E06000021 | B26: 72.4 | C26: 79.9 | D26: 78.2 | E26: 83.5 | F26: 0 | G26: 0 | H26: =VLOOKUP(A26,'data LE '!$A$4:$E$355,3,FALSE) -> Stoke-on-Trent
A27: E06000022 | B27: 77.4 | C27: 83.9 | D27: 82.8 | E27: 86.1 | F27: 0 | G27: 0 | H27: =VLOOKUP(A27,'data LE '!$A$4:$E$355,3,FALSE) -> Bath and North East Somerset
A28: E06000023 | B28: 74.5 | C28: 81.8 | D28: 80 | E28: 85.6 | F28: 0 | G28: 0 | H28: =VLOOKUP(A28,'data LE '!$A$4:$E$355,3,FALSE) -> Bristol
A29: E06000024 | B29: 74.8 | C29: 84.5 | D29: 79.7 | E29: 86.4 | F29: 0 | G29: 0 | H29: =VLOOKUP(A29,'data LE '!$A$4:$E$355,3,FALSE) -> North Somerset
A30: E06000025 | B30: 78.7 | C30: 83.8 | D30: 83 | E30: 88.1 | F30: 0 | G30: 0 | H30: =VLOOKUP(A30,'data LE '!$A$4:$E$355,3,FALSE) -> South Gloucestershire
A31: E06000026 | B31: 75 | C31: 81.5 | D31: 80.7 | E31: 84.9 | F31: 0 | G31: 0 | H31: =VLOOKUP(A31,'data LE '!$A$4:$E$355,3,FALSE) -> Plymouth
A32: E06000027 | B32: 76.2 | C32: 81.3 | D32: 82.1 | E32: 85.1 | F32: 0 | G32: 0 | H32: =VLOOKUP(A32,'data LE '!$A$4:$E$355,3,FALSE) -> Torbay
A33: E06000028 | B33: 74.4 | C33: 82.9 | D33: 79.5 | E33: 85.7 | F33: 0 | G33: 0 | H33: =VLOOKUP(A33,'data LE '!$A$4:$E$355,3,FALSE) -> Bournemouth
A34: E06000029 | B34: 77.9 | C34: 83.9 | D34: 82.1 | E34: 87.4 | F34: 0 | G34: 0 | H34: =VLOOKUP(A34,'data LE '!$A$4:$E$355,3,FALSE) -> Poole
A35: E06000030 | B35: 75.7 | C35: 81 | D35: 81 | E35: 83.3 | F35: 0 | G35: 0 | H35: =VLOOKUP(A35,'data LE '!$A$4:$E$355,3,FALSE) -> Swindon
A36: E06000031 | B36: 76 | C36: 82.7 | D36: 81.4 | E36: 86.5 | F36: 0 | G36: 0 | H36: =VLOOKUP(A36,'data LE '!$A$4:$E$355,3,FALSE) -> Peterborough
A37: E06000032 | B37: 73.2 | C37: 82.2 | D37: 80.2 | E37: 84.3 | F37: 0 | G37: 0 | H37: =VLOOKUP(A37,'data LE '!$A$4:$E$355,3,FALSE) -> Luton
A38: E06000033 | B38: 74.2 | C38: 83.9 | D38: 78.5 | E38: 86.9 | F38: 0 | G38: 0 | H38: =VLOOKUP(A38,'data LE '!$A$4:$E$355,3,FALSE) -> Southend-on-Sea
A39: E06000034 | B39: 76.1 | C39: 83 | D39: 80.6 | E39: 86.3 | F39: 0 | G39: 0 | H39: =VLOOKUP(A39,'data LE '!$A$4:$E$355,3,FALSE) -> Thurrock
A40: E06000035 | B40: 76 | C40: 81.4 | D40: 80.7 | E40: 84.8 | F40: 0 | G40: 0 | H40: =VLOOKUP(A40,'data LE '!$A$4:$E$355,3,FALSE) -> Medway
A41: E06000036 | B41: 79.2 | C41: 84 | D41: 85.5 | E41: 86.2 | F41: 0 | G41: 0 | H41: =VLOOKUP(A41,'data LE '!$A$4:$E$355,3,FALSE) -> Bracknell Forest
A42: E06000037 | B42: 79.2 | C42: 83.3 | D42: 81.7 | E42: 86.1 | F42: 0 | G42: 0 | H42: =VLOOKUP(A42,'data LE '!$A$4:$E$355,3,FALSE) -> West Berkshire
A43: E06000038 | B43: 74.5 | C43: 83.2 | D43: 81.5 | E43: 89 | F43: 0 | G43: 0 | H43: =VLOOKUP(A43,'data LE '!$A$4:$E$355,3,FALSE) -> Reading
A44: E06000039 | B44: 76.5 | C44: 81.2 | D44: 81.1 | E44: 85.5 | F44: 0 | G44: 0 | H44: =VLOOKUP(A44,'data LE '!$A$4:$E$355,3,FALSE) -> Slough
A45: E06000040 | B45: 77.5 | C45: 83.4 | D45: 82.2 | E45: 86.4 | F45: 0 | G45: 0 | H45: =VLOOKUP(A45,'data LE '!$A$4:$E$355,3,FALSE) -> Windsor and Maidenhead
A46: E06000041 | B46: 79.7 | C46: 83.1 | D46: 82.4 | E46: 85.9 | F46: 0 | G46: 0 | H46: =VLOOKUP(A46,'data LE '!$A$4:$E$355,3,FALSE) -> Wokingham
A47: E06000042 | B47: 75.9 | C47: 82 | D47: 79.5 | E47: 85.4 | F47: 0 | G47: 0 | H47: =VLOOKUP(A47,'data LE '!$A$4:$E$355,3,FALSE) -> Milton Keynes
A48: E06000043 | B48: 74.2 | C48: 83.1 | D48: 80 | E48: 85.4 | F48: 0 | G48: 0 | H48: =VLOOKUP(A48,'data LE '!$A$4:$E$355,3,FALSE) -> Brighton and Hove
A49: E06000044 | B49: 74.3 | C49: 82.4 | D49: 79 | E49: 84.4 | F49: 0 | G49: 0 | H49: =VLOOKUP(A49,'data LE '!$A$4:$E$355,3,FALSE) -> Portsmouth
A50: E06000045 | B50: 75.1 | C50: 81.8 | D50: 81.5 | E50: 84.9 | F50: 0 | G50: 0 | H50: =VLOOKUP(A50,'data LE '!$A$4:$E$355,3,FALSE) -> Southampton
A51: E06000046 | B51: 77.6 | C51: 82.2 | D51: 81.9 | E51: 84.8 | F51: 0 | G51: 0 | H51: =VLOOKUP(A51,'data LE '!$A$4:$E$355,3,FALSE) -> Isle of Wight
A52: E06000047 | B52: 75.4 | C52: 81.8 | D52: 78.4 | E52: 84.4 | F52: 0 | G52: 0 | H52: =VLOOKUP(A52,'data LE '!$A$4:$E$355,3,FALSE) -> County Durham
A53: E06000049 | B53: 75.1 | C53: 84.2 | D53: 80.1 | E53: 87 | F53: 0 | G53: 0 | H53: =VLOOKUP(A53,'data LE '!$A$4:$E$355,3,FALSE) -> Cheshire East
A54: E06000050 | B54: 74.9 | C54: 82.6 | D54: 79.1 | E54: 85.5 | F54: 0 | G54: 0 | H54: =VLOOKUP(A54,'data LE '!$A$4:$E$355,3,FALSE) -> Cheshire West and Chester
A55: E06000051 | B55: 77.4 | C55: 81.8 | D55: 82.9 | E55: 85.2 | F55: 0 | G55: 0 | H55: =VLOOKUP(A55,'data LE '!$A$4:$E$355,3,FALSE) -> Shropshire
A56: E06000052 | B56: 75.5 | C56: 81.6 | D56: 80.9 | E56: 85.1 | F56: 0 | G56: 0 | H56: =VLOOKUP(A56,'data LE '!$A$4:$E$355,3,FALSE) -> Cornwall
A57: E06000054 | B57: 77.2 | C57: 82.5 | D57: 82.5 | E57: 85.4 | F57: 0 | G57: 0 | H57: =VLOOKUP(A57,'data LE '!$A$4:$E$355,3,FALSE) -> Wiltshire
A58: E06000055 | B58: 75.5 | C58: 82.5 | D58: 80.6 | E58: 87.7 | F58: 0 | G58: 0 | H58: =VLOOKUP(A58,'data LE '!$A$4:$E$355,3,FALSE) -> Bedford
A59: E06000056 | B59: 78.5 | C59: 82.8 | D59: 81 | E59: 85.9 | F59: 0 | G59: 0 | H59: =VLOOKUP(A59,'data LE '!$A$4:$E$355,3,FALSE) -> Central Bedfordshire
A60: E06000057 | B60: 75.1 | C60: 83 | D60: 79 | E60: 85 | F60: 0 | G60: 0 | H60: =VLOOKUP(A60,'data LE '!$A$4:$E$355,3,FALSE) -> Northumberland
A61: E07000004 | B61: 76.6 | C61: 83.7 | D61: 80.8 | E61: 85.2 | F61: 0 | G61: 0 | H61: =VLOOKUP(A61,'data LE '!$A$4:$E$355,3,FALSE) -> Aylesbury Vale
A62: E07000005 | B62: 78.3 | C62: 83.4 | D62: 84.8 | E62: 88.2 | F62: 0 | G62: 0 | H62: =VLOOKUP(A62,'data LE '!$A$4:$E$355,3,FALSE) -> Chiltern
A63: E07000006 | B63: 79.5 | C63: 84.4 | D63: 83.7 | E63: 87.2 | F63: 0 | G63: 0 | H63: =VLOOKUP(A63,'data LE '!$A$4:$E$355,3,FALSE) -> South Bucks
A64: E07000007 | B64: 78.5 | C64: 83.6 | D64: 82.4 | E64: 85.8 | F64: 0 | G64: 0 | H64: =VLOOKUP(A64,'data LE '!$A$4:$E$355,3,FALSE) -> Wycombe
A65: E07000008 | B65: 76.2 | C65: 85.5 | D65: 80.8 | E65: 88.8 | F65: 0 | G65: 0 | H65: =VLOOKUP(A65,'data LE '!$A$4:$E$355,3,FALSE) -> Cambridge
A66: E07000009 | B66: 81.2 | C66: 84.4 | D66: 85.3 | E66: 87.3 | F66: 0 | G66: 0 | H66: =VLOOKUP(A66,'data LE '!$A$4:$E$355,3,FALSE) -> East Cambridgeshire
A67: E07000010 | B67: 76.7 | C67: 81.2 | D67: 81.4 | E67: 82.9 | F67: 0 | G67: 0 | H67: =VLOOKUP(A67,'data LE '!$A$4:$E$355,3,FALSE) -> Fenland
A68: E07000011 | B68: 79.4 | C68: 84.1 | D68: 82.6 | E68: 87.3 | F68: 0 | G68: 0 | H68: =VLOOKUP(A68,'data LE '!$A$4:$E$355,3,FALSE) -> Huntingdonshire
A69: E07000012 | B69: 80.8 | C69: 83.4 | D69: 84 | E69: 86 | F69: 0 | G69: 0 | H69: =VLOOKUP(A69,'data LE '!$A$4:$E$355,3,FALSE) -> South Cambridgeshire
A70: E07000026 | B70: 76.1 | C70: 79.5 | D70: 78 | E70: 83.4 | F70: 0 | G70: 0 | H70: =VLOOKUP(A70,'data LE '!$A$4:$E$355,3,FALSE) -> Allerdale
A71: E07000027 | B71: 70.9 | C71: 81.8 | D71: 78.2 | E71: 83.7 | F71: =IF(B71>=C71,1,0) -> 0 | G71: =IF(D71>=E71,1,0) -> 0 | H71: =VLOOKUP(A71,'data LE '!$A$4:$E$355,3,FALSE) -> Barrow-in-Furness
A72: E07000028 | B72: 74.6 | C72: 83.2 | D72: 78.8 | E72: 83.9 | F72: 0 | G72: 0 | H72: =VLOOKUP(A72,'data LE '!$A$4:$E$355,3,FALSE) -> Carlisle
A73: E07000029 | B73: 72.7 | C73: 83.1 | D73: 77.3 | E73: 84.2 | F73: 0 | G73: 0 | H73: =VLOOKUP(A73,'data LE '!$A$4:$E$355,3,FALSE) -> Copeland
A74: E07000030 | B74: 79.6 | C74: 79.9 | D74: 83.8 | E74: 84.2 | F74: 0 | G74: 0 | H74: =VLOOKUP(A74,'data LE '!$A$4:$E$355,3,FALSE) -> Eden
A75: E07000031 | B75: 78.1 | C75: 83.3 | D75: 81.4 | E75: 87.5 | F75: 0 | G75: 0 | H75: =VLOOKUP(A75,'data LE '!$A$4:$E$355,3,FALSE) -> South Lakeland
A76: E07000032 | B76: 75 | C76: 83.2 | D76: 80.8 | E76: 85.5 | F76: 0 | G76: 0 | H76: =VLOOKUP(A76,'data LE '!$A$4:$E$355,3,FALSE) -> Amber Valley
